Workbook

Sheet Megrendelő
C2: MEGRENDELŐ
AD3: Új árlista Rodcraft és Chicago Pneumatic 2020
A4: Cég neve: | AD4: Új Rodcraft TOPS és CP Stars 2020 árak
A5: Számlázási cím: | H5: Adószám:
A6: Szállítási cím:
A7: Megrendelő neve: | D7: Fizetési mód: | G7: 1 | H7: Pénznem: | I7: 1
A8: Telefon: | D8: Kedvezmény: | G8: 0 | H8: Szállítás: | I8: 1
D9: Árfolyam: | E9: =F9-3 -> 0 | F9: 3 | G9: 340 | H9: HUF/EU | I9: =ROUND(G9/5,0)*5 -> 340
B11: Cikkszám | C11: Megnevezés | D11: Mennyiség | E11: Kedvez- mény | F11: Súly | G11: Nettó listaár | H11: ="Nettó kedvezményes egységár "&IF($I$7=1,"HUF","EUR") -> Nettó kedvezményes egységár HUF | I11: ="Összesen "&IF($I$7=1,"HUF","EUR") -> Összesen HUF | L11: LÉGSZERSZÁMOK
A12: 1 | B12: =IFERROR(IF(ST!C3>0,ST!C3,""),"") ->  | C12: =IFERROR(IF(ST!D3>0,ST!D3,""),"") ->  | E12: =IFERROR(IF(ISNUMBER(G12),IF(AND(0.12<G$8,0.16>G$8),IF(ST!G3>0,0.15,G$8),IF(G$8>0.15,G$8-ST!G3,G$8)),""),"") ->  | F12: =IFERROR(ST!H3*D12,"") ->  | G12: =IFERROR(IF(AND(E$8="ws",ST!L3>0),ST!L3,IF(ST!K3>0,ST!K3,IF(ST!J3>0,ST!J3,""))),"") ->  | H12: =IFERROR(ROUND(IF(G12>0,IF(I$7>1,(1-E12)*G12/340,(1-E12)*G12/340*I$9),""),E$9),"") ->  | I12: =IFERROR(H12*D12,"") ->  | L12: Árlista | T12: Légkulcsok | V12: Fúrók | X12: Racsnis kulcsok | Z12: Csavar-behajtók | AB12: Sarok- csiszolók
A13: 2 | B13: =IFERROR(IF(ST!C4>0,ST!C4,""),"") ->  | C13: =IFERROR(IF(ST!D4>0,ST!D4,""),"") ->  | E13: =IFERROR(IF(ISNUMBER(G13),IF(AND(0.12<G$8,0.16>G$8),IF(ST!G4>0,0.15,G$8),IF(G$8>0.15,G$8-ST!G4,G$8)),""),"") ->  | F13: =IFERROR(ST!H4*D13,"") ->  | G13: =IFERROR(IF(AND(E$8="ws",ST!L4>0),ST!L4,IF(ST!K4>0,ST!K4,IF(ST!J4>0,ST!J4,""))),"") ->  | H13: =IFERROR(ROUND(IF(G13>0,IF(I$7>1,(1-E13)*G13/340,(1-E13)*G13/340*I$9),""),E$9),"") ->  | L13: Megrendelő
A14: 3 | B14: =IFERROR(IF(ST!C5>0,ST!C5,""),"") ->  | C14: =IFERROR(IF(ST!D5>0,ST!D5,""),"") ->  | E14: =IFERROR(IF(ISNUMBER(G14),IF(AND(0.12<G$8,0.16>G$8),IF(ST!G5>0,0.15,G$8),IF(G$8>0.15,G$8-ST!G5,G$8)),""),"") ->  | F14: =IFERROR(ST!H5*D14,"") ->  | G14: =IFERROR(IF(AND(E$8="ws",ST!L5>0),ST!L5,IF(ST!K5>0,ST!K5,IF(ST!J5>0,ST!J5,""))),"") ->  | L14: Fúrók
A15: 4 | B15: =IFERROR(IF(ST!C6>0,ST!C6,""),"") ->  | C15: =IFERROR(IF(ST!D6>0,ST!D6,""),"") ->  | E15: =IFERROR(IF(ISNUMBER(G15),IF(AND(0.12<G$8,0.16>G$8),IF(ST!G6>0,0.15,G$8),IF(G$8>0.15,G$8-ST!G6,G$8)),""),"") ->  | F15: =IFERROR(ST!H6*D15,"") ->  | G15: =IFERROR(IF(AND(E$8="ws",ST!L6>0),ST!L6,IF(ST!K6>0,ST!K6,IF(ST!J6>0,ST!J6,""))),"") ->  | L15: Racsnis kulcsok | AD15: =Fúrók!A25 -> A feltüntett árak a 2020.02.01.-től
A16: 5 | B16: =IFERROR(IF(ST!C7>0,ST!C7,""),"") ->  | C16: =IFERROR(IF(ST!D7>0,ST!D7,""),"") ->  | E16: =IFERROR(IF(ISNUMBER(G16),IF(AND(0.12<G$8,0.16>G$8),IF(ST!G7>0,0.15,G$8),IF(G$8>0.15,G$8-ST!G7,G$8)),""),"") ->  | F16: =IFERROR(ST!H7*D16,"") ->  | G16: =IFERROR(IF(AND(E$8="ws",ST!L7>0),ST!L7,IF(ST!K7>0,ST!K7,IF(ST!J7>0,ST!J7,""))),"") ->  | L16: Csavarbehajtók | AD16: =Fúrók!A26 -> érvényes listaárak.
A17: 6 | B17: =IFERROR(IF(ST!C8>0,ST!C8,""),"") ->  | C17: =IFERROR(IF(ST!D8>0,ST!D8,""),"") ->  | E17: =IFERROR(IF(ISNUMBER(G17),IF(AND(0.12<G$8,0.16>G$8),IF(ST!G8>0,0.15,G$8),IF(G$8>0.15,G$8-ST!G8,G$8)),""),"") ->  | F17: =IFERROR(ST!H8*D17,"") ->  | G17: =IFERROR(IF(AND(E$8="ws",ST!L8>0),ST!L8,IF(ST!K8>0,ST!K8,IF(ST!J8>0,ST!J8,""))),"") ->  | L17: Sarokcsiszolók
A18: 7 | B18: =IFERROR(IF(ST!C9>0,ST!C9,""),"") ->  | C18: =IFERROR(IF(ST!D9>0,ST!D9,""),"") ->  | E18: =IFERROR(IF(ISNUMBER(G18),IF(AND(0.12<G$8,0.16>G$8),IF(ST!G9>0,0.15,G$8),IF(G$8>0.15,G$8-ST!G9,G$8)),""),"") ->  | F18: =IFERROR(ST!H9*D18,"") ->  | G18: =IFERROR(IF(AND(E$8="ws",ST!L9>0),ST!L9,IF(ST!K9>0,ST!K9,IF(ST!J9>0,ST!J9,""))),"") ->  | L18: Légkulcsok | AD18: =Fúrók!A27 -> * jelöléssel ellátott termékek a
A19: 8 | B19: =IFERROR(IF(ST!C10>0,ST!C10,""),"") ->  | C19: =IFERROR(IF(ST!D10>0,ST!D10,""),"") ->  | E19: =IFERROR(IF(ISNUMBER(G19),IF(AND(0.12<G$8,0.16>G$8),IF(ST!G10>0,0.15,G$8),IF(G$8>0.15,G$8-ST!G10,G$8)),""),"") ->  | F19: =IFERROR(ST!H10*D19,"") ->  | G19: =IFERROR(IF(AND(E$8="ws",ST!L10>0),ST!L10,IF(ST!K10>0,ST!K10,IF(ST!J10>0,ST!J10,""))),"") ->  | L19: Egyenes csiszolók | AD19: =Fúrók!A28 -> RC TOPS és CP STAR akciós
A20: 9 | B20: =IFERROR(IF(ST!C11>0,ST!C11,""),"") ->  | C20: =IFERROR(IF(ST!D11>0,ST!D11,""),"") ->  | E20: =IFERROR(IF(ISNUMBER(G20),IF(AND(0.12<G$8,0.16>G$8),IF(ST!G11>0,0.15,G$8),IF(G$8>0.15,G$8-ST!G11,G$8)),""),"") ->  | F20: =IFERROR(ST!H11*D20,"") ->  | G20: =IFERROR(IF(AND(E$8="ws",ST!L11>0),ST!L11,IF(ST!K11>0,ST!K11,IF(ST!J11>0,ST!J11,""))),"") ->  | L20: Szalag és excenter csiszolók | T20: Egyenes csiszolók | V20: Szalag- és excentercsiszolók | X20: Polír- és fiber- csiszolók | Z20: Vésők és leverők | AB20: Szóró és lefuvató pisztolyok | AD20: =Fúrók!A29 -> kiadvány árai
A21: 10 | B21: =IFERROR(IF(ST!C12>0,ST!C12,""),"") ->  | C21: =IFERROR(IF(ST!D12>0,ST!D12,""),"") ->  | E21: =IFERROR(IF(ISNUMBER(G21),IF(AND(0.12<G$8,0.16>G$8),IF(ST!G12>0,0.15,G$8),IF(G$8>0.15,G$8-ST!G12,G$8)),""),"") ->  | F21: =IFERROR(ST!H12*D21,"") ->  | G21: =IFERROR(IF(AND(E$8="ws",ST!L12>0),ST!L12,IF(ST!K12>0,ST!K12,IF(ST!J12>0,ST!J12,""))),"") ->  | L21: Polír- és fiber csiszolók | AD21: =Fúrók!A30 -> SP jelöléssel ellátott termékekre
A22: 11 | B22: =IFERROR(IF(ST!C13>0,ST!C13,""),"") ->  | C22: =IFERROR(IF(ST!D13>0,ST!D13,""),"") ->  | E22: =IFERROR(IF(ISNUMBER(G22),IF(AND(0.12<G$8,0.16>G$8),IF(ST!G13>0,0.15,G$8),IF(G$8>0.15,G$8-ST!G13,G$8)),""),"") ->  | F22: =IFERROR(ST!H13*D22,"") ->  | G22: =IFERROR(IF(AND(E$8="ws",ST!L13>0),ST!L13,IF(ST!K13>0,ST!K13,IF(ST!J13>0,ST!J13,""))),"") ->  | L22: Vésők, leverők … | AD22: =Fúrók!A31 -> speciális viszonteladói árkézés
A23: 12 | B23: =IFERROR(IF(ST!C14>0,ST!C14,""),"") ->  | C23: =IFERROR(IF(ST!D14>0,ST!D14,""),"") ->  | E23: =IFERROR(IF(ISNUMBER(G23),IF(AND(0.12<G$8,0.16>G$8),IF(ST!G14>0,0.15,G$8),IF(G$8>0.15,G$8-ST!G14,G$8)),""),"") ->  | F23: =IFERROR(ST!H14*D23,"") ->  | G23: =IFERROR(IF(AND(E$8="ws",ST!L14>0),ST!L14,IF(ST!K14>0,ST!K14,IF(ST!J14>0,ST!J14,""))),"") ->  | L23: Szóró- és lefúvató pisztolyok | AD23: =Fúrók!A32 -> vonatkozik. Az Extra árak
A24: 13 | B24: =IFERROR(IF(ST!C15>0,ST!C15,""),"") ->  | C24: =IFERROR(IF(ST!D15>0,ST!D15,""),"") ->  | E24: =IFERROR(IF(ISNUMBER(G24),IF(AND(0.12<G$8,0.16>G$8),IF(ST!G15>0,0.15,G$8),IF(G$8>0.15,G$8-ST!G15,G$8)),""),"") ->  | F24: =IFERROR(ST!H15*D24,"") ->  | G24: =IFERROR(IF(AND(E$8="ws",ST!L15>0),ST!L15,IF(ST!K15>0,ST!K15,IF(ST!J15>0,ST!J15,""))),"") ->  | L24: Vágók, fűrészek, szegecshúzók
A25: 14 | B25: =IFERROR(IF(ST!C16>0,ST!C16,""),"") ->  | C25: =IFERROR(IF(ST!D16>0,ST!D16,""),"") ->  | E25: =IFERROR(IF(ISNUMBER(G25),IF(AND(0.12<G$8,0.16>G$8),IF(ST!G16>0,0.15,G$8),IF(G$8>0.15,G$8-ST!G16,G$8)),""),"") ->  | F25: =IFERROR(ST!H16*D25,"") ->  | G25: =IFERROR(IF(AND(E$8="ws",ST!L16>0),ST!L16,IF(ST!K16>0,ST!K16,IF(ST!J16>0,ST!J16,""))),"") ->  | L25: Dugókulcsok | AD25: =Fúrók!A35 -> Az árista a Techtomat Kft és
A26: 15 | B26: =IFERROR(IF(ST!C17>0,ST!C17,""),"") ->  | C26: =IFERROR(IF(ST!D17>0,ST!D17,""),"") ->  | E26: =IFERROR(IF(ISNUMBER(G26),IF(AND(0.12<G$8,0.16>G$8),IF(ST!G17>0,0.15,G$8),IF(G$8>0.15,G$8-ST!G17,G$8)),""),"") ->  | F26: =IFERROR(ST!H17*D26,"") ->  | G26: =IFERROR(IF(AND(E$8="ws",ST!L17>0),ST!L17,IF(ST!K17>0,ST!K17,IF(ST!J17>0,ST!J17,""))),"") ->  | L26: Csatlakozók | AD26: =Fúrók!A36 -> Kapitár Kft közös gondozásában
A27: 16 | B27: =IFERROR(IF(ST!C18>0,ST!C18,""),"") ->  | C27: =IFERROR(IF(ST!D18>0,ST!D18,""),"") ->  | E27: =IFERROR(IF(ISNUMBER(G27),IF(AND(0.12<G$8,0.16>G$8),IF(ST!G18>0,0.15,G$8),IF(G$8>0.15,G$8-ST!G18,G$8)),""),"") ->  | F27: =IFERROR(ST!H18*D27,"") ->  | G27: =IFERROR(IF(AND(E$8="ws",ST!L18>0),ST!L18,IF(ST!K18>0,ST!K18,IF(ST!J18>0,ST!J18,""))),"") ->  | L27: Abroncstöltők | AD27: =Fúrók!A37 -> jelent meg.
A28: 17 | B28: =IFERROR(IF(ST!C19>0,ST!C19,""),"") ->  | C28: =IFERROR(IF(ST!D19>0,ST!D19,""),"") ->  | E28: =IFERROR(IF(ISNUMBER(G28),IF(AND(0.12<G$8,0.16>G$8),IF(ST!G19>0,0.15,G$8),IF(G$8>0.15,G$8-ST!G19,G$8)),""),"") ->  | F28: =IFERROR(ST!H19*D28,"") ->  | G28: =IFERROR(IF(AND(E$8="ws",ST!L19>0),ST!L19,IF(ST!K19>0,ST!K19,IF(ST!J19>0,ST!J19,""))),"") ->  | L28: ABAC Levegős szerszámok | T28: Vágók, fűrészek, szegecshúzók | V28: Dugókulcsok | X28: Csatlakozók | Z28: Abroncs- töltők | AB28: ABAC TOOLS | AD28: =Fúrók!A38 -> Minden jog fenntartva.
A29: 18 | B29: =IFERROR(IF(ST!C20>0,ST!C20,""),"") ->  | C29: =IFERROR(IF(ST!D20>0,ST!D20,""),"") ->  | E29: =IFERROR(IF(ISNUMBER(G29),IF(AND(0.12<G$8,0.16>G$8),IF(ST!G20>0,0.15,G$8),IF(G$8>0.15,G$8-ST!G20,G$8)),""),"") ->  | F29: =IFERROR(ST!H20*D29,"") ->  | G29: =IFERROR(IF(AND(E$8="ws",ST!L20>0),ST!L20,IF(ST!K20>0,ST!K20,IF(ST!J20>0,ST!J20,""))),"") ->  | L29: Garázsipari eszközök | AB29: TOOLS
A30: 19 | B30: =IFERROR(IF(ST!C21>0,ST!C21,""),"") ->  | C30: =IFERROR(IF(ST!D21>0,ST!D21,""),"") ->  | E30: =IFERROR(IF(ISNUMBER(G30),IF(AND(0.12<G$8,0.16>G$8),IF(ST!G21>0,0.15,G$8),IF(G$8>0.15,G$8-ST!G21,G$8)),""),"") ->  | F30: =IFERROR(ST!H21*D30,"") ->  | G30: =IFERROR(IF(AND(E$8="ws",ST!L21>0),ST!L21,IF(ST!K21>0,ST!K21,IF(ST!J21>0,ST!J21,""))),"") ->  | L30: AKKUMULÁTOROS GÉPEK | AD30: =Fúrók!A40 -> Bővebb információ:
A31: 20 | B31: =IFERROR(IF(ST!C22>0,ST!C22,""),"") ->  | C31: =IFERROR(IF(ST!D22>0,ST!D22,""),"") ->  | E31: =IFERROR(IF(ISNUMBER(G31),IF(AND(0.12<G$8,0.16>G$8),IF(ST!G22>0,0.15,G$8),IF(G$8>0.15,G$8-ST!G22,G$8)),""),"") ->  | F31: =IFERROR(ST!H22*D31,"") ->  | G31: =IFERROR(IF(AND(E$8="ws",ST!L22>0),ST!L22,IF(ST!K22>0,ST!K22,IF(ST!J22>0,ST!J22,""))),"") ->  | L31: Tömlők, tömlődobok | AD31: =Fúrók!A41 -> Szabó Attila
A32: 21 | B32: =IFERROR(IF(ST!C23>0,ST!C23,""),"") ->  | C32: =IFERROR(IF(ST!D23>0,ST!D23,""),"") ->  | E32: =IFERROR(IF(ISNUMBER(G32),IF(AND(0.12<G$8,0.16>G$8),IF(ST!G23>0,0.15,G$8),IF(G$8>0.15,G$8-ST!G23,G$8)),""),"") ->  | F32: =IFERROR(ST!H23*D32,"") ->  | G32: =IFERROR(IF(AND(E$8="ws",ST!L23>0),ST!L23,IF(ST!K23>0,ST!K23,IF(ST!J23>0,ST!J23,""))),"") ->  | L32: Szűrők, szabályozók | AD32: =Fúrók!A42 -> 30/201-4931 vagy 30/626-8687
A33: 22 | B33: =IFERROR(IF(ST!C24>0,ST!C24,""),"") ->  | C33: =IFERROR(IF(ST!D24>0,ST!D24,""),"") ->  | E33: =IFERROR(IF(ISNUMBER(G33),IF(AND(0.12<G$8,0.16>G$8),IF(ST!G24>0,0.15,G$8),IF(G$8>0.15,G$8-ST!G24,G$8)),""),"") ->  | F33: =IFERROR(ST!H24*D33,"") ->  | G33: =IFERROR(IF(AND(E$8="ws",ST!L24>0),ST!L24,IF(ST!K24>0,ST!K24,IF(ST!J24>0,ST!J24,""))),"") ->  | L33: Balancerek | AD33: =Fúrók!A43 -> e-mail
A34: 23 | B34: =IFERROR(IF(ST!C25>0,ST!C25,""),"") ->  | C34: =IFERROR(IF(ST!D25>0,ST!D25,""),"") ->  | E34: =IFERROR(IF(ISNUMBER(G34),IF(AND(0.12<G$8,0.16>G$8),IF(ST!G25>0,0.15,G$8),IF(G$8>0.15,G$8-ST!G25,G$8)),""),"") ->  | F34: =IFERROR(ST!H25*D34,"") ->  | G34: =IFERROR(IF(AND(E$8="ws",ST!L25>0),ST!L25,IF(ST!K25>0,ST!K25,IF(ST!J25>0,ST!J25,""))),"") ->  | AD34: =Fúrók!A44 -> Tóth Tamás
A35: 24 | B35: =IFERROR(IF(ST!C26>0,ST!C26,""),"") ->  | C35: =IFERROR(IF(ST!D26>0,ST!D26,""),"") ->  | E35: =IFERROR(IF(ISNUMBER(G35),IF(AND(0.12<G$8,0.16>G$8),IF(ST!G26>0,0.15,G$8),IF(G$8>0.15,G$8-ST!G26,G$8)),""),"") ->  | F35: =IFERROR(ST!H26*D35,"") ->  | G35: =IFERROR(IF(AND(E$8="ws",ST!L26>0),ST!L26,IF(ST!K26>0,ST!K26,IF(ST!J26>0,ST!J26,""))),"") ->  | AD35: =Fúrók!A45 -> 30/603-1596
A36: 25 | B36: =IFERROR(IF(ST!C27>0,ST!C27,""),"") ->  | C36: =IFERROR(IF(ST!D27>0,ST!D27,""),"") ->  | E36: =IFERROR(IF(ISNUMBER(G36),IF(AND(0.12<G$8,0.16>G$8),IF(ST!G27>0,0.15,G$8),IF(G$8>0.15,G$8-ST!G27,G$8)),""),"") ->  | F36: =IFERROR(ST!H27*D36,"") ->  | G36: =IFERROR(IF(AND(E$8="ws",ST!L27>0),ST!L27,IF(ST!K27>0,ST!K27,IF(ST!J27>0,ST!J27,""))),"") ->  | T36: Garázsipari eszközök | V36: Akkus gépek | X36: Tömlők, tömlódobok | Z36: Levegő kezelés | AB36: Balancerek
A37: 26 | B37: =IFERROR(IF(ST!C28>0,ST!C28,""),"") ->  | C37: =IFERROR(IF(ST!D28>0,ST!D28,""),"") ->  | E37: =IFERROR(IF(ISNUMBER(G37),IF(AND(0.12<G$8,0.16>G$8),IF(ST!G28>0,0.15,G$8),IF(G$8>0.15,G$8-ST!G28,G$8)),""),"") ->  | F37: =IFERROR(ST!H28*D37,"") ->  | G37: =IFERROR(IF(AND(E$8="ws",ST!L28>0),ST!L28,IF(ST!K28>0,ST!K28,IF(ST!J28>0,ST!J28,""))),"") -> 
A38: 27 | B38: =IFERROR(IF(ST!C29>0,ST!C29,""),"") ->  | C38: =IFERROR(IF(ST!D29>0,ST!D29,""),"") ->  | E38: =IFERROR(IF(ISNUMBER(G38),IF(AND(0.12<G$8,0.16>G$8),IF(ST!G29>0,0.15,G$8),IF(G$8>0.15,G$8-ST!G29,G$8)),""),"") ->  | F38: =IFERROR(ST!H29*D38,"") ->  | G38: =IFERROR(IF(AND(E$8="ws",ST!L29>0),ST!L29,IF(ST!K29>0,ST!K29,IF(ST!J29>0,ST!J29,""))),"") -> 
A39: Súly (kg): | C39: =SUM(F12:F38)/1000 -> 0 | D39: ="Nettó ár összesen "&IF($I$7=1,"HUF","EUR") -> Nettó ár összesen HUF | I39: =SUM(I12:I38) -> 0
A40: Szállítási mód: | C40: 1 | D40: ="ÁFA "&IF($I$7=1,"HUF","EUR") -> ÁFA HUF | I40: =I39*0.27 -> 0
A41: 30 | B41: =A41*I9 -> 10200 | C41: =IF($I$7=1,B41,A41) -> 10200 | D41: =IF($I$7=1,I39,I39*I$9) -> 0 | I41: =IF($I$7=2,I39,I39/I$9) -> 0
B42: =IF(C39<3,3,IF(C39<5,5,IF(C39<10,10,IF(C39<15,15,IF(C39<20,20,IF(C39<25,25,IF(C39<31,31,IF(C39<50,50,"túlsúly")))))))) -> 3 | C42: =IF($I$7=1,D42+H42,(D42+H42)/I9) -> 1566 | D42: =VLOOKUP(B42,Segéd!A$25:C$33,3,0) -> 1166 | G42: =IF(D41<50000,50000,IF(D41<100000,100000,IF(D41<300000,300000,IF(D41<500000,500000,"Limit")))) -> 50000 | H42: =IF(OR(G7=4,AND(I8=1,G7=1)),VLOOKUP(G$42,Segéd!A$35:B$38,2,0),0) -> 400
A43: ="Szállítási díj: "&IF($I$7=1,"HUF","EUR") -> Szállítási díj: HUF | C43: =IF(I8=2,0,(IF(C40=1,IF(D41>50000,0,C42),IF(I41>400,0,C41)))) -> 1566 | D43: ="Bruttó ár öszesen "&IF($I$7=1,"HUF","EUR") -> Bruttó ár öszesen HUF | I43: =I39+I40+C43 -> 1566
C59: +36-30/626 8687 | G59: +36-30/201-4931
C60: ertekesites@kapitarkft.hu | G60: info@techtomat.hu

Sheet Segéd (hidden)
A1: Pénznem
A2: HUF | B2: 1 | C2: 300
A3: EUR | B3: 2 | C3: 1
A4: Szállítás
A5: Csomagküldés | B5: 1 | C5: 1
A6: Érte jön | B6: 2 | C6: 0.97
A7: Kiszállítás | B7: 3 | C7: 1
A8: Fizetési mód
A9: KP | B9: 1 | C9: 0.99
A10: Banki utalás | B10: 2 | C10: 1
A11: Előre utalás | B11: 3 | C11: 0.99
A12: Utánvét | B12: 4 | C12: 0.99
A13: Kedvezmény
A14: Alap ár | B14: 1 | C14: =IF(ISBLANK(Megrendelő!D9),1,1-Megrendelő!D9) -> 
A15: 0.2 | B15: 2 | C15: 0.8
A16: 0.21 | B16: 3 | C16: =1-A16 -> 0.79
A17: 0.22 | B17: 4 | C17: =1-A17 -> 0.78
A18: 0.23 | B18: 5 | C18: =1-A18 -> 0.77 | F18: =IFERROR(ROUND(IF(VLOOKUP($A18,ST!$A:$O,17,0)>0,VLOOKUP($A18,ST!$A:$O,17,0),VLOOKUP($A18,ST!$A:$O,15,0))*H$9,-1),"") -> 
A19: 0.24 | B19: 6 | C19: =1-A19 -> 0.76
A20: 0.25 | B20: 7 | C20: =1-A20 -> 0.75
A21: Szállítási mód
A22: Normál
A23: Sűrgősségi
A24: Súly | B24: 1.06
A25: 3 | B25: 1100 | C25: =B25*B$24 -> 1166
A26: 5 | B26: 1300 | C26: =B26*B$24 -> 1378
A27: 10 | B27: 1400 | C27: 1484
A28: 15 | B28: 1500 | C28: 1590
A29: 20 | B29: 1600 | C29: 1696
A30: 25 | B30: 1900 | C30: 2014
A31: 31 | B31: 2300 | C31: 2438
A32: 50 | B32: 3500 | C32: =B32*B$24 -> 3710
A33: 1000 | B33: 15000 | C33: 15900
A34: Utánvét
A35: 50000 | B35: 400
A36: 100000 | B36: 800
A37: 300000 | B37: 1500
A38: 500000 | B38: 3000

Sheet ST (hidden)
J1: Javasolt eladási árak
B2: Type | C2: Référence | D2: Description | H2: Súly | I2: Oldal | J2: Listaár | K2: TOPS STARS árak | L2: Webshop | M2: Mennyiség
A3: 1 | C3: =IF(COUNTIF(Árlista!$A$3:$A$3792,$A3)>0,VLOOKUP($A3,Árlista!$A:$L,2,0),"") ->  | D3: =IF(COUNTIF(Árlista!$A$3:$A$3792,$A3)>0,VLOOKUP($A3,Árlista!$A:$L,3,0),"") ->  | G3: =IF(COUNTIF(Árlista!$A$3:$A$3792,$A3)>0,IF(VLOOKUP($A3,Árlista!$A:$L,8,0)="C",4%,0),"") ->  | H3: =IF(COUNTIF(Árlista!$A$3:$A$3792,$A3)>0,VLOOKUP($A3,Árlista!$A:$L,7,0),"") ->  | J3: =IF(COUNTIF(Árlista!$A$3:$A$3792,$A3)>0,VLOOKUP($A3,Árlista!$A:$L,9,0),"") ->  | K3: =IF(COUNTIF(Árlista!$A$3:$A$3792,$A3)>0,VLOOKUP($A3,Árlista!$A:$L,10,0),"") ->  | L3: =IF(COUNTIF(Árlista!$A$3:$A$3792,$A3)>0,VLOOKUP($A3,Árlista!$A:$L,11,0),"") ->  | M3: =IF(COUNTIF(Árlista!$A$3:$A$3792,$A3)>0,VLOOKUP($A3,Árlista!$A:$L,12,0),"") -> 
A4: 2 | C4: =IF(COUNTIF(Árlista!$A$3:$A$3792,$A4)>0,VLOOKUP($A4,Árlista!$A:$L,2,0),"") ->  | D4: =IF(COUNTIF(Árlista!$A$3:$A$3792,$A4)>0,VLOOKUP($A4,Árlista!$A:$L,3,0),"") ->  | G4: =IF(COUNTIF(Árlista!$A$3:$A$3792,$A4)>0,IF(VLOOKUP($A4,Árlista!$A:$L,8,0)="C",4%,0),"") ->  | H4: =IF(COUNTIF(Árlista!$A$3:$A$3792,$A4)>0,VLOOKUP($A4,Árlista!$A:$L,7,0),"") ->  | J4: =IF(COUNTIF(Árlista!$A$3:$A$3792,$A4)>0,VLOOKUP($A4,Árlista!$A:$L,9,0),"") ->  | K4: =IF(COUNTIF(Árlista!$A$3:$A$3792,$A4)>0,VLOOKUP($A4,Árlista!$A:$L,10,0),"") ->  | L4: =IF(COUNTIF(Árlista!$A$3:$A$3792,$A4)>0,VLOOKUP($A4,Árlista!$A:$L,11,0),"") ->  | M4: =IF(COUNTIF(Árlista!$A$3:$A$3792,$A4)>0,VLOOKUP($A4,Árlista!$A:$L,12,0),"") -> 
A5: 3 | C5: =IF(COUNTIF(Árlista!$A$3:$A$3792,$A5)>0,VLOOKUP($A5,Árlista!$A:$L,2,0),"") ->  | D5: =IF(COUNTIF(Árlista!$A$3:$A$3792,$A5)>0,VLOOKUP($A5,Árlista!$A:$L,3,0),"") ->  | G5: =IF(COUNTIF(Árlista!$A$3:$A$3792,$A5)>0,IF(VLOOKUP($A5,Árlista!$A:$L,8,0)="C",4%,0),"") ->  | H5: =IF(COUNTIF(Árlista!$A$3:$A$3792,$A5)>0,VLOOKUP($A5,Árlista!$A:$L,7,0),"") ->  | J5: =IF(COUNTIF(Árlista!$A$3:$A$3792,$A5)>0,VLOOKUP($A5,Árlista!$A:$L,9,0),"") ->  | K5: =IF(COUNTIF(Árlista!$A$3:$A$3792,$A5)>0,VLOOKUP($A5,Árlista!$A:$L,10,0),"") ->  | L5: =IF(COUNTIF(Árlista!$A$3:$A$3792,$A5)>0,VLOOKUP($A5,Árlista!$A:$L,11,0),"") ->  | M5: =IF(COUNTIF(Árlista!$A$3:$A$3792,$A5)>0,VLOOKUP($A5,Árlista!$A:$L,12,0),"") -> 
A6: 4 | C6: =IF(COUNTIF(Árlista!$A$3:$A$3792,$A6)>0,VLOOKUP($A6,Árlista!$A:$L,2,0),"") ->  | D6: =IF(COUNTIF(Árlista!$A$3:$A$3792,$A6)>0,VLOOKUP($A6,Árlista!$A:$L,3,0),"") ->  | G6: =IF(COUNTIF(Árlista!$A$3:$A$3792,$A6)>0,IF(VLOOKUP($A6,Árlista!$A:$L,8,0)="C",4%,0),"") ->  | H6: =IF(COUNTIF(Árlista!$A$3:$A$3792,$A6)>0,VLOOKUP($A6,Árlista!$A:$L,7,0),"") ->  | J6: =IF(COUNTIF(Árlista!$A$3:$A$3792,$A6)>0,VLOOKUP($A6,Árlista!$A:$L,9,0),"") ->  | K6: =IF(COUNTIF(Árlista!$A$3:$A$3792,$A6)>0,VLOOKUP($A6,Árlista!$A:$L,10,0),"") ->  | L6: =IF(COUNTIF(Árlista!$A$3:$A$3792,$A6)>0,VLOOKUP($A6,Árlista!$A:$L,11,0),"") ->  | M6: =IF(COUNTIF(Árlista!$A$3:$A$3792,$A6)>0,VLOOKUP($A6,Árlista!$A:$L,12,0),"") -> 
A7: 5 | C7: =IF(COUNTIF(Árlista!$A$3:$A$3792,$A7)>0,VLOOKUP($A7,Árlista!$A:$L,2,0),"") ->  | D7: =IF(COUNTIF(Árlista!$A$3:$A$3792,$A7)>0,VLOOKUP($A7,Árlista!$A:$L,3,0),"") ->  | G7: =IF(COUNTIF(Árlista!$A$3:$A$3792,$A7)>0,IF(VLOOKUP($A7,Árlista!$A:$L,8,0)="C",4%,0),"") ->  | H7: =IF(COUNTIF(Árlista!$A$3:$A$3792,$A7)>0,VLOOKUP($A7,Árlista!$A:$L,7,0),"") ->  | J7: =IF(COUNTIF(Árlista!$A$3:$A$3792,$A7)>0,VLOOKUP($A7,Árlista!$A:$L,9,0),"") ->  | K7: =IF(COUNTIF(Árlista!$A$3:$A$3792,$A7)>0,VLOOKUP($A7,Árlista!$A:$L,10,0),"") ->  | L7: =IF(COUNTIF(Árlista!$A$3:$A$3792,$A7)>0,VLOOKUP($A7,Árlista!$A:$L,11,0),"") ->  | M7: =IF(COUNTIF(Árlista!$A$3:$A$3792,$A7)>0,VLOOKUP($A7,Árlista!$A:$L,12,0),"") -> 
A8: 6 | C8: =IF(COUNTIF(Árlista!$A$3:$A$3792,$A8)>0,VLOOKUP($A8,Árlista!$A:$L,2,0),"") ->  | D8: =IF(COUNTIF(Árlista!$A$3:$A$3792,$A8)>0,VLOOKUP($A8,Árlista!$A:$L,3,0),"") ->  | G8: =IF(COUNTIF(Árlista!$A$3:$A$3792,$A8)>0,IF(VLOOKUP($A8,Árlista!$A:$L,8,0)="C",4%,0),"") ->  | H8: =IF(COUNTIF(Árlista!$A$3:$A$3792,$A8)>0,VLOOKUP($A8,Árlista!$A:$L,7,0),"") ->  | J8: =IF(COUNTIF(Árlista!$A$3:$A$3792,$A8)>0,VLOOKUP($A8,Árlista!$A:$L,9,0),"") ->  | K8: =IF(COUNTIF(Árlista!$A$3:$A$3792,$A8)>0,VLOOKUP($A8,Árlista!$A:$L,10,0),"") ->  | L8: =IF(COUNTIF(Árlista!$A$3:$A$3792,$A8)>0,VLOOKUP($A8,Árlista!$A:$L,11,0),"") ->  | M8: =IF(COUNTIF(Árlista!$A$3:$A$3792,$A8)>0,VLOOKUP($A8,Árlista!$A:$L,12,0),"") -> 
A9: 7 | C9: =IF(COUNTIF(Árlista!$A$3:$A$3792,$A9)>0,VLOOKUP($A9,Árlista!$A:$L,2,0),"") ->  | D9: =IF(COUNTIF(Árlista!$A$3:$A$3792,$A9)>0,VLOOKUP($A9,Árlista!$A:$L,3,0),"") ->  | G9: =IF(COUNTIF(Árlista!$A$3:$A$3792,$A9)>0,IF(VLOOKUP($A9,Árlista!$A:$L,8,0)="C",4%,0),"") ->  | H9: =IF(COUNTIF(Árlista!$A$3:$A$3792,$A9)>0,VLOOKUP($A9,Árlista!$A:$L,7,0),"") ->  | J9: =IF(COUNTIF(Árlista!$A$3:$A$3792,$A9)>0,VLOOKUP($A9,Árlista!$A:$L,9,0),"") ->  | K9: =IF(COUNTIF(Árlista!$A$3:$A$3792,$A9)>0,VLOOKUP($A9,Árlista!$A:$L,10,0),"") ->  | L9: =IF(COUNTIF(Árlista!$A$3:$A$3792,$A9)>0,VLOOKUP($A9,Árlista!$A:$L,11,0),"") ->  | M9: =IF(COUNTIF(Árlista!$A$3:$A$3792,$A9)>0,VLOOKUP($A9,Árlista!$A:$L,12,0),"") -> 
A10: 8 | C10: =IF(COUNTIF(Árlista!$A$3:$A$3792,$A10)>0,VLOOKUP($A10,Árlista!$A:$L,2,0),"") ->  | D10: =IF(COUNTIF(Árlista!$A$3:$A$3792,$A10)>0,VLOOKUP($A10,Árlista!$A:$L,3,0),"") ->  | G10: =IF(COUNTIF(Árlista!$A$3:$A$3792,$A10)>0,IF(VLOOKUP($A10,Árlista!$A:$L,8,0)="C",4%,0),"") ->  | H10: =IF(COUNTIF(Árlista!$A$3:$A$3792,$A10)>0,VLOOKUP($A10,Árlista!$A:$L,7,0),"") ->  | J10: =IF(COUNTIF(Árlista!$A$3:$A$3792,$A10)>0,VLOOKUP($A10,Árlista!$A:$L,9,0),"") ->  | K10: =IF(COUNTIF(Árlista!$A$3:$A$3792,$A10)>0,VLOOKUP($A10,Árlista!$A:$L,10,0),"") ->  | L10: =IF(COUNTIF(Árlista!$A$3:$A$3792,$A10)>0,VLOOKUP($A10,Árlista!$A:$L,11,0),"") ->  | M10: =IF(COUNTIF(Árlista!$A$3:$A$3792,$A10)>0,VLOOKUP($A10,Árlista!$A:$L,12,0),"") -> 
A11: 9 | C11: =IF(COUNTIF(Árlista!$A$3:$A$3792,$A11)>0,VLOOKUP($A11,Árlista!$A:$L,2,0),"") ->  | D11: =IF(COUNTIF(Árlista!$A$3:$A$3792,$A11)>0,VLOOKUP($A11,Árlista!$A:$L,3,0),"") ->  | G11: =IF(COUNTIF(Árlista!$A$3:$A$3792,$A11)>0,IF(VLOOKUP($A11,Árlista!$A:$L,8,0)="C",4%,0),"") ->  | H11: =IF(COUNTIF(Árlista!$A$3:$A$3792,$A11)>0,VLOOKUP($A11,Árlista!$A:$L,7,0),"") ->  | J11: =IF(COUNTIF(Árlista!$A$3:$A$3792,$A11)>0,VLOOKUP($A11,Árlista!$A:$L,9,0),"") ->  | K11: =IF(COUNTIF(Árlista!$A$3:$A$3792,$A11)>0,VLOOKUP($A11,Árlista!$A:$L,10,0),"") ->  | L11: =IF(COUNTIF(Árlista!$A$3:$A$3792,$A11)>0,VLOOKUP($A11,Árlista!$A:$L,11,0),"") ->  | M11: =IF(COUNTIF(Árlista!$A$3:$A$3792,$A11)>0,VLOOKUP($A11,Árlista!$A:$L,12,0),"") -> 
A12: 10 | C12: =IF(COUNTIF(Árlista!$A$3:$A$3792,$A12)>0,VLOOKUP($A12,Árlista!$A:$L,2,0),"") ->  | D12: =IF(COUNTIF(Árlista!$A$3:$A$3792,$A12)>0,VLOOKUP($A12,Árlista!$A:$L,3,0),"") ->  | G12: =IF(COUNTIF(Árlista!$A$3:$A$3792,$A12)>0,IF(VLOOKUP($A12,Árlista!$A:$L,8,0)="C",4%,0),"") ->  | H12: =IF(COUNTIF(Árlista!$A$3:$A$3792,$A12)>0,VLOOKUP($A12,Árlista!$A:$L,7,0),"") ->  | J12: =IF(COUNTIF(Árlista!$A$3:$A$3792,$A12)>0,VLOOKUP($A12,Árlista!$A:$L,9,0),"") ->  | K12: =IF(COUNTIF(Árlista!$A$3:$A$3792,$A12)>0,VLOOKUP($A12,Árlista!$A:$L,10,0),"") ->  | L12: =IF(COUNTIF(Árlista!$A$3:$A$3792,$A12)>0,VLOOKUP($A12,Árlista!$A:$L,11,0),"") ->  | M12: =IF(COUNTIF(Árlista!$A$3:$A$3792,$A12)>0,VLOOKUP($A12,Árlista!$A:$L,12,0),"") -> 
A13: 11 | C13: =IF(COUNTIF(Árlista!$A$3:$A$3792,$A13)>0,VLOOKUP($A13,Árlista!$A:$L,2,0),"") ->  | D13: =IF(COUNTIF(Árlista!$A$3:$A$3792,$A13)>0,VLOOKUP($A13,Árlista!$A:$L,3,0),"") ->  | G13: =IF(COUNTIF(Árlista!$A$3:$A$3792,$A13)>0,IF(VLOOKUP($A13,Árlista!$A:$L,8,0)="C",4%,0),"") ->  | H13: =IF(COUNTIF(Árlista!$A$3:$A$3792,$A13)>0,VLOOKUP($A13,Árlista!$A:$L,7,0),"") ->  | J13: =IF(COUNTIF(Árlista!$A$3:$A$3792,$A13)>0,VLOOKUP($A13,Árlista!$A:$L,9,0),"") ->  | K13: =IF(COUNTIF(Árlista!$A$3:$A$3792,$A13)>0,VLOOKUP($A13,Árlista!$A:$L,10,0),"") ->  | L13: =IF(COUNTIF(Árlista!$A$3:$A$3792,$A13)>0,VLOOKUP($A13,Árlista!$A:$L,11,0),"") ->  | M13: =IF(COUNTIF(Árlista!$A$3:$A$3792,$A13)>0,VLOOKUP($A13,Árlista!$A:$L,12,0),"") -> 
A14: 12 | C14: =IF(COUNTIF(Árlista!$A$3:$A$3792,$A14)>0,VLOOKUP($A14,Árlista!$A:$L,2,0),"") ->  | D14: =IF(COUNTIF(Árlista!$A$3:$A$3792,$A14)>0,VLOOKUP($A14,Árlista!$A:$L,3,0),"") ->  | G14: =IF(COUNTIF(Árlista!$A$3:$A$3792,$A14)>0,IF(VLOOKUP($A14,Árlista!$A:$L,8,0)="C",4%,0),"") ->  | H14: =IF(COUNTIF(Árlista!$A$3:$A$3792,$A14)>0,VLOOKUP($A14,Árlista!$A:$L,7,0),"") ->  | J14: =IF(COUNTIF(Árlista!$A$3:$A$3792,$A14)>0,VLOOKUP($A14,Árlista!$A:$L,9,0),"") ->  | K14: =IF(COUNTIF(Árlista!$A$3:$A$3792,$A14)>0,VLOOKUP($A14,Árlista!$A:$L,10,0),"") ->  | L14: =IF(COUNTIF(Árlista!$A$3:$A$3792,$A14)>0,VLOOKUP($A14,Árlista!$A:$L,11,0),"") ->  | M14: =IF(COUNTIF(Árlista!$A$3:$A$3792,$A14)>0,VLOOKUP($A14,Árlista!$A:$L,12,0),"") -> 
A15: 13 | C15: =IF(COUNTIF(Árlista!$A$3:$A$3792,$A15)>0,VLOOKUP($A15,Árlista!$A:$L,2,0),"") ->  | D15: =IF(COUNTIF(Árlista!$A$3:$A$3792,$A15)>0,VLOOKUP($A15,Árlista!$A:$L,3,0),"") ->  | G15: =IF(COUNTIF(Árlista!$A$3:$A$3792,$A15)>0,IF(VLOOKUP($A15,Árlista!$A:$L,8,0)="C",4%,0),"") ->  | H15: =IF(COUNTIF(Árlista!$A$3:$A$3792,$A15)>0,VLOOKUP($A15,Árlista!$A:$L,7,0),"") ->  | J15: =IF(COUNTIF(Árlista!$A$3:$A$3792,$A15)>0,VLOOKUP($A15,Árlista!$A:$L,9,0),"") ->  | K15: =IF(COUNTIF(Árlista!$A$3:$A$3792,$A15)>0,VLOOKUP($A15,Árlista!$A:$L,10,0),"") ->  | L15: =IF(COUNTIF(Árlista!$A$3:$A$3792,$A15)>0,VLOOKUP($A15,Árlista!$A:$L,11,0),"") ->  | M15: =IF(COUNTIF(Árlista!$A$3:$A$3792,$A15)>0,VLOOKUP($A15,Árlista!$A:$L,12,0),"") -> 
A16: 14 | C16: =IF(COUNTIF(Árlista!$A$3:$A$3792,$A16)>0,VLOOKUP($A16,Árlista!$A:$L,2,0),"") ->  | D16: =IF(COUNTIF(Árlista!$A$3:$A$3792,$A16)>0,VLOOKUP($A16,Árlista!$A:$L,3,0),"") ->  | G16: =IF(COUNTIF(Árlista!$A$3:$A$3792,$A16)>0,IF(VLOOKUP($A16,Árlista!$A:$L,8,0)="C",4%,0),"") ->  | H16: =IF(COUNTIF(Árlista!$A$3:$A$3792,$A16)>0,VLOOKUP($A16,Árlista!$A:$L,7,0),"") ->  | J16: =IF(COUNTIF(Árlista!$A$3:$A$3792,$A16)>0,VLOOKUP($A16,Árlista!$A:$L,9,0),"") ->  | K16: =IF(COUNTIF(Árlista!$A$3:$A$3792,$A16)>0,VLOOKUP($A16,Árlista!$A:$L,10,0),"") ->  | L16: =IF(COUNTIF(Árlista!$A$3:$A$3792,$A16)>0,VLOOKUP($A16,Árlista!$A:$L,11,0),"") ->  | M16: =IF(COUNTIF(Árlista!$A$3:$A$3792,$A16)>0,VLOOKUP($A16,Árlista!$A:$L,12,0),"") -> 
A17: 15 | C17: =IF(COUNTIF(Árlista!$A$3:$A$3792,$A17)>0,VLOOKUP($A17,Árlista!$A:$L,2,0),"") ->  | D17: =IF(COUNTIF(Árlista!$A$3:$A$3792,$A17)>0,VLOOKUP($A17,Árlista!$A:$L,3,0),"") ->  | G17: =IF(COUNTIF(Árlista!$A$3:$A$3792,$A17)>0,IF(VLOOKUP($A17,Árlista!$A:$L,8,0)="C",4%,0),"") ->  | H17: =IF(COUNTIF(Árlista!$A$3:$A$3792,$A17)>0,VLOOKUP($A17,Árlista!$A:$L,7,0),"") ->  | J17: =IF(COUNTIF(Árlista!$A$3:$A$3792,$A17)>0,VLOOKUP($A17,Árlista!$A:$L,9,0),"") ->  | K17: =IF(COUNTIF(Árlista!$A$3:$A$3792,$A17)>0,VLOOKUP($A17,Árlista!$A:$L,10,0),"") ->  | L17: =IF(COUNTIF(Árlista!$A$3:$A$3792,$A17)>0,VLOOKUP($A17,Árlista!$A:$L,11,0),"") ->  | M17: =IF(COUNTIF(Árlista!$A$3:$A$3792,$A17)>0,VLOOKUP($A17,Árlista!$A:$L,12,0),"") -> 
A18: 16 | C18: =IF(COUNTIF(Árlista!$A$3:$A$3792,$A18)>0,VLOOKUP($A18,Árlista!$A:$L,2,0),"") ->  | D18: =IF(COUNTIF(Árlista!$A$3:$A$3792,$A18)>0,VLOOKUP($A18,Árlista!$A:$L,3,0),"") ->  | G18: =IF(COUNTIF(Árlista!$A$3:$A$3792,$A18)>0,IF(VLOOKUP($A18,Árlista!$A:$L,8,0)="C",4%,0),"") ->  | H18: =IF(COUNTIF(Árlista!$A$3:$A$3792,$A18)>0,VLOOKUP($A18,Árlista!$A:$L,7,0),"") ->  | J18: =IF(COUNTIF(Árlista!$A$3:$A$3792,$A18)>0,VLOOKUP($A18,Árlista!$A:$L,9,0),"") ->  | K18: =IF(COUNTIF(Árlista!$A$3:$A$3792,$A18)>0,VLOOKUP($A18,Árlista!$A:$L,10,0),"") ->  | L18: =IF(COUNTIF(Árlista!$A$3:$A$3792,$A18)>0,VLOOKUP($A18,Árlista!$A:$L,11,0),"") ->  | M18: =IF(COUNTIF(Árlista!$A$3:$A$3792,$A18)>0,VLOOKUP($A18,Árlista!$A:$L,12,0),"") -> 
A19: 17 | C19: =IF(COUNTIF(Árlista!$A$3:$A$3792,$A19)>0,VLOOKUP($A19,Árlista!$A:$L,2,0),"") ->  | D19: =IF(COUNTIF(Árlista!$A$3:$A$3792,$A19)>0,VLOOKUP($A19,Árlista!$A:$L,3,0),"") ->  | G19: =IF(COUNTIF(Árlista!$A$3:$A$3792,$A19)>0,IF(VLOOKUP($A19,Árlista!$A:$L,8,0)="C",4%,0),"") ->  | H19: =IF(COUNTIF(Árlista!$A$3:$A$3792,$A19)>0,VLOOKUP($A19,Árlista!$A:$L,7,0),"") ->  | J19: =IF(COUNTIF(Árlista!$A$3:$A$3792,$A19)>0,VLOOKUP($A19,Árlista!$A:$L,9,0),"") ->  | K19: =IF(COUNTIF(Árlista!$A$3:$A$3792,$A19)>0,VLOOKUP($A19,Árlista!$A:$L,10,0),"") ->  | L19: =IF(COUNTIF(Árlista!$A$3:$A$3792,$A19)>0,VLOOKUP($A19,Árlista!$A:$L,11,0),"") ->  | M19: =IF(COUNTIF(Árlista!$A$3:$A$3792,$A19)>0,VLOOKUP($A19,Árlista!$A:$L,12,0),"") -> 
A20: 18 | C20: =IF(COUNTIF(Árlista!$A$3:$A$3792,$A20)>0,VLOOKUP($A20,Árlista!$A:$L,2,0),"") ->  | D20: =IF(COUNTIF(Árlista!$A$3:$A$3792,$A20)>0,VLOOKUP($A20,Árlista!$A:$L,3,0),"") ->  | G20: =IF(COUNTIF(Árlista!$A$3:$A$3792,$A20)>0,IF(VLOOKUP($A20,Árlista!$A:$L,8,0)="C",4%,0),"") ->  | H20: =IF(COUNTIF(Árlista!$A$3:$A$3792,$A20)>0,VLOOKUP($A20,Árlista!$A:$L,7,0),"") ->  | J20: =IF(COUNTIF(Árlista!$A$3:$A$3792,$A20)>0,VLOOKUP($A20,Árlista!$A:$L,9,0),"") ->  | K20: =IF(COUNTIF(Árlista!$A$3:$A$3792,$A20)>0,VLOOKUP($A20,Árlista!$A:$L,10,0),"") ->  | L20: =IF(COUNTIF(Árlista!$A$3:$A$3792,$A20)>0,VLOOKUP($A20,Árlista!$A:$L,11,0),"") ->  | M20: =IF(COUNTIF(Árlista!$A$3:$A$3792,$A20)>0,VLOOKUP($A20,Árlista!$A:$L,12,0),"") -> 
A21: 19 | C21: =IF(COUNTIF(Árlista!$A$3:$A$3792,$A21)>0,VLOOKUP($A21,Árlista!$A:$L,2,0),"") ->  | D21: =IF(COUNTIF(Árlista!$A$3:$A$3792,$A21)>0,VLOOKUP($A21,Árlista!$A:$L,3,0),"") ->  | G21: =IF(COUNTIF(Árlista!$A$3:$A$3792,$A21)>0,IF(VLOOKUP($A21,Árlista!$A:$L,8,0)="C",4%,0),"") ->  | H21: =IF(COUNTIF(Árlista!$A$3:$A$3792,$A21)>0,VLOOKUP($A21,Árlista!$A:$L,7,0),"") ->  | J21: =IF(COUNTIF(Árlista!$A$3:$A$3792,$A21)>0,VLOOKUP($A21,Árlista!$A:$L,9,0),"") ->  | K21: =IF(COUNTIF(Árlista!$A$3:$A$3792,$A21)>0,VLOOKUP($A21,Árlista!$A:$L,10,0),"") ->  | L21: =IF(COUNTIF(Árlista!$A$3:$A$3792,$A21)>0,VLOOKUP($A21,Árlista!$A:$L,11,0),"") ->  | M21: =IF(COUNTIF(Árlista!$A$3:$A$3792,$A21)>0,VLOOKUP($A21,Árlista!$A:$L,12,0),"") -> 
A22: 20 | C22: =IF(COUNTIF(Árlista!$A$3:$A$3792,$A22)>0,VLOOKUP($A22,Árlista!$A:$L,2,0),"") ->  | D22: =IF(COUNTIF(Árlista!$A$3:$A$3792,$A22)>0,VLOOKUP($A22,Árlista!$A:$L,3,0),"") ->  | G22: =IF(COUNTIF(Árlista!$A$3:$A$3792,$A22)>0,IF(VLOOKUP($A22,Árlista!$A:$L,8,0)="C",4%,0),"") ->  | H22: =IF(COUNTIF(Árlista!$A$3:$A$3792,$A22)>0,VLOOKUP($A22,Árlista!$A:$L,7,0),"") ->  | J22: =IF(COUNTIF(Árlista!$A$3:$A$3792,$A22)>0,VLOOKUP($A22,Árlista!$A:$L,9,0),"") ->  | K22: =IF(COUNTIF(Árlista!$A$3:$A$3792,$A22)>0,VLOOKUP($A22,Árlista!$A:$L,10,0),"") ->  | L22: =IF(COUNTIF(Árlista!$A$3:$A$3792,$A22)>0,VLOOKUP($A22,Árlista!$A:$L,11,0),"") ->  | M22: =IF(COUNTIF(Árlista!$A$3:$A$3792,$A22)>0,VLOOKUP($A22,Árlista!$A:$L,12,0),"") -> 
A23: 21 | C23: =IF(COUNTIF(Árlista!$A$3:$A$3792,$A23)>0,VLOOKUP($A23,Árlista!$A:$L,2,0),"") ->  | D23: =IF(COUNTIF(Árlista!$A$3:$A$3792,$A23)>0,VLOOKUP($A23,Árlista!$A:$L,3,0),"") ->  | G23: =IF(COUNTIF(Árlista!$A$3:$A$3792,$A23)>0,IF(VLOOKUP($A23,Árlista!$A:$L,8,0)="C",4%,0),"") ->  | H23: =IF(COUNTIF(Árlista!$A$3:$A$3792,$A23)>0,VLOOKUP($A23,Árlista!$A:$L,7,0),"") ->  | J23: =IF(COUNTIF(Árlista!$A$3:$A$3792,$A23)>0,VLOOKUP($A23,Árlista!$A:$L,9,0),"") ->  | K23: =IF(COUNTIF(Árlista!$A$3:$A$3792,$A23)>0,VLOOKUP($A23,Árlista!$A:$L,10,0),"") ->  | L23: =IF(COUNTIF(Árlista!$A$3:$A$3792,$A23)>0,VLOOKUP($A23,Árlista!$A:$L,11,0),"") ->  | M23: =IF(COUNTIF(Árlista!$A$3:$A$3792,$A23)>0,VLOOKUP($A23,Árlista!$A:$L,12,0),"") -> 
A24: 22 | C24: =IF(COUNTIF(Árlista!$A$3:$A$3792,$A24)>0,VLOOKUP($A24,Árlista!$A:$L,2,0),"") ->  | D24: =IF(COUNTIF(Árlista!$A$3:$A$3792,$A24)>0,VLOOKUP($A24,Árlista!$A:$L,3,0),"") ->  | G24: =IF(COUNTIF(Árlista!$A$3:$A$3792,$A24)>0,IF(VLOOKUP($A24,Árlista!$A:$L,8,0)="C",4%,0),"") ->  | H24: =IF(COUNTIF(Árlista!$A$3:$A$3792,$A24)>0,VLOOKUP($A24,Árlista!$A:$L,7,0),"") ->  | J24: =IF(COUNTIF(Árlista!$A$3:$A$3792,$A24)>0,VLOOKUP($A24,Árlista!$A:$L,9,0),"") ->  | K24: =IF(COUNTIF(Árlista!$A$3:$A$3792,$A24)>0,VLOOKUP($A24,Árlista!$A:$L,10,0),"") ->  | L24: =IF(COUNTIF(Árlista!$A$3:$A$3792,$A24)>0,VLOOKUP($A24,Árlista!$A:$L,11,0),"") ->  | M24: =IF(COUNTIF(Árlista!$A$3:$A$3792,$A24)>0,VLOOKUP($A24,Árlista!$A:$L,12,0),"") -> 
A25: 23 | C25: =IF(COUNTIF(Árlista!$A$3:$A$3792,$A25)>0,VLOOKUP($A25,Árlista!$A:$L,2,0),"") ->  | D25: =IF(COUNTIF(Árlista!$A$3:$A$3792,$A25)>0,VLOOKUP($A25,Árlista!$A:$L,3,0),"") ->  | G25: =IF(COUNTIF(Árlista!$A$3:$A$3792,$A25)>0,IF(VLOOKUP($A25,Árlista!$A:$L,8,0)="C",4%,0),"") ->  | H25: =IF(COUNTIF(Árlista!$A$3:$A$3792,$A25)>0,VLOOKUP($A25,Árlista!$A:$L,7,0),"") ->  | J25: =IF(COUNTIF(Árlista!$A$3:$A$3792,$A25)>0,VLOOKUP($A25,Árlista!$A:$L,9,0),"") ->  | K25: =IF(COUNTIF(Árlista!$A$3:$A$3792,$A25)>0,VLOOKUP($A25,Árlista!$A:$L,10,0),"") ->  | L25: =IF(COUNTIF(Árlista!$A$3:$A$3792,$A25)>0,VLOOKUP($A25,Árlista!$A:$L,11,0),"") ->  | M25: =IF(COUNTIF(Árlista!$A$3:$A$3792,$A25)>0,VLOOKUP($A25,Árlista!$A:$L,12,0),"") -> 
A26: 24 | C26: =IF(COUNTIF(Árlista!$A$3:$A$3792,$A26)>0,VLOOKUP($A26,Árlista!$A:$L,2,0),"") ->  | D26: =IF(COUNTIF(Árlista!$A$3:$A$3792,$A26)>0,VLOOKUP($A26,Árlista!$A:$L,3,0),"") ->  | G26: =IF(COUNTIF(Árlista!$A$3:$A$3792,$A26)>0,IF(VLOOKUP($A26,Árlista!$A:$L,8,0)="C",4%,0),"") ->  | H26: =IF(COUNTIF(Árlista!$A$3:$A$3792,$A26)>0,VLOOKUP($A26,Árlista!$A:$L,7,0),"") ->  | J26: =IF(COUNTIF(Árlista!$A$3:$A$3792,$A26)>0,VLOOKUP($A26,Árlista!$A:$L,9,0),"") ->  | K26: =IF(COUNTIF(Árlista!$A$3:$A$3792,$A26)>0,VLOOKUP($A26,Árlista!$A:$L,10,0),"") ->  | L26: =IF(COUNTIF(Árlista!$A$3:$A$3792,$A26)>0,VLOOKUP($A26,Árlista!$A:$L,11,0),"") ->  | M26: =IF(COUNTIF(Árlista!$A$3:$A$3792,$A26)>0,VLOOKUP($A26,Árlista!$A:$L,12,0),"") -> 
A27: 25 | C27: =IF(COUNTIF(Árlista!$A$3:$A$3792,$A27)>0,VLOOKUP($A27,Árlista!$A:$L,2,0),"") ->  | D27: =IF(COUNTIF(Árlista!$A$3:$A$3792,$A27)>0,VLOOKUP($A27,Árlista!$A:$L,3,0),"") ->  | G27: =IF(COUNTIF(Árlista!$A$3:$A$3792,$A27)>0,IF(VLOOKUP($A27,Árlista!$A:$L,8,0)="C",4%,0),"") ->  | H27: =IF(COUNTIF(Árlista!$A$3:$A$3792,$A27)>0,VLOOKUP($A27,Árlista!$A:$L,7,0),"") ->  | J27: =IF(COUNTIF(Árlista!$A$3:$A$3792,$A27)>0,VLOOKUP($A27,Árlista!$A:$L,9,0),"") ->  | K27: =IF(COUNTIF(Árlista!$A$3:$A$3792,$A27)>0,VLOOKUP($A27,Árlista!$A:$L,10,0),"") ->  | L27: =IF(COUNTIF(Árlista!$A$3:$A$3792,$A27)>0,VLOOKUP($A27,Árlista!$A:$L,11,0),"") ->  | M27: =IF(COUNTIF(Árlista!$A$3:$A$3792,$A27)>0,VLOOKUP($A27,Árlista!$A:$L,12,0),"") -> 
A28: 26 | C28: =IF(COUNTIF(Árlista!$A$3:$A$3792,$A28)>0,VLOOKUP($A28,Árlista!$A:$L,2,0),"") ->  | D28: =IF(COUNTIF(Árlista!$A$3:$A$3792,$A28)>0,VLOOKUP($A28,Árlista!$A:$L,3,0),"") ->  | G28: =IF(COUNTIF(Árlista!$A$3:$A$3792,$A28)>0,IF(VLOOKUP($A28,Árlista!$A:$L,8,0)="C",4%,0),"") ->  | H28: =IF(COUNTIF(Árlista!$A$3:$A$3792,$A28)>0,VLOOKUP($A28,Árlista!$A:$L,7,0),"") ->  | J28: =IF(COUNTIF(Árlista!$A$3:$A$3792,$A28)>0,VLOOKUP($A28,Árlista!$A:$L,9,0),"") ->  | K28: =IF(COUNTIF(Árlista!$A$3:$A$3792,$A28)>0,VLOOKUP($A28,Árlista!$A:$L,10,0),"") ->  | L28: =IF(COUNTIF(Árlista!$A$3:$A$3792,$A28)>0,VLOOKUP($A28,Árlista!$A:$L,11,0),"") ->  | M28: =IF(COUNTIF(Árlista!$A$3:$A$3792,$A28)>0,VLOOKUP($A28,Árlista!$A:$L,12,0),"") -> 
A29: 27 | C29: =IF(COUNTIF(Árlista!$A$3:$A$3792,$A29)>0,VLOOKUP($A29,Árlista!$A:$L,2,0),"") ->  | D29: =IF(COUNTIF(Árlista!$A$3:$A$3792,$A29)>0,VLOOKUP($A29,Árlista!$A:$L,3,0),"") ->  | G29: =IF(COUNTIF(Árlista!$A$3:$A$3792,$A29)>0,IF(VLOOKUP($A29,Árlista!$A:$L,8,0)="C",4%,0),"") ->  | H29: =IF(COUNTIF(Árlista!$A$3:$A$3792,$A29)>0,VLOOKUP($A29,Árlista!$A:$L,7,0),"") ->  | J29: =IF(COUNTIF(Árlista!$A$3:$A$3792,$A29)>0,VLOOKUP($A29,Árlista!$A:$L,9,0),"") ->  | K29: =IF(COUNTIF(Árlista!$A$3:$A$3792,$A29)>0,VLOOKUP($A29,Árlista!$A:$L,10,0),"") ->  | L29: =IF(COUNTIF(Árlista!$A$3:$A$3792,$A29)>0,VLOOKUP($A29,Árlista!$A:$L,11,0),"") ->  | M29: =IF(COUNTIF(Árlista!$A$3:$A$3792,$A29)>0,VLOOKUP($A29,Árlista!$A:$L,12,0),"") -> 
A30: 28 | C30: =IF(COUNTIF(Árlista!$A$3:$A$3792,$A30)>0,VLOOKUP($A30,Árlista!$A:$L,2,0),"") ->  | D30: =IF(COUNTIF(Árlista!$A$3:$A$3792,$A30)>0,VLOOKUP($A30,Árlista!$A:$L,3,0),"") ->  | G30: =IF(COUNTIF(Árlista!$A$3:$A$3792,$A30)>0,IF(VLOOKUP($A30,Árlista!$A:$L,8,0)="C",4%,0),"") ->  | H30: =IF(COUNTIF(Árlista!$A$3:$A$3792,$A30)>0,VLOOKUP($A30,Árlista!$A:$L,7,0),"") ->  | J30: =IF(COUNTIF(Árlista!$A$3:$A$3792,$A30)>0,VLOOKUP($A30,Árlista!$A:$L,9,0),"") ->  | K30: =IF(COUNTIF(Árlista!$A$3:$A$3792,$A30)>0,VLOOKUP($A30,Árlista!$A:$L,10,0),"") ->  | L30: =IF(COUNTIF(Árlista!$A$3:$A$3792,$A30)>0,VLOOKUP($A30,Árlista!$A:$L,11,0),"") ->  | M30: =IF(COUNTIF(Árlista!$A$3:$A$3792,$A30)>0,VLOOKUP($A30,Árlista!$A:$L,12,0),"") -> 
A31: 29 | C31: =IF(COUNTIF(Árlista!$A$3:$A$3792,$A31)>0,VLOOKUP($A31,Árlista!$A:$L,2,0),"") ->  | D31: =IF(COUNTIF(Árlista!$A$3:$A$3792,$A31)>0,VLOOKUP($A31,Árlista!$A:$L,3,0),"") ->  | G31: =IF(COUNTIF(Árlista!$A$3:$A$3792,$A31)>0,IF(VLOOKUP($A31,Árlista!$A:$L,8,0)="C",4%,0),"") ->  | H31: =IF(COUNTIF(Árlista!$A$3:$A$3792,$A31)>0,VLOOKUP($A31,Árlista!$A:$L,7,0),"") ->  | J31: =IF(COUNTIF(Árlista!$A$3:$A$3792,$A31)>0,VLOOKUP($A31,Árlista!$A:$L,9,0),"") ->  | K31: =IF(COUNTIF(Árlista!$A$3:$A$3792,$A31)>0,VLOOKUP($A31,Árlista!$A:$L,10,0),"") ->  | L31: =IF(COUNTIF(Árlista!$A$3:$A$3792,$A31)>0,VLOOKUP($A31,Árlista!$A:$L,11,0),"") ->  | M31: =IF(COUNTIF(Árlista!$A$3:$A$3792,$A31)>0,VLOOKUP($A31,Árlista!$A:$L,12,0),"") -> 

Sheet Árlista
A1: CP7125 | I1: 1 | J1: 1 | L1: FALSE
B2: Cikkszám | C2: Termék megnevezése | E2: Típusa | F2: Termék fajtája | G2: Tömeg | H2: Ár kategória | I2: 2020 Katalógus HUF | J2: TOPS/Stars 2020 HUF | K2: WEBSHOP | L2: KOSÁR
A3: =IF(L3=FALSE,0,1) -> 0 | B3: 8951000156 | C3: RC TOPS 2018 kiadvány | D3: =IF(H3="SP",IF(J3>0,"SP: "&DOLLAR(J3*I$1,0),"SP: "&DOLLAR(I3*I$1,0)),IF(J3>0,"*("&DOLLAR(I3*I$1,0)&") "&DOLLAR(J3*J$1,0),DOLLAR(I3*I$1,0))) -> 0 Ft | G3: 5246 | P3: Árlista
A4: =IF(L4=FALSE,0,COUNTIF(A$3:A3,">0")+1) -> 0 | B4: 8951011333 | C4: 1" IMPACT CSATLAKOZÓ SET 4 PCS | D4: =IF(H4="SP",IF(J4>0,"SP: "&TEXT(J4*I$1,"# ###,-Ft "),"SP: "&TEXT(I4*I$1,"# ###,-Ft")),IF(J4>0,"*"&TEXT(J4*J$1,"# ###,-Ft"),TEXT(I4*I$1,"# ###,-Ft "))) -> 30 900,-Ft | E4: RC S.anyag | G4: 2555 | I4: 30900 | P4: Légkulcsok
A5: =IF(L5=FALSE,0,COUNTIF(A$3:A4,">0")+1) -> 0 | B5: 8940168576 | C5: 1/2 MD2-12 SZŰRŐ-SZABÁLYOZÓ-OLAJZÓ | D5: =IF(H5="SP",IF(J5>0,"SP: "&TEXT(J5*I$1,"# ###,-Ft "),"SP: "&TEXT(I5*I$1,"# ###,-Ft")),IF(J5>0,"*("&TEXT(I5*I$1,"# ###,-")&") "&TEXT(J5*J$1,"# ###,-Ft"),TEXT(I5*I$1,"# ###,-Ft "))) -> 73 000,-Ft | E5: RC S.anyag | G5: 2000 | I5: 73000 | P5: Egyenes csiszolók
A6: =IF(L6=FALSE,0,COUNTIF(A$3:A5,">0")+1) -> 0 | B6: 8940168482 | C6: 1/2 MD2LAK-12 FILTR-REG SZÓRÓ PAINT UNIT | D6: =IF(H6="SP",IF(J6>0,"SP: "&TEXT(J6*I$1,"# ###,-Ft "),"SP: "&TEXT(I6*I$1,"# ###,-Ft")),IF(J6>0,"TOPS* "&TEXT(J6*J$1,"# ###,-Ft"),TEXT(I6*I$1,"# ###,-Ft "))) -> TOPS* 95 100,-Ft | E6: RC S.anyag | G6: 3470 | I6: 106800 | J6: 95100 | P6: Szalag és excenter csiszolók
A7: =IF(L7=FALSE,0,COUNTIF(A$3:A6,">0")+1) -> 0 | B7: 8940168577 | C7: 1/2 MD3-12 SZŰRŐ-SZABÁLYOZÓ-OLAJZÓ | D7: 82 200,-Ft | E7: RC S.anyag | G7: 2680 | I7: 82200 | P7: Polír- és fiber csiszolók
A8: =IF(L8=FALSE,0,COUNTIF(A$3:A7,">0")+1) -> 0 | B8: 8951011396 | C8: 1/2" ASKS11 IMPACT CSATLAKOZÓ SET SH. | D8: 35 910,-Ft | E8: RC S.anyag | G8: 1155 | I8: 35910 | P8: Vésők, leverők …
A9: =IF(L9=FALSE,0,COUNTIF(A$3:A8,">0")+1) -> 0 | B9: 8951011397 | C9: 1/2" ASLS7 IMPACT CSATLAKOZÓ SET LON. | D9: ,-Ft | E9: RC S.anyag | G9: 2904 | P9: Szóró- és lefúvató pisztolyok
A10: =IF(L10=FALSE,0,COUNTIF(A$3:A9,">0")+1) -> 0 | B10: 8951011330 | C10: 1/2"IMPACT CSATLAKOZÓ SET | D10: 8 120,-Ft | E10: RC S.anyag | G10: 1240 | I10: 8120 | P10: Vágók, fűrészek, szegecshúzók
A11: =IF(L11=FALSE,0,COUNTIF(A$3:A10,">0")+1) -> 0 | B11: 8940168574 | C11: 1/4 MN2-14 SZŰRŐ-SZABÁLYOZÓ-OLAJZÓ | D11: =IF(H11="SP",IF(J11>0,"SP: "&TEXT(J11*I$1,"# ###,-Ft "),"SP: "&TEXT(I11*I$1,"# ###,-Ft")),IF(J11>0,"*("&TEXT(I11*I$1,"# ###,-")&") "&TEXT(J11*J$1,"# ###,-Ft"),TEXT(I11*I$1,"# ###,-Ft "))) -> 48 440,-Ft | E11: RC S.anyag | G11: 1925 | I11: 48440 | P11: Dugókulcsok
A12: =IF(L12=FALSE,0,COUNTIF(A$3:A11,">0")+1) -> 0 | B12: 8940168575 | C12: 1/4 MN3-14 SZŰRŐ-SZABÁLYOZÓ-OLAJZÓ | D12: 53 730,-Ft | E12: RC S.anyag | G12: 2320 | I12: 53730 | P12: Csatlakozók
A13: =IF(L13=FALSE,0,COUNTIF(A$3:A12,">0")+1) -> 0 | B13: 8951011835 | C13: 10/17M SPIRÁL CSŐS | D13: 29 230,-Ft | E13: RC S.anyag | G13: 715 | I13: 29230 | P13: Abroncstöltők
A14: =IF(L14=FALSE,0,COUNTIF(A$3:A13,">0")+1) -> 0 | B14: 8951011453 | C14: 100 B KEY | D14: 1 120,-Ft | E14: RC S.anyag | G14: 45 | I14: 1120 | P14: ABAC Levegős szerszámok
A15: =IF(L15=FALSE,0,COUNTIF(A$3:A14,">0")+1) -> 0 | B15: 8951011451 | C15: 100 FÚRÓ CHUCK W. KEY | D15: 5 320,-Ft | E15: RC S.anyag | G15: 209 | I15: 5320 | P15: Garázsipari eszközök
A16: =IF(L16=FALSE,0,COUNTIF(A$3:A15,">0")+1) -> 0 | B16: 8951011458 | C16: 100 P QUICK CHUCK 10 MM / P | D16: =IF(H16="SP",IF(J16>0,"SP: "&TEXT(J16*I$1,"# ###,-Ft "),"SP: "&TEXT(I16*I$1,"# ###,-Ft")),IF(J16>0,"TOPS* "&TEXT(J16*J$1,"# ###,-Ft"),TEXT(I16*I$1,"# ###,-Ft "))) -> 8 400,-Ft | E16: RC S.anyag | G16: 176 | I16: 8400 | P16: AKKUMULÁTOROS GÉPEK
A17: =IF(L17=FALSE,0,COUNTIF(A$3:A16,">0")+1) -> 0 | B17: 8951011606 | C17: 100 SL SISAL-BRUSH | D17: ,-Ft | E17: RC S.anyag | G17: 465 | P17: Tömlők, tömlődobok
A18: =IF(L18=FALSE,0,COUNTIF(A$3:A17,">0")+1) -> 0 | B18: 8951012037 | C18: 10-02 TÖMLŐ INC.P21,P23 HPP10 | D18: 22 130,-Ft | E18: RC S.anyag | G18: 851 | I18: 22130 | P18: Szűrők, szabályozók
A19: =IF(L19=FALSE,0,COUNTIF(A$3:A18,">0")+1) -> 0 | B19: 8951012039 | C19: 10-05 HOSSZABBÍTÓ CSŐ 25" LOCK ON | D19: 14 570,-Ft | E19: RC S.anyag | G19: 3137 | I19: 14570 | P19: Balancerek
A20: =IF(L20=FALSE,0,COUNTIF(A$3:A19,">0")+1) -> 0 | B20: 8951012040 | C20: 10-06 20" LOCK ON/ HOSSZABBÍTÓ CSŐ | D20: 12 050,-Ft | E20: RC S.anyag | G20: 2496 | I20: 12050
A21: =IF(L21=FALSE,0,COUNTIF(A$3:A20,">0")+1) -> 0 | B21: 8951012041 | C21: 10-07 10" LOCK ON/HOSSZABBÍTÓ CSŐ | D21: 8 400,-Ft | E21: RC S.anyag | G21: 1127 | I21: 8400
A22: =IF(L22=FALSE,0,COUNTIF(A$3:A21,">0")+1) -> 0 | B22: 8951011064 | C22: 101 KAROSSZÉRIA HUTATÓ CSIPESZ | D22: 24 930,-Ft | E22: RC S.anyag | G22: 2105 | I22: 24930
A23: =IF(L23=FALSE,0,COUNTIF(A$3:A22,">0")+1) -> 0 | B23: 8951011066 | C23: 101 N KAROSSZÉRIA HUTATÓ CSIPESZ | D23: 33 130,-Ft | E23: RC S.anyag | G23: 2290 | I23: 33130
A24: =IF(L24=FALSE,0,COUNTIF(A$3:A23,">0")+1) -> 0 | B24: 8951011076 | C24: 101 S SCREWSET | D24: 4 200,-Ft | E24: RC S.anyag | G24: 186 | I24: 4200
A25: =IF(L25=FALSE,0,COUNTIF(A$3:A24,">0")+1) -> 0 | B25: 8951012044 | C25: 10-10 LAPOS BASE | D25: 9 530,-Ft | E25: RC S.anyag | G25: 1578 | I25: 9530
A26: =IF(L26=FALSE,0,COUNTIF(A$3:A25,">0")+1) -> 0 | B26: 8951012047 | C26: 10-13 SPREADER PLUNGER TOE | D26: 8 970,-Ft | E26: RC S.anyag | G26: 874 | I26: 8970
A27: =IF(L27=FALSE,0,COUNTIF(A$3:A26,">0")+1) -> 0 | B27: 8951012050 | C27: 10-16 HÜVELY CONNECTOR | D27: 8 680,-Ft | E27: RC S.anyag | G27: 250 | I27: 8680
A28: =IF(L28=FALSE,0,COUNTIF(A$3:A27,">0")+1) -> 0 | B28: 8951012051 | C28: 10-17 SERRATED SADDLE | D28: 5 320,-Ft | E28: RC S.anyag | G28: 373 | I28: 5320
A29: =IF(L29=FALSE,0,COUNTIF(A$3:A28,">0")+1) -> 0 | B29: 8951011065 | C29: 102 KAROSSZÉRIA HUTATÓ CSIPESZ | D29: 29 790,-Ft | E29: RC S.anyag | G29: 2066 | I29: 29790
A30: =IF(L30=FALSE,0,COUNTIF(A$3:A29,">0")+1) -> 0 | B30: 8951011067 | C30: 102 N KAROSSZÉRIA HUTATÓ CSIPESZ | D30: 33 130,-Ft | E30: RC S.anyag | G30: 2002 | I30: 33130
A31: =IF(L31=FALSE,0,COUNTIF(A$3:A30,">0")+1) -> 0 | B31: 8951011068 | C31: 102 NN KAROSSZÉRIA HUTATÓ CSIPESZ | D31: 42 600,-Ft | E31: RC S.anyag | G31: 2196 | I31: 42600
A32: =IF(L32=FALSE,0,COUNTIF(A$3:A31,">0")+1) -> 0 | B32: 8951011078 | C32: 102 NS SCREWSET | D32: 4 200,-Ft | E32: RC S.anyag | G32: 195 | I32: 4200
A33: =IF(L33=FALSE,0,COUNTIF(A$3:A32,">0")+1) -> 0 | B33: 8951011077 | C33: 102 S SCREWSET | D33: 4 200,-Ft | E33: RC S.anyag | G33: 138 | I33: 4200
A34: =IF(L34=FALSE,0,COUNTIF(A$3:A33,">0")+1) -> 0 | B34: 8951012058 | C34: 10-26 PULL CSIPESZ | D34: 43 710,-Ft | E34: RC S.anyag | G34: 2045 | I34: 43710
A35: =IF(L35=FALSE,0,COUNTIF(A$3:A34,">0")+1) -> 0 | B35: 8951011998 | C35: 110 02 TÖMLŐ INC.P21,P23 HRS04 | D35: 23 250,-Ft | E35: RC S.anyag | G35: 1005 | I35: 23250
A36: =IF(L36=FALSE,0,COUNTIF(A$3:A35,">0")+1) -> 0 | B36: 8951011999 | C36: 110 05 HOSSZABBÍTÓ | D36: 6 160,-Ft | E36: RC S.anyag | G36: 1199 | I36: 6160
A37: =IF(L37=FALSE,0,COUNTIF(A$3:A36,">0")+1) -> 0 | B37: 8951012002 | C37: 110 08 HOSSZABBÍTÓ | D37: 3 360,-Ft | E37: RC S.anyag | G37: 440 | I37: 3360
A38: =IF(L38=FALSE,0,COUNTIF(A$3:A37,">0")+1) -> 0 | B38: 8951012003 | C38: 110 09 ADAPTER | D38: 2 520,-Ft | E38: RC S.anyag | G38: 205 | I38: 2520
A39: =IF(L39=FALSE,0,COUNTIF(A$3:A38,">0")+1) -> 0 | B39: 8951012005 | C39: 110 11 LAPOS BASE | D39: 3 080,-Ft | E39: RC S.anyag | G39: 714 | I39: 3080
A40: =IF(L40=FALSE,0,COUNTIF(A$3:A39,">0")+1) -> 0 | B40: 8951012006 | C40: 110 12 V.-BASE | D40: 2 800,-Ft | E40: RC S.anyag | G40: 247 | I40: 2800
A41: =IF(L41=FALSE,0,COUNTIF(A$3:A40,">0")+1) -> 0 | B41: 8951012007 | C41: 110 13 WEDGE HEAD | D41: 2 800,-Ft | E41: RC S.anyag | G41: 265 | I41: 2800
A42: =IF(L42=FALSE,0,COUNTIF(A$3:A41,">0")+1) -> 0 | B42: 8951012008 | C42: 110 14 SPREADER PLUNGER TOE | D42: 3 360,-Ft | E42: RC S.anyag | G42: 421 | I42: 3360
A43: =IF(L43=FALSE,0,COUNTIF(A$3:A42,">0")+1) -> 0 | B43: 8951012012 | C43: 110 15C COLLAR TOE | D43: 3 360,-Ft | E43: RC S.anyag | G43: 347 | I43: 3360
A44: =IF(L44=FALSE,0,COUNTIF(A$3:A43,">0")+1) -> 0 | B44: 8951011452 | C44: 110 FÚRÓ CHUCK W. KEY | D44: =IF(H44="SP",IF(J44>0,"SP: "&TEXT(J44*I$1,"# ###,-Ft "),"SP: "&TEXT(I44*I$1,"# ###,-Ft")),IF(J44>0,"*("&TEXT(I44*I$1,"# ###,-")&") "&TEXT(J44*J$1,"# ###,-Ft"),TEXT(I44*I$1,"# ###,-Ft "))) -> 13 170,-Ft | E44: RC S.anyag | G44: 376 | I44: 13170
A45: =IF(L45=FALSE,0,COUNTIF(A$3:A44,">0")+1) -> 0 | B45: 8951011978 | C45: 111 01 PUMP_881001 | D45: 53 450,-Ft | E45: RC Termék | G45: 5553 | I45: 53450
A46: =IF(L46=FALSE,0,COUNTIF(A$3:A45,">0")+1) -> 0 | B46: 8951012230 | C46: 111 01S PUMP - SET | D46: 78 300,-Ft | E46: RC S.anyag | G46: 6800 | I46: 78300
A47: =IF(L47=FALSE,0,COUNTIF(A$3:A46,">0")+1) -> 0 | B47: 8951011979 | C47: 111 02 TÖMLŐ W.P21,P23 HRS10/PHP10 | D47: 24 930,-Ft | E47: RC S.anyag | G47: 869 | I47: 24930
A48: =IF(L48=FALSE,0,COUNTIF(A$3:A47,">0")+1) -> 0 | B48: 8951011980 | C48: 111 04 SPREADER 0,5 TO. | D48: 28 120,-Ft | E48: RC S.anyag | G48: 1824 | I48: 28120
A49: =IF(L49=FALSE,0,COUNTIF(A$3:A48,">0")+1) -> 0 | B49: 8951011981 | C49: 111 05 HOSSZABBÍTÓ | D49: 11 210,-Ft | E49: RC S.anyag | G49: 2784 | I49: 11210
A50: =IF(L50=FALSE,0,COUNTIF(A$3:A49,">0")+1) -> 0 | B50: 8951011982 | C50: 111 06 HOSSZABBÍTÓ CSŐ | D50: 10 370,-Ft | E50: RC S.anyag | G50: 2259 | I50: 10370
A51: =IF(L51=FALSE,0,COUNTIF(A$3:A50,">0")+1) -> 0 | B51: 8951011983 | C51: 111 07 HOSSZABBÍTÓ | D51: 7 840,-Ft | E51: RC S.anyag | G51: 1801 | I51: 7840
A52: =IF(L52=FALSE,0,COUNTIF(A$3:A51,">0")+1) -> 0 | B52: 8951011984 | C52: 111 08 HOSSZABBÍTÓ | D52: 6 440,-Ft | E52: RC S.anyag | G52: 1157 | I52: 6440
A53: =IF(L53=FALSE,0,COUNTIF(A$3:A52,">0")+1) -> 0 | B53: 8951011985 | C53: 111 09 ADAPTER | D53: 4 480,-Ft | E53: RC S.anyag | G53: 689 | I53: 4480
A54: =IF(L54=FALSE,0,COUNTIF(A$3:A53,">0")+1) -> 0 | B54: 8951011986 | C54: 111 10 SERRATED SADDLE | D54: 6 440,-Ft | E54: RC S.anyag | G54: 407 | I54: 6440
A55: =IF(L55=FALSE,0,COUNTIF(A$3:A54,">0")+1) -> 0 | B55: 8951011987 | C55: 111 11 LAPOS BASE | D55: 9 810,-Ft | E55: RC S.anyag | G55: 2170 | I55: 9810
A56: =IF(L56=FALSE,0,COUNTIF(A$3:A55,">0")+1) -> 0 | B56: 8951011989 | C56: 111 13 WEDGE HEAD | D56: 5 320,-Ft | E56: RC S.anyag | G56: 640 | I56: 5320
A57: =IF(L57=FALSE,0,COUNTIF(A$3:A56,">0")+1) -> 0 | B57: 8951011990 | C57: 111 14 SPREADER PLUNGER TOE | D57: 6 160,-Ft | E57: RC S.anyag | G57: 1269 | I57: 6160
A58: =IF(L58=FALSE,0,COUNTIF(A$3:A57,">0")+1) -> 0 | B58: 8951011996 | C58: 111 15D SPREADER RAM TOE | D58: 6 720,-Ft | E58: RC S.anyag | G58: 870 | I58: 6720
A59: =IF(L59=FALSE,0,COUNTIF(A$3:A58,">0")+1) -> 0 | B59: 8951011991 | C59: 111 16 FLEX HEAD | D59: 6 160,-Ft | E59: RC S.anyag | G59: 634 | I59: 6160
A60: =IF(L60=FALSE,0,COUNTIF(A$3:A59,">0")+1) -> 0 | B60: 8951011992 | C60: 111 17 BOX PVC | D60: 35 080,-Ft | E60: RC S.anyag | G60: 4105 | I60: 35080
A61: =IF(L61=FALSE,0,COUNTIF(A$3:A60,">0")+1) -> 0 | B61: 8951012013 | C61: 112 01 AUTOMATIC 2 SPEED PUMP | D61: 96 800,-Ft | E61: RC S.anyag | G61: 8379 | I61: 96800
A62: =IF(L62=FALSE,0,COUNTIF(A$3:A61,">0")+1) -> 0 | B62: 8951012015 | C62: 112 03 HOSSZABBÍTÓ | D62: 63 100,-Ft | E62: RC S.anyag | G62: 6112 | I62: 63100
A63: =IF(L63=FALSE,0,COUNTIF(A$3:A62,">0")+1) -> 0 | B63: 8951012016 | C63: 112 04 HOSSZABBÍTÓ | D63: 45 660,-Ft | E63: RC S.anyag | G63: 4413 | I63: 45660
A64: =IF(L64=FALSE,0,COUNTIF(A$3:A63,">0")+1) -> 0 | B64: 8951012017 | C64: 112 05 HOSSZABBÍTÓ | D64: 28 120,-Ft | E64: RC S.anyag | G64: 2607 | I64: 28120
A65: =IF(L65=FALSE,0,COUNTIF(A$3:A64,">0")+1) -> 0 | B65: 8951012019 | C65: 112 07 LOCK PIN | D65: 2 800,-Ft | E65: RC S.anyag | G65: 91 | I65: 2800
A66: =IF(L66=FALSE,0,COUNTIF(A$3:A65,">0")+1) -> 0 | B66: 8951012020 | C66: 112 08 DUGÓ CONNECTOR HRS 20 | D66: 14 570,-Ft | E66: RC S.anyag | G66: 133 | I66: 14570
A67: =IF(L67=FALSE,0,COUNTIF(A$3:A66,">0")+1) -> 0 | B67: 8951012021 | C67: 112 09 THREADED KUPLUNG HRS 20 | D67: 18 490,-Ft | E67: RC S.anyag | G67: 1184 | I67: 18490
A68: =IF(L68=FALSE,0,COUNTIF(A$3:A67,">0")+1) -> 0 | B68: 8951012023 | C68: 112 11 RAM BASE | D68: 30 350,-Ft | E68: RC S.anyag | G68: 4008 | I68: 30350
A69: =IF(L69=FALSE,0,COUNTIF(A$3:A68,">0")+1) -> 0 | B69: 8951012026 | C69: 112 14 WEDGE HEAD | D69: 22 970,-Ft | E69: RC S.anyag | G69: 1254 | I69: 22970
A70: =IF(L70=FALSE,0,COUNTIF(A$3:A69,">0")+1) -> 0 | B70: 8951012027 | C70: 112 15 SERRATED SANDDLE | D70: 19 890,-Ft | E70: RC S.anyag | G70: 1393 | I70: 19890
A71: =IF(L71=FALSE,0,COUNTIF(A$3:A70,">0")+1) -> 0 | B71: 8951012029 | C71: 112 17 TÖMLŐ INC.P21,P23 HRS20 | D71: 24 930,-Ft | E71: RC S.anyag | G71: 968 | I71: 24930
A72: =IF(L72=FALSE,0,COUNTIF(A$3:A71,">0")+1) -> 0 | B72: 8951011539 | C72: 115 TR VÁGÓ KERÉK | D72: ,-Ft | E72: RC S.anyag | G72: 71
A73: =IF(L73=FALSE,0,COUNTIF(A$3:A72,">0")+1) -> 0 | B73: 8951011459 | C73: 120 P QUICK CHUCK 13 MM / P | D73: =IF(H73="SP",IF(J73>0,"SP: "&TEXT(J73*I$1,"# ###,-Ft "),"SP: "&TEXT(I73*I$1,"# ###,-Ft")),IF(J73>0,"TOPS* "&TEXT(J73*J$1,"# ###,-Ft"),TEXT(I73*I$1,"# ###,-Ft "))) -> 11 210,-Ft | E73: RC S.anyag | G73: 252 | I73: 11210
A74: =IF(L74=FALSE,0,COUNTIF(A$3:A73,">0")+1) -> 0 | B74: 8951011967 | C74: 1210 STAPLE | D74: =IF(H74="SP",IF(J74>0,"SP: "&TEXT(J74*I$1,"# ###,-Ft "),"SP: "&TEXT(I74*I$1,"# ###,-Ft")),IF(J74>0,"*("&TEXT(I74*I$1,"# ###,-")&") "&TEXT(J74*J$1,"# ###,-Ft"),TEXT(I74*I$1,"# ###,-Ft "))) -> 3 640,-Ft | E74: RC S.anyag | G74: 709 | I74: 3640
A75: =IF(L75=FALSE,0,COUNTIF(A$3:A74,">0")+1) -> 0 | B75: 8951011969 | C75: 1219 STAPLE | D75: =IF(H75="SP",IF(J75>0,"SP: "&TEXT(J75*I$1,"# ###,-Ft "),"SP: "&TEXT(I75*I$1,"# ###,-Ft")),IF(J75>0,"*("&TEXT(I75*I$1,"# ###,-")&") "&TEXT(J75*J$1,"# ###,-Ft"),TEXT(I75*I$1,"# ###,-Ft "))) -> 6 440,-Ft | E75: RC S.anyag | G75: 1146 | I75: 6440
A76: =IF(L76=FALSE,0,COUNTIF(A$3:A75,">0")+1) -> 0 | B76: 8951011111 | C76: 205SE DUPLA TÖMLŐ 5M CLICK | D76: =IF(H76="SP",IF(J76>0,"SP: "&TEXT(J76*I$1,"# ###,-Ft "),"SP: "&TEXT(I76*I$1,"# ###,-Ft")),IF(J76>0,"TOPS* "&TEXT(J76*J$1,"# ###,-Ft"),TEXT(I76*I$1,"# ###,-Ft "))) -> 60 600,-Ft | E76: RC S.anyag | G76: 1839 | I76: 60600
A77: =IF(L77=FALSE,0,COUNTIF(A$3:A76,">0")+1) -> 0 | B77: 8951011237 | C77: 211 ES80 ADAPTERF.BEG211/212 | D77: =IF(H77="SP",IF(J77>0,"SP: "&TEXT(J77*I$1,"# ###,-Ft "),"SP: "&TEXT(I77*I$1,"# ###,-Ft")),IF(J77>0,"*("&TEXT(I77*I$1,"# ###,-")&") "&TEXT(J77*J$1,"# ###,-Ft"),TEXT(I77*I$1,"# ###,-Ft "))) -> 69 700,-Ft | E77: RC S.anyag | G77: 32 | I77: 69700
A78: =IF(L78=FALSE,0,COUNTIF(A$3:A77,">0")+1) -> 0 | B78: 8951011197 | C78: 214 E20 ADAPTERF. BEG214 | D78: 17 650,-Ft | E78: RC S.anyag | G78: 85 | I78: 17650
A79: =IF(L79=FALSE,0,COUNTIF(A$3:A78,">0")+1) -> 0 | B79: 8951011435 | C79: 2205R OPENING KEY SET WRENCHES | D79: 82 700,-Ft | E79: RC S.anyag | G79: 10 | I79: 82700
A80: =IF(L80=FALSE,0,COUNTIF(A$3:A79,">0")+1) -> 0 | B80: 8951011445 | C80: 2363R OPENING KEY 2363 2 PCS. | D80: 140 200,-Ft | E80: RC S.anyag | G80: 101 | I80: 140200
A81: =IF(L81=FALSE,0,COUNTIF(A$3:A80,">0")+1) -> 0 | B81: 8951011484 | C81: 3.00 MM BEFOGÓ FOR 7050B | D81: 18 490,-Ft | E81: RC S.anyag | G81: 11 | I81: 18490
A82: =IF(L82=FALSE,0,COUNTIF(A$3:A81,">0")+1) -> 0 | B82: 8951011069 | C82: 301 KAROSSZÉRIA HUZATÓ CSIPESZ | D82: 33 130,-Ft | E82: RC S.anyag | G82: 1648 | I82: 33130
A83: =IF(L83=FALSE,0,COUNTIF(A$3:A82,">0")+1) -> 0 | B83: 8951011544 | C83: 316-2 BACKING PAD | D83: 1 960,-Ft | E83: RC S.anyag | G83: 12 | I83: 1960
A84: =IF(L84=FALSE,0,COUNTIF(A$3:A83,">0")+1) -> 0 | B84: 8951011631 | C84: 3M2TA2 ROLOC ADAPTER | D84: 2 800,-Ft | E84: RC S.anyag | G84: 36 | I84: 2800
A85: =IF(L85=FALSE,0,COUNTIF(A$3:A84,">0")+1) -> 0 | B85: 8951011634 | C85: 3M50K120 BRISTLE DISC | D85: 6 160,-Ft | E85: RC S.anyag | G85: 20 | I85: 6160
A86: =IF(L86=FALSE,0,COUNTIF(A$3:A85,">0")+1) -> 0 | B86: 8951011633 | C86: 3M50K50 BRISTLE DISC | D86: 6 160,-Ft | E86: RC S.anyag | G86: 1 | I86: 6160
A87: =IF(L87=FALSE,0,COUNTIF(A$3:A86,">0")+1) -> 0 | B87: 8951011635 | C87: 3M50K80 BRISTLE DISC | D87: 6 160,-Ft | E87: RC S.anyag | G87: 19 | I87: 6160
A88: =IF(L88=FALSE,0,COUNTIF(A$3:A87,">0")+1) -> 0 | B88: 8951011629 | C88: 3MA 0615 ROLOC ADAPTER | D88: 6 160,-Ft | E88: RC S.anyag | G88: 12 | I88: 6160
A89: =IF(L89=FALSE,0,COUNTIF(A$3:A88,">0")+1) -> 0 | B89: 8951011070 | C89: 402 CSIPESZ UNIVERSAL | D89: 74 700,-Ft | E89: RC S.anyag | G89: 2594 | I89: 74700
A90: =IF(L90=FALSE,0,COUNTIF(A$3:A89,">0")+1) -> 0 | B90: 8951011545 | C90: 416-2 BACKING PAD | D90: 1 960,-Ft | E90: RC S.anyag | G90: 22.2 | I90: 1960
A91: =IF(L91=FALSE,0,COUNTIF(A$3:A90,">0")+1) -> 0 | B91: 8951011974 | C91: 4816 STAPLE | D91: =IF(H91="SP",IF(J91>0,"SP: "&TEXT(J91*I$1,"# ###,-Ft "),"SP: "&TEXT(I91*I$1,"# ###,-Ft")),IF(J91>0,"*("&TEXT(I91*I$1,"# ###,-")&") "&TEXT(J91*J$1,"# ###,-Ft"),TEXT(I91*I$1,"# ###,-Ft "))) -> 4 480,-Ft | E91: RC S.anyag | G91: 844 | I91: 4480
A92: =IF(L92=FALSE,0,COUNTIF(A$3:A91,">0")+1) -> 0 | B92: 8951011977 | C92: 4825 STAPLE | D92: 8 400,-Ft | E92: RC S.anyag | G92: 1309 | I92: 8400
A93: =IF(L93=FALSE,0,COUNTIF(A$3:A92,">0")+1) -> 0 | B93: 8951011831 | C93: 5/8.5M SPIRÁL CSŐS | D93: 20 450,-Ft | E93: RC S.anyag | G93: 566 | I93: 20450
A94: =IF(L94=FALSE,0,COUNTIF(A$3:A93,">0")+1) -> 0 | B94: 8951011830 | C94: 5/8.5M SPIRÁL CSŐS W/O KUPLUNG | D94: 11 490,-Ft | E94: RC S.anyag | G94: 360 | I94: 11490
A95: =IF(L95=FALSE,0,COUNTIF(A$3:A94,">0")+1) -> 0 | B95: 8951011487 | C95: 5030-03 TŰ 5030 | D95: 20 450,-Ft | E95: RC S.anyag | G95: 4.5 | I95: 20450
A96: =IF(L96=FALSE,0,COUNTIF(A$3:A95,">0")+1) -> 0 | B96: 8951011922 | C96: 5060 SS SCRAPER PENGE | D96: 15 410,-Ft | E96: RC S.anyag | G96: 26 | I96: 15410
A97: =IF(L97=FALSE,0,COUNTIF(A$3:A96,">0")+1) -> 0 | B97: 8951011548 | C97: 516-2 BACKING PAD | D97: 1 400,-Ft | E97: RC S.anyag | G97: 32 | I97: 1400
A98: =IF(L98=FALSE,0,COUNTIF(A$3:A97,">0")+1) -> 0 | B98: 8951011497 | C98: 5602 VÉSŐ | D98: 8 400,-Ft | E98: RC S.anyag | G98: 200 | I98: 8400
A99: =IF(L99=FALSE,0,COUNTIF(A$3:A98,">0")+1) -> 0 | B99: 8951011510 | C99: 5610 P3 TŰ PLATE 3 MM | D99: 8 400,-Ft | E99: RC S.anyag | G99: 82 | I99: 8400
A100: =IF(L100=FALSE,0,COUNTIF(A$3:A99,">0")+1) -> 0 | B100: 8951011502 | C100: 5620 P3 TŰ PLATE 3 MM | D100: 17 650,-Ft | E100: RC S.anyag | G100: 201 | I100: 17650
A101: =IF(L101=FALSE,0,COUNTIF(A$3:A100,">0")+1) -> 0 | B101: 8951011503 | C101: 5620 P4 TŰ PLATE 4 MM | D101: 15 410,-Ft | E101: RC S.anyag | G101: 209 | I101: 15410
A102: =IF(L102=FALSE,0,COUNTIF(A$3:A101,">0")+1) -> 0 | B102: 8951011500 | C102: 5620 ST3 TŰ SET 3 MM (28 PCS) | D102: 9 530,-Ft | E102: RC S.anyag | G102: 282 | I102: 9530
A103: =IF(L103=FALSE,0,COUNTIF(A$3:A102,">0")+1) -> 0 | B103: 8951011501 | C103: 5620 ST4 TŰ SET 4 MM (14 PCS) | D103: 6 440,-Ft | E103: RC S.anyag | G103: 243 | I103: 6440
A104: =IF(L104=FALSE,0,COUNTIF(A$3:A103,">0")+1) -> 0 | B104: 8951011504 | C104: 5625 ST2 TŰ SET 2 MM (29 PCS) | D104: =IF(H104="SP",IF(J104>0,"SP: "&TEXT(J104*I$1,"# ###,-Ft "),"SP: "&TEXT(I104*I$1,"# ###,-Ft")),IF(J104>0,"*("&TEXT(I104*I$1,"# ###,-")&") "&TEXT(J104*J$1,"# ###,-Ft"),TEXT(I104*I$1,"# ###,-Ft "))) -> 20 450,-Ft | E104: RC S.anyag | G104: 125 | I104: 20450
A105: =IF(L105=FALSE,0,COUNTIF(A$3:A104,">0")+1) -> 0 | B105: 8951011508 | C105: 5630 P3 TŰ PLATE 3 MM | D105: 27 560,-Ft | E105: RC S.anyag | G105: 333 | I105: 27560
A106: =IF(L106=FALSE,0,COUNTIF(A$3:A105,">0")+1) -> 0 | B106: 8951011509 | C106: 5630 P4 TŰ PLATE 4 MM | D106: 26 620,-Ft | E106: RC S.anyag | G106: 324 | I106: 26620
A107: =IF(L107=FALSE,0,COUNTIF(A$3:A106,">0")+1) -> 0 | B107: 8951011506 | C107: 5630 ST3 TŰ SET 3 MM (49 PCS) | D107: 27 560,-Ft | E107: RC S.anyag | G107: 484 | I107: 27560
A108: =IF(L108=FALSE,0,COUNTIF(A$3:A107,">0")+1) -> 0 | B108: 8951011507 | C108: 5630 ST4 TŰ SET 4 MM (35 PCS) | D108: 26 620,-Ft | E108: RC S.anyag | G108: 615 | I108: 26620
A109: =IF(L109=FALSE,0,COUNTIF(A$3:A108,">0")+1) -> 0 | B109: 8951011845 | C109: 6,5/10.6MO SPIRAL H. W/O COUPL. | D109: 15 410,-Ft | E109: RC S.anyag | G109: 515 | I109: 15410
A110: =IF(L110=FALSE,0,COUNTIF(A$3:A109,">0")+1) -> 0 | B110: 8951011072 | C110: 601 KAROSSZÉRIA HUTATÓ CSIPESZ | D110: =IF(H110="SP",IF(J110>0,"SP: "&TEXT(J110*I$1,"# ###,-Ft "),"SP: "&TEXT(I110*I$1,"# ###,-Ft")),IF(J110>0,"*("&TEXT(I110*I$1,"# ###,-")&") "&TEXT(J110*J$1,"# ###,-Ft"),TEXT(I110*I$1,"# ###,-Ft "))) -> 67 000,-Ft | E110: RC S.anyag | G110: 2415 | I110: 67000
A111: =IF(L111=FALSE,0,COUNTIF(A$3:A110,">0")+1) -> 0 | B111: 8951011073 | C111: 601 N KAROSSZÉRIA HUTATÓ CSIPESZ | D111: 86 300,-Ft | E111: RC S.anyag | G111: 2874 | I111: 86300
A112: =IF(L112=FALSE,0,COUNTIF(A$3:A111,">0")+1) -> 0 | B112: 8951011531 | C112: 6067A FILE ADAPTER 6MM | D112: 5 320,-Ft | E112: RC S.anyag | G112: 29 | I112: 5320
A113: =IF(L113=FALSE,0,COUNTIF(A$3:A112,">0")+1) -> 0 | B113: 8951011535 | C113: 6067D SHANK FILE TRIANGULAR | D113: 2 800,-Ft | E113: RC S.anyag | G113: 18 | I113: 2800
A114: =IF(L114=FALSE,0,COUNTIF(A$3:A113,">0")+1) -> 0 | B114: 8951011532 | C114: 6067F SHANK FILE-RECT. 10 X 3MM | D114: 2 800,-Ft | E114: RC S.anyag | G114: 1 | I114: 2800
A115: =IF(L115=FALSE,0,COUNTIF(A$3:A114,">0")+1) -> 0 | B115: 8951011534 | C115: 6067H FILE HALF ROUND 10X3,8MM | D115: 3 080,-Ft | E115: RC S.anyag | G115: 21 | I115: 3080
A116: =IF(L116=FALSE,0,COUNTIF(A$3:A115,">0")+1) -> 0 | B116: 8951011533 | C116: 6067R SHANK FILE ROUND 6MM | D116: 2 800,-Ft | E116: RC S.anyag | G116: 21 | I116: 2800
A117: =IF(L117=FALSE,0,COUNTIF(A$3:A116,">0")+1) -> 0 | B117: 8951011526 | C117: 6453GH140 HOOK 5,5" | D117: 32 850,-Ft | E117: RC S.anyag | G117: 975 | I117: 32850
A118: =IF(L118=FALSE,0,COUNTIF(A$3:A117,">0")+1) -> 0 | B118: 8951011525 | C118: 6453GH75 HOOK 3" | D118: 23 530,-Ft | E118: RC S.anyag | G118: 413 | I118: 23530
A119: =IF(L119=FALSE,0,COUNTIF(A$3:A118,">0")+1) -> 0 | B119: 8951011430 | C119: 6605-39 PIN WRENCH | D119: 2 800,-Ft | E119: RC S.anyag | G119: 65 | I119: 2800
A120: =IF(L120=FALSE,0,COUNTIF(A$3:A119,">0")+1) -> 0 | B120: 8951012227 | C120: 6605R OPENING KEY INNER GEAR | D120: 184 500,-Ft | E120: RC S.anyag | G120: 10 | I120: 184500
A121: =IF(L121=FALSE,0,COUNTIF(A$3:A120,">0")+1) -> 0 | B121: 8951011529 | C121: 6901 FILE SET 4 PCS FOR 6900 | D121: 9 810,-Ft | E121: RC S.anyag | G121: 86 | I121: 9810
A122: =IF(L122=FALSE,0,COUNTIF(A$3:A121,">0")+1) -> 0 | B122: 8951011678 | C122: 7035 A BEFOGÓ ADAPTER | D122: =IF(H122="SP",IF(J122>0,"SP: "&TEXT(J122*I$1,"# ###,-Ft "),"SP: "&TEXT(I122*I$1,"# ###,-Ft")),IF(J122>0,"TOPS* "&TEXT(J122*J$1,"# ###,-Ft"),TEXT(I122*I$1,"# ###,-Ft "))) -> TOPS* 2 280,-Ft | E122: RC S.anyag | G122: 27 | I122: 3080 | J122: 2280
A123: =IF(L123=FALSE,0,COUNTIF(A$3:A122,">0")+1) -> 0 | B123: 8951011677 | C123: 7035 D RADÍR KERÉK FOR 7035 | D123: =IF(H123="SP",IF(J123>0,"SP: "&TEXT(J123*I$1,"# ###,-Ft "),"SP: "&TEXT(I123*I$1,"# ###,-Ft")),IF(J123>0,"TOPS* "&TEXT(J123*J$1,"# ###,-Ft"),TEXT(I123*I$1,"# ###,-Ft "))) -> TOPS* 2 850,-Ft | E123: RC S.anyag | G123: 174 | I123: 5040 | J123: 2850
A124: =IF(L124=FALSE,0,COUNTIF(A$3:A123,">0")+1) -> 0 | B124: 8951012289 | C124: 7035L5T RADÍR KERÉKS W. 1 THREAD | D124: =IF(H124="SP",IF(J124>0,"SP: "&TEXT(J124*I$1,"# ###,-Ft "),"SP: "&TEXT(I124*I$1,"# ###,-Ft")),IF(J124>0,"TOPS* "&TEXT(J124*J$1,"# ###,-Ft"),TEXT(I124*I$1,"# ###,-Ft "))) -> ,-Ft | E124: RC S.anyag | G124: 801
A125: =IF(L125=FALSE,0,COUNTIF(A$3:A124,">0")+1) -> 0 | B125: 8951011536 | C125: 70TR VÁGÓ KERÉK (db) | D125: =IF(H125="SP",IF(J125>0,"SP: "&TEXT(J125*I$1,"# ###,-Ft "),"SP: "&TEXT(I125*I$1,"# ###,-Ft")),IF(J125>0,"TOPS* "&TEXT(J125*J$1,"# ###,-Ft"),TEXT(I125*I$1,"# ###,-Ft "))) -> 560,-Ft | E125: RC S.anyag | G125: 15 | I125: 560
A126: =IF(L126=FALSE,0,COUNTIF(A$3:A125,">0")+1) -> 0 | B126: 8951011538 | C126: 7150-S SAFETY GUARD | D126: 3 640,-Ft | E126: RC S.anyag | G126: 110 | I126: 3640
A127: =IF(L127=FALSE,0,COUNTIF(A$3:A126,">0")+1) -> 0 | B127: 8951011620 | C127: 7164DS PAINT & RUST REMOVER | D127: 2 520,-Ft | E127: RC S.anyag | G127: 10 | I127: 2520
A128: =IF(L128=FALSE,0,COUNTIF(A$3:A127,">0")+1) -> 0 | B128: 8951011618 | C128: 7164S GRINDSTONE | D128: 2 520,-Ft | E128: RC S.anyag | G128: 28 | I128: 2520
A129: =IF(L129=FALSE,0,COUNTIF(A$3:A128,">0")+1) -> 0 | B129: 8951011674 | C129: 7601 FINGER VELCRO 7605REB-58 | D129: =IF(H129="SP",IF(J129>0,"SP: "&TEXT(J129*I$1,"# ###,-Ft "),"SP: "&TEXT(I129*I$1,"# ###,-Ft")),IF(J129>0,"*("&TEXT(I129*I$1,"# ###,-")&") "&TEXT(J129*J$1,"# ###,-Ft"),TEXT(I129*I$1,"# ###,-Ft "))) -> 3 360,-Ft | E129: RC S.anyag | G129: 17 | I129: 3360
A130: =IF(L130=FALSE,0,COUNTIF(A$3:A129,">0")+1) -> 0 | B130: 8951011676 | C130: 7603 METALSHOE 7605REB-56 | D130: =IF(H130="SP",IF(J130>0,"SP: "&TEXT(J130*I$1,"# ###,-Ft "),"SP: "&TEXT(I130*I$1,"# ###,-Ft")),IF(J130>0,"*("&TEXT(I130*I$1,"# ###,-")&") "&TEXT(J130*J$1,"# ###,-Ft"),TEXT(I130*I$1,"# ###,-Ft "))) -> 2 800,-Ft | E130: RC S.anyag | G130: 10 | I130: 2800
A131: =IF(L131=FALSE,0,COUNTIF(A$3:A130,">0")+1) -> 0 | B131: 8951011607 | C131: 7606-56 PAD HOLDER | D131: =IF(H131="SP",IF(J131>0,"SP: "&TEXT(J131*I$1,"# ###,-Ft "),"SP: "&TEXT(I131*I$1,"# ###,-Ft")),IF(J131>0,"*("&TEXT(I131*I$1,"# ###,-")&") "&TEXT(J131*J$1,"# ###,-Ft"),TEXT(I131*I$1,"# ###,-Ft "))) -> 3 360,-Ft | E131: RC S.anyag | G131: 6 | I131: 3360
A132: =IF(L132=FALSE,0,COUNTIF(A$3:A131,">0")+1) -> 0 | B132: 8951011624 | C132: 7706KP CSISZOLÓ PLATE 7706 | D132: =IF(H132="SP",IF(J132>0,"SP: "&TEXT(J132*I$1,"# ###,-Ft "),"SP: "&TEXT(I132*I$1,"# ###,-Ft")),IF(J132>0,"*("&TEXT(I132*I$1,"# ###,-")&") "&TEXT(J132*J$1,"# ###,-Ft"),TEXT(I132*I$1,"# ###,-Ft "))) -> ,-Ft | E132: RC S.anyag | G132: 45
A133: =IF(L133=FALSE,0,COUNTIF(A$3:A132,">0")+1) -> 0 | B133: 8951011446 | C133: 7802SA29 SUCTION PORT (29MM) | D133: =IF(H133="SP",IF(J133>0,"SP: "&TEXT(J133*I$1,"# ###,-Ft "),"SP: "&TEXT(I133*I$1,"# ###,-Ft")),IF(J133>0,"*("&TEXT(I133*I$1,"# ###,-")&") "&TEXT(J133*J$1,"# ###,-Ft"),TEXT(I133*I$1,"# ###,-Ft "))) -> 1 960,-Ft | E133: RC S.anyag | G133: 10 | I133: 1960
A134: =IF(L134=FALSE,0,COUNTIF(A$3:A133,">0")+1) -> 0 | B134: 8951011524 | C134: 78F SPOTTLE FÚRÓ | D134: 4 480,-Ft | E134: RC S.anyag | G134: 15 | I134: 4480
A135: =IF(L135=FALSE,0,COUNTIF(A$3:A134,">0")+1) -> 0 | B135: 8951011131 | C135: 7900/10KA CONNECTOR VAC-TÖMLŐ | D135: 6 720,-Ft | E135: RC S.anyag | G135: 67 | I135: 6720
A136: =IF(L136=FALSE,0,COUNTIF(A$3:A135,">0")+1) -> 0 | B136: 8951011102 | C136: 7900/10SC VACUUM TÖMLŐ GREY 5M | D136: 37 590,-Ft | E136: RC S.anyag | G136: 860 | I136: 37590
A137: =IF(L137=FALSE,0,COUNTIF(A$3:A136,">0")+1) -> 0 | B137: 8951011098 | C137: 7900PB SZŰRŐ 10 PCS | D137: 26 050,-Ft | E137: RC S.anyag | G137: 504 | I137: 26050
A138: =IF(L138=FALSE,0,COUNTIF(A$3:A137,">0")+1) -> 0 | B138: 8951011103 | C138: 7900SBP SZŰRŐ BAG POLYESTER 5PCS | D138: 17 650,-Ft | E138: RC S.anyag | G138: 418 | I138: 17650
A139: =IF(L139=FALSE,0,COUNTIF(A$3:A138,">0")+1) -> 0 | B139: 8951011100 | C139: 7900SF SZŰRŐ STANDARD | D139: 15 410,-Ft | E139: RC S.anyag | G139: 475 | I139: 15410
A140: =IF(L140=FALSE,0,COUNTIF(A$3:A139,">0")+1) -> 0 | B140: 8951000016 | C140: 7905 23L PORSZÍVÓ | D140: =IF(H140="SP",IF(J140>0,"SP: "&TEXT(J140*I$1,"# ###,-Ft "),"SP: "&TEXT(I140*I$1,"# ###,-Ft")),IF(J140>0,"TOPS* "&TEXT(J140*J$1,"# ###,-Ft"),TEXT(I140*I$1,"# ###,-Ft "))) -> ,-Ft | E140: RC Termék | G140: 12700
A141: =IF(L141=FALSE,0,COUNTIF(A$3:A140,">0")+1) -> 0 | B141: 8951089014 | C141: 7910 PORSZÍVÓ 77L_822015 | D141: =IF(H141="C",IF(J141>0,"C #: "&TEXT(J141*I$1,"# ###,-Ft "),"C #: "&TEXT(I141*I$1,"# ###,-Ft")),IF(J141>0,"TOPS* "&TEXT(J141*J$1,"# ###,-Ft"),TEXT(I141*I$1,"# ###,-Ft "))) -> C #: 579 000,-Ft | E141: RC Termék | G141: 28200 | H141: C | I141: 579000
A142: =IF(L142=FALSE,0,COUNTIF(A$3:A141,">0")+1) -> 0 | B142: 8951011094 | C142: 7910KU BASKET LOWER | D142: 26 050,-Ft | E142: RC S.anyag | G142: 756 | I142: 26050
A143: =IF(L143=FALSE,0,COUNTIF(A$3:A142,">0")+1) -> 0 | B143: 8951011099 | C143: 7910PB SZŰRŐ 5 PCS | D143: 38 700,-Ft | E143: RC S.anyag | G143: 435 | I143: 38700
A144: =IF(L144=FALSE,0,COUNTIF(A$3:A143,">0")+1) -> 0 | B144: 8951011104 | C144: 7910SBP SZŰRŐ BAG POLYESTER 5PCS | D144: 43 430,-Ft | E144: RC S.anyag | G144: 642 | I144: 43430
A145: =IF(L145=FALSE,0,COUNTIF(A$3:A144,">0")+1) -> 0 | B145: 8951011101 | C145: 7910SF SZŰRŐ STANDARD | D145: 26 340,-Ft | E145: RC S.anyag | G145: 420 | I145: 26340
A146: =IF(L146=FALSE,0,COUNTIF(A$3:A145,">0")+1) -> 0 | B146: 8951011130 | C146: 7910VD DISTRIB. AIR W/2 COUPL. | D146: 37 590,-Ft | E146: RC S.anyag | G146: 274 | I146: 37590
A147: =IF(L147=FALSE,0,COUNTIF(A$3:A146,">0")+1) -> 0 | B147: 8951011842 | C147: 8/12.4M SPIRÁL CSŐ WITH FITTINGS | D147: 21 850,-Ft | E147: RC S.anyag | G147: 675 | I147: 21850
A148: =IF(L148=FALSE,0,COUNTIF(A$3:A147,">0")+1) -> 0 | B148: 8951011847 | C148: 8/12.4MO SPIRÁL CSŐS W/O COUPL. | D148: 16 250,-Ft | E148: RC S.anyag | G148: 532 | I148: 16250
A149: =IF(L149=FALSE,0,COUNTIF(A$3:A148,">0")+1) -> 0 | B149: 8951011843 | C149: 8/12.6M SPIRÁL CSŐ WITH FITTINGS | D149: 24 370,-Ft | E149: RC S.anyag | G149: 790 | I149: 24370
A150: =IF(L150=FALSE,0,COUNTIF(A$3:A149,">0")+1) -> 0 | B150: 8951011846 | C150: 8/12.6MO SPIRÁL CSŐ W/O COUPL. | D150: 19 330,-Ft | E150: RC S.anyag | G150: 753 | I150: 19330
A151: =IF(L151=FALSE,0,COUNTIF(A$3:A150,">0")+1) -> 0 | B151: 8951011844 | C151: 8/12.8M SPIRÁL CSŐ WITH FITTINGS | D151: =IF(H151="SP",IF(J151>0,"SP: "&TEXT(J151*I$1,"# ###,-Ft "),"SP: "&TEXT(I151*I$1,"# ###,-Ft")),IF(J151>0,"TOPS* "&TEXT(J151*J$1,"# ###,-Ft"),TEXT(I151*I$1,"# ###,-Ft "))) -> TOPS* 22 240,-Ft | E151: RC S.anyag | G151: 995 | I151: 27840 | J151: 22240
A152: =IF(L152=FALSE,0,COUNTIF(A$3:A151,">0")+1) -> 0 | B152: 8951011848 | C152: 8/12.8MO SPIRÁL CSŐS W/O COUPL. | D152: =IF(H152="SP",IF(J152>0,"SP: "&TEXT(J152*I$1,"# ###,-Ft "),"SP: "&TEXT(I152*I$1,"# ###,-Ft")),IF(J152>0,"TOPS* "&TEXT(J152*J$1,"# ###,-Ft"),TEXT(I152*I$1,"# ###,-Ft "))) -> 22 970,-Ft | E152: RC S.anyag | G152: 935 | I152: 22970
A153: =IF(L153=FALSE,0,COUNTIF(A$3:A152,">0")+1) -> 0 | B153: 8951011833 | C153: 8/13.6M SPIRÁL CSŐS | D153: 25 770,-Ft | E153: RC S.anyag | G153: 721 | I153: 25770
A154: =IF(L154=FALSE,0,COUNTIF(A$3:A153,">0")+1) -> 0 | B154: 8951011129 | C154: 800 DUPLA CONNECTION | D154: Kifutó, érdeklődj! | E154: RC S.anyag | G154: 268 | I154: 21290
A155: =IF(L155=FALSE,0,COUNTIF(A$3:A154,">0")+1) -> 0 | B155: 8951011702 | C155: 8006-36 FUVÓKA HEGYES 8006/8007 | D155: 1 120,-Ft | E155: RC S.anyag | G155: 11 | I155: 1120
A156: =IF(L156=FALSE,0,COUNTIF(A$3:A155,">0")+1) -> 0 | B156: 8951011694 | C156: 8010-ST PIPE | D156: 1 680,-Ft | E156: RC S.anyag | G156: 18 | I156: 1680
A157: =IF(L157=FALSE,0,COUNTIF(A$3:A156,">0")+1) -> 0 | B157: 8951011679 | C157: 8011-STD SUCTION PIPE+FUVÓKA 3PCS | D157: 3 360,-Ft | E157: RC S.anyag | G157: 137 | I157: 3360
A158: =IF(L158=FALSE,0,COUNTIF(A$3:A157,">0")+1) -> 0 | B158: 8951011699 | C158: 8101-08 FUVÓKA-SET 0,8 MM | D158: 33 130,-Ft | E158: RC S.anyag | G158: 57 | I158: 33130
A159: =IF(L159=FALSE,0,COUNTIF(A$3:A158,">0")+1) -> 0 | B159: 8951011700 | C159: 8101-10 FUVÓKA-SET 1,0 MM | D159: 33 130,-Ft | E159: RC S.anyag | G159: 59 | I159: 33130
A160: =IF(L160=FALSE,0,COUNTIF(A$3:A159,">0")+1) -> 0 | B160: 8951011701 | C160: 8101-12 FUVÓKA-SET 1,2 MM | D160: 32 850,-Ft | E160: RC S.anyag | G160: 53 | I160: 32850
A161: =IF(L161=FALSE,0,COUNTIF(A$3:A160,">0")+1) -> 0 | B161: 8951011695 | C161: 8101-B CUP FOR 8101/8102/8106 | D161: 7 840,-Ft | E161: RC S.anyag | G161: 253 | I161: 7840
A162: =IF(L162=FALSE,0,COUNTIF(A$3:A161,">0")+1) -> 0 | B162: 8951011703 | C162: 8102-14 FUVÓKA-SET | D162: 19 330,-Ft | E162: RC S.anyag | G162: 159 | I162: 19330
A163: =IF(L163=FALSE,0,COUNTIF(A$3:A162,">0")+1) -> 0 | B163: 8951011704 | C163: 8102-17 FUVÓKA-SET | D163: 19 330,-Ft | E163: RC S.anyag | G163: 162 | I163: 19330
A164: =IF(L164=FALSE,0,COUNTIF(A$3:A163,">0")+1) -> 0 | B164: 8951011705 | C164: 8102-20 FUVÓKA-SET | D164: 19 330,-Ft | E164: RC S.anyag | G164: 156 | I164: 19330
A165: =IF(L165=FALSE,0,COUNTIF(A$3:A164,">0")+1) -> 0 | B165: 8951011706 | C165: 8102-25 FUVÓKA-SET | D165: 28 680,-Ft | E165: RC S.anyag | G165: 157 | I165: 28680
A166: =IF(L166=FALSE,0,COUNTIF(A$3:A165,">0")+1) -> 0 | B166: 8951011707 | C166: 8102-DS GASKET KIT 8102 | D166: 3 360,-Ft | E166: RC S.anyag | G166: 23 | I166: 3360
A167: =IF(L167=FALSE,0,COUNTIF(A$3:A166,">0")+1) -> 0 | B167: 8951011708 | C167: 8103-05 FUVÓKA-SET | D167: =IF(H167="SP",IF(J167>0,"SP: "&TEXT(J167*I$1,"# ###,-Ft "),"SP: "&TEXT(I167*I$1,"# ###,-Ft")),IF(J167>0,"TOPS* "&TEXT(J167*J$1,"# ###,-Ft"),TEXT(I167*I$1,"# ###,-Ft "))) -> 19 330,-Ft | E167: RC S.anyag | G167: 57 | I167: 19330
A168: =IF(L168=FALSE,0,COUNTIF(A$3:A167,">0")+1) -> 0 | B168: 8951011709 | C168: 8103-08 FUVÓKA-SET | D168: 19 330,-Ft | E168: RC S.anyag | G168: 55 | I168: 19330
A169: =IF(L169=FALSE,0,COUNTIF(A$3:A168,">0")+1) -> 0 | B169: 8951011710 | C169: 8103-10 FUVÓKA-SET | D169: 19 330,-Ft | E169: RC S.anyag | G169: 55 | I169: 19330
A170: =IF(L170=FALSE,0,COUNTIF(A$3:A169,">0")+1) -> 0 | B170: 8951011711 | C170: 8103-B CUP FOR 8103 | D170: 6 160,-Ft | E170: RC S.anyag | G170: 76 | I170: 6160
A171: =IF(L171=FALSE,0,COUNTIF(A$3:A170,">0")+1) -> 0 | B171: 8951011712 | C171: 8105-14 FUVÓKA SET FOR 8105 | D171: 31 740,-Ft | E171: RC S.anyag | G171: 92 | I171: 31740
A172: =IF(L172=FALSE,0,COUNTIF(A$3:A171,">0")+1) -> 0 | B172: 8951011713 | C172: 8106-130 FUVÓKA SET | D172: 31 740,-Ft | E172: RC S.anyag | G172: 160 | I172: 31740
A173: =IF(L173=FALSE,0,COUNTIF(A$3:A172,">0")+1) -> 0 | B173: 8951011714 | C173: 8106-170 FUVÓKA-SET | D173: 31 740,-Ft | E173: RC S.anyag | G173: 160 | I173: 31740
A174: =IF(L174=FALSE,0,COUNTIF(A$3:A173,">0")+1) -> 0 | B174: 8951011715 | C174: 8106-200 FUVÓKA-SET | D174: 31 740,-Ft | E174: RC S.anyag | G174: 162 | I174: 31740
A175: =IF(L175=FALSE,0,COUNTIF(A$3:A174,">0")+1) -> 0 | B175: 8951011716 | C175: 8106-46 SZABÁLYOZÓ | D175: 27 840,-Ft | E175: RC S.anyag | G175: 153 | I175: 27840
A176: =IF(L176=FALSE,0,COUNTIF(A$3:A175,">0")+1) -> 0 | B176: 8951011718 | C176: 8107-170 FUVÓKA-SET F.8107 | D176: 45 940,-Ft | E176: RC S.anyag | G176: 62 | I176: 45940
A177: =IF(L177=FALSE,0,COUNTIF(A$3:A176,">0")+1) -> 0 | B177: 8951011719 | C177: 8107-200 FUVÓKA-SET F.8107 | D177: 45 940,-Ft | E177: RC S.anyag | G177: 159 | I177: 45940
A178: =IF(L178=FALSE,0,COUNTIF(A$3:A177,">0")+1) -> 0 | B178: 8951011720 | C178: 8107-32+33 CUP FOR 8107 | D178: 6 720,-Ft | E178: RC S.anyag | G178: 225 | I178: 6720
A179: =IF(L179=FALSE,0,COUNTIF(A$3:A178,">0")+1) -> 0 | B179: 8951011681 | C179: 8112-10 DUST PROTECT. MASK | D179: 2 240,-Ft | E179: RC S.anyag | G179: 29 | I179: 2240
A180: =IF(L180=FALSE,0,COUNTIF(A$3:A179,">0")+1) -> 0 | B180: 8951011689 | C180: 8112-16B FUVÓKA SET CERAMIC 5 PCS | D180: 10 650,-Ft | E180: RC S.anyag | G180: 60 | I180: 10650
A181: =IF(L181=FALSE,0,COUNTIF(A$3:A180,">0")+1) -> 0 | B181: 8951011690 | C181: 8112-25B BLASTING PISZTOLY F. 8112 | D181: 21 010,-Ft | E181: RC S.anyag | G181: 328 | I181: 21010
A182: =IF(L182=FALSE,0,COUNTIF(A$3:A181,">0")+1) -> 0 | B182: 8951011682 | C182: 8112-61A FUVÓKA SET 5PC. | D182: ,-Ft | E182: RC S.anyag | G182: 59
A183: =IF(L183=FALSE,0,COUNTIF(A$3:A182,">0")+1) -> 0 | B183: 8951011693 | C183: 8113-D BRUSH F. 8113 | D183: 4 200,-Ft | E183: RC S.anyag | G183: 37 | I183: 4200
A184: =IF(L184=FALSE,0,COUNTIF(A$3:A183,">0")+1) -> 0 | B184: 8951011686 | C184: 8116 G DUST COLLECTING BAG | D184: 6 440,-Ft | E184: RC S.anyag | G184: 49 | I184: 6440
A185: =IF(L185=FALSE,0,COUNTIF(A$3:A184,">0")+1) -> 0 | B185: 8951011683 | C185: 8116-06 AIR TÖMLŐ 8116A/C-06 | D185: 3 360,-Ft | E185: RC S.anyag | G185: 41 | I185: 3360
A186: =IF(L186=FALSE,0,COUNTIF(A$3:A185,">0")+1) -> 0 | B186: 8951011688 | C186: 8116-11 BRUSH FUVÓKA 8116A/C-11 | D186: 2 800,-Ft | E186: RC S.anyag | G186: 20 | I186: 2800
A187: =IF(L187=FALSE,0,COUNTIF(A$3:A186,">0")+1) -> 0 | B187: 8951011684 | C187: 8116-FR FUVÓKA-SET LAPOS AND ROUND | D187: 3 080,-Ft | E187: RC S.anyag | G187: 19 | I187: 3080
A188: =IF(L188=FALSE,0,COUNTIF(A$3:A187,">0")+1) -> 0 | B188: 8951011697 | C188: 8118C-04 FUVÓKA-SET 4 PCS | D188: 4 480,-Ft | E188: RC S.anyag | G188: 11 | I188: 4480
A189: =IF(L189=FALSE,0,COUNTIF(A$3:A188,">0")+1) -> 0 | B189: 8951011698 | C189: 8118C-SK SZÓRÓHEAD COMPLETE | D189: =IF(H189="SP",IF(J189>0,"SP: "&TEXT(J189*I$1,"# ###,-Ft "),"SP: "&TEXT(I189*I$1,"# ###,-Ft")),IF(J189>0,"*("&TEXT(I189*I$1,"# ###,-")&") "&TEXT(J189*J$1,"# ###,-Ft"),TEXT(I189*I$1,"# ###,-Ft "))) -> 7 840,-Ft | E189: RC S.anyag | G189: 61 | I189: 7840
A190: =IF(L190=FALSE,0,COUNTIF(A$3:A189,">0")+1) -> 0 | B190: 8951012204 | C190: 8150 ZSIRZÓ PISZTOLY W. 2 CARTR.FILLED | D190: =IF(H190="SP",IF(J190>0,"SP: "&TEXT(J190*I$1,"# ###,-Ft "),"SP: "&TEXT(I190*I$1,"# ###,-Ft")),IF(J190>0,"TOPS* "&TEXT(J190*J$1,"# ###,-Ft"),TEXT(I190*I$1,"# ###,-Ft "))) -> TOPS* 7 980,-Ft | E190: RC S.anyag | G190: 213 | I190: 10370 | J190: 7980
A191: =IF(L191=FALSE,0,COUNTIF(A$3:A190,">0")+1) -> 0 | B191: 8951012205 | C191: 8150FZSIRZÓ PISZTOLY FILLED | D191: =IF(H191="SP",IF(J191>0,"SP: "&TEXT(J191*I$1,"# ###,-Ft "),"SP: "&TEXT(I191*I$1,"# ###,-Ft")),IF(J191>0,"*("&TEXT(I191*I$1,"# ###,-")&") "&TEXT(J191*J$1,"# ###,-Ft"),TEXT(I191*I$1,"# ###,-Ft "))) -> 3 640,-Ft | E191: RC S.anyag | G191: 102 | I191: 3640
A192: =IF(L192=FALSE,0,COUNTIF(A$3:A191,">0")+1) -> 0 | B192: 8951012206 | C192: 8150K ZSIRZÓ CARTR. FILLED 5PCS | D192: =IF(H192="SP",IF(J192>0,"SP: "&TEXT(J192*I$1,"# ###,-Ft "),"SP: "&TEXT(I192*I$1,"# ###,-Ft")),IF(J192>0,"*("&TEXT(I192*I$1,"# ###,-")&") "&TEXT(J192*J$1,"# ###,-Ft"),TEXT(I192*I$1,"# ###,-Ft "))) -> 12 610,-Ft | E192: RC S.anyag | G192: 260 | I192: 12610
A193: =IF(L193=FALSE,0,COUNTIF(A$3:A192,">0")+1) -> 0 | B193: 8951012208 | C193: 8160 MINI ZSIRZÓ PISZTOLY | D193: =IF(H193="SP",IF(J193>0,"SP: "&TEXT(J193*I$1,"# ###,-Ft "),"SP: "&TEXT(I193*I$1,"# ###,-Ft")),IF(J193>0,"*("&TEXT(I193*I$1,"# ###,-")&") "&TEXT(J193*J$1,"# ###,-Ft"),TEXT(I193*I$1,"# ###,-Ft "))) -> ,-Ft | E193: RC S.anyag | G193: 50
A194: =IF(L194=FALSE,0,COUNTIF(A$3:A193,">0")+1) -> 0 | B194: 8951011024 | C194: 8502 POCKET FUJATÓ TOLL EURO7.2 | D194: =IF(H194="SP",IF(J194>0,"SP: "&TEXT(J194*I$1,"# ###,-Ft "),"SP: "&TEXT(I194*I$1,"# ###,-Ft")),IF(J194>0,"TOPS* "&TEXT(J194*J$1,"# ###,-Ft"),TEXT(I194*I$1,"# ###,-Ft "))) -> 5 320,-Ft | E194: RC S.anyag | G194: 22 | I194: 5320
A195: =IF(L195=FALSE,0,COUNTIF(A$3:A194,">0")+1) -> 0 | B195: 8951011071 | C195: 901 CSIPESZ | D195: =IF(H195="SP",IF(J195>0,"SP: "&TEXT(J195*I$1,"# ###,-Ft "),"SP: "&TEXT(I195*I$1,"# ###,-Ft")),IF(J195>0,"*("&TEXT(I195*I$1,"# ###,-")&") "&TEXT(J195*J$1,"# ###,-Ft"),TEXT(I195*I$1,"# ###,-Ft "))) -> 23 530,-Ft | E195: RC S.anyag | G195: 1262 | I195: 23530
A196: =IF(L196=FALSE,0,COUNTIF(A$3:A195,">0")+1) -> 0 | B196: 8955511866 | C196: 9021A BATTERY PACK NI-CD | D196: ,-Ft | E196: RC S.anyag | G196: 1010
A197: =IF(L197=FALSE,0,COUNTIF(A$3:A196,">0")+1) -> 0 | B197: 8951011256 | C197: 9200 TÖMLŐ BALANCER | D197: 74 700,-Ft | E197: RC S.anyag | G197: 1396 | I197: 74700
A198: =IF(L198=FALSE,0,COUNTIF(A$3:A197,">0")+1) -> 0 | B198: 8951011257 | C198: 9201 TÖMLŐ BALANCER | D198: 74 400,-Ft | E198: RC S.anyag | G198: 1450 | I198: 74400
A199: =IF(L199=FALSE,0,COUNTIF(A$3:A198,">0")+1) -> 0 | B199: 8951011258 | C199: 9202 TÖMLŐ BALANCER | D199: 76 400,-Ft | E199: RC S.anyag | G199: 1400 | I199: 76400
A200: =IF(L200=FALSE,0,COUNTIF(A$3:A199,">0")+1) -> 0 | B200: 8951011260 | C200: 9311 BALANCER 0,4-1,0 / 1600 | D200: =IF(H200="SP",IF(J200>0,"SP: "&TEXT(J200*I$1,"# ###,-Ft "),"SP: "&TEXT(I200*I$1,"# ###,-Ft")),IF(J200>0,"TOPS* "&TEXT(J200*J$1,"# ###,-Ft"),TEXT(I200*I$1,"# ###,-Ft "))) -> 24 930,-Ft | E200: RC S.anyag | G200: 650 | I200: 24930
... 3600 more rows

Sheet Fúrók
A1: RODCRAFT | E1: Általános karbantartáshoz | K1: Ipari karbantartáshoz és gyártáshoz | R1: CHICAGO PNEUMATIC | U1: Általános karbantartáshoz | X1: Ipari karbantartáshoz és gyártáshoz | AC1: Ipari körülményekhez -sorozatgyártás | AI1: RODCRAFT
A2: Árlista | R2: Árlista | AI2: Árlista
A3: Megrendelő | R3: Megrendelő | AI3: Megrendelő
A4: Fúrók | R4: Fúrók | AI4: Fúrók
A5: Racsnis kulcsok | R5: Racsnis kulcsok | AI5: Racsnis kulcsok
A6: Csavarbehajtók | R6: Csavarbehajtók | AI6: Csavarbehajtók
A7: Sarokcsiszolók | R7: Sarokcsiszolók | AI7: Sarokcsiszolók
A8: Légkulcsok | R8: Légkulcsok | AI8: Légkulcsok
A9: Egyenes csiszolók | R9: Egyenes csiszolók | AI9: Egyenes csiszolók
A10: Szalag és excenter csiszolók | R10: Szalag és excenter csiszolók | AI10: Szalag és excenter csiszolók
A11: Polír- és fiber csiszolók | R11: Polír- és fiber csiszolók | AI11: Polír- és fiber csiszolók
A12: Vésők, leverők … | R12: Vésők, leverők … | AI12: Vésők, leverők …
A13: Szóró- és lefúvató pisztolyok | R13: Vágók, fűrészek, szegecshúzók | AI13: Szóró- és lefúvató pisztolyok
A14: Vágók, fűrészek, szegecshúzók | R14: Szóró- és lefúvató pisztolyok | U14: Chicago Pneumatic | V14: CP1014 sorozat 1/8" | AA14: Chicago Pneumatic | AB14: CP7300 sorozat 1/8" | AI14: Vágók, fűrészek, szegecshúzók
A15: Dugókulcsok | R15: Dugókulcsok | U15: Típus CP1014 Teljesítmény: 375W Max nyomaték: 3,2-4,6 Nm, Tokmány méret: 6 mm | V15: Strapabíró ipari levegős fúró, kulcsos tokmánnyal. Alacsony vibráció, ergonómikus kialakítás. Különböző fordulatszámú típusai: CP1014 P24 (2400 rpm); CP1014 P33 (3300 rpm); CP1014 P45 (4500 rpm) | AA15: Típus CP7300 Teljesítmény: 200/230W Max nyomaték: 3/3,3 Nm, Tokmány méret: 6 mm | AB15: Ergonómikus kialakítású, könnyű levegős fúró karbantartáshoz. Precíz, jól szabályozható fordulatszámú. Különböző típusai: CP7300; CP7300R (irányváltós); CP7300RQC (irányváltós, gyorstokmánnyal) | AI15: Dugókulcsok
A16: Csatlakozók | D16: Típus | E16: Rodcraft RC4105 | I16: Rodcraft RC4100 | M16: Rodcraft RC4500 | R16: Csatlakozók | AI16: Csatlakozók
A17: Abroncstöltők | D17: Fúró átmérő [mm] | E17: 1 - 6,5 | F17: Nagyfordulatú, könnyű, kompozitházas fúró. Könnyen vezérelhető indítókapcsoló a lágy indításhoz, ergonómikus irányváltó és hangtompító. Hőszigetelt markolat gumibetétekkel, a biztos fogás érdekében. | I17: 1 - 10 | J17: Kézreálló fúró kedvező ár/ érték aránnyal. RÖHM 10 mm-es gyorstokmánnyal. Rövid kivitel | M17: 1 - 10 | N17: Kézreálló fúró kedvező ár/ érték aránnyal. RÖHM 10 mm-es gyorstokmánnyal. Irányváltó kapcsolóval | R17: Abroncstöltők | AI17: Abroncstöltők
A18: ABAC Levegős szerszámok | D18: Motorteljesítmény [W] | E18: 180 | I18: 500 | M18: 500 | R18: ABAC Levegős szerszámok | AI18: ABAC Levegős szerszámok | AM18: Kulcsos tokmány | AS18: Kulcs nélküli tokmány
A19: Garázsipari eszközök | D19: Forgásirány | E19: jobb-bal | I19: jobb | M19: jobb-bal | R19: Garázsipari eszközök | U19: Cikkszám / Típus / (Listaár) Nettó ár | V19: 6151580050 | W19: CP1014 P24 | X19: =VLOOKUP(V19,Árlista!$B:$D,3,0) -> 170 700,-Ft | AA19: Cikkszám / Típus / (Listaár) Nettó ár | AB19: 8941073013 | AC19: CP7300 | AD19: =VLOOKUP(AB19,Árlista!$B:$D,3,0) -> 72 400,-Ft | AI19: Garázsipari eszközök | AL19: Cikkszám / Típus / (Listaár) Nettó ár | AM19: 8951011473 | AN19: 6,5 mm | AO19: =VLOOKUP(AM19,Árlista!$B:$D,3,0) -> 12 000,-Ft | AR19: Cikkszám / Típus / (Listaár) Nettó ár | AS19: 8951011458 | AT19: 10 mm | AU19: =VLOOKUP(AS19,Árlista!$B:$D,3,0) -> 8 400,-Ft
A20: AKKUMULÁTOROS GÉPEK | D20: Üresjárati fordulat [rpm] | E20: 3000 | I20: 2000 | M20: 2200 | R20: AKKUMULÁTOROS GÉPEK | AI20: AKKUMULÁTOROS GÉPEK | AL20: Cikkszám / Típus / (Listaár) Nettó ár | AM20: 8951011451 | AN20: 10 mm | AO20: =VLOOKUP(AM20,Árlista!$B:$D,3,0) -> 5 320,-Ft | AR20: Cikkszám / Típus / (Listaár) Nettó ár | AS20: 8951011459 | AT20: 13 mm | AU20: =VLOOKUP(AS20,Árlista!$B:$D,3,0) -> 11 210,-Ft
A21: Tömlők, tömlődobok | D21: Tömeg [kg] | E21: 0,58 | I21: 0,95 | M21: 1,15 | R21: Tömlők, tömlődobok | U21: Cikkszám / Típus / (Listaár) Nettó ár | V21: 6151580030 | W21: CP1014 P33 | X21: =VLOOKUP(V21,Árlista!$B:$D,3,0) -> 170 700,-Ft | AA21: Cikkszám / Típus / (Listaár) Nettó ár | AB21: 8941073011 | AC21: CP7300R | AD21: =VLOOKUP(AB21,Árlista!$B:$D,3,0) -> STARS* 49 990,-Ft | AI21: Tömlők, tömlődobok | AL21: Cikkszám / Típus / (Listaár) Nettó ár | AM21: 8951011452 | AN21: 13 mm | AO21: =VLOOKUP(AM21,Árlista!$B:$D,3,0) -> 13 170,-Ft | AR21: Cikkszám / Típus / (Listaár) Nettó ár
A22: Szűrők, szabályozók | D22: Használati besorolás | E22: 3 -igen magas színvonalú | I22: 2 -megnövekedett igényekhez | M22: 2 -megnövekedett igényekhez | R22: Szűrők, szabályozók | AI22: Szűrők, szabályozók
A23: Balancerek | D23: Cikkszám / Típus / (Listaár) Nettó ár | E23: 8951073001 | F23: RC4105 | G23: =VLOOKUP(E23,Árlista!$B:$D,3,0) -> TOPS* 63 000,-Ft | I23: 8951073000 | J23: RC4100 | K23: =VLOOKUP(I23,Árlista!$B:$D,3,0) -> TOPS* 38 530,-Ft | M23: 8951073021 | N23: RC4500 | O23: =VLOOKUP(M23,Árlista!$B:$D,3,0) -> TOPS* 36 260,-Ft | R23: Balancerek | U23: Cikkszám / Típus / (Listaár) Nettó ár | V23: 6151580010 | W23: CP1014 P45 | X23: =VLOOKUP(V23,Árlista!$B:$D,3,0) -> 170 700,-Ft | AA23: Cikkszám / Típus / (Listaár) Nettó ár | AB23: 8941073012 | AC23: CP7300RQC | AD23: =VLOOKUP(AB23,Árlista!$B:$D,3,0) -> STARS* 55 200,-Ft | AI23: Balancerek
A25: A feltüntett árak a 2020.02.01.-től | AI25: A feltüntett árak a 2017.02.01-től
A26: érvényes listaárak. | AI26: érvényes listaárak. | AM26: DUS Zajcsökkentő
A27: * jelöléssel ellátott termékek a | AI27: * jelöléssel ellátott termékek a | AL27: Cikkszám / Típus / (Listaár) Nettó ár | AM27: 8951011865 | AN27: DUS 19 | AO27: =VLOOKUP(AM27,Árlista!$B:$D,3,0) -> 
A28: RC TOPS és CP STAR akciós | AI28: RC TOPS és CP STAR akciós | AL28: Cikkszám / Típus / (Listaár) Nettó ár | AM28: 8951011866 | AN28: DUS 20 | AO28: =VLOOKUP(AM28,Árlista!$B:$D,3,0) -> 6 720,-Ft
A29: kiadvány árai | AI29: kiadvány árai | AL29: Cikkszám / Típus / (Listaár) Nettó ár | AM29: 8951011867 | AN29: DUS 21 | AO29: =VLOOKUP(AM29,Árlista!$B:$D,3,0) -> 6 720,-Ft
A30: SP jelöléssel ellátott termékekre | AI30: SP jelöléssel ellátott termékekre | AL30: Cikkszám / Típus / (Listaár) Nettó ár | AM30: 8951011869 | AN30: DUS 23 | AO30: =VLOOKUP(AM30,Árlista!$B:$D,3,0) -> 13 730,-Ft
A31: speciális viszonteladói árkézés | AI31: speciális viszonteladói árkézés | AL31: Cikkszám / Típus / (Listaár) Nettó ár | AM31: 8951011870 | AN31: DUS 24 | AO31: =VLOOKUP(AM31,Árlista!$B:$D,3,0) -> 13 730,-Ft
A32: vonatkozik. Az Extra árak | AI32: vonatkozik. Az Extra árak | AL32: Cikkszám / Típus / (Listaár) Nettó ár | AM32: 8951011871 | AN32: DUS 25 | AO32: =VLOOKUP(AM32,Árlista!$B:$D,3,0) -> 13 730,-Ft
A33: a készlet erejéig, illetve | AI33: a készlet erejéig, illetve | AL33: Cikkszám / Típus / (Listaár) Nettó ár | AM33: 8951011875 | AN33: DUS 29
A34: visszavonásig érvényesek. | AI34: visszavonásig érvényesek. | AL34: Cikkszám / Típus / (Listaár) Nettó ár | AM34: 8951011885 | AN34: DUS 32
A35: Az árista a Techtomat Kft és | AI35: Az árista a Techtomat Kft és | AL35: Cikkszám / Típus / (Listaár) Nettó ár | AM35: 8955000015 | AN35: DUS 35
A36: Kapitár Kft közös gondozásában | AI36: Kapitár Kft közös gondozásában | AL36: Cikkszám / Típus / (Listaár) Nettó ár | AM36: 8955000027 | AN36: DUS 36
A37: jelent meg. | AI37: jelent meg.
A38: Minden jog fenntartva. | D38: Típus | E38: RC4300 | I38: Rodcraft RC4400 | M38: Rodcraft RC4550 | AI38: Minden jog fenntartva.
D39: Fúró átmérő [mm] | E39: 1,5 - 13 | F39: Kompakt, keskeny hosszú élettartalmú fúró, dupla elülső csapágyazással. Ideális készülék nehéz fúráshoz, hónoláshoz. Minőségi RÖHM 13 mm-es gyorstokmánnyal szerelve. | I39: 1,5 - 13 | J39: Kompakt, keskeny hosszú élettartalmú lassújáratú fúró. Ideális készülék nehéz fúráshoz és keveréshez. Minőségi RÖHM 13 mm-es gyorstokmánnyal szerelve. | M39: 1,5 - 13 | N39: Kompakt, keskeny hosszú élettartalmú lassújáratú fúró dupla elülső csapágyazással. Forgásirány váltás. Ideális készülék nehéz fúráshoz és keveréshez és egyéb alkalmazásokhoz. Minőségi RÖHM 13 mm-es gyorstokmánnyal szerelve. | U39: Chicago Pneumatic | V39: CP879C és CP887C | AA39: Chicago Pneumatic | AB39: CP1114R SERIES
A40: Bővebb információ: | D40: Motorteljesítmény [W] | E40: 500 | I40: 500 | M40: 500 | U40: Típus CP879C Sarokfúró Teljesítm: 200W Fordulat 1800 rpm Típus CP877C Egyenes Teljesítm: 380W Fordulat 2800 rpm | V40: Kompozit házas, gumírozott markolatú fúrók, Jacobs ipari tokmánnyal. Tokmány méret: 10 mm. Praktikus, könnyen kezelhető irányváltóval. | AA40: Típus CPCP1114R Teljesítmény: 410W Max nyomaték: 1,7/25,2 Nm, Tokmány méret: 10 és 13 mm | AB40: Irányváltós ipari fúró. Különböző típusai: CP1114R 05 (500 rpm); CP1114R 09 (irányváltós, 900 rpm); CP1114R 26 (irányváltós, 2600 rpm) és CP1114R 40 (irányváltós, 4000 rpm) | AI40: Bővebb információ:
A41: Szabó Attila | D41: Forgásirány | E41: jobb | I41: jobb | M41: jobb-bal | AI41: Szabó Attila
A42: 30/201-4931 vagy 30/626-8687 | D42: Üresjárati fordulat [rpm] | E42: 2000 | I42: 500 | M42: 800 | AI42: 30/201-4931 vagy 30/626-8687
A43: e-mail | D43: Tömeg [kg] | E43: 1 | I43: 2 | M43: 2.33 | AI43: e-mail
A44: Tóth Tamás | D44: Használati besorolás | E44: 2 -megnövekedett igényekhez | I44: 3 -igen magas színvonalú | M44: 3 -igen magas színvonalú | U44: Cikkszám / Típus / (Listaár) Nettó ár | V44: 8941008790 | W44: CP879C | X44: =VLOOKUP(V44,Árlista!$B:$D,3,0) -> STARS* 47 220,-Ft | AA44: Cikkszám / Típus / (Listaár) Nettó ár | AB44: 6151580310 | AC44: CP1114R 05 | AD44: =VLOOKUP(AB44,Árlista!$B:$D,3,0) -> 193 400,-Ft | AI44: Tóth Tamás
A45: 30/603-1596 | D45: Cikkszám / Típus / (Listaár) Nettó ár | E45: 8951073020 | F45: RC4300 | G45: =VLOOKUP(E45,Árlista!$B:$D,3,0) -> Kifutó, érdeklődj! | I45: 8951073030 | J45: RC4400 | K45: =VLOOKUP(I45,Árlista!$B:$D,3,0) -> 77 700,-Ft | M45: 8951073031 | N45: RC4550 | O45: =VLOOKUP(M45,Árlista!$B:$D,3,0) -> TOPS* 49 290,-Ft | AI45: 30/603-1596
U46: Cikkszám / Típus / (Listaár) Nettó ár | V46: 8941008870 | W46: CP887C | X46: =VLOOKUP(V46,Árlista!$B:$D,3,0) -> STARS* 41 660,-Ft | AA46: Cikkszám / Típus / (Listaár) Nettó ár | AB46: 6151580320 | AC46: CP1114R 09 | AD46: =VLOOKUP(AB46,Árlista!$B:$D,3,0) -> 193 400,-Ft
AA48: Cikkszám / Típus / (Listaár) Nettó ár | AB48: 6151580330 | AC48: CP1114R 26 | AD48: =VLOOKUP(AB48,Árlista!$B:$D,3,0) -> 160 800,-Ft
D56: Típus | E56: Rodcraft RC4600 | I56: Rodcraft RC4607 | M56: Rodcraft RC4650
D57: Fúró átmérő [mm] | E57: 1,5 - 10 | F57: Magas minőségű fúró, dupla elülső csapágyazással. Felszerelhető RÖHM 10 mm-es kulcsos tokmánnyal is. | I57: 1,5 - 10 | J57: Magas minőségű, kompozit házas fúró, dupla elülső csapágyazással. Felszerelhető RÖHM 10 mm-es kulcsos tokmánnyal is. | M57: 1,5 - 10 | N57: Magas minőségű, 90°-os fúró keskeny, rövid kialakítással. Forgásirány váltás. Felszerelhető RÖHM 10 mm-es kulcsos tokmánnyal is.
D58: Motorteljesítmény [W] | E58: 500 | I58: 500 | M58: 500
D59: Forgásirány | E59: jobb | I59: jobb | M59: jobb-bal
D60: Üresjárati fordulat [rpm] | E60: 2000 | I60: 2000 | M60: 1500
D61: Tömeg [kg] | E61: 1 | I61: 2 | M61: 2.33
D62: Használati besorolás | E62: 2 -megnövekedett igényekhez | I62: 2 -megnövekedett igényekhez | M62: 2 -megnövekedett igényekhez
D63: Cikkszám / Típus / (Listaár) Nettó ár | E63: 8951073040 | F63: RC4600 | G63: =VLOOKUP(E63,Árlista!$B:$D,3,0) -> Kifutó, érdeklődj! | I63: 8951073090 | J63: RC4607 | K63: =VLOOKUP(I63,Árlista!$B:$D,3,0) -> TOPS* 49 290,-Ft | M63: 8951073050 | N63: RC4650 | O63: =VLOOKUP(M63,Árlista!$B:$D,3,0) -> TOPS* 42 490,-Ft
E64: 8951011867 | F64: DUS21 | G64: =VLOOKUP(E64,Árlista!$B:$D,3,0) -> 6 720,-Ft | I64: 8951011867 | J64: DUS21 | K64: =VLOOKUP(I64,Árlista!$B:$D,3,0) -> 6 720,-Ft | M64: 8951011867 | N64: DUS21 | O64: =VLOOKUP(M64,Árlista!$B:$D,3,0) -> 6 720,-Ft
U65: Chicago Pneumatic | V65: CP1117 sorozat 1/4" | AA65: Chicago Pneumatic | AB65: CP785 és CP789R sorozat 1/4"
U66: Típus CP1117 Teljesítmény: 750W Max nyomaték: 3,4-6,2 Nm, Tokmány méret: 10 mm | V66: Strapabíró ipari levegős fúró, kulcsos tokmánnyal. Alacsony vibráció, ergonómikus kialakítás. Különböző fordulatszámú típusai: CP1117 P26 (2600 rpm); CP1117 P32 (3200 rpm); CP1117 P60 (6000 rpm). Elérető gyorstokmánnyal is. | AA66: Típus CP785 és CP789R Teljesítmény: 370/380W Max nyomaték: 2,5/4,2 Nm, Tokmány méret: 10 mm | AB66: Levegős fúró karbantartáshoz. Classic széria - évtizedek óta bevált darab. Precíz, jól szabályozható fordulatszámú. Különböző típusai: CP785 (2400 rpm); CP789R-26 (irányváltós, 2600 rpm); CP789R-42 (irányváltós, 4200 rpm)
U70: Cikkszám / Típus / (Listaár) Nettó ár | V70: 6151580130 | W70: CP1117 P26 | X70: =VLOOKUP(V70,Árlista!$B:$D,3,0) -> 183 900,-Ft | AA70: Cikkszám / Típus / (Listaár) Nettó ár | AB70: T022698 | AC70: CP785 | AD70: =VLOOKUP(AB70,Árlista!$B:$D,3,0) -> 69 400,-Ft
U72: Cikkszám / Típus / (Listaár) Nettó ár | V72: 6151580110 | W72: CP1117 P32 | X72: =VLOOKUP(V72,Árlista!$B:$D,3,0) -> 183 900,-Ft | AA72: Cikkszám / Típus / (Listaár) Nettó ár | AB72: T025180 | AC72: CP789R-26 | AD72: =VLOOKUP(AB72,Árlista!$B:$D,3,0) -> 111 200,-Ft
U74: Cikkszám / Típus / (Listaár) Nettó ár | V74: 6151580090 | W74: CP1117 P60 | X74: =VLOOKUP(V74,Árlista!$B:$D,3,0) -> 183 900,-Ft | AA74: Cikkszám / Típus / (Listaár) Nettó ár | AB74: T025198 | AC74: CP789R-42 | AD74: =VLOOKUP(AB74,Árlista!$B:$D,3,0) -> 112 500,-Ft
D78: Típus | E78: Rodcraft RC4107 | I78: Rodcraft RC6453 | M78: Rodcraft RC6451 SZET
D79: Fúró átmérő [mm] | E79: 8 | F79: Nagyfordulatú, könnyű, kompozitházas fúró. Könnyen vezérelhető indítókapcsoló a lágy indításhoz, ergonómikus irányváltó és hangtompító. Hőszigetelt markolat gumibetétekkel, a biztos fogás érdekében. | I79: 8 | J79: Ponthegesztés fúró. 75 mm-es kengyel a készülék tartozéka. A készülék autómatikusan megy ütköző pozícióba, majd indítja a marót. 50 µm -ként állítható a mélység. Tartózékként 140mm-es kengyel is rendelhető hozzá. | M79: 1,5 - 10 | N79: Ponthegesztés fúró. 50 µm -ként állítható a mélység. A szett tartalma: 5db HS Co fúrószár 1db DG1 csatlakozó 1 db napi olajozó és a szerszámbefogás szerszámai.
D80: Motorteljesítmény [W] | E80: 380
D81: Forgásirány | E81: jobb-bal | I81: jobb | M81: jobb
D82: Üresjárati fordulat [rpm] | E82: 2200 | I82: 1800 | M82: 2000
D83: Tömeg [kg] | E83: 0,93 | I83: 1,3 | M83: 1,15
D84: Használati besorolás | E84: 3 -igen magas színvonalú | I84: 2 -megnövekedett igényekhez | M84: 2 -megnövekedett igényekhez
D85: Cikkszám / Típus / (Listaár) Nettó ár | E85: 8951073011 | F85: RC4107 -10mm | G85: =VLOOKUP(E85,Árlista!$B:$D,3,0) -> TOPS* 93 800,-Ft | I85: 8951076013 | J85: RC6453 | K85: =VLOOKUP(I85,Árlista!$B:$D,3,0) -> TOPS* 134 200,-Ft | M85: 8951176000 | N85: RC6451
U89: Chicago Pneumatic | V89: CP9285 / CP9287 1/4" | AA89: Chicago Pneumatic | AB89: CP9790 / CP9792 1/4"
U90: Típus CP9285 Teljesítmény: 375W Max nyomaték: 5,3 Nm, Tokmány méret: 10 mm | V90: Levegős fúró, kulcsos tokmánnyal általános karbantartási feladatokra. Alacsony vibráció, ergonómikus kialakítás. Elérető gyorstokmánnyal is (CP9287). Forulatszáma 2900 rpm | AA90: Típus CP9790 és CP9792 Teljesítmény: 270W Max nyomaték: 4,8 Nm, Tokmány méret: 10 mm | AB90: Ideális és erőteljes szerszám fúráshoz és csavarozáshoz, mindenféle karbantarási munkhoz. Elérhető egyirányú CP9790 és irányváltós kivitelben is CP9792 Forulatszáma 2000 rpm
U94: Cikkszám / Típus / (Listaár) Nettó ár | V94: 8941092850 | W94: CP9285 | X94: =VLOOKUP(V94,Árlista!$B:$D,3,0) -> 59 400,-Ft | AA94: Cikkszám / Típus / (Listaár) Nettó ár | AB94: 8941097900 | AC94: CP9790 | AD94: =VLOOKUP(AB94,Árlista!$B:$D,3,0) -> STARS* 42 610,-Ft
U96: Cikkszám / Típus / (Listaár) Nettó ár | V96: 8941092870 | W96: CP9287 | X96: =VLOOKUP(V96,Árlista!$B:$D,3,0) -> 59 400,-Ft | AA96: Cikkszám / Típus / (Listaár) Nettó ár | AB96: 8941097920 | AC96: CP9792 | AD96: =VLOOKUP(AB96,Árlista!$B:$D,3,0) -> STARS* 42 610,-Ft
U98: Cikkszám / Típus / (Listaár) Nettó ár | AA98: Cikkszám / Típus / (Listaár) Nettó ár | AB98: 6151940790 | AC98: CP9790 M KIT | AD98: =VLOOKUP(AB98,Árlista!$B:$D,3,0) -> 73 700,-Ft
U109: Chicago Pneumatic | V109: CP1117 sorozat 3/8" | AA109: Chicago Pneumatic | AB109: CP785H és CP785HR sorozat 3/8"
D110: Cikkszám / Típus / (Listaár) Nettó ár | E110: 8940172301 | F110: Fafúró készlet | G110: =VLOOKUP(E110,Árlista!$B:$D,3,0) -> STARS* 5 130,-Ft | I110: 8940172302 | J110: Betonfúró készlet | K110: =VLOOKUP(I110,Árlista!$B:$D,3,0) -> STARS* 5 130,-Ft | M110: 8940172303 | N110: Fémfúró készlet | O110: =VLOOKUP(M110,Árlista!$B:$D,3,0) -> ,-Ft | U110: Típus CP1117 Teljesítmény: 750W Max nyomaték: 30/19,3 Nm, Tokmány méret: 13 mm | V110: Strapabíró ipari levegős fúró, kulcsos tokmánnyal. Alacsony vibráció, ergonómikus kialakítás. Különböző fordulatszámú típusai: CP1117 P05 (500 rpm); CP1117 P08 (800 rpm). Elérető gyorstokmánnyal is (QT). | AA110: Típus CP785 és CP789R Teljesítmény: 370/380W Max nyomaték: 2,5/4,2 Nm, Tokmány méret: 10 mm | AB110: Levegős fúró karbantartáshoz. Classic széria - évtizedek óta bevált darab. Precíz, jól szabályozható fordulatszámú. Különböző típusai: CP785H (500 rpm); CP785HR (irányváltós, 500 rpm)
U112: Cikkszám / Típus / (Listaár) Nettó ár | V112: 6151580170 | W112: CP1117 P05 | X112: =VLOOKUP(V112,Árlista!$B:$D,3,0) -> 202 900,-Ft | AA112: Cikkszám / Típus / (Listaár) Nettó ár | AB112: T024134 | AC112: CP785H | AD112: =VLOOKUP(AB112,Árlista!$B:$D,3,0) -> 103 200,-Ft
U114: Cikkszám / Típus / (Listaár) Nettó ár | V114: 6151580180 | W114: CP1117P05QT | X114: =VLOOKUP(V114,Árlista!$B:$D,3,0) -> 202 900,-Ft | AA114: Cikkszám / Típus / (Listaár) Nettó ár | AB114: T025165 | AC114: CP785HR | AD114: =VLOOKUP(AB114,Árlista!$B:$D,3,0) -> STARS* 109 100,-Ft
U116: Cikkszám / Típus / (Listaár) Nettó ár | V116: 6151580150 | W116: CP1117 P08 | X116: =VLOOKUP(V116,Árlista!$B:$D,3,0) -> 202 900,-Ft
U128: Chicago Pneumatic | V128: CP9286C és CP9288C 3/8" | AA128: Chicago Pneumatic | AB128: CP9789 és CP9791 3/8"
U129: Típus CP9286 és CP9288 Teljesítmény: 380W Max nyomaték: 20 Nm Tokmány méret: 13 mm | V129: Nagy nyomatékú, egyirányú, lassú fordulatú levegős fúró karbantartáshoz. 600 rpm fordulatszámmal. Elérhető kulcsos CP9286, és gyorstokmánnyal is CP9288 | AA129: Típus CP9789 és CP9791 Teljesítmény: 270W Max nyomaték: 12,4 Nm Tokmány méret: 10 mm | AB129: Nagy nyomatékú, irányváltós, lassú fordulatú levegős fúró karbantartáshoz. 800 rpm fordulatszámmal.
U133: Cikkszám / Típus / (Listaár) Nettó ár | V133: 8941092860 | W133: CP9286C | X133: =VLOOKUP(V133,Árlista!$B:$D,3,0) -> 94 900,-Ft | AA133: Cikkszám / Típus / (Listaár) Nettó ár | AB133: 8941097890 | AC133: CP9286 | AD133: =VLOOKUP(AB133,Árlista!$B:$D,3,0) -> STARS* 62 400,-Ft
U135: Cikkszám / Típus / (Listaár) Nettó ár | V135: 8941092880 | W135: CP9288C | X135: =VLOOKUP(V135,Árlista!$B:$D,3,0) -> 94 900,-Ft | AB135: 8941097910 | AC135: CP9288C | AD135: =VLOOKUP(AB135,Árlista!$B:$D,3,0) -> STARS* 62 400,-Ft
U146: Chicago Pneumatic | V146: CP1816 1/2" | AA146: Chicago Pneumatic
U147: Típus CP1816 Teljesítmény: 750W Max nyomaték: 34,3 Nm Tokmány méret: 16 mm | V147: Nagy nyomatékú, egyirányú, lassú fordulatú levegős fúró. 800 rpm fordulatszámmal. Erőteljes áttételezéssel. Ideális acél és öntöttvas fúrásához. | AA147: Teljesítménye 1630-2100W | AB147: Super ipari kivitelű levegős fúrók
U151: Cikkszám / Típus / (Listaár) Nettó ár | V151: 6151580300 | W151: CP1816 | X151: =VLOOKUP(V151,Árlista!$B:$D,3,0) -> 419 000,-Ft | AA151: Cikkszám / Típus / (Listaár) Nettó ár | AB151: 6151580260 | AC151: CP1620R32 | AD151: =VLOOKUP(AB151,Árlista!$B:$D,3,0) -> C #: 1 189 000,-Ft
U153: Cikkszám / Típus / (Listaár) Nettó ár | AA153: Cikkszám / Típus / (Listaár) Nettó ár | AB153: 6151580290 | AC153: CP1620R32 | AD153: =VLOOKUP(AB153,Árlista!$B:$D,3,0) -> C #: 1 357 000,-Ft
U155: Cikkszám / Típus / (Listaár) Nettó ár | AA155: Cikkszám / Típus / (Listaár) Nettó ár | AB155: 6151580270 | AC155: CP1720R50 | AD155: =VLOOKUP(AB155,Árlista!$B:$D,3,0) -> C #: 1 457 000,-Ft

Sheet Racsnis kulcs
A1: RODCRAFT | E1: Általános karbantartáshoz | K1: Ipari karbantartáshoz és gyártáshoz | AI1: RODCRAFT
A2: Árlista | R2: Árlista | AI2: Árlista
A3: Megrendelő | R3: Megrendelő | AI3: Megrendelő
A4: Fúrók | R4: Fúrók | AI4: Fúrók
A5: Racsnis kulcsok | R5: Racsnis kulcsok | AI5: Racsnis kulcsok
A6: Csavarbehajtók | R6: Csavarbehajtók | AI6: Csavarbehajtók
A7: Sarokcsiszolók | R7: Sarokcsiszolók | AI7: Sarokcsiszolók
A8: Légkulcsok | R8: Légkulcsok | AI8: Légkulcsok
A9: Egyenes csiszolók | R9: Egyenes csiszolók | AI9: Egyenes csiszolók
A10: Szalag és excenter csiszolók | R10: Szalag és excenter csiszolók | AI10: Szalag és excenter csiszolók
A11: Polír- és fiber csiszolók | R11: Polír- és fiber csiszolók | AI11: Polír- és fiber csiszolók
A12: Vésők, leverők … | R12: Vésők, leverők … | AI12: Vésők, leverők …
A13: Szóró- és lefúvató pisztolyok | R13: Vágók, fűrészek, szegecshúzók | AI13: Szóró- és lefúvató pisztolyok
A14: Vágók, fűrészek, szegecshúzók | R14: Szóró- és lefúvató pisztolyok | AI14: Vágók, fűrészek, szegecshúzók
A15: Dugókulcsok | D15: Típus | E15: Rodcraft RC3068 | I15: Rodcraft RC3268 | M15: Rodcraft RC3278 | R15: Dugókulcsok | AI15: Dugókulcsok
A16: Csatlakozók | D16: Kihajtási méret [inch] | E16: □ 1/4" | F16: Strapabíró, nagy nyomatékú, könnyen használható ergonomikus kialakítású "racsnis kulcs", 4 fokozatú teljesítmény állítással. | I16: □ 3/8" | J16: Strapabíró, nagy nyomatékú, könnyen használható ergonomikus kialakítású "racsnis kulcs", 4 fokozatú teljesítmény állítással. Hossz 212 mm. | M16: □ 3/8" | N16: Strapabíró, nagy nyomatékú, könnyen használható ergonomikus kialakítású "racsnis kulcs", 4 fokozatú teljesítmény állítással. Hossz 260 mm. | R16: Csatlakozók | AI16: Csatlakozók | AM16: DUS Zajcsökkentő
A17: Abroncstöltők | D17: Nyomaték meghúzás [Nm] | E17: 30 | I17: 25 | M17: 60 | R17: Abroncstöltők | AI17: Abroncstöltők | AL17: Cikkszám / Típus / (Listaár) Nettó ár | AM17: 8951011865 | AN17: DUS 19
A18: ABAC Levegős szerszámok | D18: Max nyomaték. oldás [Nm] | E18: 45 | I18: 50 | M18: 100 | R18: ABAC Levegős szerszámok | AI18: ABAC Levegős szerszámok | AL18: Cikkszám / Típus / (Listaár) Nettó ár | AM18: 8951011866 | AN18: DUS 20 | AO18: =VLOOKUP(AM18,Árlista!$B:$D,3,0) -> 6 720,-Ft
A19: Garázsipari eszközök | D19: Üresjárati fordulat [rpm] | E19: 280 | I19: 280 | M19: 190 | R19: Garázsipari eszközök | U19: Chicago Pneumatic | V19: CP824 | Z19: CP825 | AD19: CP826 | AI19: Garázsipari eszközök | AL19: Cikkszám / Típus / (Listaár) Nettó ár | AM19: 8951011867 | AN19: DUS 21 | AO19: =VLOOKUP(AM19,Árlista!$B:$D,3,0) -> 6 720,-Ft
A20: AKKUMULÁTOROS GÉPEK | D20: Tömeg [kg] | E20: 0,67 | I20: 0,68 | M20: 1,22 | R20: AKKUMULÁTOROS GÉPEK | V20: Nyomatéktartomány: 5-17 Nm Kihajtás: 1/4"és 3/8" Fordulatszám: 220 RPM Nettó tömeg: 0,51kg Kompakt és pillekönnyű "racsnis kulcs". | Z20: Nyomatéktartomány: 6-21 Nm Kihajtás: 1/4"és 3/8" Fordulatszám: 200 RPM Nettó tömeg: 0,9kg Kompakt és könnyű "racsnis kulcs". | AD20: Nyomatéktartomány: 6-21 Nm Kihajtás: 1/4"és 3/8" Fordulatszám: 250 RPM Nettó tömeg: 0,51kg Kompakt és könnyű "racsnis kulcs". | AI20: AKKUMULÁTOROS GÉPEK | AL20: Cikkszám / Típus / (Listaár) Nettó ár | AM20: 8951011869 | AN20: DUS 23 | AO20: =VLOOKUP(AM20,Árlista!$B:$D,3,0) -> 13 730,-Ft
A21: Tömlők, tömlődobok | D21: Használati besorolás | E21: 2 -megnövekedett igényekhez | I21: 1 -általános használatra | M21: 3 -igen magas színvonalú | R21: Tömlők, tömlődobok | AI21: Tömlők, tömlődobok | AL21: Cikkszám / Típus / (Listaár) Nettó ár | AM21: 8951011870 | AN21: DUS 24 | AO21: =VLOOKUP(AM21,Árlista!$B:$D,3,0) -> 13 730,-Ft
A22: Szűrők, szabályozók | D22: Cikkszám / Típus / (Listaár) Nettó ár | E22: 8951000369 | F22: RC3001 | G22: =VLOOKUP(E22,Árlista!$B:$D,3,0) -> TOPS* 30 890,-Ft | I22: 8951000370 | J22: RC3268 | K22: =VLOOKUP(I22,Árlista!$B:$D,3,0) -> TOPS* 30 890,-Ft | M22: 8951000371 | N22: RC3278 | O22: =VLOOKUP(M22,Árlista!$B:$D,3,0) -> TOPS* 41 360,-Ft | R22: Szűrők, szabályozók | AI22: Szűrők, szabályozók | AL22: Cikkszám / Típus / (Listaár) Nettó ár | AM22: 8951011871 | AN22: DUS 25 | AO22: =VLOOKUP(AM22,Árlista!$B:$D,3,0) -> 13 730,-Ft
A23: Balancerek | R23: Balancerek | U23: Cikkszám / Típus / (Listaár) Nettó ár | V23: T025390 | W23: CP824 | X23: =VLOOKUP(V23,Árlista!$B:$D,3,0) -> 42 100,-Ft | Z23: T023145 | AA23: CP825 | AB23: =VLOOKUP(Z23,Árlista!$B:$D,3,0) -> ,-Ft | AD23: T025074 | AE23: CP826 | AF23: =VLOOKUP(AD23,Árlista!$B:$D,3,0) -> 100 300,-Ft | AI23: Balancerek | AL23: Cikkszám / Típus / (Listaár) Nettó ár | AM23: 8951011875 | AN23: DUS 29
AL24: Cikkszám / Típus / (Listaár) Nettó ár | AM24: 8951011885 | AN24: DUS 32
A25: =Fúrók!$A25 -> A feltüntett árak a 2020.02.01.-től | R25: =Fúrók!$A25 -> A feltüntett árak a 2020.02.01.-től | U25: Cikkszám / Típus / (Listaár) Nettó ár | V25: T025391 | W25: CP824T | X25: =VLOOKUP(V25,Árlista!$B:$D,3,0) -> 46 440,-Ft | Z25: T023190 | AA25: CP825T | AB25: =VLOOKUP(Z25,Árlista!$B:$D,3,0) -> ,-Ft | AD25: 8941172640 | AE25: CP826T | AF25: =VLOOKUP(AD25,Árlista!$B:$D,3,0) -> 100 300,-Ft | AI25: =Fúrók!$A25 -> A feltüntett árak a 2020.02.01.-től | AL25: Cikkszám / Típus / (Listaár) Nettó ár | AM25: 8955000015 | AN25: DUS 35
A26: =Fúrók!$A26 -> érvényes listaárak. | R26: =Fúrók!$A26 -> érvényes listaárak. | AI26: =Fúrók!$A26 -> érvényes listaárak. | AL26: Cikkszám / Típus / (Listaár) Nettó ár | AM26: 8955000027 | AN26: DUS 36
A27: =Fúrók!$A27 -> * jelöléssel ellátott termékek a | R27: =Fúrók!#REF! ->  | AI27: =Fúrók!$A27 -> * jelöléssel ellátott termékek a
A28: =Fúrók!$A28 -> RC TOPS és CP STAR akciós | R28: =Fúrók!$A27 -> * jelöléssel ellátott termékek a | AI28: =Fúrók!$A28 -> RC TOPS és CP STAR akciós
A29: =Fúrók!$A29 -> kiadvány árai | R29: =Fúrók!$A28 -> RC TOPS és CP STAR akciós | AI29: =Fúrók!$A29 -> kiadvány árai
A30: =Fúrók!$A30 -> SP jelöléssel ellátott termékekre | R30: =Fúrók!$A29 -> kiadvány árai | AI30: =Fúrók!$A30 -> SP jelöléssel ellátott termékekre
A31: =Fúrók!$A31 -> speciális viszonteladói árkézés | R31: =Fúrók!$A30 -> SP jelöléssel ellátott termékekre | AI31: =Fúrók!$A31 -> speciális viszonteladói árkézés
A32: =Fúrók!$A32 -> vonatkozik. Az Extra árak | R32: =Fúrók!$A31 -> speciális viszonteladói árkézés | AI32: =Fúrók!$A32 -> vonatkozik. Az Extra árak
A33: =Fúrók!$A33 -> a készlet erejéig, illetve | R33: =Fúrók!$A32 -> vonatkozik. Az Extra árak | AI33: =Fúrók!$A33 -> a készlet erejéig, illetve
A34: =Fúrók!$A34 -> visszavonásig érvényesek. | U34: Chicago Pneumatic | V34: CP9426 | Z34: CP886 | AD34: CP828 | AI34: =Fúrók!$A34 -> visszavonásig érvényesek.
A35: =Fúrók!$A35 -> Az árista a Techtomat Kft és | D35: Típus | E35: Rodcraft RC3678 | I35: Rodcraft RC2235 ütőműves | R35: =Fúrók!$A35 -> Az árista a Techtomat Kft és | V35: Nyomatéktartomány: 7-35 Nm Kihajtás: 1/4"és 3/8" Fordulatszám: 270 RPM Nettó tömeg: 0,49kg Rövid (128mm) és pillekönnyű "racsnis kulcs". | Z35: Nyomatéktartomány: 13-68 Nm Kihajtás: 3/8"és 1/2" Fordulatszám: 160 RPM Nettó tömeg: 1,19kg Kompakt, nagy nyomatékú "racsnis kulcs". | AD35: Nyomatéktartomány: 13-70 Nm Kihajtás: 3/8"és 1/2" Fordulatszám: 150 RPM Nettó tömeg: 1,1kg Sokat próbált, nagy nyomatékú "racsnis kulcs". | AI35: =Fúrók!$A35 -> Az árista a Techtomat Kft és
A36: =Fúrók!$A36 -> Kapitár Kft közös gondozásában | D36: Kihajtási méret [inch] | E36: □ 1/2" | F36: Strapabíró, nagy nyomatékú, könnyen használható ergonomikus kialakítású "racsnis kulcs", 4 fokozatú teljesítmény állítással. Hossz 260 mm. | I36: □ 1/2" | J36: Max. nyomatéka 300 Nm Hossz 341mm . Ultra kompakt fej -csak 50 mm. Tartósság, ergonómikus markolat, könnyű nyomaték választás, egyszerű irányváltás. Jumbo ütőművel. | R36: =Fúrók!$A36 -> Kapitár Kft közös gondozásában | AI36: =Fúrók!$A36 -> Kapitár Kft közös gondozásában
A37: =Fúrók!$A37 -> jelent meg. | D37: Nyomaték meghúzás [Nm] | E37: 60 | I37: 200 | R37: =Fúrók!$A37 -> jelent meg. | AI37: =Fúrók!$A37 -> jelent meg.
A38: =Fúrók!$A38 -> Minden jog fenntartva. | D38: Max nyomaték. oldás [Nm] | E38: 100 | I38: 300 | R38: =Fúrók!$A38 -> Minden jog fenntartva. | U38: Cikkszám / Típus / (Listaár) Nettó ár | V38: 6151919426 | W38: CP9426 | X38: =VLOOKUP(V38,Árlista!$B:$D,3,0) -> STARS* 43 060,-Ft | Z38: T024240 | AA38: CP886 | AB38: =VLOOKUP(Z38,Árlista!$B:$D,3,0) -> STARS* 24 520,-Ft | AD38: T022708 | AE38: CP828 | AF38: =VLOOKUP(AD38,Árlista!$B:$D,3,0) -> 66 700,-Ft | AI38: =Fúrók!$A38 -> Minden jog fenntartva.
D39: Üresjárati fordulat [rpm] | E39: 190
A40: =Fúrók!$A40 -> Bővebb információ: | D40: Tömeg [kg] | E40: 1,22 | I40: 1,85 | R40: =Fúrók!$A40 -> Bővebb információ: | U40: Cikkszám / Típus / (Listaár) Nettó ár | V40: 6151919427 | W40: CP9427 | X40: =VLOOKUP(V40,Árlista!$B:$D,3,0) -> STARS* 43 630,-Ft | Z40: T024391 | AA40: CP886H | AB40: =VLOOKUP(Z40,Árlista!$B:$D,3,0) -> STARS* 27 760,-Ft | AD40: T022970 | AE40: CP828H | AF40: =VLOOKUP(AD40,Árlista!$B:$D,3,0) -> STARS* 44 760,-Ft | AI40: =Fúrók!$A40 -> Bővebb információ:
A41: =Fúrók!$A41 -> Szabó Attila | D41: Használati besorolás | E41: 1 -általános használatra | I41: 3 -igen magas színvonalú | R41: =Fúrók!$A41 -> Szabó Attila | AI41: =Fúrók!$A41 -> Szabó Attila
A42: =Fúrók!$A42 -> 30/201-4931 vagy 30/626-8687 | D42: Cikkszám / Típus / (Listaár) Nettó ár | E42: 8951000372 | F42: RC3678 | G42: =VLOOKUP(E42,Árlista!$B:$D,3,0) -> TOPS* 41 360,-Ft | I42: 8951000286 | J42: RC2235 | K42: =VLOOKUP(I42,Árlista!$B:$D,3,0) -> TOPS* 80 600,-Ft | R42: =Fúrók!$A42 -> 30/201-4931 vagy 30/626-8687 | AI42: =Fúrók!$A42 -> 30/201-4931 vagy 30/626-8687
A43: =Fúrók!$A43 -> e-mail | AI43: =Fúrók!$A43 -> e-mail
A44: =Fúrók!$A44 -> Tóth Tamás | R44: =Fúrók!$A44 -> Tóth Tamás | AI44: =Fúrók!$A44 -> Tóth Tamás
A45: =Fúrók!$A45 -> 30/603-1596 | R45: =Fúrók!$A45 -> 30/603-1596 | AI45: =Fúrók!$A45 -> 30/603-1596
U50: Chicago Pneumatic | V50: CP828 | Z50: CP7830Q | AD50: CP7830HQK
V51: Nyomatéktartomány: 13-70 Nm Kihajtás: 3/8"és 1/2" Fordulatszám: 150 RPM Nettó tömeg: 1,1kg Sokat próbált, nagy nyomatékú "racsnis kulcs". | Z51: Nyomatéktartomány: 13-122 Nm Kihajtás: 3/8"és 1/2" Fordulatszám: 190 RPM Nettó tömeg: 1,2kg Nagy nyomatékú, jól kiegyensúlyozott "racsnis kulcs". | AD51: Nyomatéktartomány: 13-122 Nm Kihajtás: 1/2" Fordulatszám: 190 RPM Nettó tömeg: 1,2kg Nagy nyomatékú, jól kiegyensúlyozott "racsnis kulcs".
D52: Típus | E52: Rodcraft RC3630/Rodcraft RC3600 | I52: Rodcraft RC3607 | M52: Rodcraft RC3700
D53: Kihajtási méret [inch] | E53: □ 3/8" □ 1/2" | F53: Erős racsnis csavarozó, minden műhelybe. Ergonómikus fogantyú a csúszásmentes megfogásért. Zajcsillapító rendserrel és védő gumikupakkal szerelhető fel a szűk helyen lévő munkavégzéshez. Az RE típusok tartalmazzák ezt. Az RC3630 3/8" kihajtással, az RC3600 1/2" kihajtással szerelt! | I53: □ 1/2" | J53: Erős racsnis csavarozó, minden műhelybe. Ergonómikus, hideg ellen szigetelt fogantyú, gumibetéttel a csúszásmentes megfogásért. Mini-zsírzógomb a racsnifejen a mechanizmus utánzsírozásához. | M53: □ 1/2" | N53: Szuper erős és hihetetlenül gyors kulcs a DUO-PAWL rendszernek köszönhetően, a dupla rögzítőkarmok dupla erőátvitelt biztosítanak, 3 pontos felfüggesztéssel. A legkoszosabb munkák elvégzésére is alkalmas a teljesen zárt háznak köszönhetően. Szigetelt fogantyúval és állítható levegőkivezetéssel. A 130 Nm-es gépi húzás mellett, kézi meghúzást is biztosít egészen 250 Nm-ig!
D54: Nyomaték meghúzás [Nm] | E54: 60 | I54: 60 | M54: 130 | U54: Cikkszám / Típus / (Listaár) Nettó ár | V54: T024448 | W54: CP828K | X54: =VLOOKUP(V54,Árlista!$B:$D,3,0) -> 75 700,-Ft | Z54: 8941078306 | AA54: CP7830Q | AB54: =VLOOKUP(Z54,Árlista!$B:$D,3,0) -> 136 900,-Ft | AD54: 8943778308 | AE54: CP7830HQK
D55: Max nyomaték. oldás [Nm] | E55: 90 | I55: 90 | M55: 130 (250)
D56: Üresjárati fordulat [rpm] | E56: 140 | I56: 140 | M56: 320 | U56: Cikkszám / Típus / (Listaár) Nettó ár | V56: T024493 | W56: CP828KH | Z56: 8941078308 | AA56: CP7830HQ | AB56: =VLOOKUP(Z56,Árlista!$B:$D,3,0) -> STARS* 79 600,-Ft
D57: Tömeg [kg] | E57: 1,25 | I57: 0,9 | M57: 1,6
D58: Használati besorolás | E58: 2 -megnövekedett igényekhez | I58: 2 -megnövekedett igényekhez | M58: 2 -megnövekedett igényekhez
D59: Cikkszám / Típus / (Listaár) Nettó ár | E59: 8951078054 | F59: RC3630 | G59: =VLOOKUP(E59,Árlista!$B:$D,3,0) -> Kifutó, érdeklődj! | I59: 8951078114 | J59: RC3607 | K59: =VLOOKUP(I59,Árlista!$B:$D,3,0) -> TOPS* 25 900,-Ft | M59: 8951078074 | N59: RC3700 | O59: =VLOOKUP(M59,Árlista!$B:$D,3,0) -> TOPS* 79 900,-Ft
D61: Cikkszám / Típus / (Listaár) Nettó ár | E61: 8951078034 | F61: RC3600 | G61: =VLOOKUP(E61,Árlista!$B:$D,3,0) -> 46 220,-Ft
U65: Chicago Pneumatic | V65: CP7829 és CP7829H | Z65: CP825C
V66: Nyomaték: 15-74 Nm Max: 95Nm Kihajtás: 3/8"és 1/2" Fordulat: 225 RPM Nettó tömeg: 1,2kg Nagy nyomatékú, kompozit "racsnis kulcs". Made in Japan | Z66: Nyomatéktartomány: 5-25 Nm Kihajtás: 1/4" Fordulatszám: 280 RPM Nettó tömeg: 0,5kg Jól szabályozható, alu-kompozitházas "racsnis kulcs".
U69: Cikkszám / Típus / (Listaár) Nettó ár | V69: 8941078293 | W69: CP7829 | X69: =VLOOKUP(V69,Árlista!$B:$D,3,0) -> STARS* 55 700,-Ft | Z69: 8941082511 | AA69: CP825C | AB69: =VLOOKUP(Z69,Árlista!$B:$D,3,0) -> STARS* 60 200,-Ft
U71: Cikkszám / Típus / (Listaár) Nettó ár | V71: 8941078294 | W71: CP7829H | X71: =VLOOKUP(V71,Árlista!$B:$D,3,0) -> STARS* 55 700,-Ft | Z71: 8941082512 | AA71: CP825CT | AB71: =VLOOKUP(Z71,Árlista!$B:$D,3,0) -> STARS* 60 200,-Ft
D75: Típus | E75: Rodcraft RC3001 | I75: Rodcraft RC3000/Rodcraft RC3015 | M75: Rodcraft RC3060
D76: Kihajtási méret [inch] | E76: □ 1/4" | F76: A kis mérete végett (140 mm) megfelelő racsnis kulcs szűk helyen történő szereléshez. Gyors összeszerelés és szétszerelés 270 rpm, 30 Nm max. nyomaték. Csúszásgátló bevonatú markolat, hátsó levegőelvezetés. DUS21 zajcsökkentő rendszer rendelhető hozzá! | I76: □ 1/4" | J76: A megfelelő racsnis kulcs a legtöbb alkalmazáshoz. Rövid RC3000 (180 mm) vagy hosszú RC3015 (205 mm) kihajtással is rendelhető. A készülék mellé zajcsökkentő adapter is tartozik. DUS21 zajcsökkentő rendszer rendelhető hozzá! | M76: □ 1/4" | N76: Szabadalmaztatott, lapos, zárt fejkialakításának köszönhetően, szennyezett szűk helyeken is használható. Szigetelt markolattal, körbeforgó levegőelvezetéssel, fordulatszám szabályozási lehetőséggel. DUS25 zajcsökkentő rendszer rendelhető hozzá!
D77: Nyomaték meghúzás [Nm] | E77: 25 | I77: 20 | M77: 20
D78: Max nyomaték. oldás [Nm] | E78: 30 | I78: 30 | M78: 45
D79: Üresjárati fordulat [rpm] | E79: 270 | I79: 230 | M79: 250
D80: Tömeg [kg] | E80: 0,44 | I80: 0,55 | M80: 0,55
D81: Használati besorolás | E81: 2 -megnövekedett igényekhez | I81: 1 -általános használatra | M81: 3 -igen magas színvonalú
D82: Cikkszám / Típus / (Listaár) Nettó ár | E82: 8951078022 | F82: RC3001 | G82: =VLOOKUP(E82,Árlista!$B:$D,3,0) -> TOPS* 23 950,-Ft | I82: 8951078012 | J82: RC3000 | K82: =VLOOKUP(I82,Árlista!$B:$D,3,0) -> TOPS* 35 700,-Ft | M82: 8951078062 | N82: RC3060 | O82: =VLOOKUP(M82,Árlista!$B:$D,3,0) -> TOPS* 51 560,-Ft
D95: Típus | E95: Rodcraft RC3005/Rodcraft RC3010 | I95: Rodcraft RC3200/Rodcraft RC3100 | M95: Rodcraft RC3260
D96: Kihajtási méret [inch] | E96: □ 1/4" | F96: A megfelelő racsnis kulcs a legtöbb alkalmazáshoz. Rövid RC3005 (180 mm) vagy hosszú RC3010 (205 mm) kihajtással is rendelhető. A készülék mellé zajcsökkentő adapter is tartozik. DUS25 zajcsökkentő rendszer rendelhető hozzá! | I96: □ 3/8" □ 1/2" | J96: Általános racsniskulcs, hátsó levegőelvezetéssel és biztos fogást lehetővé tévő markolattal. Az RC3200 3/8" kihajtással, az RC3100 1/2" kihajtással szerelt! | M96: □ 3/8" | N96: Zömök, rövid racsniskulcs. Lapos, zárt fejkialakításának köszönhetően, szennyezett szűk helyeken is használható. DUS25 zajcsökkentő rendszer rendelhető hozzá!
D97: Nyomaték meghúzás [Nm] | E97: 20 | I97: 40 | M97: 20
D98: Max nyomaték. oldás [Nm] | E98: 30 | I98: 60 | M98: 45
D99: Üresjárati fordulat [rpm] | E99: 230 | I99: 160 | M99: 250
D100: Tömeg [kg] | E100: 0,55 | I100: 1,2 | M100: 1,2
D101: Használati besorolás | E101: 1 -általános használatra | I101: 1 -általános használatra | M101: 3 -igen magas színvonalú
D102: Cikkszám / Típus / (Listaár) Nettó ár | E102: 8951078042 | F102: RC3005 | G102: =VLOOKUP(E102,Árlista!$B:$D,3,0) -> TOPS* 29 460,-Ft | I102: 8951078023 | J102: RC3200 | K102: =VLOOKUP(I102,Árlista!$B:$D,3,0) -> TOPS* 38 880,-Ft | M102: 8951078033 | N102: RC3260 | O102: =VLOOKUP(M102,Árlista!$B:$D,3,0) -> TOPS* 43 060,-Ft
D104: Cikkszám / Típus / (Listaár) Nettó ár | E104: 8951078013 | F104: RC3010 | G104: =VLOOKUP(E104,Árlista!$B:$D,3,0) -> 44 550,-Ft | I104: 8951078004 | J104: RC3100 | K104: =VLOOKUP(I104,Árlista!$B:$D,3,0) -> TOPS* 26 230,-Ft

Sheet Csavarbehajtók
A1: RODCRAFT | E1: Általános karbantartáshoz | K1: Ipari karbantartáshoz és gyártáshoz | R1: CHICAGO PNEUMATIC | U1: Általános karbantartáshoz | X1: Ipari karbantartáshoz és gyártáshoz | AC1: Ipari körülményekhez -sorozatgyártás | AI1: RODCRAFT
A2: Árlista | R2: Árlista | AI2: Árlista
A3: Megrendelő | R3: Megrendelő | AI3: Megrendelő
A4: Fúrók | R4: Fúrók | AI4: Fúrók
A5: Racsnis kulcsok | R5: Racsnis kulcsok | AI5: Racsnis kulcsok
A6: Csavarbehajtók | R6: Csavarbehajtók | AI6: Csavarbehajtók
A7: Sarokcsiszolók | R7: Sarokcsiszolók | AI7: Sarokcsiszolók
A8: Légkulcsok | R8: Légkulcsok | AI8: Légkulcsok
A9: Egyenes csiszolók | R9: Egyenes csiszolók | AI9: Egyenes csiszolók
A10: Szalag és excenter csiszolók | R10: Szalag és excenter csiszolók | AI10: Szalag és excenter csiszolók
A11: Polír- és fiber csiszolók | R11: Polír- és fiber csiszolók | AI11: Polír- és fiber csiszolók
A12: Vésők, leverők … | R12: Vésők, leverők … | AI12: Vésők, leverők …
A13: Szóró- és lefúvató pisztolyok | R13: Vágók, fűrészek, szegecshúzók | AI13: Szóró- és lefúvató pisztolyok
A14: Vágók, fűrészek, szegecshúzók | R14: Szóró- és lefúvató pisztolyok | AI14: Vágók, fűrészek, szegecshúzók
A15: Dugókulcsok | R15: Dugókulcsok | AI15: Dugókulcsok
A16: Csatlakozók | D16: Típus | E16: Rodcraft RC4700 | I16: Rodcraft RC4780 | M16: Rodcraft RC4784 | R16: Csatlakozók | AI16: Csatlakozók
A17: Abroncstöltők | D17: Bit méret | E17: 1/4 | F17: Kedvelt levegős csavarhúzó 1/4 " bit tartóval. Könnyen vezérelhető indítókapcsoló csúszókuplungos mechanizmussal. Ergonomikus irányváltó, belső nyomatékállítás, hátsó levegőelvezetés. | I17: 1/4 | J17: 1/4 "csavarhúzó kulcs nélküli befogással. Nyomaték külső beállító gyűrű által. Sokoldalú sima járású, nagy nyomatékú eszköz. Könnyű irányváltás, amely lehet működtetni a bal és jobb kézzel egyaránt. | M17: 1/4 | N17: Könnyű kompozit házas csavarozó, kényelmes fogást biztosító, szigetelt, gumi bevonatú markolattal. Egyszerű külső nyomatékállítás. Lassan induló érzékeny ravasz, kézre álló irányváltó. | R17: Abroncstöltők | U17: Chicago Pneumatic | V17: CP2005 / CP2006 | Z17: CP780 és CP781 | AD17: CP2816 | AI17: Abroncstöltők
A18: ABAC Levegős szerszámok | D18: Nyomaték [Nm] | E18: 8 | I18: 4 | M18: 1 | R18: ABAC Levegős szerszámok | V18: Üresjárati fordulat: 1100 RPM Nyomaték: 0,4 - 4,3 Nm, Robosztus, aluházas pisztoly csavarozó. Leoldó (CP2005) vagy csúszókuplunggal (CP2006) | Z18: CP780 - Magas fordulatú Üresjárati fordulat: 1800 RPM Nyomaték: 2,83 - 4,97 Nm, CP781 - Alacsony fordulatú Üresjárati fordulat: 800 RPM 6,2 - 11,3 Nm, külső nyomatékállítás, csúszókuplung | AD18: CP2816 Fordulat: 1900 RPM Nyomaték: 3-9,5 Nm CP2817 Fordulat: 800 RPM Nyomaték: 2,5-4,5 Nm Robosztus felépítésű csavarozó, egykezes irányváltóval, csúszókupunggal. | AI18: ABAC Levegős szerszámok
A19: Garázsipari eszközök | D19: Max nyomaték [Nm] | E19: 20 | I19: 45 | M19: 15 | R19: Garázsipari eszközök | AI19: Garázsipari eszközök
A20: AKKUMULÁTOROS GÉPEK | D20: Üresjárati fordulat [rpm] | E20: 1800 | I20: 1100 | M20: 1770 | R20: AKKUMULÁTOROS GÉPEK | AI20: AKKUMULÁTOROS GÉPEK
A21: Tömlők, tömlődobok | D21: Tömeg [kg] | E21: 1,15 | I21: 1,45 | M21: 0,92 | R21: Tömlők, tömlődobok | AI21: Tömlők, tömlődobok
A22: Szűrők, szabályozók | D22: Használati besorolás | E22: 2 -megnövekedett igényekhez | I22: 2 -megnövekedett igényekhez | M22: 3 -igen magas színvonalú | R22: Szűrők, szabályozók | U22: Cikkszám / Típus / (Listaár) Nettó ár | V22: 6151922005 | W22: CP2005 | X22: =VLOOKUP(V22,Árlista!$B:$D,3,0) -> 395 000,-Ft | Z22: T025095 | AA22: CP780 | AB22: =VLOOKUP(Z22,Árlista!$B:$D,3,0) -> 177 800,-Ft | AD22: 6151630020 | AE22: CP2816 | AF22: =VLOOKUP(AD22,Árlista!$B:$D,3,0) -> 169 100,-Ft | AI22: Szűrők, szabályozók
A23: Balancerek | D23: Cikkszám / Típus / (Listaár) Nettó ár | E23: 8951073002 | F23: RC4700 | G23: =VLOOKUP(E23,Árlista!$B:$D,3,0) -> TOPS* 49 290,-Ft | I23: 8951073003 | J23: RC4780 | K23: =VLOOKUP(I23,Árlista!$B:$D,3,0) -> Kifutó, érdeklődj! | M23: 8951073023 | N23: RC4784 | O23: =VLOOKUP(M23,Árlista!$B:$D,3,0) -> TOPS* 78 200,-Ft | R23: Balancerek | AI23: Balancerek
U24: Cikkszám / Típus / (Listaár) Nettó ár | V24: 6151922006 | W24: CP2006 | X24: =VLOOKUP(V24,Árlista!$B:$D,3,0) -> ,-Ft | Z24: T025096 | AA24: CP781 | AB24: =VLOOKUP(Z24,Árlista!$B:$D,3,0) -> 181 400,-Ft | AD24: 6151630030 | AE24: CP2817 | AF24: =VLOOKUP(AD24,Árlista!$B:$D,3,0) -> 169 100,-Ft
A25: =Fúrók!$A25 -> A feltüntett árak a 2020.02.01.-től | R25: =Fúrók!$A25 -> A feltüntett árak a 2020.02.01.-től | AI25: =Fúrók!$A25 -> A feltüntett árak a 2020.02.01.-től
A26: =Fúrók!$A26 -> érvényes listaárak. | R26: =Fúrók!$A26 -> érvényes listaárak. | AI26: =Fúrók!$A26 -> érvényes listaárak.
A27: =Fúrók!$A27 -> * jelöléssel ellátott termékek a | R27: =Fúrók!#REF! ->  | AI27: =Fúrók!$A27 -> * jelöléssel ellátott termékek a
A28: =Fúrók!$A28 -> RC TOPS és CP STAR akciós | R28: =Fúrók!$A27 -> * jelöléssel ellátott termékek a | AI28: =Fúrók!$A28 -> RC TOPS és CP STAR akciós
A29: =Fúrók!$A29 -> kiadvány árai | R29: =Fúrók!$A28 -> RC TOPS és CP STAR akciós | AI29: =Fúrók!$A29 -> kiadvány árai
A30: =Fúrók!$A30 -> SP jelöléssel ellátott termékekre | R30: =Fúrók!$A29 -> kiadvány árai | AI30: =Fúrók!$A30 -> SP jelöléssel ellátott termékekre
A31: =Fúrók!$A31 -> speciális viszonteladói árkézés | R31: =Fúrók!$A30 -> SP jelöléssel ellátott termékekre | AI31: =Fúrók!$A31 -> speciális viszonteladói árkézés
A32: =Fúrók!$A32 -> vonatkozik. Az Extra árak | R32: =Fúrók!$A31 -> speciális viszonteladói árkézés | AI32: =Fúrók!$A32 -> vonatkozik. Az Extra árak
A33: =Fúrók!$A33 -> a készlet erejéig, illetve | R33: =Fúrók!$A32 -> vonatkozik. Az Extra árak | AI33: =Fúrók!$A33 -> a készlet erejéig, illetve
A34: =Fúrók!$A34 -> visszavonásig érvényesek. | AI34: =Fúrók!$A34 -> visszavonásig érvényesek.
A35: =Fúrók!$A35 -> Az árista a Techtomat Kft és | R35: =Fúrók!$A35 -> Az árista a Techtomat Kft és | AI35: =Fúrók!$A35 -> Az árista a Techtomat Kft és
A36: =Fúrók!$A36 -> Kapitár Kft közös gondozásában | R36: =Fúrók!$A36 -> Kapitár Kft közös gondozásában | U36: Chicago Pneumatic | V36: Pisztoly: CP2612 / Egyenes: CP2623 | Z36: Pisztoly: CP2611 / Egyenes: CP2621 / CP2622 | AD36: CP2754 / CP2764 | AI36: =Fúrók!$A36 -> Kapitár Kft közös gondozásában
A37: =Fúrók!$A37 -> jelent meg. | D37: Típus | E37: Rodcraft RC4760 | R37: =Fúrók!$A37 -> jelent meg. | V37: Üresjárati fordulat: 1700 / 1800 RPM Nyomaték: 1 - 6 Nm / 1,5 - 5,5 Nm Egykezes használatra tervezett csavarozó csúszókuplunggal. Ideális eszköz karbantartáshoz. | Z37: Üresjárati fordulat: 1000 / 1000 / 1700 RPM Nyomaték: 1 - 7,5 / 0,8 - 6,5 / 0,5 4,5 Nm Egykezes használatra tervezett csavarozó leoldó kuplunggal. Ideális eszköz karbantartáshoz. | AD37: Üresjárati fordulat: Nyomaték: 6,2 - 11,3 Nm, Alacsony fordulatú csavarbehajtó, külső nyomatékállítással, csúszókupunggal. | AI37: =Fúrók!$A37 -> jelent meg.
A38: =Fúrók!$A38 -> Minden jog fenntartva. | D38: Bit méret | E38: 1/4 | F38: Kedvelt levegős csavarhúzó 1/4 " bit tartóval. Könnyen vezérelhető indítókapcsoló csúszókuplungos mechanizmussal. Ergonomikus irányváltó, belső nyomatékállítás, hátsó levegőelvezetés. | R38: =Fúrók!$A38 -> Minden jog fenntartva. | AI38: =Fúrók!$A38 -> Minden jog fenntartva.
D39: Nyomaték [Nm] | E39: 4
A40: =Fúrók!$A40 -> Bővebb információ: | D40: Max nyomaték [Nm] | E40: 17 | R40: =Fúrók!$A40 -> Bővebb információ: | AI40: =Fúrók!$A40 -> Bővebb információ:
A41: =Fúrók!$A41 -> Szabó Attila | D41: Üresjárati fordulat [rpm] | E41: 1800 | R41: =Fúrók!$A41 -> Szabó Attila | U41: Cikkszám / Típus / (Listaár) Nettó ár | V41: 6151922612 | W41: CP2612 -Pisztoly 1700 RPM | X41: =VLOOKUP(V41,Árlista!$B:$D,3,0) -> 175 300,-Ft | Z41: 6151922611 | AA41: CP2611 -Pisztoly | AB41: =VLOOKUP(Z41,Árlista!$B:$D,3,0) -> 358 000,-Ft | AD41: 6151922754 | AE41: CP2754 -1450 RPM | AF41: =VLOOKUP(AD41,Árlista!$B:$D,3,0) -> ,-Ft | AI41: =Fúrók!$A41 -> Szabó Attila
A42: =Fúrók!$A42 -> 30/201-4931 vagy 30/626-8687 | D42: Tömeg [kg] | E42: 1,1 | R42: =Fúrók!$A42 -> 30/201-4931 vagy 30/626-8687 | AI42: =Fúrók!$A42 -> 30/201-4931 vagy 30/626-8687
A43: =Fúrók!$A43 -> e-mail | D43: Használati besorolás | E43: 2 -megnövekedett igényekhez | U43: Cikkszám / Típus / (Listaár) Nettó ár | V43: 6151922623 | W43: CP2623 -Egyenes 1800 RPM | X43: =VLOOKUP(V43,Árlista!$B:$D,3,0) -> 134 000,-Ft | Z43: 6151922621 | AA43: CP2621 -Egyenes 1000 RPM | AB43: =VLOOKUP(Z43,Árlista!$B:$D,3,0) -> 270 400,-Ft | AD43: 6151922764 | AE43: CP2764 -600 RPM | AF43: =VLOOKUP(AD43,Árlista!$B:$D,3,0) -> ,-Ft | AI43: =Fúrók!$A43 -> e-mail
A44: =Fúrók!$A44 -> Tóth Tamás | D44: Cikkszám / Típus / (Listaár) Nettó ár | E44: 8951073012 | F44: RC4760 | G44: =VLOOKUP(E44,Árlista!$B:$D,3,0) -> TOPS* 56 900,-Ft | R44: =Fúrók!$A44 -> Tóth Tamás | AI44: =Fúrók!$A44 -> Tóth Tamás
A45: =Fúrók!$A45 -> 30/603-1596 | R45: =Fúrók!$A45 -> 30/603-1596 | U45: Cikkszám / Típus / (Listaár) Nettó ár | Z45: 6151922622 | AA45: CP2622 -Egyenes 1700 RPM | AB45: =VLOOKUP(Z45,Árlista!$B:$D,3,0) -> 270 400,-Ft | AI45: =Fúrók!$A45 -> 30/603-1596
U57: Chicago Pneumatic | V57: CP2755 / CP2765 | Z57: CP2780 | AD57: CP2041 / CP2042
V58: Üresjárati fordulat: 2000 / 900 RPM Nyomaték: 7,3 Nm / 9,0 Nm Könnyű, jól használható, direkthajtásos csavarozó. | Z58: Üresjárati fordulat: 2100 RPM Nyomaték: 10 Nm Pozitív hajtású csavarozó, gumimarkolattal. | AD58: Ütésszám: 15000 / 5600 RPM Nyomaték: 8 - 42 / 6 - 41 Nm Ütvecsavarozó, duplakalapácsos ütőművel.
U62: Cikkszám / Típus / (Listaár) Nettó ár | V62: 6151922755 | W62: CP2755 -2200 RPM | X62: =VLOOKUP(V62,Árlista!$B:$D,3,0) -> 86 300,-Ft | Z62: 6151922780 | AA62: CP2780 -2100 RPM | AB62: =VLOOKUP(Z62,Árlista!$B:$D,3,0) -> 96 600,-Ft | AD62: 6151922041 | AE62: CP2041 | AF62: =VLOOKUP(AD62,Árlista!$B:$D,3,0) -> 124 400,-Ft
U64: Cikkszám / Típus / (Listaár) Nettó ár | V64: 6151922765 | W64: CP2765 -900 RPM | X64: =VLOOKUP(V64,Árlista!$B:$D,3,0) -> 96 600,-Ft | AD64: 6151922042 | AE64: CP2042 | AF64: =VLOOKUP(AD64,Árlista!$B:$D,3,0) -> 124 400,-Ft
U78: Chicago Pneumatic | V78: CP2036 / CP2037 | Z78: CP2007 / CP2008 / CP2009 | AD78: CP2010 / CP2011 / CP2012
V79: Ütésszám: 10000 RPM Nyomaték: 3,4 - 16 / 18 - 28 Nm Ütvecsavarozó, duplakalapácsos ütőművel. | Z79: Üresjárati fordulat: 1100 RPM Nyomaték: 0,4 - 4,3 / 0,4 - 4,3 / 0,4 - 4,3 Nm Egyenes ipari csavarozó leoldó kuplunggal, vagy csúszókuplunggal (CP2009) | AD79: Üresjárati fordulat: 1470 RPM Nyomaték: 2 - 5,5 Nm, Egyenes ipari csavarozó leoldó kuplunggal, vagy csúszókuplunggal (CP2012)
U83: Cikkszám / Típus / (Listaár) Nettó ár | V83: 6151922036 | W83: CP2636 | X83: =VLOOKUP(V83,Árlista!$B:$D,3,0) -> 116 100,-Ft | Z83: 6151922007 | AA83: CP2007 -PUSH | AB83: =VLOOKUP(Z83,Árlista!$B:$D,3,0) -> 395 000,-Ft | AD83: 6151922010 | AE83: CP2010 PUSH, SHUT OFF | AF83: =VLOOKUP(AD83,Árlista!$B:$D,3,0) -> 395 000,-Ft
U85: Cikkszám / Típus / (Listaár) Nettó ár | V85: 6151922037 | W85: CP2637 | X85: =VLOOKUP(V85,Árlista!$B:$D,3,0) -> 116 100,-Ft | Z85: 6151922008 | AA85: CP2008 -KAROS CUSHION | AB85: =VLOOKUP(Z85,Árlista!$B:$D,3,0) -> 395 000,-Ft | AD85: 6151922011 | AE85: CP2011 -KAROS CUSHION | AF85: =VLOOKUP(AD85,Árlista!$B:$D,3,0) -> ,-Ft
U87: Cikkszám / Típus / (Listaár) Nettó ár | Z87: 6151922009 | AA87: CP2009 -KAROS, SHUT OFF | AD87: 6151922012 | AE87: CP2012 KAROS, SHUT OFF | AF87: =VLOOKUP(AD87,Árlista!$B:$D,3,0) -> 403 000,-Ft
U98: Chicago Pneumatic | V98: CP2782 | Z98: CP2783
V99: Üresjárati fordulat: 1800 RPM Nyomaték: 3,5 - 5,0 Nm Egykezes használatra tervezett egyenes csavarozó csúszókuplunggal. Ideális eszköz karbantartáshoz. | Z99: Üresjárati fordulat: 2000 RPM Nyomaték: 1,1 - 2,8 Nm Egykezes használatra tervezett egyenes csavarozó csúszókuplunggal. Ideális eszköz karbantartáshoz.
U103: Cikkszám / Típus / (Listaár) Nettó ár | V103: T025097 | W103: CP2782 | X103: =VLOOKUP(V103,Árlista!$B:$D,3,0) -> 177 800,-Ft | Z103: T025098 | AA103: CP2783 | AB103: =VLOOKUP(Z103,Árlista!$B:$D,3,0) -> 177 800,-Ft
AD107: 8940172305 | AE107: Bitt készlet | AF107: =VLOOKUP(AD107,Árlista!$B:$D,3,0) -> STARS* 6 270,-Ft

Sheet Sarokcsiszolók
A1: RODCRAFT | G1: Általános karbantartáshoz | M1: Ipari karbantartáshoz és gyártáshoz | R1: CHICAGO PNEUMATIC | U1: Általános karbantartáshoz | X1: Ipari karbantartáshoz és gyártáshoz | AC1: Ipari körülményekhez -sorozatgyártás | AI1: RODCRAFT
A2: Árlista | R2: Árlista | AI2: Árlista
A3: Megrendelő | R3: Megrendelő | AI3: Megrendelő
A4: Fúrók | R4: Fúrók | AI4: Fúrók
A5: Racsnis kulcsok | R5: Racsnis kulcsok | AI5: Racsnis kulcsok
A6: Csavarbehajtók | R6: Csavarbehajtók | AI6: Csavarbehajtók
A7: Sarokcsiszolók | R7: Sarokcsiszolók | AI7: Sarokcsiszolók
A8: Légkulcsok | R8: Légkulcsok | AI8: Légkulcsok
A9: Egyenes csiszolók | R9: Egyenes csiszolók | AI9: Egyenes csiszolók
A10: Szalag és excenter csiszolók | R10: Szalag és excenter csiszolók | AI10: Szalag és excenter csiszolók
A11: Polír- és fiber csiszolók | R11: Polír- és fiber csiszolók | AI11: Polír- és fiber csiszolók
A12: Vésők, leverők … | R12: Vésők, leverők … | AI12: Vésők, leverők …
A13: Szóró- és lefúvató pisztolyok | R13: Vágók, fűrészek, szegecshúzók | AI13: Szóró- és lefúvató pisztolyok
A14: Vágók, fűrészek, szegecshúzók | D14: Típus | E14: Rodcraft RC7128 | I14: Rodcraft RC7681K | M14: Rodcraft RC7684 | R14: Szóró- és lefúvató pisztolyok | AI14: Vágók, fűrészek, szegecshúzók
A15: Dugókulcsok | D15: Motorteljesítmény [W] | E15: 400 | F15: Új fejlesztésű, magas minőségű, precíziós motor, alacsony vibrációs- és zajszinttel. Ergonómikus kialakítás, egyszerű szabályozás, tengelyrögzítő a gyors szerszámcsere érdekében. 3 és 8 mm-es patron is rendelhető hozzá. | I15: 150 | J15: Direkthajtásos "sarokcsiszoló" SET. Kis felületű hibák javítására. Könnyű, kompozitházas, kézreálló az egykezes használat érdekében. 3M Roloc rendszerű 50 és 75-ös paddal, vágó és csiszolótárcsákkal. | M15: 250 | N15: Sokoldalúan használható készülék. Egyenes kiahajtásnak köszönhetően nagyobb hatékonyság. Az új készülék az RC7015 és RC7016 modelleket fogja kiváltani. | R15: Dugókulcsok | AI15: Dugókulcsok
A16: Csatlakozók | D16: Kihajtási méret | E16: 6 | I16: 1/4" AG | M16: 6 | R16: Csatlakozók | AI16: Csatlakozók
A17: Abroncstöltők | D17: Tárcsaméret [mm] | E17: 191 | I17: 50-75 | M17: 120 | R17: Abroncstöltők | U17: Chicago Pneumatic | V17: CP3019 | Z17: CP3040 | AD17: CP3109 | AI17: Abroncstöltők
A18: ABAC Levegős szerszámok | D18: Üresjárati fordulat [rpm] | E18: 23000 | I18: 15000 | M18: 20000 | R18: ABAC Levegős szerszámok | V18: Motorteljesítmény: 375W Kihajtási méret: 3/8-24 Fordulatszám: 13, 18, 20 x 1000RPM Ipari sarokcsiszoló, maximális megbizhatóság. Min 2000 órás szervizciklus. | Z18: Motorteljesítmény: 520W Kihajtási méret: 3/8-24 Fordulatszám: 13500 RPM Tárcsaátmérő: 100mm Robosztus fémházas, ipari sarokcsiszoló. | AD18: Motorteljesítmény: 600W Kihajtási méret: 3/8-24 Fordulatszám: 13000 RPM Tárcsaátmérő: 100mm Robosztus fémházas, ipari sarokcsiszoló. Min 2000 órás szervizciklus. | AI18: ABAC Levegős szerszámok
A19: Garázsipari eszközök | D19: Tömeg [kg] | E19: 0,72 | I19: 0,4 | M19: 0,52 | R19: Garázsipari eszközök | AI19: Garázsipari eszközök
A20: AKKUMULÁTOROS GÉPEK | D20: Használati besorolás | E20: 3 -igen magas színvonalú | I20: 3 -igen magas színvonalú | R20: AKKUMULÁTOROS GÉPEK | AI20: AKKUMULÁTOROS GÉPEK
A21: Tömlők, tömlődobok | D21: Cikkszám / Típus / (Listaár) Nettó ár | E21: 8951000277 | F21: RC7128 | G21: =VLOOKUP(E21,Árlista!$B:$D,3,0) -> TOPS* 55 700,-Ft | I21: 8951000019 | J21: RC7681K | K21: =VLOOKUP(I21,Árlista!$B:$D,3,0) -> TOPS* 42 490,-Ft | M21: 8951000115 | N21: RC7684 | O21: =VLOOKUP(M21,Árlista!$B:$D,3,0) -> ,-Ft | R21: Tömlők, tömlődobok | AI21: Tömlők, tömlődobok
A22: Szűrők, szabályozók | R22: Szűrők, szabályozók | U22: Cikkszám / Típus / (Listaár) Nettó ár | V22: 6151607050 | W22: CP3019-13A4 | X22: =VLOOKUP(V22,Árlista!$B:$D,3,0) -> 431 000,-Ft | Z22: 6151607010 | AA22: CP3040GAB | AB22: =VLOOKUP(Z22,Árlista!$B:$D,3,0) -> 160 000,-Ft | AD22: 6151607030 | AE22: CP3109 13A4 | AF22: =VLOOKUP(AD22,Árlista!$B:$D,3,0) -> C #: 502 000,-Ft | AI22: Szűrők, szabályozók
A23: Balancerek | R23: Balancerek | AI23: Balancerek
U24: Cikkszám / Típus / (Listaár) Nettó ár | V24: 6151607060 | W24: CP3019-18A3 | X24: =VLOOKUP(V24,Árlista!$B:$D,3,0) -> 431 000,-Ft | Z24: 6151607020 | AA24: CP3040GAS Hosszú | AB24: =VLOOKUP(Z24,Árlista!$B:$D,3,0) -> 176 900,-Ft | AD24: 6151607040 | AE24: CP3109 13A4ES Hosszú | AF24: =VLOOKUP(AD24,Árlista!$B:$D,3,0) -> C #: 552 000,-Ft
A25: =Fúrók!$A25 -> A feltüntett árak a 2020.02.01.-től | R25: =Fúrók!$A25 -> A feltüntett árak a 2020.02.01.-től | AI25: =Fúrók!$A25 -> A feltüntett árak a 2020.02.01.-től
A26: =Fúrók!$A26 -> érvényes listaárak. | R26: =Fúrók!$A26 -> érvényes listaárak. | U26: Cikkszám / Típus / (Listaár) Nettó ár | V26: 6151607070 | W26: CP3019-20A3 | X26: =VLOOKUP(V26,Árlista!$B:$D,3,0) -> 431 000,-Ft | AI26: =Fúrók!$A26 -> érvényes listaárak.
A27: =Fúrók!$A27 -> * jelöléssel ellátott termékek a | R27: =Fúrók!#REF! ->  | AI27: =Fúrók!$A27 -> * jelöléssel ellátott termékek a
A28: =Fúrók!$A28 -> RC TOPS és CP STAR akciós | R28: =Fúrók!$A27 -> * jelöléssel ellátott termékek a | AI28: =Fúrók!$A28 -> RC TOPS és CP STAR akciós
A29: =Fúrók!$A29 -> kiadvány árai | R29: =Fúrók!$A28 -> RC TOPS és CP STAR akciós | AI29: =Fúrók!$A29 -> kiadvány árai
A30: =Fúrók!$A30 -> SP jelöléssel ellátott termékekre | R30: =Fúrók!$A29 -> kiadvány árai | AI30: =Fúrók!$A30 -> SP jelöléssel ellátott termékekre
A31: =Fúrók!$A31 -> speciális viszonteladói árkézés | R31: =Fúrók!$A30 -> SP jelöléssel ellátott termékekre | AI31: =Fúrók!$A31 -> speciális viszonteladói árkézés
A32: =Fúrók!$A32 -> vonatkozik. Az Extra árak | R32: =Fúrók!$A31 -> speciális viszonteladói árkézés | AI32: =Fúrók!$A32 -> vonatkozik. Az Extra árak
A33: =Fúrók!$A33 -> a készlet erejéig, illetve | R33: =Fúrók!$A32 -> vonatkozik. Az Extra árak | AI33: =Fúrók!$A33 -> a készlet erejéig, illetve
A34: =Fúrók!$A34 -> visszavonásig érvényesek. | AI34: =Fúrók!$A34 -> visszavonásig érvényesek.
A35: =Fúrók!$A35 -> Az árista a Techtomat Kft és | D35: Típus | E35: Rodcraft RC7160/Rodcraft RC7166 | I35: Rodcraft RC7170 | M35: Rodcraft RC7181 | R35: =Fúrók!$A35 -> Az árista a Techtomat Kft és | W35: CP3450-12AA5 125mm-es, | AI35: =Fúrók!$A35 -> Az árista a Techtomat Kft és
A36: =Fúrók!$A36 -> Kapitár Kft közös gondozásában | D36: Motorteljesítmény [W] | E36: 750 | F36: Megbizható kicsi, ugyanakkor erős sarokcsiszoló. Könnyű karbantartás végett zsirzógomb a kúkerekek zsirzásához, amely rendszeres használatát javasoljuk a hosszú élettartam végett! | I36: 746 | J36: Ipari sarokcsiszoló gyártási és karbantartási feladatokhoz. Könnyű, de rős alumínum ház kompozit borítással. Kiemelkedő teljesítmény és megbizhatóság. Erős, nagy nyomatékú motor. Speciális fogaskerék hajtás a hosszú étettartam végett! | M36: 850 | N36: Sokoldalú robosztus ipari sarokcsiszoló. | R36: =Fúrók!$A36 -> Kapitár Kft közös gondozásában | W36: M14 kihajtással | AI36: =Fúrók!$A36 -> Kapitár Kft közös gondozásában
A37: =Fúrók!$A37 -> jelent meg. | D37: Kihajtási méret | E37: M10 és M14 | I37: 10 | M37: M 14x2 | R37: =Fúrók!$A37 -> jelent meg. | U37: Chicago Pneumatic | V37: CP3450 | Z37: CP3650 | AD37: CP3850 | AI37: =Fúrók!$A37 -> jelent meg.
A38: =Fúrók!$A38 -> Minden jog fenntartva. | D38: Tárcsaméret [mm] | E38: 115-125 | I38: 100 | M38: 180 | R38: =Fúrók!$A38 -> Minden jog fenntartva. | V38: Motorteljesítmény: 810W Kihajtási méret: Fordulatszám: 12000 RPM Tárcsaátmérő: 100, 115, 125mm Ipari sarokcsiszoló. | Z38: Motorteljesítmény: 1700W Kihajtási méret: M14 Fordulatszám: 13000 RPM Tárcsaátmérő: 115, 125 Robosztus fémházas, ipari sarokcsiszoló. Min 2000 órás szervizciklus. Auto balancerrel is rendelhető! | AD38: Motorteljesítmény: 2100W Kihajtási méret: 5/8-11 Fordulatszám: 6500/8500 Tárcsaátmérő: 180/230 Robosztus fémházas, ipari sarokcsiszoló. Min 2000 órás szervizciklus. Auto balancerrel is rendelhető! | AI38: =Fúrók!$A38 -> Minden jog fenntartva.
D39: Üresjárati fordulat [rpm] | E39: 10000 | I39: 14 000 | M39: 7600
A40: =Fúrók!$A40 -> Bővebb információ: | D40: Tömeg [kg] | E40: 1,6 | I40: 1,9 | M40: 3,4 | R40: =Fúrók!$A40 -> Bővebb információ: | AI40: =Fúrók!$A40 -> Bővebb információ:
A41: =Fúrók!$A41 -> Szabó Attila | D41: Használati besorolás | E41: 2 -megnövekedett igényekhez | M41: 2 -megnövekedett igényekhez | R41: =Fúrók!$A41 -> Szabó Attila | AI41: =Fúrók!$A41 -> Szabó Attila
A42: =Fúrók!$A42 -> 30/201-4931 vagy 30/626-8687 | D42: Cikkszám / Típus / (Listaár) Nettó ár | E42: 8951075021 | F42: RC7160 -D100 M10 | G42: =VLOOKUP(E42,Árlista!$B:$D,3,0) -> ,-Ft | I42: 8951000144 | J42: RC7170 | K42: =VLOOKUP(I42,Árlista!$B:$D,3,0) -> TOPS* 61 900,-Ft | M42: 8951000083 | N42: RC7181 M14 | O42: =VLOOKUP(M42,Árlista!$B:$D,3,0) -> 162 200,-Ft | R42: =Fúrók!$A42 -> 30/201-4931 vagy 30/626-8687 | U42: Cikkszám / Típus / (Listaár) Nettó ár | V42: 6151604040 | W42: 12AA5 5" -125 | X42: =VLOOKUP(V42,Árlista!$B:$D,3,0) -> 280 300,-Ft | Z42: 6151607310 | AA42: CP3650 120AA45 4,5" -115 | AB42: =VLOOKUP(Z42,Árlista!$B:$D,3,0) -> C #: 507 000,-Ft | AD42: 6151704940 | AE42: 65AB9VE 6500RPM 9" -210 Auto balanc | AF42: =VLOOKUP(AD42,Árlista!$B:$D,3,0) -> C #: 720 000,-Ft | AI42: =Fúrók!$A42 -> 30/201-4931 vagy 30/626-8687
A43: =Fúrók!$A43 -> e-mail | AI43: =Fúrók!$A43 -> e-mail
A44: =Fúrók!$A44 -> Tóth Tamás | D44: Cikkszám / Típus / (Listaár) Nettó ár | E44: 8951075051 | F44: RC7166 -D125 M14 | G44: =VLOOKUP(E44,Árlista!$B:$D,3,0) -> TOPS* 55 700,-Ft | U44: Cikkszám / Típus / (Listaár) Nettó ár | V44: 6151604010 | W44: 12AC4 4" -100 | X44: =VLOOKUP(V44,Árlista!$B:$D,3,0) -> 280 300,-Ft | Z44: 6151607210 | AA44: CP3650 120AA5 5" -125 | AB44: =VLOOKUP(Z44,Árlista!$B:$D,3,0) -> C #: 531 000,-Ft | AD44: 6151704920 | AE44: 85AB7VE 8500RPM 7" -180 Auto balac | AF44: =VLOOKUP(AD44,Árlista!$B:$D,3,0) -> C #: 688 000,-Ft | AI44: =Fúrók!$A44 -> Tóth Tamás
A45: =Fúrók!$A45 -> 30/603-1596 | R45: =Fúrók!$A44 -> Tóth Tamás | AI45: =Fúrók!$A45 -> 30/603-1596
A46: =Fúrók!$A45 -> 30/603-1596 | R46: =Fúrók!$A45 -> 30/603-1596 | U46: Cikkszám / Típus / (Listaár) Nettó ár | V46: 6151604030 | W46: 12AC45 4,5" -115 | X46: =VLOOKUP(V46,Árlista!$B:$D,3,0) -> 280 300,-Ft | Z46: 6151607180 | AA46: 120AA5VK 5"-125 Auto balancerrel | AB46: =VLOOKUP(Z46,Árlista!$B:$D,3,0) -> C #: 591 000,-Ft | AI46: =Fúrók!$A45 -> 30/603-1596
V48: *Továbbí típusok www.cp.com illetve az árlistában! | Z48: *Továbbí típusok www.cp.com illetve az árlistában! | AD48: *Továbbí típusok www.cp.com illetve az árlistában!
U59: Chicago Pneumatic | V59: CP7500D | Z59: CP9120 / CP9121 /CP9122 | AD59: CP854
V60: Motorteljesítmény: 150W Kihajtási méret: 3/8-24 Fordulatszám: 22000 RPM Tárcsaátmérő: 50 Mini sarokcsiszoló. Általános célokra. Kompakt és könnyű. | Z60: Motorteljesítmény: 600W Kihajtási méret: M14 Fordulatszám: 12000 RPM Tárcsaátmérő: 100, 125 Robosztus fémházas, sarokcsiszoló általános célokra. | AD60: Motorteljesítmény: 525W Kihajtás: 3/8-24, M10 Fordulatszám: 13000 RPM Tárcsaátmérő: 100, 125Robosztus fémházas, sarokcsiszoló általános célokra.
U64: Cikkszám / Típus / (Listaár) Nettó ár | V64: 8941075001 | W64: CP7500D | X64: =VLOOKUP(V64,Árlista!$B:$D,3,0) -> 85 300,-Ft | Z64: 6151957321 | AA64: CP9121AR M14 5" -125 | AB64: =VLOOKUP(Z64,Árlista!$B:$D,3,0) -> STARS* 74 500,-Ft | AD64: T023186 | AE64: CP854 | AF64: =VLOOKUP(AD64,Árlista!$B:$D,3,0) -> 168 900,-Ft
U66: Cikkszám / Típus / (Listaár) Nettó ár | V66: 8941075002 | W66: CP7500DK KIT | X66: =VLOOKUP(V66,Árlista!$B:$D,3,0) -> 99 900,-Ft | Z66: 6151957222 | AA66: CP9122BR 5/8-11 4,5" -115 | AB66: =VLOOKUP(Z66,Árlista!$B:$D,3,0) -> 108 900,-Ft | AD66: T023187 | AE66: CP854E | AF66: =VLOOKUP(AD66,Árlista!$B:$D,3,0) -> STARS* 81 100,-Ft
D68: Cikkszám / Típus / (Listaár) Nettó ár | M68: 8951000210 | N68: RC7181 | O68: =VLOOKUP(M68,Árlista!$B:$D,3,0) -> ,-Ft | Z68: *Továbbí típusok www.cp.com illetve az árlistában!
D70: Cikkszám / Típus / (Listaár) Nettó ár | M70: 8951000211 | N70: RC7180 | O70: =VLOOKUP(M70,Árlista!$B:$D,3,0) -> 97 400,-Ft
D72: Cikkszám / Típus / (Listaár) Nettó ár | M72: 8951000212 | N72: RC7181 | O72: =VLOOKUP(M72,Árlista!$B:$D,3,0) -> TOPS* 88 900,-Ft
U79: Chicago Pneumatic | V79: CP857 | Z79: CP9123 | AD79: CP3349
V80: Motorteljesítmény: 940W Kihajtási méret: 5/8-11 Fordulatszám: 7500 RPM Tárcsaátmérő: 180 Robosztus fémházas, sarokcsiszoló általános célokra. | Z80: Motorteljesítmény: 850W Kihajtási méret: 5/8-11 Fordulatszám: 7500 RPM Tárcsaátmérő: 180 Robosztus fémházas, sarokcsiszoló általános célokra. | AD80: Motorteljesítmény: 3000W Kihajtás: 5/8-11 Fordulatszám: 6-7,7 x1000 RPM Tárcsaátmérő: 150, 180, 230 Robosztus fémházas, sarokcsiszoló általános célokra.
U84: Cikkszám / Típus / (Listaár) Nettó ár | V84: T024387 | W84: CP857 | X84: =VLOOKUP(V84,Árlista!$B:$D,3,0) -> 262 200,-Ft | Z84: 6151959123 | AA84: CP9123 | AB84: =VLOOKUP(Z84,Árlista!$B:$D,3,0) -> 217 000,-Ft | AD84: 6151609110 | AE84: CP33490 -SALAVADE D180 | AF84: =VLOOKUP(AD84,Árlista!$B:$D,3,0) -> C #: 771 000,-Ft
U86: Cikkszám / Típus / (Listaár) Nettó ár | AD86: 6151609150 | AE86: CP33490 -SALAVETE D150 | AF86: =VLOOKUP(AD86,Árlista!$B:$D,3,0) -> C #: 797 000,-Ft
U88: Cikkszám / Típus / (Listaár) Nettó ár | AD88: 6151609130 | AE88: CP33490 -SALAVELE D230 | AF88: =VLOOKUP(AD88,Árlista!$B:$D,3,0) -> C #: 795 000,-Ft
U100: Chicago Pneumatic | V100: CP3650-120ACC | Z100: CP3030 - | AD100: CP3030
V101: Motorteljesítmény: 1700 W Befogási méret: 6,35 mm Fordulatszám: 12 000 RPM Ipari csiszoló a legmagasabb ipari igénybevételre. Egyedülálló megbizhatóság és termelékenység. Karbantartási igénye min 2000 üo. | Z101: Motorteljesítmény: 300/400/500W Befogás: 6,35 mm Fordulatszám: 18-30 x 1000 RPM Jelölés: Pl 300 W 25000RPM -->CP3030-325R Ipari egyenescsiszoló. Karbantartási igény min. 1000 üo | AD101: 6151604130 | AE101: CP3030 -418R | AF101: =VLOOKUP(AD101,Árlista!$B:$D,3,0) -> 191 700,-Ft
AD102: 6151604140 | AE102: CP3030 -420R | AF102: =VLOOKUP(AD102,Árlista!$B:$D,3,0) -> 191 700,-Ft
AD103: 6151604150 | AE103: CP3030 -424R | AF103: =VLOOKUP(AD103,Árlista!$B:$D,3,0) -> 191 700,-Ft
U105: Cikkszám / Típus / (Listaár) Nettó ár | V105: 6151607230 | W105: CP3650-120AAC | X105: =VLOOKUP(V105,Árlista!$B:$D,3,0) -> C #: 517 000,-Ft | Z105: 6151604090 | AA105: CP3030 -325R | AB105: =VLOOKUP(Z105,Árlista!$B:$D,3,0) -> 161 600,-Ft | AD105: 6151604190 | AE105: CP3030 -518R
U107: Cikkszám / Típus / (Listaár) Nettó ár | Z107: 6151604100 | AA107: CP3030 -330R | AB107: =VLOOKUP(Z107,Árlista!$B:$D,3,0) -> 161 600,-Ft | AD107: 6151604200 | AE107: CP3030 -520R | AF107: =VLOOKUP(AD107,Árlista!$B:$D,3,0) -> 212 200,-Ft
Z109: *Továbbí típusok www.cp.com illetve az árlistában!
U119: Chicago Pneumatic | V119: CP3030 D75 mm | Z119: CP3650 D180 mm | AD119: CP3850 D 180/230 mm
V120: Motorteljesítmény: 3/4/500W Kihajtás: 3/8"-24 mm Fordulatszám: 15-25 x 1000 RPM Jelölés: Pl 300 W 25000RPM -->CP3030-325AFR Ipari egyenescsiszoló. Karbantartási igény min. 1000 üo | Z120: Motorteljesítmény: 1700 W Kihajtási méret: M14 mm Ipari csiszoló a legmagasabb ipari igénybevételre. Egyedülálló megbizhatóság és termelékenység. Karbantartási igénye min 2000 üo. | AD120: Motorteljesítmény: 2100 W Kihajtási méret: 5/8"-11 Ipari csiszoló a legmagasabb ipari igénybevételre. Egyedülálló megbizhatóság és termelékenység. Karbantartási igénye min 2000 üo.
U124: Cikkszám / Típus / (Listaár) Nettó ár | V124: 6151620060 | W124: CP3030 -325AFR | X124: =VLOOKUP(V124,Árlista!$B:$D,3,0) -> 141 000,-Ft | Z124: 6151607270 | AA124: CP3650 -075AAE | AB124: =VLOOKUP(Z124,Árlista!$B:$D,3,0) -> C #: 519 000,-Ft | AD124: 6151704980 | AE124: CP3850 -65ABVE | AF124: =VLOOKUP(AD124,Árlista!$B:$D,3,0) -> C #: 720 000,-Ft
U126: Cikkszám / Típus / (Listaár) Nettó ár | V126: 6151620070 | W126: CP3030 -415AFR | X126: =VLOOKUP(V126,Árlista!$B:$D,3,0) -> 156 700,-Ft | Z126: 6151607260 | AA126: CP3650 -085AAE | AB126: =VLOOKUP(Z126,Árlista!$B:$D,3,0) -> C #: 519 000,-Ft | AD126: 6151704970 | AE126: CP3850 -85ABVE | AF126: =VLOOKUP(AD126,Árlista!$B:$D,3,0) -> C #: 685 000,-Ft
U128: Cikkszám / Típus / (Listaár) Nettó ár | V128: 6151620080 | W128: CP3030 -420AFR | X128: =VLOOKUP(V128,Árlista!$B:$D,3,0) -> 156 700,-Ft | Z128: 6151607240 | AA128: CP3650 -120AAE | AB128: =VLOOKUP(Z128,Árlista!$B:$D,3,0) -> C #: 519 000,-Ft
U130: Cikkszám / Típus / (Listaár) Nettó ár | V130: 6151620100 | W130: CP3030 -515AFR | X130: =VLOOKUP(V130,Árlista!$B:$D,3,0) -> 188 900,-Ft
V132: *Továbbí típusok www.cp.com illetve az árlistában! | Z132: *Továbbí típusok www.cp.com illetve az árlistában!
U142: Chicago Pneumatic | V142: CP3450
V143: Motorteljesítmény: 840W Kihajtás: 3/8-24, 5/8-11 vagy M14 Fordulatszám: 12000 RPM Tárcsaátmérő: 100, 115, 125mm Ipari sarokcsiszoló.
U147: Cikkszám / Típus / (Listaár) Nettó ár | V147: 8941075401 | W147: CP7540-C 4" -100 | X147: =VLOOKUP(V147,Árlista!$B:$D,3,0) -> 130 300,-Ft
U149: Cikkszám / Típus / (Listaár) Nettó ár | V149: 8941075451 | W149: CP7545-C 4,5" -115 | X149: =VLOOKUP(V149,Árlista!$B:$D,3,0) -> 130 300,-Ft
U151: Cikkszám / Típus / (Listaár) Nettó ár | V151: 8941075503 | W151: CP7550 5" -125 M14 | X151: =VLOOKUP(V151,Árlista!$B:$D,3,0) -> STARS* 103 600,-Ft

Sheet Egyenes csiszolók
A1: RODCRAFT | E1: Általános karbantartáshoz | K1: Ipari karbantartáshoz és gyártáshoz | R1: CHICAGO PNEUMATIC | U1: Általános karbantartáshoz | X1: Ipari karbantartáshoz és gyártáshoz | AC1: Ipari körülményekhez -sorozatgyártás | AI1: RODCRAFT
A2: Árlista | R2: Árlista | AI2: Árlista
A3: Megrendelő | R3: Megrendelő | AI3: Megrendelő
A4: Fúrók | R4: Fúrók | AI4: Fúrók
A5: Racsnis kulcsok | R5: Racsnis kulcsok | AI5: Racsnis kulcsok
A6: Csavarbehajtók | R6: Csavarbehajtók | AI6: Csavarbehajtók
A7: Sarokcsiszolók | R7: Sarokcsiszolók | AI7: Sarokcsiszolók
A8: Légkulcsok | R8: Légkulcsok | AI8: Légkulcsok
A9: Egyenes csiszolók | R9: Egyenes csiszolók | AI9: Egyenes csiszolók
A10: Szalag és excenter csiszolók | R10: Szalag és excenter csiszolók | AI10: Szalag és excenter csiszolók
A11: Polír- és fiber csiszolók | R11: Polír- és fiber csiszolók | AI11: Polír- és fiber csiszolók
A12: Vésők, leverők … | R12: Vésők, leverők … | AI12: Vésők, leverők …
A13: Szóró- és lefúvató pisztolyok | R13: Vágók, fűrészek, szegecshúzók | AI13: Szóró- és lefúvató pisztolyok
A14: Vágók, fűrészek, szegecshúzók | D14: Típus | E14: Rodcraft RC7009 | I14: Rodcraft RC7010 / Rodcraft RC7045 | M14: Rodcraft RC7011 | R14: Szóró- és lefúvató pisztolyok | AI14: Vágók, fűrészek, szegecshúzók
A15: Dugókulcsok | D15: Motorteljesítmény [W] | E15: 300 | F15: Magas fordulatú, fémházas egyenescsiszoló. Hátsó levegőkivezetéssel. Opcionálisan 3 és 8 mm-es patron is rendelhető mellé. Az új készülék az RC7010 és RC7011 készülékeket fogja kiváltani. | I15: 300 | J15: Magas fordulatú, fémházas egyenescsiszoló. Hátsó levegőkivezetéssel. Opcionálisan felszerelhető DUS 24 zajcsökkentő rendszerrel. Elérhető rövid RC7010 és hosszabbított RC7045kivitelben. | M15: 300 | N15: Magas fordulatú, kompozitházas egyenescsiszoló. Hátsó levegőkivezetéssel. Opcionálisan felszerelhető DUS 23 zajcsökkentő rendszerrel. Rendelhető hozzá 3mm-es befogó patron is. | R15: Dugókulcsok | AI15: Dugókulcsok
A16: Csatlakozók | D16: Szerszámbefogó patron méret [mm] | E16: 6 | I16: 6 (3) | M16: 6 (3) | R16: Csatlakozók | AI16: Csatlakozók
A17: Abroncstöltők | D17: Készülék hossza [mm] | E17: 134 | I17: 154 / 233 | M17: 155 | R17: Abroncstöltők | U17: Chicago Pneumatic | V17: CP9104Q | Z17: CP3000-600CR | AD17: CP876 | AI17: Abroncstöltők
A18: ABAC Levegős szerszámok | D18: Üresjárati fordulat [rpm] | E18: 30000 | I18: 25000 | M18: 26000 | R18: ABAC Levegős szerszámok | V18: Motorteljesítmény: 40W Befogási méret: 3 mm Fordulatszám: 60 000RPM Preciziós könnyű csiszoló, csendes működés 71dBA | Z18: Motorteljesítmény: 80W Befogási méret: 3 mm Fordulatszám: 60 000RPM Preciziós ipari csiszoló, csendes működés 71dBA, tartós használatra tervezve. | AD18: Motorteljesítmény: 220W Befogási méret: 6 mm CP875 Fordulatszám: 22 500RPM CP876 Fordulatszám: 30 000RPM | AI18: ABAC Levegős szerszámok
A19: Garázsipari eszközök | D19: Tömeg [kg] | E19: 0,2 | I19: 0,4 / 0,55 | M19: 0,4 | R19: Garázsipari eszközök | AI19: Garázsipari eszközök
A20: AKKUMULÁTOROS GÉPEK | D20: Használati besorolás | E20: 2 -megnövekedett igényekhez | I20: 2 -megnövekedett igényekhez | M20: 2 -megnövekedett igényekhez | R20: AKKUMULÁTOROS GÉPEK | AI20: AKKUMULÁTOROS GÉPEK
A21: Tömlők, tömlődobok | D21: Cikkszám / Típus / (Listaár) Nettó ár | E21: 8951000274 | F21: RC7009 | G21: =VLOOKUP(E21,Árlista!$B:$D,3,0) -> TOPS* 16 540,-Ft | I21: 8951075040 | J21: RC7010 rövid | K21: =VLOOKUP(I21,Árlista!$B:$D,3,0) ->  | M21: 8951075050 | N21: RC7011 gép | O21: =VLOOKUP(M21,Árlista!$B:$D,3,0) ->  | R21: Tömlők, tömlődobok | AI21: Tömlők, tömlődobok
A22: Szűrők, szabályozók | R22: Szűrők, szabályozók | U22: Cikkszám / Típus / (Listaár) Nettó ár | V22: 6151959104 | W22: CP9104Q | X22: =VLOOKUP(V22,Árlista!$B:$D,3,0) -> STARS* 44 510,-Ft | Z22: 6151600330 | AA22: CP3000-600CR | AB22: =VLOOKUP(Z22,Árlista!$B:$D,3,0) -> 202 100,-Ft | AD22: T023995 | AE22: CP875 | AF22: =VLOOKUP(AD22,Árlista!$B:$D,3,0) -> STARS* 26 050,-Ft | AI22: Szűrők, szabályozók
A23: Balancerek | D23: Cikkszám / Típus / (Listaár) Nettó ár | I23: 8951075120 | J23: RC7045 hosszú | K23: =VLOOKUP(I23,Árlista!$B:$D,3,0) ->  | M23: 8951175000 | N23: RC7012 készlet | O23: =VLOOKUP(M23,Árlista!$B:$D,3,0) ->  | R23: Balancerek | AI23: Balancerek | AN23: 8951011483 | AO23: =IFERROR(VLOOKUP(AN23,Árlista!$B:$D,3,0),"") ->  | AT23: 8951011482 | AU23: =VLOOKUP(AT23,Árlista!$B:$D,3,0) -> 8 970,-Ft
U24: Cikkszám / Típus / (Listaár) Nettó ár | V24: 6151950104 | W24: CP9104QKit | X24: =VLOOKUP(V24,Árlista!$B:$D,3,0) -> 89 600,-Ft | AD24: T023996 | AE24: CP876 | AF24: =VLOOKUP(AD24,Árlista!$B:$D,3,0) -> 35 080,-Ft
A25: =Fúrók!$A25 -> A feltüntett árak a 2020.02.01.-től | R25: =Fúrók!$A25 -> A feltüntett árak a 2020.02.01.-től | AI25: =Fúrók!$A25 -> A feltüntett árak a 2020.02.01.-től
A26: =Fúrók!$A26 -> érvényes listaárak. | R26: =Fúrók!$A26 -> érvényes listaárak. | AI26: =Fúrók!$A26 -> érvényes listaárak.
A27: =Fúrók!$A27 -> * jelöléssel ellátott termékek a | R27: =Fúrók!#REF! ->  | AI27: =Fúrók!$A27 -> * jelöléssel ellátott termékek a | AN27: 8951011460 | AO27: =IFERROR(VLOOKUP(AN27,Árlista!$B:$D,3,0),"") -> 
A28: =Fúrók!$A28 -> RC TOPS és CP STAR akciós | R28: =Fúrók!$A27 -> * jelöléssel ellátott termékek a | AI28: =Fúrók!$A28 -> RC TOPS és CP STAR akciós | AT28: 8951011478 | AU28: =VLOOKUP(AT28,Árlista!$B:$D,3,0) -> 
A29: =Fúrók!$A29 -> kiadvány árai | R29: =Fúrók!$A28 -> RC TOPS és CP STAR akciós | AI29: =Fúrók!$A29 -> kiadvány árai
A30: =Fúrók!$A30 -> SP jelöléssel ellátott termékekre | R30: =Fúrók!$A29 -> kiadvány árai | AI30: =Fúrók!$A30 -> SP jelöléssel ellátott termékekre
A31: =Fúrók!$A31 -> speciális viszonteladói árkézés | R31: =Fúrók!$A30 -> SP jelöléssel ellátott termékekre | AI31: =Fúrók!$A31 -> speciális viszonteladói árkézés
A32: =Fúrók!$A32 -> vonatkozik. Az Extra árak | R32: =Fúrók!$A31 -> speciális viszonteladói árkézés | AI32: =Fúrók!$A32 -> vonatkozik. Az Extra árak
A33: =Fúrók!$A33 -> a készlet erejéig, illetve | R33: =Fúrók!$A32 -> vonatkozik. Az Extra árak | AI33: =Fúrók!$A33 -> a készlet erejéig, illetve | AN33: 8951011477 | AO33: =IFERROR(VLOOKUP(AN33,Árlista!$B:$D,3,0),"") ->  | AT33: 8951011485 | AU33: =VLOOKUP(AT33,Árlista!$B:$D,3,0) -> 15 970,-Ft
A34: =Fúrók!$A34 -> visszavonásig érvényesek. | AI34: =Fúrók!$A34 -> visszavonásig érvényesek.
A35: =Fúrók!$A35 -> Az árista a Techtomat Kft és | R35: =Fúrók!$A35 -> Az árista a Techtomat Kft és | AI35: =Fúrók!$A35 -> Az árista a Techtomat Kft és
A36: =Fúrók!$A36 -> Kapitár Kft közös gondozásában | D36: Típus | E36: Rodcraft RC7028 | I36: Rodcraft RC7048 | M36: Rodcraft RC7027 | R36: =Fúrók!$A36 -> Kapitár Kft közös gondozásában | U36: Chicago Pneumatic | V36: CP9105Q-B | Z36: CP3000 | AD36: CP3019 | AI36: =Fúrók!$A36 -> Kapitár Kft közös gondozásában
A37: =Fúrók!$A37 -> jelent meg. | D37: Motorteljesítmény [W] | E37: 400 | F37: Új fejlesztésű, magas minőségű, precíziós motor, alacsony vibrációs- és zajszinttel. Ergonómikus kialakítás, egyszerű fordulat szabályozás, tengelyrögzítő a gyors szerszámcsere érdekében. 3 és 8 mm-es patron is rendelhető hozzá. | I37: 400 | J37: Új fejlesztésű, magas minőségű, precíziós motor, alacsony vibrációs- és zajszinttel. Ergonómikus hosszabbított kialakítás. Az új készülékek az RC7020 és RC7027 modelleket fogják fokozatosan kiváltani. | M37: 400 | N37: Kedvelt magas fordulatú, kompozitházas (RC7027) és fémházas (RC7020 és RC7021 készlet) egyenescsiszoló. Hátsó levegőkivezetéssel. Opcionálisan felszerelhető DUS 21 zajcsökkentő rendszerrel. Rendelhető hozzá 3mm-es befogó patron is. | R37: =Fúrók!$A37 -> jelent meg. | V37: Motorteljesítmény: 240/350 W Befogási méret: 6 mm Fordulatszám: 22-28 x 1000 RPM Könnyű egyenescsiszoló általános felhasználásra. | Z37: Motorteljesítmény: 300/400/500W Befogás: 6,35 mm Fordulatszám: 15-30 x 1000 RPM Jelölés: Pl 300 W 25000RPM -->CP3000-325R Ipari egyenescsiszoló. Karbantartási igény min. 1000 üo | AD37: Motorteljesítmény: 375W Befogás: 6 mm Fordulatszám: 12-40 x 1000 RPM Ipari egyenescsiszoló. Karbantartási igény min. 2000 üo | AI37: =Fúrók!$A37 -> jelent meg.
A38: =Fúrók!$A38 -> Minden jog fenntartva. | D38: Szerszámbefogó patron méret [mm] | E38: 6 | I38: 6 | M38: 6 (3) | R38: =Fúrók!$A38 -> Minden jog fenntartva. | AI38: =Fúrók!$A38 -> Minden jog fenntartva.
D39: Készülék hossza [mm] | E39: 191 | I39: 250 | M39: 175 | AN39: C139289 | AO39: =VLOOKUP(AN39,Árlista!$B:$D,3,0) -> 5 810,-Ft
A40: =Fúrók!$A40 -> Bővebb információ: | D40: Üresjárati fordulat [rpm] | E40: 27000 | I40: 27000 | M40: 20000 | R40: =Fúrók!$A40 -> Bővebb információ: | AI40: =Fúrók!$A40 -> Bővebb információ:
A41: =Fúrók!$A41 -> Szabó Attila | D41: Tömeg [kg] | E41: 0,72 | I41: 0,8 | M41: 0,6 | R41: =Fúrók!$A41 -> Szabó Attila | U41: Cikkszám / Típus / (Listaár) Nettó ár | V41: 6151952105 | W41: 9105Q-B -240W Egyenes, rövid | X41: =VLOOKUP(V41,Árlista!$B:$D,3,0) -> STARS* 27 200,-Ft | Z41: 6151600150 | AA41: CP3000 -325R 300W 25000RPM | AB41: =VLOOKUP(Z41,Árlista!$B:$D,3,0) -> 133 600,-Ft | AD41: 6151600340 | AE41: CP3019 -20 CNOMO Rövid, e. | AF41: =VLOOKUP(AD41,Árlista!$B:$D,3,0) -> 315 100,-Ft | AI41: =Fúrók!$A41 -> Szabó Attila
A42: =Fúrók!$A42 -> 30/201-4931 vagy 30/626-8687 | D42: Használati besorolás | E42: 3 -igen magas színvonalú | I42: 3 -igen magas színvonalú | M42: 3 -igen magas színvonalú | R42: =Fúrók!$A42 -> 30/201-4931 vagy 30/626-8687 | AI42: =Fúrók!$A42 -> 30/201-4931 vagy 30/626-8687
A43: =Fúrók!$A43 -> e-mail | D43: Cikkszám / Típus / (Listaár) Nettó ár | E43: 8951000275 | F43: RC7028 | G43: =VLOOKUP(E43,Árlista!$B:$D,3,0) -> TOPS* 50 430,-Ft | I43: 8951000276 | J43: RC7048 | K43: =VLOOKUP(I43,Árlista!$B:$D,3,0) -> TOPS* 55 700,-Ft | M43: 8951075330 | N43: RC7027 kompozit | O43: =VLOOKUP(M43,Árlista!$B:$D,3,0) ->  | U43: Cikkszám / Típus / (Listaár) Nettó ár | V43: 6151952106 | W43: 9106Q-B -240W 90° | X43: =VLOOKUP(V43,Árlista!$B:$D,3,0) -> STARS* 36 110,-Ft | Z43: 6151600160 | AA43: CP3000 -330R 300W 30000RPM | AB43: =VLOOKUP(Z43,Árlista!$B:$D,3,0) -> 133 600,-Ft | AD43: 6151600360 | AE43: CP3019 -31 CNOMO Rövid, e. | AF43: =VLOOKUP(AD43,Árlista!$B:$D,3,0) -> 315 100,-Ft | AI43: =Fúrók!$A43 -> e-mail
A44: =Fúrók!$A44 -> Tóth Tamás | R44: =Fúrók!$A44 -> Tóth Tamás | AI44: =Fúrók!$A44 -> Tóth Tamás
A45: =Fúrók!$A45 -> 30/603-1596 | D45: Cikkszám / Típus / (Listaár) Nettó ár | M45: 8951075080 | N45: RC7020 fémház | O45: =VLOOKUP(M45,Árlista!$B:$D,3,0) ->  | R45: =Fúrók!$A45 -> 30/603-1596 | U45: Cikkszám / Típus / (Listaár) Nettó ár | V45: 6151952108 | W45: 9108Q-B -240W 120° | X45: =VLOOKUP(V45,Árlista!$B:$D,3,0) -> STARS* 36 110,-Ft | Z45: 6151600200 | AA45: CP3000 -418R 400W 18000RPM | AB45: =VLOOKUP(Z45,Árlista!$B:$D,3,0) -> 161 200,-Ft | AD45: 6151602220 | AE45: CP3019 -25ES CNOM Hosszú, e. | AF45: =VLOOKUP(AD45,Árlista!$B:$D,3,0) -> 377 000,-Ft | AI45: =Fúrók!$A45 -> 30/603-1596
U47: Cikkszám / Típus / (Listaár) Nettó ár | V47: 6151952110 | W47: 9110Q-B -240W Egyenes, hosszú | X47: =VLOOKUP(V47,Árlista!$B:$D,3,0) -> 53 800,-Ft | Z47: 6151600220 | AA47: CP3000 -424R 400W 24000RPM | AB47: =VLOOKUP(Z47,Árlista!$B:$D,3,0) -> 161 200,-Ft | AD47: 6151602240 | AE47: CP3019 -40ES CNOM Hosszú, e. | AF47: =VLOOKUP(AD47,Árlista!$B:$D,3,0) -> 375 000,-Ft
AT48: 8951011633 | AU48: =VLOOKUP(AT48,Árlista!$B:$D,3,0) -> 6 160,-Ft
U49: Cikkszám / Típus / (Listaár) Nettó ár | V49: 6151952111 | W49: 9111Q-B -350W Egyenes, rövid | X49: =VLOOKUP(V49,Árlista!$B:$D,3,0) -> 75 700,-Ft | Z49: 6151600270 | AA49: CP3000 -515R | AB49: =VLOOKUP(Z49,Árlista!$B:$D,3,0) -> 188 900,-Ft | AD49: 6151604230 | AE49: CP3019 -12AC CNOM 90° | AF49: =VLOOKUP(AD49,Árlista!$B:$D,3,0) -> 431 000,-Ft
U51: Cikkszám / Típus / (Listaár) Nettó ár | V51: 6151950211 | W51: 9111Q-B Kit 350W KIT | X51: =VLOOKUP(V51,Árlista!$B:$D,3,0) -> STARS* 40 320,-Ft | Z51: 6151600290 | AA51: CP3000 -520R | AB51: =VLOOKUP(Z51,Árlista!$B:$D,3,0) -> 188 900,-Ft | AD51: 6151604240 | AE51: CP3019 -20AC CNOM 90° | AF51: =VLOOKUP(AD51,Árlista!$B:$D,3,0) -> 418 000,-Ft
Z53: *Továbbí típusok www.cp.com illetve az árlistában! | AT53: 8951011635 | AU53: =VLOOKUP(AT53,Árlista!$B:$D,3,0) -> 6 160,-Ft
AN56: 8951011573 | AO56: =IFERROR(VLOOKUP(AN56,Árlista!$B:$D,3,0),"") -> 
D58: Típus | E58: Rodcraft RC7058 | I58: Rodcraft RC7038 / 7088 | M58: Rodcraft RC7068 | AT58: 8951011634 | AU58: =VLOOKUP(AT58,Árlista!$B:$D,3,0) -> 6 160,-Ft
D59: Motorteljesítmény [W] | E59: 700 | F59: Magas fordulatú, kompozitházas egyenescsiszoló, hátsó levegőkivezetéssel. Rendelhető hozzá 3 és 8mm-es befogó patron is. Az új készülék az RC7025 modelt fogja fokozatosan kiváltami! | I59: 400 | J59: Lassú fordulatú, erős, nyomatékos egyenescsiszoló fordulat állítási lehetőséggel. Kompozit ház, alacsony zajszint és vibráció. Az RC7038 radírozó 3/8“-24 KM 5/16“ BM csatlakozással. RC7088 11 hatlap csatlakozással, erősített első csapágyazással. | M59: 400 | N59: Lassú fordulatú, erős, nyomatékos egyenescsiszoló fordulat állítási lehetőséggel. Kompozit ház, alacsony zajszint és vibráció. | AN59: 8951011574 | AO59: =IFERROR(VLOOKUP(AN59,Árlista!$B:$D,3,0),"") -> 
D60: Szerszámbefogó patron méret [mm] | E60: 6 / 8 | M60: 6
D61: Készülék hossza [mm] | E61: 199 | I61: 184 / 340 | M61: 218
D62: Üresjárati fordulat [rpm] | E62: 23500 | I62: 22000 / 2800 | M62: 2800 | U62: Chicago Pneumatic | V62: CP9113G | Z62: CP3451 -18 | AD62: CP3249
D63: Tömeg [kg] | E63: 0,82 | I63: 1 / 1,2 | M63: 0,95 | V63: Motorteljesítmény: 750 W Befogási méret: 6,35 mm Fordulatszám: 25 000 RPM Robosztus, erős acélházas csiszoló ipari felhasználásra. | Z63: Motorteljesítmény: 750 W Befogási méret: 6,35 mm Fordulatszám: 18 000 RPM Könnyű, alu- és kompozitházas csiszoló ipari felhasználásra. Karbantartási igénye min 1000 üo. | AD63: Motorteljesítmény: 2400 W Tárcsaméret: 200x25x15,9 Fordulatszám: 4 500 RPM Motorteljesítmény: 2700 W Tárcsaméret: 150x25x15,9 Fordulatszám: 6 000 RPM
D64: Használati besorolás | E64: 3 -igen magas színvonalú | I64: 3 -igen magas színvonalú | M64: 2 -megnövekedett igényekhez
D65: Cikkszám / Típus / (Listaár) Nettó ár | E65: 8951000278 | F65: RC7058 | G65: =VLOOKUP(E65,Árlista!$B:$D,3,0) -> TOPS* 61 400,-Ft | I65: 8951000328 | J65: RC7038 | K65: =VLOOKUP(I65,Árlista!$B:$D,3,0) -> TOPS* 44 440,-Ft | M65: 8951000329 | N65: RC7068 | O65: =VLOOKUP(M65,Árlista!$B:$D,3,0) -> TOPS* 43 330,-Ft
D67: Cikkszám / Típus / (Listaár) Nettó ár | I67: 8951000330 | J67: RC7088 | K67: =VLOOKUP(I67,Árlista!$B:$D,3,0) -> TOPS* 45 550,-Ft | U67: Cikkszám / Típus / (Listaár) Nettó ár | V67: 6151600010 | W67: CP9113G | X67: =VLOOKUP(V67,Árlista!$B:$D,3,0) -> 116 300,-Ft | Z67: 6151602010 | AA67: CP3451 -18SEC | AB67: =VLOOKUP(Z67,Árlista!$B:$D,3,0) -> 247 500,-Ft | AD67: 6151606190 | AE67: GABSUDE | AF67: =VLOOKUP(AD67,Árlista!$B:$D,3,0) -> C #: 1 136 000,-Ft
U69: Cikkszám / Típus / (Listaár) Nettó ár | V69: 6151602070 | W69: CP9113GES | X69: =VLOOKUP(V69,Árlista!$B:$D,3,0) -> 129 900,-Ft | Z69: 6151602030 | AA69: CP3451 -18SE3 | AB69: =VLOOKUP(Z69,Árlista!$B:$D,3,0) -> 247 500,-Ft | AD69: 6151606180 | AE69: GABSYGE | AF69: =VLOOKUP(AD69,Árlista!$B:$D,3,0) -> C #: 1 020 000,-Ft
D75: 7035D | AN75: 89510011629 | AO75: =IFERROR(VLOOKUP(AN75,Árlista!$B:$D,3,0),"") -> 
AE76: 12EL | AF76: Hossz: 603mm
AE77: 12EXL | AF77: Hossz: 853mm
AN79: 8951011631 | AO79: =IFERROR(VLOOKUP(AN79,Árlista!$B:$D,3,0),"") -> 
D81: 7035LST | G81: 7035A | AT81: 8951011557 | AU81: =VLOOKUP(AT81,Árlista!$B:$D,3,0) -> 6 720,-Ft
AD82: CP3119-12ES4
D83: Típus | E83: Rodcraft RC7035 | I83: RC7040/ RC7075RE / RC7077RE / 7078RE | M83: Rodcraft RC7037 / Rodcraft RC7079RE | U83: Chicago Pneumatic | V83: CP3109 | Z83: CP3119 | AD83: CP3119 | AN83: 895500005 | AO83: =IFERROR(VLOOKUP(AN83,Árlista!$B:$D,3,0),"") -> 
D84: Motorteljesítmény [W] | E84: 400 | F84: Lasú fordulatú radírozó. Hatékony eszköz a festett felületek javítására, matricák, ragasztók eltávolítására. Hátsó levegőelvezetéssel. Opcionálisan felszerelhető DUS 21 zajcsökkentő rendszerrel. | I84: 400 | J84: Könnyen kezelhető, lassú járású, fogaskerék áttételű egyenes csiszoló különböző feladatokhoz. Az RE jelölésű típusok zajcsökkentővel szereltek. RC7040 - 6 mm-es befogópatronnal RC7075RE - 11 mm-es hatlapú befogással RC7077RE - 10 mm-es gyorstokmánnyal RC 7078RE - 11 mm-es hatlapú befogással erősített frontcsapágyazással | M84: 400 | N84: Könnyen kezelhető, lassú járású, fogaskerék áttételű kompozitházas egyenes csiszoló különböző feladatokhoz. Az RE jelölésű típusok zajcsökkentővel szereltek. RC7037 - 5/16" belső menet radírozó tárcsához RC 7078RE - 11 mm-es hatlapú befogással erősített frontcsapágyazással | V84: Motorteljesítmény: 600 W Befogási méret: 6,35 mm Fordulatszám: 13-28 x 1000 RPM Robosztus, erős acélházas csiszoló ipari felhasználásra. Karbantartási igénye min 1000 üo. | Z84: Motorteljesítmény: 900 W Befogási méret: 6 mm Fordulatszám: 12-22 x 1000 RPM Robosztus, erős acélházas csiszoló ipari felhasználásra. Karbantartási igénye min 2000 üo. | AD84: Motorteljesítmény: 900 W Befogási méret: 6,35 mm Fordulatszám: 12 000 RPM Ipari csiszoló és köszörü a legmagasabb ipari igénybevételre. Egyedülálló megbizhatóság és termelékenység. Karbantartási igénye min 2000 üo.
D85: Szerszámbefogó patron méret [mm] | E85: 5/16" IG
D86: Készülék hossza [mm] | E86: 230 | I86: 330 | M86: 222 | AT86: 8951011558 | AU86: =VLOOKUP(AT86,Árlista!$B:$D,3,0) -> 10 090,-Ft
D87: Üresjárati fordulat [rpm] | E87: 2600 | I87: 3400 | M87: 18000 | AN87: 8955000004 | AO87: =IFERROR(VLOOKUP(AN87,Árlista!$B:$D,3,0),"") -> 
D88: Tömeg [kg] | E88: 0,9 | I88: 0,8 | M88: 1 | U88: Cikkszám / Típus / (Listaár) Nettó ár | V88: 6151604060 | W88: 13AC | X88: =VLOOKUP(V88,Árlista!$B:$D,3,0) -> 479 000,-Ft | Z88: 6151600380 | AA88: 12 CNOMO | AB88: =VLOOKUP(Z88,Árlista!$B:$D,3,0) -> C #: 508 000,-Ft | AD88: 6151602150 | AE88: 12EL | AF88: =VLOOKUP(AD88,Árlista!$B:$D,3,0) -> C #: 958 000,-Ft
D89: Javasolt tömlőméret ø [mm] | E89: 8 | I89: 8 | M89: 10
D90: Max. nyomás [bar] | E90: 6,3 | I90: 6,3 | M90: 6,3 | U90: Cikkszám / Típus / (Listaár) Nettó ár | V90: 6151600020 | W90: CP3109-19 | X90: =VLOOKUP(V90,Árlista!$B:$D,3,0) -> 404 000,-Ft | Z90: 6151600400 | AA90: 18 CNOMO | AB90: =VLOOKUP(Z90,Árlista!$B:$D,3,0) -> C #: 508 000,-Ft | AD90: 6151602160 | AE90: 12EXL | AF90: =VLOOKUP(AD90,Árlista!$B:$D,3,0) -> C #: 1 036 000,-Ft
D91: Átlagos levegőfogyasztás [l/min] | E91: 420 | I91: 410 | M91: 410
D92: Folyamatos levegőfogyasztás [l/min] | E92: 500 | I92: 520 | M92: 520 | U92: Cikkszám / Típus / (Listaár) Nettó ár | V92: 6151600040 | W92: CP3109-28 | X92: =VLOOKUP(V92,Árlista!$B:$D,3,0) -> 404 000,-Ft | Z92: 6151602250 | AA92: 12ES CNOM | AB92: =VLOOKUP(Z92,Árlista!$B:$D,3,0) -> C #: 573 000,-Ft | AD92: 6151606020 | AE92: 12ES4 | AF92: =VLOOKUP(AD92,Árlista!$B:$D,3,0) -> C #: 536 000,-Ft
D93: Használati besorolás | E93: 2 -megnövekedett igényekhez | I93: 2 -megnövekedett igényekhez | M93: 3 -igen magas színvonalú
D94: Cikkszám / Típus / (Listaár) Nettó ár | E94: 8951075100 | F94: RC7035 | G94: =VLOOKUP(E94,Árlista!$B:$D,3,0) -> ,-Ft | I94: 8951075110 | J94: RC7040 6 mm patron | K94: =VLOOKUP(I94,Árlista!$B:$D,3,0) ->  | M94: 8951075340 | N94: RC7037 | O94: =VLOOKUP(M94,Árlista!$B:$D,3,0) -> ,-Ft | U94: Cikkszám / Típus / (Listaár) Nettó ár | V94: 6151602080 | W94: 19ES | X94: =VLOOKUP(V94,Árlista!$B:$D,3,0) -> 462 000,-Ft | Z94: 6151602260 | AA94: 15ES CNOM | AB94: =VLOOKUP(Z94,Árlista!$B:$D,3,0) -> C #: 576 000,-Ft | AD94: 6151606040 | AE94: 15ES2 | AF94: =VLOOKUP(AD94,Árlista!$B:$D,3,0) -> C #: 536 000,-Ft
AT95: 8951012291 | AU95: =VLOOKUP(AT95,Árlista!$B:$D,3,0) -> 
D96: Cikkszám / Típus / (Listaár) Nettó ár | E96: 8951011677 | F96: RC7035D radír tárcsa | G96: =VLOOKUP(E96,Árlista!$B:$D,3,0) -> TOPS* 2 850,-Ft | I96: 8951075290 | J96: RC7075RE 11 mm hatlap | K96: =VLOOKUP(I96,Árlista!$B:$D,3,0) -> ,-Ft | M96: 8951074009 | N96: RC7079RE | O96: =VLOOKUP(M96,Árlista!$B:$D,3,0) ->  | U96: Cikkszám / Típus / (Listaár) Nettó ár | V96: 6151602090 | W96: 24ES | X96: =VLOOKUP(V96,Árlista!$B:$D,3,0) -> 462 000,-Ft | Z96: 6151602270 | AA96: 18AC CNOM | AB96: =VLOOKUP(Z96,Árlista!$B:$D,3,0) -> C #: 573 000,-Ft | AD96: 6151606050 | AE96: 15ES3 | AF96: =VLOOKUP(AD96,Árlista!$B:$D,3,0) -> C #: 536 000,-Ft
D98: Cikkszám / Típus / (Listaár) Nettó ár | E98: 8951012289 | F98: RC7035LST | G98: =VLOOKUP(E98,Árlista!$B:$D,3,0) -> ,-Ft | I98: 8951075310 | J98: RC7077RE 10 mm gyorstokmány | K98: =VLOOKUP(I98,Árlista!$B:$D,3,0) -> ,-Ft | U98: Cikkszám / Típus / (Listaár) Nettó ár | V98: 6151602100 | W98: 28ES | X98: =VLOOKUP(V98,Árlista!$B:$D,3,0) -> 462 000,-Ft | Z98: 6151602280 | AA98: 22AC CNOM | AB98: =VLOOKUP(Z98,Árlista!$B:$D,3,0) -> C #: 573 000,-Ft | AD98: 6151606060 | AE98: 18ES3 | AF98: =VLOOKUP(AD98,Árlista!$B:$D,3,0) -> C #: 536 000,-Ft
D100: Cikkszám / Típus / (Listaár) Nettó ár | E100: 8951011678 | F100: RC7035A adapter | G100: =VLOOKUP(E100,Árlista!$B:$D,3,0) -> TOPS* 2 280,-Ft | I100: 8951075320 | J100: RC7078RE 11 mm hatlap, erősített | K100: =VLOOKUP(I100,Árlista!$B:$D,3,0) ->  | AN100: 8951011677 | AO100: =IFERROR(VLOOKUP(AN100,Árlista!$B:$D,3,0),"") -> 
AN108: 8951012289 | AO108: =IFERROR(VLOOKUP(AN108,Árlista!$B:$D,3,0),"") ->  | AT108: 8951011678 | AU108: =VLOOKUP(AT108,Árlista!$B:$D,3,0) -> TOPS* 2 280,-Ft
U111: Típus | V111: Chicago Pneumatic CP873 | Z111: Chicago Pneumatic CP872
U112: Motorteljesítmény [W] | V112: 370 | W112: Kedvelt megbízható gumicsiszoló gumisműhelyek részére. | Z112: 300 | AA112: Magas fordulatú, fémházas egyenescsiszoló. Hátsó levegőkivezetéssel.
D113: Típus | E113: Rodcraft RC7051RE | I113: Rodcraft RC7190 | U113: Szerszámbefogó patron méret [mm] | V113: HEX11 | Z113: 6
D114: Motorteljesítmény [W] | E114: 150 | F114: Szuper magas fordulatú, tollméretű gravírozó. Ideális gravírozáshoz, tuningoláshoz. Szűk helyekre is befér. Zajcsökkentővel. Fordulata szabályozható a készülék végén lévő gyűrűvel. | I114: 350 | J114: Mini vágó gép 75mm-es vágótárcsával. Fordulatszá 20.000 /min Hozzávaló vágótárcsa: TR70 (Ft/db) | U114: Készülék hossza [mm] | V114: 175
D115: Szerszámbefogó patron méret [mm] | E115: 3 | U115: Üresjárati fordulat [rpm] | V115: 2800 | Z115: 22000
D116: Készülék hossza [mm] | E116: 134 | I116: 195 | U116: Tömeg [kg] | V116: 1,02 | Z116: 0,57
D117: Üresjárati fordulat [rpm] | E117: 55000 | I117: 20000 | U117: Használati besorolás | V117: 3 -igen magas színvonalú | Z117: 3 -igen magas színvonalú
D118: Tömeg [kg] | E118: 0,2 | I118: 0,8 | U118: Cikkszám / Típus / (Listaár) Nettó ár | V118: T025374 | W118: CP873 | X118: =VLOOKUP(V118,Árlista!$B:$D,3,0) -> STARS* 26 230,-Ft | Z118: T025373 | AA118: CP872 | AB118: =VLOOKUP(Z118,Árlista!$B:$D,3,0) -> STARS* 19 960,-Ft
D119: Használati besorolás | E119: 2 -megnövekedett igényekhez | I119: 2 -megnövekedett igényekhez
D120: Cikkszám / Típus / (Listaár) Nettó ár | E120: 8951000165 | F120: RC7051 | G120: =VLOOKUP(E120,Árlista!$B:$D,3,0) -> TOPS* 52 400,-Ft | I120: 8951075101 | J120: RC7190 | K120: =VLOOKUP(I120,Árlista!$B:$D,3,0) -> TOPS* 21 670,-Ft | U120: Cikkszám / Típus / (Listaár) Nettó ár | Z120: 8951075120 | AA120: RC7045
D122: Cikkszám / Típus / (Listaár) Nettó ár | I122: 8951011536 | J122: TR70 vágótárcsa | K122: =VLOOKUP(I122,Árlista!$B:$D,3,0) -> 560,-Ft

Sheet Szalag- és excentercsiszolók
A1: RODCRAFT | E1: Általános karbantartáshoz | K1: Ipari karbantartáshoz és gyártáshoz | R1: CHICAGO PNEUMATIC | U1: Általános karbantartáshoz | X1: Ipari karbantartáshoz és gyártáshoz | AC1: Ipari körülményekhez -sorozatgyártás | AI1: RODCRAFT
A2: Árlista | R2: Árlista | AI2: Árlista
A3: Megrendelő | R3: Megrendelő | AI3: Megrendelő
A4: Fúrók | R4: Fúrók | AI4: Fúrók
A5: Racsnis kulcsok | R5: Racsnis kulcsok | AI5: Racsnis kulcsok
A6: Csavarbehajtók | R6: Csavarbehajtók | AI6: Csavarbehajtók
A7: Sarokcsiszolók | R7: Sarokcsiszolók | AI7: Sarokcsiszolók
A8: Légkulcsok | R8: Légkulcsok | AI8: Légkulcsok
A9: Egyenes csiszolók | R9: Egyenes csiszolók | AI9: Egyenes csiszolók
A10: Szalag és excenter csiszolók | R10: Szalag és excenter csiszolók | AB10: Jelölések: | AC10: NV | AD10: Elszívás nélküli | AI10: Szalag és excenter csiszolók
A11: Polír- és fiber csiszolók | R11: Polír- és fiber csiszolók | AC11: CV | AD11: Központi elszívás lehetőségével | AI11: Polír- és fiber csiszolók
A12: Vésők, leverők … | R12: Vésők, leverők … | AC12: SV | AD12: Saját elszívás | AI12: Vésők, leverők …
A13: Szóró- és lefúvató pisztolyok | R13: Vágók, fűrészek, szegecshúzók | AC13: H&L | AD13: Hook and Loop rendszerű tépőzár | AI13: Szóró- és lefúvató pisztolyok
A14: Vágók, fűrészek, szegecshúzók | R14: Szóró- és lefúvató pisztolyok | AC14: PSA | AD14: Pressure Sensitive Adhesive rögzítés | AI14: Vágók, fűrészek, szegecshúzók
A15: Dugókulcsok | D15: Típus | E15: Rodcraft RC7682K | I15: Rodcraft RC7661V | M15: Rodcraft RC7200V | R15: Dugókulcsok | AI15: Dugókulcsok
A16: Csatlakozók | D16: Motorteljesítmény [W] | E16: 150 | F16: Javító csiszoló SET. Ideális kis felületek javítására. Könnyű kompozitházas, kézreálló kialakítás az egykezes munkavégzés érdekében. A doboz tartalma: 1-1 db 50 és 75 mm-es tépőzáras pad 10-10 db 600-as finomcsiszoló 10-10 db 320-as csiszoló 10-10 db 180-as csiszoló korong. | J16: Kicsi, kézreálló excentercsiszoló, kiváló tömítettséggel és kiegyensúlyozással kis javításokhoz. Kompozitházas, gumírozott borítással a biztos tartás végett. Fordulatszám szabályozás. Kiválóan használható festési hibák, megfolyások javításához. | N16: 150-es excenter csiszoló, közepes pályaméretben így alkalmas finomabb és durvább csiszolásra is. Beépített fordulatszám szabályozóval, 150 mm-es velcro paddal. | R16: Csatlakozók | AI16: Csatlakozók
A17: Abroncstöltők | D17: Excentricitás [mm] | E17: 5 | I17: 2,5 | M17: 5 | R17: Abroncstöltők | U17: Chicago Pneumatic | V17: CP870 CP9674 | Z17: CP7215 | AD17: CP7215 Kétkezes csiszolók | AI17: Abroncstöltők
A18: ABAC Levegős szerszámok | D18: Csiszolótalp átmérő [mm] | E18: 50 / 75 | I18: 75-80 | M18: 150 | R18: ABAC Levegős szerszámok | V18: Motorteljesítmény: 210W Talpméret: 150mm Fordulatszám: 10 000 RPM Excentricitás: 10mm Alacsony zaj- és vibrácójú, jól szabályozható készülék | Z18: Motorteljesítmény: 210W Talpméret: 150mm Fordulatszám: 12 000 RPM Excentricitás: 10 mm Alacsony zaj- és vibrácójú, jól szabályozható készülék | AD18: Motorteljesítmény: 210W Talpméret: 150mm Fordulatszám: 12 000 RPM Excentricitás: 10 mm Alacsony zaj- és vibrácójú, jól szabályozható készülék | AI18: ABAC Levegős szerszámok
A19: Garázsipari eszközök | D19: Üresjárati fordulat [rpm] | E19: 15000 | I19: 10000 | M19: 10000 | R19: Garázsipari eszközök | AI19: Garázsipari eszközök
A20: AKKUMULÁTOROS GÉPEK | D20: Tömeg [kg] | E20: 0,53 | I20: 1 | M20: 1,95 | R20: AKKUMULÁTOROS GÉPEK | AI20: AKKUMULÁTOROS GÉPEK
A21: Tömlők, tömlődobok | D21: Javasolt tömlőméret ø [mm] | E21: 8 | I21: 8 | M21: 8 | R21: Tömlők, tömlődobok | AI21: Tömlők, tömlődobok | AS21: Nettó ár
A22: Szűrők, szabályozók | D22: Max. nyomás [bar] | E22: 6,3 | I22: 6,3 | M22: 6,3 | R22: Szűrők, szabályozók | U22: Cikkszám / Típus / (Listaár) Nettó ár | V22: T023990 | W22: NV PSA | X22: =VLOOKUP(V22,Árlista!$B:$D,3,0) -> 36 750,-Ft | Z22: 8941072151 | AA22: NV PSA | AB22: =VLOOKUP(Z22,Árlista!$B:$D,3,0) -> 94 300,-Ft | AD22: 8941072154 | AE22: NV PSA 2H | AF22: =VLOOKUP(AD22,Árlista!$B:$D,3,0) -> 117 800,-Ft | AI22: Szűrők, szabályozók | AQ22: 8951011645
A23: Balancerek | D23: Átlagos levegőfogyasztás [l/min] | E23: 380 | I23: 350 | R23: Balancerek | U23: Cikkszám / Típus / (Listaár) Nettó ár | V23: 6151939674 | W23: CV H&L | X23: =VLOOKUP(V23,Árlista!$B:$D,3,0) -> 237 200,-Ft | Z23: 8941072153 | AA23: CV PSA | AD23: 8941272154 | AE23: NV H&L 2H | AF23: =VLOOKUP(AD23,Árlista!$B:$D,3,0) -> 108 900,-Ft | AI23: Balancerek | AQ23: 8951011646
D24: Folyamatos levegőfogyasztás [l/min] | E24: 510 | I24: 430 | M24: 400 | U24: Cikkszám / Típus / (Listaár) Nettó ár | Z24: 8941272151 | AA24: NV H&L | AB24: =VLOOKUP(Z24,Árlista!$B:$D,3,0) -> 107 200,-Ft | AD24: 8941272155 | AE24: CV H&L 2H | AF24: =VLOOKUP(AD24,Árlista!$B:$D,3,0) -> 123 700,-Ft | AQ24: 8951011610
A25: =Fúrók!$A25 -> A feltüntett árak a 2020.02.01.-től | D25: Levegőcsatlakozás [inch] | E25: 1/4 Zoll IG | I25: 1/4 Zoll IG | M25: 1/4 Zoll IG | R25: =Fúrók!$A25 -> A feltüntett árak a 2020.02.01.-től | U25: Cikkszám / Típus / (Listaár) Nettó ár | Z25: 8941272153 | AA25: CV H&L | AB25: =VLOOKUP(Z25,Árlista!$B:$D,3,0) -> 103 200,-Ft | AI25: =Fúrók!$A25 -> A feltüntett árak a 2020.02.01.-től | AQ25: 8951011575
A26: =Fúrók!$A26 -> érvényes listaárak. | D26: Hangnyomásszint LpA | E26: 79,6 | I26: 88 | M26: 92,7 | R26: =Fúrók!$A26 -> érvényes listaárak. | U26: Cikkszám / Típus / (Listaár) Nettó ár | Z26: 8941072152 | AA26: SV PSA | AI26: =Fúrók!$A26 -> érvényes listaárak. | AQ26: 8951011561 | AS26: =VLOOKUP(AQ26,Árlista!B:D,3,0) -> 6 440,-Ft
A27: =Fúrók!$A27 -> * jelöléssel ellátott termékek a | D27: Hangenergiaszint, LwA [dB(A)] | I27: 98 | R27: =Fúrók!#REF! ->  | U27: Cikkszám / Típus / (Listaár) Nettó ár | Z27: 8941272152 | AA27: SV H&L | AB27: =VLOOKUP(Z27,Árlista!$B:$D,3,0) -> 106 900,-Ft | AI27: =Fúrók!$A27 -> * jelöléssel ellátott termékek a | AQ27: 8955000007 | AS27: =VLOOKUP(AQ27,Árlista!B:D,3,0) -> 3 080,-Ft | AT27: RC7182/83
A28: =Fúrók!$A28 -> RC TOPS és CP STAR akciós | D28: Vibráció [m/s2] | E28: <8,9 m/s² | I28: 7,2 | M28: 2,5 | R28: =Fúrók!$A27 -> * jelöléssel ellátott termékek a | AI28: =Fúrók!$A28 -> RC TOPS és CP STAR akciós | AQ28: 8951011560 | AS28: =VLOOKUP(AQ28,Árlista!B:D,3,0) -> 6 720,-Ft
A29: =Fúrók!$A29 -> kiadvány árai | D29: Használati besorolás | E29: 3 -igen magas színvonalú | I29: 3 -igen magas színvonalú | M29: 2 -megnövekedett igényekhez | R29: =Fúrók!$A28 -> RC TOPS és CP STAR akciós | AI29: =Fúrók!$A29 -> kiadvány árai | AQ29: 8955000006 | AS29: =VLOOKUP(AQ29,Árlista!B:D,3,0) -> 3 640,-Ft | AT29: RC7182/83
A30: =Fúrók!$A30 -> SP jelöléssel ellátott termékekre | D30: Cikkszám / Típus / (Listaár) Nettó ár | E30: 8951000018 | F30: RC7682K | G30: =VLOOKUP(E30,Árlista!$B:$D,3,0) -> TOPS* 47 590,-Ft | I30: 8951072231 | J30: RC7661V | K30: =VLOOKUP(I30,Árlista!$B:$D,3,0) -> 54 010,-Ft | M30: 8951072111 | N30: RC7200V | O30: =VLOOKUP(M30,Árlista!$B:$D,3,0) -> TOPS* 30 550,-Ft | R30: =Fúrók!$A29 -> kiadvány árai | AI30: =Fúrók!$A30 -> SP jelöléssel ellátott termékekre | AQ30: 8951011608
A31: =Fúrók!$A31 -> speciális viszonteladói árkézés | R31: =Fúrók!$A30 -> SP jelöléssel ellátott termékekre | AI31: =Fúrók!$A31 -> speciális viszonteladói árkézés | AQ31: 8951011644
A32: =Fúrók!$A32 -> vonatkozik. Az Extra árak | R32: =Fúrók!$A31 -> speciális viszonteladói árkézés | AI32: =Fúrók!$A32 -> vonatkozik. Az Extra árak | AQ32: 8951011562
A33: =Fúrók!$A33 -> a készlet erejéig, illetve | R33: =Fúrók!$A32 -> vonatkozik. Az Extra árak | AI33: =Fúrók!$A33 -> a készlet erejéig, illetve | AQ33: 8951011563
A34: =Fúrók!$A34 -> visszavonásig érvényesek. | AI34: =Fúrók!$A34 -> visszavonásig érvényesek. | AQ34: 8951011564 | AS34: =VLOOKUP(AQ34,Árlista!B:D,3,0) -> 6 440,-Ft
A35: =Fúrók!$A35 -> Az árista a Techtomat Kft és | R35: =Fúrók!$A35 -> Az árista a Techtomat Kft és | AI35: =Fúrók!$A35 -> Az árista a Techtomat Kft és | AQ35: 8951011565
A36: =Fúrók!$A36 -> Kapitár Kft közös gondozásában | R36: =Fúrók!$A36 -> Kapitár Kft közös gondozásában | AI36: =Fúrók!$A36 -> Kapitár Kft közös gondozásában | AQ36: 8951011566 | AS36: =VLOOKUP(AQ36,Árlista!B:D,3,0) -> 9 530,-Ft
A37: =Fúrók!$A37 -> jelent meg. | R37: =Fúrók!$A37 -> jelent meg. | AI37: =Fúrók!$A37 -> jelent meg. | AQ37: 8951011601
A38: =Fúrók!$A38 -> Minden jog fenntartva. | R38: =Fúrók!$A38 -> Minden jog fenntartva. | U38: Chicago Pneumatic | V38: CP3510, CP3511, CP3512, CP3514 | Z38: CP7250 | AD38: CP7255-3 | AI38: =Fúrók!$A38 -> Minden jog fenntartva. | AQ38: 8951011554 | AS38: =VLOOKUP(AQ38,Árlista!B:D,3,0) -> 14 570,-Ft
V39: Motorteljesítmény: 210W Talpméret: 125mm Fordulatszám: 12 000 RPM Excentricitás: 5mm Alacsony zaj- és vibrácójú, jól szabályozható készülék | Z39: Motorteljesítmény: 210W Talpméret: 150mm Fordulatszám: 12 000 RPM Excentricitás: 5 mm Alacsony zaj- és vibrácójú, jól szabályozható készülék nagy igénybevételre! Olajzásmentes kivitel. | AD39: Motorteljesítmény: 210W Talpméret: 75mm Fordulatszám: 12 000 RPM Excentricitás: 5 mm Alacsony zaj- és vibrácójú, jól szabályozható készülék | AQ39: 8951011559
A40: =Fúrók!$A40 -> Bővebb információ: | R40: =Fúrók!$A40 -> Bővebb információ: | AI40: =Fúrók!$A40 -> Bővebb információ:
A41: =Fúrók!$A41 -> Szabó Attila | R41: =Fúrók!$A41 -> Szabó Attila | AI41: =Fúrók!$A41 -> Szabó Attila
A42: =Fúrók!$A42 -> 30/201-4931 vagy 30/626-8687 | D42: Típus | E42: RC7702V6 / RC7705V6 / RC7710V6 | I42: Rodcraft RC7705V6 2H / Rodcraft RC7710V6 2H | M42: Rodcraft RC7691V | R42: =Fúrók!$A42 -> 30/201-4931 vagy 30/626-8687 | AI42: =Fúrók!$A42 -> 30/201-4931 vagy 30/626-8687
A43: =Fúrók!$A43 -> e-mail | D43: Motorteljesítmény [W] | E43: 285 | F43: Rendkívül erőteljes, könnyű szerkezetű legújabb generációs csiszológépek 150 mm-es (6“) micro-velcro talppal, minden szabványos csiszolóanyaghoz. Ergonomikus, pontos és kiegyensúlyozott készülék. Minimális vibráció a minél hosszabb munkabírás érdekében. Változtatható levegő kivezetés, alacsony zajkibocsájtás a különleges felfüggesztése és a gumiborítása végett. Elforgó porelszívó csatlakozóval. Elérhető 3 pályaméretben: 2,5 / 5 / 10 mm | I43: 285 | J43: Rendkívül erőteljes, könnyű szerkezetű kétkezes csiszológépek 150 mm-es (6“) micro-velcro talppal, minden szabványos csiszolóanyaghoz. Ergonomikus, pontos és kiegyensúlyozott készülék. Minimális vibráció a minél hosszabb munkabírás érdekében. Változtatható levegő kivezetés, alacsony zajkibocsájtás a különleges felfüggesztése és a gumiborítása végett. Elforgó porelszívó csatlakozóval. Elérhető 2 pályaméretben: 5 és 10 mm | N43: 200 mm-es kétkezes nagyteljesítményű excentercsiszoló, erőteljes 8 lamellás motorral, állítható sebességgel, 900 rpm-es orbital sebességgel. Különösen alkalmas nagy, sík felületek például a buszok, vagonok csiszolására. A kompozit anyagok és szigetelt markolat. A csiszoló 29 mm-es elszívócsonkkal van ellátva a központi elszívás végett. | U43: Cikkszám / Típus / (Listaár) Nettó ár | V43: 6151933510 | W43: NV H&L | X43: =VLOOKUP(V43,Árlista!$B:$D,3,0) -> 89 000,-Ft | Z43: 8941272501 | AA43: NV H&L | AB43: =VLOOKUP(Z43,Árlista!$B:$D,3,0) -> 169 100,-Ft | AD43: 8941072557 | AE43: NV PSA | AF43: =VLOOKUP(AD43,Árlista!$B:$D,3,0) -> 89 000,-Ft | AI43: =Fúrók!$A43 -> e-mail
A44: =Fúrók!$A44 -> Tóth Tamás | D44: Excentricitás [mm] | E44: 2,5 / 5/ 10 | I44: 5/ 10 | M44: 5 | R44: =Fúrók!$A44 -> Tóth Tamás | U44: Cikkszám / Típus / (Listaár) Nettó ár | V44: 6151933511 | W44: NV PSA | X44: =VLOOKUP(V44,Árlista!$B:$D,3,0) -> 89 000,-Ft | Z44: 8941272503 | AA44: CV H&L | AB44: =VLOOKUP(Z44,Árlista!$B:$D,3,0) -> 198 800,-Ft | AD44: 8941272557 | AE44: NV H&L | AF44: =VLOOKUP(AD44,Árlista!$B:$D,3,0) -> 89 000,-Ft | AI44: =Fúrók!$A44 -> Tóth Tamás
A45: =Fúrók!$A45 -> 30/603-1596 | D45: Csiszolótalp átmérő [mm] | E45: 150 | I45: 150 | M45: 200 | R45: =Fúrók!$A45 -> 30/603-1596 | U45: Cikkszám / Típus / (Listaár) Nettó ár | V45: 6151933512 | W45: SV H&L | X45: =VLOOKUP(V45,Árlista!$B:$D,3,0) -> 93 300,-Ft | Z45: 8941272502 | AA45: SV H&L | AB45: =VLOOKUP(Z45,Árlista!$B:$D,3,0) -> 202 500,-Ft | AD45: 8941272558 | AE45: CV H&L | AF45: =VLOOKUP(AD45,Árlista!$B:$D,3,0) -> 93 300,-Ft | AI45: =Fúrók!$A45 -> 30/603-1596
D46: Üresjárati fordulat [rpm] | E46: 10000 | I46: 10000 | M46: 10000 | U46: Cikkszám / Típus / (Listaár) Nettó ár | V46: 6151933514 | W46: CV H&L | X46: =VLOOKUP(V46,Árlista!$B:$D,3,0) -> STARS* 59 100,-Ft | Z46: 6151703740 | AA46: NV H&L 2H | AB46: =VLOOKUP(Z46,Árlista!$B:$D,3,0) -> 
D47: Tömeg [kg] | E47: 0,73 | I47: 1 | M47: 1,76 | Z47: 6151703760 | AA47: CV H&L 2H | AB47: =VLOOKUP(Z47,Árlista!$B:$D,3,0) -> 240 900,-Ft
D48: Javasolt tömlőméret ø [mm] | E48: 8 | I48: 8 | M48: 8 | AS48: Nettó ár
D49: Max. nyomás [bar] | E49: 6,3 | I49: 6,3 | M49: 6,3 | AQ49: 8951011597
D50: Átlagos levegőfogyasztás [l/min] | E50: 450 | I50: 450 | M50: 445 | AQ50: 8951011642 | AS50: =VLOOKUP(AQ50,Árlista!B:D,3,0) -> 15 130,-Ft
D51: Folyamatos levegőfogyasztás [l/min] | E51: 550 | I51: 550 | M51: 550 | AQ51: 8951011643 | AS51: =VLOOKUP(AQ51,Árlista!B:D,3,0) -> 20 170,-Ft
D52: Levegőcsatlakozás [inch] | E52: 1/4 Zoll IG | I52: 1/4 Zoll IG | M52: 1/4 Zoll IG | AQ52: 8951011567 | AS52: =VLOOKUP(AQ52,Árlista!B:D,3,0) -> 8 970,-Ft
D53: Hangnyomásszint LpA | E53: 86,1 | I53: 86,1 | M53: 88,6 | AQ53: 8951011603
D54: Hangenergiaszint, LwA [dB(A)] | AQ54: 8951011596
D55: Vibráció [m/s2] | E55: 5,4 | I55: 5,4 | M55: 2,8 | AQ55: 8951011599 | AS55: =VLOOKUP(AQ55,Árlista!B:D,3,0) -> 11 770,-Ft
D56: Használati besorolás | E56: 4 | I56: 3 -igen magas színvonalú | M56: 4 | AQ56: 8951011636 | AS56: =VLOOKUP(AQ56,Árlista!B:D,3,0) -> 19 330,-Ft
D57: Cikkszám / Típus / (Listaár) Nettó ár | E57: 8951000021 | F57: 2,5 mm | G57: =VLOOKUP(E57,Árlista!$B:$D,3,0) -> TOPS* 59 100,-Ft | I57: 8951000081 | J57: 5 mm | K57: =VLOOKUP(I57,Árlista!$B:$D,3,0) -> TOPS* 58 500,-Ft | M57: 8951072212 | N57: RC7691V | O57: =VLOOKUP(M57,Árlista!$B:$D,3,0) -> 122 900,-Ft | U57: Chicago Pneumatic | V57: CP7255 | Z57: CP7255 | AD57: CP9534 | AQ57: 8951011638 | AS57: =VLOOKUP(AQ57,Árlista!B:D,3,0) -> 17 090,-Ft
V58: Motorteljesítmény: 210W Talpméret: 150mm Fordulatszám: 12 000 RPM Excentricitás: 5 mm Alacsony zaj- és vibrácójú, jól szabályozható készülék | Z58: Motorteljesítmény: 210W Talpméret: 150mm Fordulatszám: 12 000 RPM Excentricitás: 5 mm Alacsony zaj- és vibrácójú, jól szabályozható készülék | AD58: Motorteljesítmény: 210W Talpméret: 150mm Fordulatszám: 9 000 RPM Excentricitás: 5 mm Alacsony zaj- és vibrácójú, jól szabályozható ipari készülék. Olajozásmentes kivitel. | AQ58: 8951011640
D59: Cikkszám / Típus / (Listaár) Nettó ár | E59: 8951000020 | F59: 5 mm | G59: =VLOOKUP(E59,Árlista!$B:$D,3,0) -> TOPS* 59 100,-Ft | I59: 8951000082 | J59: 10 mm | K59: =VLOOKUP(I59,Árlista!$B:$D,3,0) -> TOPS* 58 500,-Ft | AQ59: 8951011569
AQ60: 8951011637
D61: Cikkszám / Típus / (Listaár) Nettó ár | E61: 8951000070 | F61: 10 mm | G61: =VLOOKUP(E61,Árlista!$B:$D,3,0) -> TOPS* 72 100,-Ft | AQ61: 8951011639
U62: Cikkszám / Típus / (Listaár) Nettó ár | V62: 8941072551 | W62: NV PSA | X62: =VLOOKUP(V62,Árlista!$B:$D,3,0) -> 93 300,-Ft | Z62: 8941072554 | AA62: NV PSA 2H | AB62: =VLOOKUP(Z62,Árlista!$B:$D,3,0) -> 117 800,-Ft | AD62: 6151939534 | AE62: CV H&L 2H | AF62: =VLOOKUP(AD62,Árlista!$B:$D,3,0) -> 237 200,-Ft | AQ62: 8951011641
U63: Cikkszám / Típus / (Listaár) Nettó ár | V63: 8941272551 | W63: NV H&L | X63: =VLOOKUP(V63,Árlista!$B:$D,3,0) -> 92 300,-Ft | Z63: 8941272554 | AA63: NV H&L 2H | AB63: =VLOOKUP(Z63,Árlista!$B:$D,3,0) -> 108 900,-Ft | AQ63: 8955000012 | AS63: =VLOOKUP(AQ63,Árlista!B:D,3,0) -> TOPS* 9 730,-Ft
U64: Cikkszám / Típus / (Listaár) Nettó ár | V64: 8941072553 | W64: CV PSA | X64: =VLOOKUP(V64,Árlista!$B:$D,3,0) -> 99 300,-Ft | Z64: 8941272555 | AA64: SV H&L 2H | AB64: =VLOOKUP(Z64,Árlista!$B:$D,3,0) -> 117 800,-Ft | AQ64: 8951012348 | AS64: =VLOOKUP(AQ64,Árlista!B:D,3,0) -> 13 450,-Ft
U65: Cikkszám / Típus / (Listaár) Nettó ár | V65: 8941272553 | W65: CV H&L | X65: =VLOOKUP(V65,Árlista!$B:$D,3,0) -> STARS* 56 900,-Ft
U67: Cikkszám / Típus / (Listaár) Nettó ár | V67: 8941072552 | W67: SV PSA | X67: =VLOOKUP(V67,Árlista!$B:$D,3,0) -> 103 900,-Ft
U68: Cikkszám / Típus / (Listaár) Nettó ár | V68: 8941272552 | W68: SV H&L | X68: =VLOOKUP(V68,Árlista!$B:$D,3,0) -> 106 900,-Ft
D75: Típus | E75: Rodcraft RC7155 | I75: Rodcraft RC7156 | M75: Rodcraft RC7157 | AL75: Típus | AM75: Rodcraft RC7155 csiszolóhoz 10x330mm (10db) | AQ75: Rodcraft RC7156 csiszolóhoz 20x520mm (10db) | AU75: Rodcraft RC7157 csiszolóhoz 30x540mm (10db)
D76: Motorteljesítmény [W] | F76: 10 mm-es szalagcsiszoló. Ideális eszköz szúk helyek és sarkok csiszolásához. Gyorsfeszítő mechanizmussal a gyors szalagcsere végett. Ergonomikus kialakítás, kényelmes fogantyú. Rendelhető szemcsefinomságú csiszolószalagok: 40, 80, 120, 180, 240 10 db/csomag | J76: 20 mm-es szalagcsiszoló. Ideális eszköz sarkok csiszolásához. Gyorsfeszítő mechanizmussal a gyors szalagcsere végett. Ergonomikus kialakítás, kényelmes fogantyú. Rendelhető szemcsefinomságú csiszolószalagok: 80, 120, 180, 240 10 db/csomag | N76: 30 mm-es szalagcsiszoló. Gyorsfeszítő mechanizmussal a gyors szalagcsere végett. Ergonomikus kialakítás, kényelmes leszerelhető oldalfogantyúval. Rendelhető szemcsefinomságú csiszolószalagok: 80, 120, 180, 240 10 db/csomag | AL76: Cikkszám / Típus / (Listaár) Nettó ár | AM76: 8951011570 | AN76: 80 | AO76: =VLOOKUP(AM76,Árlista!$B:$D,3,0) -> TOPS* 4 220,-Ft | AQ76: 8951011580 | AR76: 80 | AS76: =VLOOKUP(AQ76,Árlista!$B:$D,3,0) -> 12 610,-Ft | AU76: 8951011592 | AV76: 80 | AW76: =VLOOKUP(AU76,Árlista!$B:$D,3,0) -> 13 730,-Ft
D77: Szalagszélesség [mm] | E77: 10 | I77: 20 | M77: 30 | AL77: Cikkszám / Típus / (Listaár) Nettó ár | AM77: 8951011577 | AN77: 120 | AO77: =VLOOKUP(AM77,Árlista!$B:$D,3,0) -> TOPS* 4 220,-Ft | AQ77: 8951011581 | AR77: 120 | AS77: =VLOOKUP(AQ77,Árlista!$B:$D,3,0) -> 13 730,-Ft | AU77: 8951011593 | AV77: 120 | AW77: =VLOOKUP(AU77,Árlista!$B:$D,3,0) -> 13 450,-Ft
D78: Szalag hossza [mm] | E78: 330 | I78: 520 | M78: 540 | U78: Chicago Pneumatic | V78: CP7220 | Z78: CP7225 | AD78: CP7225 | AL78: Cikkszám / Típus / (Listaár) Nettó ár | AM78: 8951011578 | AN78: 180 | AO78: =VLOOKUP(AM78,Árlista!$B:$D,3,0) -> TOPS* 4 220,-Ft | AQ78: 8951011582 | AR78: 180 | AS78: =VLOOKUP(AQ78,Árlista!$B:$D,3,0) -> 13 730,-Ft | AU78: 8951011594 | AV78: 180 | AW78: =VLOOKUP(AU78,Árlista!$B:$D,3,0) -> 19 610,-Ft
D79: Üresjárati fordulat [rpm] | E79: 18000 | I79: 17000 | M79: 13000 | V79: Motorteljesítmény: 210W Talpméret: 150mm Fordulatszám: 12 000 RPM Excentricitás: 2,5 mm Alacsony zaj- és vibrácójú, jól szabályozható ipari készülék. Olajozásmentes kivitel. | Z79: Motorteljesítmény: 210W Talpméret: 75mm Fordulatszám: 12 000 RPM Excentricitás: 2,5 mm Alacsony zaj- és vibrácójú, jól szabályozható készülék | AD79: Motorteljesítmény: 210W Talpméret: 150mm Fordulatszám: 12 000 RPM Excentricitás: 2,5 mm Alacsony zaj- és vibrácójú, jól szabályozható készülék | AL79: Cikkszám / Típus / (Listaár) Nettó ár | AM79: 8951011579 | AN79: 240 | AO79: =VLOOKUP(AM79,Árlista!$B:$D,3,0) -> TOPS* 4 220,-Ft | AQ79: 8951011583 | AR79: 240 | AS79: =VLOOKUP(AQ79,Árlista!$B:$D,3,0) -> 13 730,-Ft | AU79: 8951011595 | AV79: 240 | AW79: =VLOOKUP(AU79,Árlista!$B:$D,3,0) -> 19 610,-Ft
D80: Tömeg [kg] | E80: 0,8 | I80: 1,15 | M80: 2,2
D81: Javasolt tömlőméret ø [mm] | E81: 8 | I81: 8 | M81: 8
D82: Max. nyomás [bar] | E82: 6,3 | I82: 6,3 | M82: 6,3
D83: Átlagos levegőfogyasztás [l/min] | E83: 400 | I83: 400 | M83: 530 | U83: Cikkszám / Típus / (Listaár) Nettó ár | V83: 8941272201 | W83: NV PSA | X83: =VLOOKUP(V83,Árlista!$B:$D,3,0) -> 172 000,-Ft | Z83: 8941072257 | AA83: NV PSA | AB83: =VLOOKUP(Z83,Árlista!$B:$D,3,0) -> 89 000,-Ft | AD83: 8941072251 | AE83: NV PSA | AF83: =VLOOKUP(AD83,Árlista!$B:$D,3,0) -> 94 300,-Ft
D84: Folyamatos levegőfogyasztás [l/min] | E84: 520 | I84: 520 | M84: 660 | U84: Cikkszám / Típus / (Listaár) Nettó ár | V84: 8941272203 | W84: CV H&L | X84: =VLOOKUP(V84,Árlista!$B:$D,3,0) -> 197 900,-Ft | Z84: 8941272257 | AA84: NV H&L | AB84: =VLOOKUP(Z84,Árlista!$B:$D,3,0) -> 89 600,-Ft | AD84: 8941272251 | AE84: NV H&L | AF84: =VLOOKUP(AD84,Árlista!$B:$D,3,0) -> 106 900,-Ft
D85: Levegőcsatlakozás [inch] | E85: 1/4 Zoll IG | I85: 1/4 Zoll IG | M85: 1/4 Zoll IG | U85: Cikkszám / Típus / (Listaár) Nettó ár | V85: 8941272202 | W85: SV H&L | X85: =VLOOKUP(V85,Árlista!$B:$D,3,0) -> 217 600,-Ft | Z85: 8941272258 | AA85: CV H&L | AB85: =VLOOKUP(Z85,Árlista!$B:$D,3,0) -> 93 600,-Ft | AD85: 8941072253 | AE85: CV PSA | AF85: =VLOOKUP(AD85,Árlista!$B:$D,3,0) -> 94 300,-Ft
D86: Hangnyomásszint LpA | E86: 79,5 | I86: 83,2 | M86: 91,6 | U86: Cikkszám / Típus / (Listaár) Nettó ár | V86: 6151703770 | W86: NV H&L 2H | X86: =VLOOKUP(V86,Árlista!$B:$D,3,0) -> 189 700,-Ft | AD86: 8941272253 | AE86: CV H&L | AF86: =VLOOKUP(AD86,Árlista!$B:$D,3,0) -> STARS* 56 900,-Ft
D87: Hangenergiaszint, LwA [dB(A)] | U87: Cikkszám / Típus / (Listaár) Nettó ár | V87: 6151703790 | W87: CV H&L 2H | X87: =VLOOKUP(V87,Árlista!$B:$D,3,0) -> 194 600,-Ft | AD87: 8941072252 | AE87: SV PSA
D88: Vibráció [m/s2] | E88: 2,5 | I88: 2,4 | M88: 4,6 | U88: Cikkszám / Típus / (Listaár) Nettó ár | AD88: 8941272252 | AE88: SV H&L | AF88: =VLOOKUP(AD88,Árlista!$B:$D,3,0) -> 105 900,-Ft
D89: Használati besorolás | E89: 2 -megnövekedett igényekhez | I89: 2 -megnövekedett igényekhez | M89: 2 -megnövekedett igényekhez
D90: Cikkszám / Típus / (Listaár) Nettó ár | E90: 8951072041 | F90: RC7155 | G90: =VLOOKUP(E90,Árlista!$B:$D,3,0) -> TOPS* 55 700,-Ft | I90: 8951072051 | J90: RC7156 | K90: =VLOOKUP(I90,Árlista!$B:$D,3,0) -> TOPS* 78 200,-Ft | M90: 8951072061 | N90: RC7157 | O90: =VLOOKUP(M90,Árlista!$B:$D,3,0) -> Kifutó, érdeklődj!
U98: Chicago Pneumatic | V98: CP7263 | Z98: CP7266 | AD98: CP7264
V99: Motorteljesítmény: 210W Talpméret: 74 x 109mm Fordulatszám: 10 000 RPM Excentricitás: 2,5 mm Alacsony zaj- és vibrácójú, jól szabályozható készülék. | Z99: Motorteljesítmény: 210W Talpméret: 80 x 130mm Fordulatszám: 10 000 RPM Excentricitás: 2,5 mm Alacsony zaj- és vibrácójú, jól szabályozható készülék. | AD99: Motorteljesítmény: 210W Talpméret: 70 x 198mm Fordulatszám: 10 000 RPM Excentricitás: 2,5 mm Alacsony zaj- és vibrácójú, jól szabályozható készülék.
U103: Cikkszám / Típus / (Listaár) Nettó ár | V103: 8941072650 | W103: NV H&L | X103: =VLOOKUP(V103,Árlista!$B:$D,3,0) -> 97 900,-Ft | Z103: 8941072660 | AA103: NV H&L | AB103: =VLOOKUP(Z103,Árlista!$B:$D,3,0) -> 97 900,-Ft | AD103: 8941072640 | AE103: NV H&L | AF103: =VLOOKUP(AD103,Árlista!$B:$D,3,0) -> 97 900,-Ft
U104: Cikkszám / Típus / (Listaár) Nettó ár | V104: 8941172650 | W104: CV H&L | X104: =VLOOKUP(V104,Árlista!$B:$D,3,0) -> 100 300,-Ft | Z104: 8941172660 | AA104: CV H&L | AB104: =VLOOKUP(Z104,Árlista!$B:$D,3,0) -> 100 300,-Ft | AD104: 8941172640 | AE104: CV H&L | AF104: =VLOOKUP(AD104,Árlista!$B:$D,3,0) -> 100 300,-Ft
D105: Típus | E105: Rodcraft RC7091MBX
D106: Motorteljesítmény [W] | E106: 420 | F106: RODCRAFT MBX - KÖRKEFÉS CSISZOLÓ RENDSZER (RC szabadalom) GYORS - BIZTONSÁGOS - TISZTA Rozsda, lakk, alvázvédő, ragasztó eltávolítása. A hidegradírozó segítségével a lakk sérülése és felmelegedése nélkül eltávolíthatók a matricák és egyéb ragasztómaradványok. Speciális élezhető drótkorongok kialakítástól és erősségtől függően hatékony anyagleválasztást tesznek lehetővé. Gép mellé jár: 4 különféle drótkorong 1 hidegradírozó korong 2 adapterkerék | I106: DURVA -Döntött szálú, élezett, edzett eszköz, homokfúvó hatékonyság, Ø 0,7 mm vastag rugóacél Eltávolítja a kisebb felületi hibákat, a tömítőanyag maradékot és az előző festékréteget. Kiválóan alkalmas hegesztési területek utánkezelésére, a kontúrok és sarkok kialakítására. BU020-5 (11 mm) és BU015-5 (23 mm) 5db | M106: FINOM -Egyenes szálú, élezett, edzett eszköz, homokfúvó hatékonyság, Ø 0,5 mm vastag rugóacél. Nagy hatékonyságú rozsdaeltávolítás, tisztítás. Kiváló eszköz öntöttvas tisztításához. BU028-5 (11 mm) és BU017-5 (23 mm) 5db Alumíniumhoz nem javasolt!
D107: Szerszámbefogó méret [mm] | E107: MBX
D108: Készülék hossza [mm] | E108: 275
D109: Üresjárati fordulat [rpm] | E109: 3500
D110: Tömeg [kg] | E110: 1,1
D111: Javasolt tömlőméret ø [mm] | E111: 8
D112: Max. nyomás [bar] | E112: 6,3
D113: Átlagos levegőfogyasztás [l/min] | E113: 110 | I113: KÖZEPES -Döntött szálú, élezett, edzett eszköz, homokfúvó hatékonyság, Ø 0,5 mm vastag rugóacél Nagy hatékonyságú rozsdaeltávolítás, porózus, nehezen hozzáférhető helyekre. BU021-5 (11 mm) és BU022-5 (23 mm) 5db | M113: SZUPER FINOM -Egyenes és döntött szálú, élezett, edzett eszköz, Ø 0,5 mm vastag rugóacél. Nagy hatékonyságú festékeltávolítás és tisztítás alumínium alkatrészekről, ugyanakkor a szegecseket csavarokat megkíméli. BU018-5 (23 mm) és BU030-5 (11 mm) BU019-5 (23 mm) 5db
D114: Folyamatos levegőfogyasztás [l/min] | E114: 670
D115: Levegőcsatlakozás [inch] | E115: 1/4 Zoll IG | U115: Chicago Pneumatic | V115: CP7267 Delta csiszoló | Z115: CP7268 | AD115: CP7200
D116: Hangnyomásszint LpA | E116: 83,2 | V116: Motorteljesítmény: 210W Talpméret: 100 x 144mm Fordulatszám: 10 000 RPM Excentricitás: 2,5 mm Alacsony zaj- és vibrácójú, jól szabályozható készülék. | Z116: Motorteljesítmény: Talpméret: 50 x 445mm Löketszám: 5 000 RPM Lökethossz: Strapabírő, két dugattyús működtetésű egyenes sziszoló. | AD116: Motorteljesítmény: 150W Talpméret: 50 és 75 mm Fordulatszám: 15 000 RPM Excentricitás: 2,5 mm Könnyű, egykezes használatra tervezett pontcsiszoló.
D117: Hangenergiaszint, LwA [dB(A)]
D118: Vibráció [m/s2] | E118: 2,5
D119: Használati besorolás | E119: 3 -igen magas színvonalú | I119: 3 -igen magas színvonalú | M119: 3 -igen magas színvonalú
D120: Cikkszám / Típus / (Listaár) Nettó ár | E120: 8951176010 | F120: RC7091 készlet | G120: =VLOOKUP(E120,Árlista!$B:$D,3,0) -> TOPS* 165 000,-Ft | I120: 8951011664 | J120: BU020-5 durva korong szimpla 5db | K120: =VLOOKUP(I120,Árlista!$B:$D,3,0) -> TOPS* 48 160,-Ft | M120: 8951011668 | N120: BU028-5 finom korong szimpla 5db | O120: =VLOOKUP(M120,Árlista!$B:$D,3,0) -> TOPS* 48 160,-Ft | U120: Cikkszám / Típus / (Listaár) Nettó ár | V120: 8941072670 | W120: NV H&L | X120: =VLOOKUP(V120,Árlista!$B:$D,3,0) -> 100 600,-Ft | Z120: 8941072680 | AA120: CP7268 | AB120: =VLOOKUP(Z120,Árlista!$B:$D,3,0) -> STARS* 56 300,-Ft | AD120: 8941072001 | AE120: CP7200 | AF120: =VLOOKUP(AD120,Árlista!$B:$D,3,0) -> STARS* 40 450,-Ft
U121: Cikkszám / Típus / (Listaár) Nettó ár | V121: 8941172670 | W121: CV H&L | X121: =VLOOKUP(V121,Árlista!$B:$D,3,0) -> 100 300,-Ft | AD121: 8941172001 | AE121: CP7200 KIT | AF121: =VLOOKUP(AD121,Árlista!$B:$D,3,0) -> STARS* 47 030,-Ft
D122: Cikkszám / Típus / (Listaár) Nettó ár | E122: Radír: | I122: 8951011663 | J122: BU015-5 durva korong dupla 5db | K122: =VLOOKUP(I122,Árlista!$B:$D,3,0) -> TOPS* 48 160,-Ft | M122: 8951011667 | N122: BU017-5 finom korong dupla 5db | O122: =VLOOKUP(M122,Árlista!$B:$D,3,0) -> TOPS* 48 160,-Ft
D124: Cikkszám / Típus / (Listaár) Nettó ár | E124: 8951011649 | F124: ZU014 5db | G124: =VLOOKUP(E124,Árlista!$B:$D,3,0) -> TOPS* 72 600,-Ft | I124: 8951011666 | J124: BU021-5 közepes korong szimpla 5db | K124: =VLOOKUP(I124,Árlista!$B:$D,3,0) -> TOPS* 48 160,-Ft | M124: 8951011671 | N124: BU018-5 sz. fin. korong szimpla 5db | O124: =VLOOKUP(M124,Árlista!$B:$D,3,0) -> TOPS* 55 700,-Ft
D126: Cikkszám / Típus / (Listaár) Nettó ár | E126: 8951011648 | F126: ADAPT 11 | G126: =VLOOKUP(E126,Árlista!$B:$D,3,0) -> 12 330,-Ft | I126: 8951011665 | J126: BU022-5 közepes korong dupla 5db | K126: =VLOOKUP(I126,Árlista!$B:$D,3,0) -> TOPS* 48 160,-Ft | M126: 8951011670 | N126: BU030-5 sz. fin. korong dupla 5db | O126: =VLOOKUP(M126,Árlista!$B:$D,3,0) -> TOPS* 55 700,-Ft
D128: Cikkszám / Típus / (Listaár) Nettó ár | E128: 8951011647 | F128: ADAPT 23 | G128: =VLOOKUP(E128,Árlista!$B:$D,3,0) -> 12 330,-Ft | I128: 8951011651 | J128: Fenőkő | K128: =VLOOKUP(I128,Árlista!$B:$D,3,0) -> 3 360,-Ft | M128: 8951011669 | N128: BU019-5 sz. fin. korong szimpla 5db | O128: =VLOOKUP(M128,Árlista!$B:$D,3,0) -> TOPS* 55 700,-Ft
U131: Chicago Pneumatic | V131: CP5080-3260D12 | Z131: CP5080-4200H18 | AD131: CP5080-4200D24
V132: Motorteljesítmény: 300W Papírméret: 13 x 305mm Fordulatszám: 26 000 RPM Ipari kivitelű szalagcsiszoló, precíziós felaldatokra. | Z132: Motorteljesítmény: 400W Papírméret: 13 x 457mm Fordulatszám: 20 000 RPM Ipari kivitelű erős szalagcsiszoló, precíziós felaldatokra. | AD132: Motorteljesítmény: 400W Papírméret: 13 x 610mm Fordulatszám: 20 000 RPM Ipari kivitelű rendkívül megbízható szalagcsiszoló, precíziós felaldatokra.
U136: Cikkszám / Típus / (Listaár) Nettó ár | V136: 6151620000 | W136: CP5080-3260D12 | X136: =VLOOKUP(V136,Árlista!$B:$D,3,0) -> 189 300,-Ft | Z136: 6151620020 | AA136: CP5080-4200H18 | AB136: =VLOOKUP(Z136,Árlista!$B:$D,3,0) -> 192 600,-Ft | AD136: 6151620010 | AE136: CP5080-4200D24 | AF136: =VLOOKUP(AD136,Árlista!$B:$D,3,0) -> 196 700,-Ft
U137: Cikkszám / Típus / (Listaár) Nettó ár | V137: 6151620050 | W137: KIT | X137: =VLOOKUP(V137,Árlista!$B:$D,3,0) -> 217 200,-Ft | Z137: 6151620040 | AA137: KIT | AB137: =VLOOKUP(Z137,Árlista!$B:$D,3,0) -> 235 600,-Ft
U147: Chicago Pneumatic | V147: CP5080-5220H18 | Z147: CP5080-3260H19 | AD147: CP858
V148: Motorteljesítmény: 560W Papírméret: 25 x 457mm Fordulatszám: 22 000 RPM Robosztus felépítésű, nagyteljesítményű ipari szalagcsiszoló. | Z148: Motorteljesítmény: 300W Papírméret: 13-25 x 480mm Fordulatszám: 26 000 RPM Ipari kivitelű speciális kialakítású szalagcsiszoló. | AD148: Motorteljesítmény: 300W Papírméret: 10 x 330mm Fordulatszám: 18 000 RPM Megbízható szalagcsiszoló, precíziós felaldatokra.
U152: Cikkszám / Típus / (Listaár) Nettó ár | V152: 6151620030 | W152: CP5080-5220H18 | X152: =VLOOKUP(V152,Árlista!$B:$D,3,0) -> 254 000,-Ft | Z152: 6151620200 | AA152: CP5080-3260H19 | AB152: =VLOOKUP(Z152,Árlista!$B:$D,3,0) -> 179 400,-Ft | AD152: T025179 | AE152: CP858 | AF152: =VLOOKUP(AD152,Árlista!$B:$D,3,0) -> 131 600,-Ft
U161: Chicago Pneumatic | V161: CP9779 | Z161: CP9780
V162: Motorteljesítmény: 260W Papírméret: 10 x 330mm Fordulatszám: 22 000 RPM Robosztus felépítésű, nagyteljesítményű ipari szalagcsiszoló. | Z162: Motorteljesítmény: 380W Papírméret: 20 x 520mm Fordulatszám: 20 000 RPM Ipari kivitelű speciális kialakítású szalagcsiszoló.
U166: Cikkszám / Típus / (Listaár) Nettó ár | V166: 6151939779 | W166: CP9779 | X166: =VLOOKUP(V166,Árlista!$B:$D,3,0) -> 91 300,-Ft | Z166: 6151939780 | AA166: CP9780 | AB166: =VLOOKUP(Z166,Árlista!$B:$D,3,0) -> 117 800,-Ft

Sheet Polír- és fiber csiszolók
A1: RODCRAFT | E1: Általános karbantartáshoz | K1: Ipari karbantartáshoz és gyártáshoz | R1: CHICAGO PNEUMATIC | U1: Általános karbantartáshoz | X1: Ipari karbantartáshoz és gyártáshoz | AC1: Ipari körülményekhez -sorozatgyártás | AI1: RODCRAFT
A2: Árlista | R2: Árlista | AI2: Árlista
A3: Megrendelő | R3: Megrendelő | AI3: Megrendelő
A4: Fúrók | R4: Fúrók | AI4: Fúrók
A5: Racsnis kulcsok | R5: Racsnis kulcsok | AI5: Racsnis kulcsok
A6: Csavarbehajtók | R6: Csavarbehajtók | AI6: Csavarbehajtók
A7: Sarokcsiszolók | R7: Sarokcsiszolók | AI7: Sarokcsiszolók
A8: Légkulcsok | R8: Légkulcsok | AI8: Légkulcsok
A9: Egyenes csiszolók | R9: Egyenes csiszolók | AI9: Egyenes csiszolók
A10: Szalag és excenter csiszolók | R10: Szalag és excenter csiszolók | AI10: Szalag és excenter csiszolók
A11: Polír- és fiber csiszolók | R11: Polír- és fiber csiszolók | AI11: Polír- és fiber csiszolók
A12: Vésők, leverők … | R12: Vésők, leverők … | AI12: Vésők, leverők …
A13: Szóró- és lefúvató pisztolyok | R13: Vágók, fűrészek, szegecshúzók | AI13: Szóró- és lefúvató pisztolyok
A14: Vágók, fűrészek, szegecshúzók | R14: Szóró- és lefúvató pisztolyok | AI14: Vágók, fűrészek, szegecshúzók
A15: Dugókulcsok | R15: Dugókulcsok | AI15: Dugókulcsok
A16: Csatlakozók | R16: Csatlakozók | AI16: Csatlakozók
A17: Abroncstöltők | R17: Abroncstöltők | U17: Chicago Pneumatic | V17: CP7265P / CP7265S | Z17: CP7269P / CP7269S | AD17: CP7201 | AI17: Abroncstöltők
A18: ABAC Levegős szerszámok | R18: ABAC Levegős szerszámok | V18: Motorteljesítmény: 500W Talpméret: 205mm Fordulatszám: 2 100 RPM (P) Talpméret: 180mm Fordulatszám: 5 000 RPM (S) Strapabíró, kézreálló kétkezes polírozó | Z18: Motorteljesítmény: 500W Talpméret: 205mm Fordulatszám: 2 100 RPM (P) Talpméret: 180mm Fordulatszám: 5 000 RPM (S) Strapabíró, kézreálló kétkezes polírozó | AD18: Motorteljesítmény: 150W Talpméret: 75mm Fordulatszám: 2 500 RPM Könnyű, jól kezelhető polírozó. | AI18: ABAC Levegős szerszámok
A19: Garázsipari eszközök | D19: Típus | E19: Rodcraft RC7016RE | I19: Rodcraft RC7150 | M19: Rodcraft RC7120 | R19: Garázsipari eszközök | AI19: Garázsipari eszközök
A20: AKKUMULÁTOROS GÉPEK | D20: Motorteljesítmény [W] | E20: 300 | F20: Mini pisztoly csiszoló 6-os szerszámbefogó patronnal. (rendelhető hozzá 3 mm-es patron is). Kiváló ár / érték arány. Csökkentett zaj és rezgés a komfortosabb használat érdekében. DUS 22 zajcsökkentő rendszerrel. A készlet tartalma: 1-1 db 50 és 75 mm-es Roloc pad 5-5 db csiszoló korong 3 db speciális Roloc Bristle tárcsa különböző finomságban. A készülék külön is megvásárolható RC7015RE. | I20: 400 | J20: Gyors pisztolycsiszoló ø 115 mm fiber tárcsával. Sebességszabályozó, a fogantyún elhelyezett nyomógomb révén. Vágótárcsa használatára nem alkalmas! A készülékhez rendelhető fibertárcsa: 75x22, 105x22, 125x22, valamint adapter M14x2 mérethez. | M20: 500 | N20: Ergonomikus kialakítású sarokcsiszoló. Elsődlegesen fém felületek csiszolására alkalmas. Hátsó levegőelvezetéssel és zajcsökkentővel. Oldalfogantyúja áthelyezhető. Könnyű karbantartás a kúpkerekeknél lévő zsírzógomb révén. M14x2 kihajtással is rendelhető. | R20: AKKUMULÁTOROS GÉPEK | AI20: AKKUMULÁTOROS GÉPEK
A21: Tömlők, tömlődobok | D21: Kihajtási méret | E21: 6-os patron | I21: 7/16"-22 AG | M21: 5/8" | R21: Tömlők, tömlődobok | AI21: Tömlők, tömlődobok
A22: Szűrők, szabályozók | D22: Tárcsaméret [mm] | E22: 50-75 | I22: 75-115 | M22: 180 | R22: Szűrők, szabályozók | U22: Cikkszám / Típus / (Listaár) Nettó ár | V22: 6151939166 | W22: CP7265P | X22: =VLOOKUP(V22,Árlista!$B:$D,3,0) -> 184 700,-Ft | Z22: 8941078691 | AA22: CP7269P | AB22: =VLOOKUP(Z22,Árlista!$B:$D,3,0) -> 149 800,-Ft | AD22: 8941072014 | AE22: CP7201 | AF22: =VLOOKUP(AD22,Árlista!$B:$D,3,0) -> STARS* 40 450,-Ft | AI22: Szűrők, szabályozók
A23: Balancerek | D23: Üresjárati fordulat [rpm] | E23: 17000 | I23: 18000 | M23: 4500 | R23: Balancerek | U23: Cikkszám / Típus / (Listaár) Nettó ár | V23: 8941008650 | W23: CP7265S | X23: =VLOOKUP(V23,Árlista!$B:$D,3,0) -> 142 200,-Ft | Z23: 8941078690 | AA23: CP7269S | AB23: =VLOOKUP(Z23,Árlista!$B:$D,3,0) -> 136 900,-Ft | AD23: 8941172014 | AE23: CP7201 KIT | AF23: =VLOOKUP(AD23,Árlista!$B:$D,3,0) -> STARS* 45 330,-Ft | AI23: Balancerek
D24: Tömeg [kg] | E24: 0,4 | I24: 1,15 | M24: 2
A25: =Fúrók!$A25 -> A feltüntett árak a 2020.02.01.-től | D25: Javasolt tömlőméret ø [mm] | E25: 8 | I25: 8 | M25: 8 | R25: =Fúrók!$A25 -> A feltüntett árak a 2020.02.01.-től | AI25: =Fúrók!$A25 -> A feltüntett árak a 2020.02.01.-től
A26: =Fúrók!$A26 -> érvényes listaárak. | D26: Max. nyomás [bar] | E26: 6,3 | I26: 6,3 | M26: 6,3 | R26: =Fúrók!$A26 -> érvényes listaárak. | AI26: =Fúrók!$A26 -> érvényes listaárak.
A27: =Fúrók!$A27 -> * jelöléssel ellátott termékek a | D27: Átlagos levegőfogyasztás [l/min] | E27: 385 | I27: 410 | M27: 525 | R27: =Fúrók!#REF! ->  | AI27: =Fúrók!$A27 -> * jelöléssel ellátott termékek a
A28: =Fúrók!$A28 -> RC TOPS és CP STAR akciós | D28: Folyamatos levegőfogyasztás [l/min] | E28: 420 | I28: 570 | M28: 700 | R28: =Fúrók!$A27 -> * jelöléssel ellátott termékek a | AI28: =Fúrók!$A28 -> RC TOPS és CP STAR akciós
A29: =Fúrók!$A29 -> kiadvány árai | D29: Levegőcsatlakozás [inch] | E29: 1/4 Zoll IG | I29: 1/4 Zoll IG | M29: 1/4 Zoll IG | R29: =Fúrók!$A28 -> RC TOPS és CP STAR akciós | AI29: =Fúrók!$A29 -> kiadvány árai
A30: =Fúrók!$A30 -> SP jelöléssel ellátott termékekre | D30: Hangnyomásszint LpA | E30: 85,8 | I30: 81 | M30: 81 | R30: =Fúrók!$A29 -> kiadvány árai | AI30: =Fúrók!$A30 -> SP jelöléssel ellátott termékekre
A31: =Fúrók!$A31 -> speciális viszonteladói árkézés | D31: Hangenergiaszint, LwA [dB(A)] | R31: =Fúrók!$A30 -> SP jelöléssel ellátott termékekre | AI31: =Fúrók!$A31 -> speciális viszonteladói árkézés
A32: =Fúrók!$A32 -> vonatkozik. Az Extra árak | D32: Vibráció [m/s2] | E32: 1,46 | I32: <3,2 m/s² | M32: 2,7 | R32: =Fúrók!$A31 -> speciális viszonteladói árkézés | AI32: =Fúrók!$A32 -> vonatkozik. Az Extra árak
A33: =Fúrók!$A33 -> a készlet erejéig, illetve | D33: Használati besorolás | E33: 3 -igen magas színvonalú | I33: 3 -igen magas színvonalú | M33: 3 -igen magas színvonalú | R33: =Fúrók!$A32 -> vonatkozik. Az Extra árak | AI33: =Fúrók!$A33 -> a készlet erejéig, illetve
A34: =Fúrók!$A34 -> visszavonásig érvényesek. | D34: Cikkszám / Típus / (Listaár) Nettó ár | E34: 8951175011 | F34: RC7016RE | I34: 8951000019 | J34: RC7150 | K34: =VLOOKUP(I34,Árlista!$B:$D,3,0) -> TOPS* 42 490,-Ft | M34: 8951072001 | N34: RC7120 | O34: =VLOOKUP(M34,Árlista!$B:$D,3,0) -> 104 000,-Ft | U34: Chicago Pneumatic | V34: CP7202 | Z34: CP3070-120G | AD34: CP9778 | AI34: =Fúrók!$A34 -> visszavonásig érvényesek.
A35: =Fúrók!$A35 -> Az árista a Techtomat Kft és | R35: =Fúrók!$A35 -> Az árista a Techtomat Kft és | V35: Motorteljesítmény: 150W Talpméret: 75mm Fordulatszám: 15 000 RPM Könnyű, jól kezelhető Roloc rendszerű csíszoló. | Z35: Motorteljesítmény: 375W Talpméret: 125mm Fordulatszám: 12 000 RPM Ipari, nagy megízhatóságú csiszoló. | AD35: Motorteljesítmény: 375W Talpméret: 125mm Fordulatszám: 14 000 RPM Magas fordulatú csiszoló. | AI35: =Fúrók!$A35 -> Az árista a Techtomat Kft és
A36: =Fúrók!$A36 -> Kapitár Kft közös gondozásában | D36: Cikkszám / Típus / (Listaár) Nettó ár | E36: 8951075111 | F36: RC7015RE | I36: 8951011544 | J36: 75x22 | K36: =VLOOKUP(I36,Árlista!$B:$D,3,0) -> 1 960,-Ft | M36: 8951011546 | N36: 180 Fiber | R36: =Fúrók!$A36 -> Kapitár Kft közös gondozásában | AI36: =Fúrók!$A36 -> Kapitár Kft közös gondozásában
A37: =Fúrók!$A37 -> jelent meg. | D37: Cikkszám / Típus / (Listaár) Nettó ár | E37: 8951011557 | F37: 5db/50 | G37: =VLOOKUP(E37,Árlista!$B:$D,3,0) -> 6 720,-Ft | I37: 8951011545 | J37: 105x22 | K37: =VLOOKUP(I37,Árlista!$B:$D,3,0) -> 1 960,-Ft | M37: 8951011605 | N37: 150 Velcro | O37: =VLOOKUP(M37,Árlista!$B:$D,3,0) -> 4 480,-Ft | R37: =Fúrók!$A37 -> jelent meg. | AI37: =Fúrók!$A37 -> jelent meg.
A38: =Fúrók!$A38 -> Minden jog fenntartva. | D38: Cikkszám / Típus / (Listaár) Nettó ár | E38: 8951011558 | F38: 5db/75 | G38: =VLOOKUP(E38,Árlista!$B:$D,3,0) -> 10 090,-Ft | I38: 8951011548 | J38: 115x22 | K38: =VLOOKUP(I38,Árlista!$B:$D,3,0) -> 1 400,-Ft | R38: =Fúrók!$A38 -> Minden jog fenntartva. | AI38: =Fúrók!$A38 -> Minden jog fenntartva.
U39: Cikkszám / Típus / (Listaár) Nettó ár | V39: 8941072021 | W39: CP7202 | X39: =VLOOKUP(V39,Árlista!$B:$D,3,0) -> 52 790,-Ft | Z39: 6151620090 | AA39: 3070-120G | AB39: =VLOOKUP(Z39,Árlista!$B:$D,3,0) -> 215 100,-Ft | AD39: 6151939778 | AE39: CP9778 | AF39: =VLOOKUP(AD39,Árlista!$B:$D,3,0) -> 53 120,-Ft
A40: =Fúrók!$A40 -> Bővebb információ: | R40: =Fúrók!$A40 -> Bővebb információ: | U40: Cikkszám / Típus / (Listaár) Nettó ár | V40: 8941172021 | W40: CP7202 KIT | X40: =VLOOKUP(V40,Árlista!$B:$D,3,0) -> STARS* 43 630,-Ft | AI40: =Fúrók!$A40 -> Bővebb információ:
A41: =Fúrók!$A41 -> Szabó Attila | R41: =Fúrók!$A41 -> Szabó Attila | AI41: =Fúrók!$A41 -> Szabó Attila
A42: =Fúrók!$A42 -> 30/201-4931 vagy 30/626-8687 | R42: =Fúrók!$A42 -> 30/201-4931 vagy 30/626-8687 | AI42: =Fúrók!$A42 -> 30/201-4931 vagy 30/626-8687
A43: =Fúrók!$A43 -> e-mail | AI43: =Fúrók!$A43 -> e-mail
A44: =Fúrók!$A44 -> Tóth Tamás | R44: =Fúrók!$A44 -> Tóth Tamás | AI44: =Fúrók!$A44 -> Tóth Tamás
A45: =Fúrók!$A45 -> 30/603-1596 | R45: =Fúrók!$A45 -> 30/603-1596 | AI45: =Fúrók!$A45 -> 30/603-1596
D54: Típus | E54: Rodcraft RC7683K | I54: Rodcraft RC7681K | M54: Rodcraft RC7130
D55: Motorteljesítmény [W] | E55: 150 | F55: Mini polírozó szett, zajcsökkentővel 75mm-es velcro paddal. Ideális karosszárián lévő kisebb felületek, plexik, lámpabúrák polírozására. A készlet tartalma: 1db polírozó szivacs (fehér) 1db polírozó szivacs (sárga) 1db polírozó gyapjú tárcsa. | I55: 150 | J55: Direkthajtásos "sarokcsiszoló" SET. Kis felületű hibák javítására. Könnyű, kompozitházas, kézreálló az egykezes használat érdekében. 3M Roloc rendszerű 50 és 75-ös paddal, vágó és csiszolótárcsákkal. | M55: 500 | N55: Ergonomikus kialakítású polírozó. Hátsó levegőelvezetéssel és zajcsökkentővel. Oldalfogantyúja áthelyezhető. Könnyű karbantartás a kúpkerekeknél lévő zsírzógomb révén. M14x2 kihajtással is rendelhető. 170 mm-es szivacspárnás tárcsával, gyapjú borítással. 150-es tárcsa is rendelhető!
D56: Kihajtási méret | E56: 5/16" | I56: 1/4" AG | M56: 5/8"
D57: Tárcsaméret [mm] | E57: 50-75 | I57: 180 | M57: 180
D58: Üresjárati fordulat [rpm] | E58: 5500 | I58: 15000 | M58: 2500
D59: Tömeg [kg] | E59: 0,6 | I59: 0,4 | M59: 0,55
D60: Javasolt tömlőméret ø [mm] | E60: 8 | I60: 8 | M60: 8
D61: Max. nyomás [bar] | E61: 6,3 | I61: 6,3 | M61: 6,3
D62: Átlagos levegőfogyasztás [l/min] | E62: 360 | M62: 525
D63: Folyamatos levegőfogyasztás [l/min] | E63: 480 | M63: 700
D64: Levegőcsatlakozás [inch] | E64: 1/4 Zoll IG | I64: 1/4 Zoll IG | M64: 1/4 Zoll IG
D65: Hangnyomásszint LpA | E65: 78,5 | M65: 88
D66: Hangenergiaszint, LwA [dB(A)]
D67: Vibráció [m/s2] | E67: 3,8 | M67: 3
D68: Használati besorolás | E68: 2 -megnövekedett igényekhez | I68: 3 -igen magas színvonalú | M68: 3 -igen magas színvonalú
D69: Cikkszám / Típus / (Listaár) Nettó ár | E69: 8951000017 | F69: RC7683K | G69: =VLOOKUP(E69,Árlista!$B:$D,3,0) -> TOPS* 47 590,-Ft | I69: 8951000019 | J69: RC7681K | K69: =VLOOKUP(I69,Árlista!$B:$D,3,0) -> TOPS* 42 490,-Ft | M69: 8951072004 | N69: RC7130 | O69: =VLOOKUP(M69,Árlista!$B:$D,3,0) -> TOPS* 98 500,-Ft
D71: Cikkszám / Típus / (Listaár) Nettó ár | M71: 8951011549 | N71: 170-es pad | O71: =VLOOKUP(M71,Árlista!$B:$D,3,0) -> 14 850,-Ft
D72: Cikkszám / Típus / (Listaár) Nettó ár | M72: 8951011550 | N72: Gyapjú | O72: =VLOOKUP(M72,Árlista!$B:$D,3,0) -> 8 400,-Ft
D76: Típus | E76: Rodcraft RC7210
D77: Motorteljesítmény [W] | E77: 150 | F77: RC7682 Excenter csiszoló, valamint RC7683 Mini polírozó 75mm-es velcro paddal. Ideális karosszárián lévő kisebb felületek, plexik, lámpabúrák polírozására. Könnyű kompozitházas, kézreálló kialakítás az egykezes munkavégzés érdekében. - 6X10 db különböző finomságú csiszolópapír - 1 db puhacsiszoló - 2 db polírkorong - Polírozó krém fényszóróhoz és festékhez - 2 db Ø75mm 1db Ø50mm csiszolópad - 1 db micro fiber kendő
D78: Kihajtási méret | E78: 5/16"
D79: Tárcsaméret [mm] | E79: 50-75
D80: Üresjárati fordulat [rpm] | E80: 5500
D81: Tömeg [kg] | E81: 0,6
D82: Javasolt tömlőméret ø [mm] | E82: 8
D83: Max. nyomás [bar] | E83: 6,3
D84: Átlagos levegőfogyasztás [l/min] | E84: 360
D85: Folyamatos levegőfogyasztás [l/min] | E85: 480
D86: Levegőcsatlakozás [inch] | E86: 1/4 Zoll IG
D87: Hangnyomásszint LpA | E87: 78,5
D88: Hangenergiaszint, LwA [dB(A)]
D89: Vibráció [m/s2] | E89: 3,8
D90: Használati besorolás | E90: 2 -megnövekedett igényekhez
D91: Cikkszám / Típus / (Listaár) Nettó ár | E91: 8951000296 | F91: RC7683K | G91: =VLOOKUP(E91,Árlista!$B:$D,3,0) -> TOPS* 122 500,-Ft

Sheet Légkulcsok
A1: RODCRAFT | E1: Általános karbantartáshoz | K1: Ipari karbantartáshoz és gyártáshoz | R1: CHICAGO PNEUMATIC | U1: Általános karbantartáshoz | X1: Ipari karbantartáshoz és gyártáshoz | AC1: Ipari körülményekhez -sorozatgyártás | AI1: RODCRAFT
A2: Árlista | R2: Árlista | AI2: Árlista
A3: Megrendelő | R3: Megrendelő | AI3: Megrendelő
A4: Fúrók | R4: Fúrók | AI4: Fúrók
A5: Racsnis kulcsok | R5: Racsnis kulcsok | AI5: Racsnis kulcsok
A6: Csavarbehajtók | R6: Csavarbehajtók | AI6: Csavarbehajtók
A7: Sarokcsiszolók | R7: Sarokcsiszolók | AI7: Sarokcsiszolók
A8: Légkulcsok | R8: Légkulcsok | AI8: Légkulcsok
A9: Egyenes csiszolók | R9: Egyenes csiszolók | AI9: Egyenes csiszolók
A10: Szalag és excenter csiszolók | R10: Szalag és excenter csiszolók | AI10: Szalag és excenter csiszolók
A11: Polír- és fiber csiszolók | R11: Polír- és fiber csiszolók | AI11: Polír- és fiber csiszolók
A12: Vésők, leverők … | R12: Vésők, leverők … | AI12: Vésők, leverők …
A13: Szóró- és lefúvató pisztolyok | R13: Vágók, fűrészek, szegecshúzók | AI13: Szóró- és lefúvató pisztolyok
A14: Vágók, fűrészek, szegecshúzók | R14: Szóró- és lefúvató pisztolyok | AI14: Vágók, fűrészek, szegecshúzók
A15: Dugókulcsok | R15: Dugókulcsok | AI15: Dugókulcsok
A16: Csatlakozók | R16: Csatlakozók | AI16: Csatlakozók
A17: Abroncstöltők | D17: Típus | E17: Rodcraft RC2202 | I17: Rodcraft RC2077 | M17: Rodcraft RC2003 | R17: Abroncstöltők | U17: Chicago Pneumatic | V17: CP6728-P05R | Z17: CP7711 | AD17: CP721 | AI17: Abroncstöltők
A18: ABAC Levegős szerszámok | D18: Kihajtási méret [inch] | E18: □ 1/2" | F18: Rendkívül rövid 112 mm, ugyanakkor tiszteletet parancsoló erő 610Nm Dupla kalapácsos olajos ütőművel, magas ütésszámmal Nyomatékállítási és irányváltási lehetőséggel. | I18: □ 1/4" | J18: 1/4"-os könnyű, kompozitházas ütvecsavarozó. Több fokozatban állítható. Egykezes irányváltóval 40Nm max meghúzási, és 60Nm max oldási nyomatékkal. | M18: □ 1/4" | N18: Kicsi, marok készülék. Csak 140 mm hosszú. Mindenféle csavarozási munkára. Kellő erő a duplakalapácsos ütőműnek köszönhetően. | R18: ABAC Levegős szerszámok | V18: Kihajtási méret: 3/8" Ütőmű: Twin hammer Nyomaték: 110-350 Nm Max nyomaték: 475 Nm Üresjárati fordulatszám: 11 500 RPM Könnyű, rövid ipari légkulcs 175 mm/1,7kg. | Z18: Kihajtási méret: 1/4" Ütőmű: Rocking dog clutch Nyomaték: 9-80 Nm Max nyomaték: 110 Nm Üresjárati fordulatszám: 10 500 RPM Könnyű, rövid aluházas légkulcs. 15% kisebb mint a CP7722 | AD18: Kihajtási méret: 3/8" Ütőmű: Rocking dog Nyomaték: 7 - 68 Nm Max nyomaték: 102 Nm Üresjárati fordulatszám: 11 000 RPM | AI18: ABAC Levegős szerszámok
A19: Garázsipari eszközök | D19: Nyomaték [Nm] | E19: 420 | I19: 40 | R19: Garázsipari eszközök | AI19: Garázsipari eszközök
A20: AKKUMULÁTOROS GÉPEK | D20: Max nyomaték. [Nm] | E20: 610 | I20: 60 | M20: 110 | R20: AKKUMULÁTOROS GÉPEK | AI20: AKKUMULÁTOROS GÉPEK
A21: Tömlők, tömlődobok | D21: Üresjárati fordulat [rpm] | E21: 9000 | I21: 1400 | M21: 15000 | R21: Tömlők, tömlődobok | AI21: Tömlők, tömlődobok
A22: Szűrők, szabályozók | D22: Tömeg [kg] | E22: 1,3 | I22: 0,96 | M22: 0,53 | R22: Szűrők, szabályozók | U22: Cikkszám / Típus / (Listaár) Nettó ár | V22: 6151590550 | W22: CP6728-P05R | X22: =VLOOKUP(V22,Árlista!$B:$D,3,0) -> 177 300,-Ft | Z22: 8941077110 | AA22: CP7711 | AB22: =VLOOKUP(Z22,Árlista!$B:$D,3,0) -> STARS* 59 100,-Ft | AD22: T021963 | AE22: CP721 | AF22: =VLOOKUP(AD22,Árlista!$B:$D,3,0) -> 119 100,-Ft | AI22: Szűrők, szabályozók
A23: Balancerek | D23: Javasolt tömlőméret ø [mm] | E23: 8 | I23: 6 | M23: 6 | R23: Balancerek | AI23: Balancerek
D24: Max. nyomás [bar] | E24: 6,3 | I24: 6,3 | M24: 6,3
A25: =Fúrók!$A25 -> A feltüntett árak a 2020.02.01.-től | D25: Átlagos levegőfogyasztás [l/min] | E25: 125 | I25: 228 | M25: 42 | R25: =Fúrók!$A25 -> A feltüntett árak a 2020.02.01.-től | AI25: =Fúrók!$A25 -> A feltüntett árak a 2020.02.01.-től
A26: =Fúrók!$A26 -> érvényes listaárak. | D26: Folyamatos levegőfogyasztás [l/min] | E26: 420 | I26: 390 | M26: 174 | R26: =Fúrók!$A26 -> érvényes listaárak. | AI26: =Fúrók!$A26 -> érvényes listaárak.
A27: =Fúrók!$A27 -> * jelöléssel ellátott termékek a | D27: Ütőmű rendszer | E27: Jumbo | I27: Ein-Hammer | N27: Double rocking dog | R27: =Fúrók!#REF! ->  | AI27: =Fúrók!$A27 -> * jelöléssel ellátott termékek a
A28: =Fúrók!$A28 -> RC TOPS és CP STAR akciós | D28: Használati besorolás | E28: 2 -megnövekedett igényekhez | I28: 1 -általános használatra | M28: 2 -megnövekedett igényekhez | R28: =Fúrók!$A27 -> * jelöléssel ellátott termékek a | AI28: =Fúrók!$A28 -> RC TOPS és CP STAR akciós
A29: =Fúrók!$A29 -> kiadvány árai | D29: Cikkszám / Típus / (Listaár) Nettó ár | E29: 8951000123 | F29: RC2202 | G29: =VLOOKUP(E29,Árlista!$B:$D,3,0) -> TOPS* 46 600,-Ft | I29: 8951000117 | J29: RC2077 | K29: =VLOOKUP(I29,Árlista!$B:$D,3,0) -> ,-Ft | M29: 8951000195 | N29: RC2003 | O29: =VLOOKUP(M29,Árlista!$B:$D,3,0) -> 72 200,-Ft | R29: =Fúrók!$A28 -> RC TOPS és CP STAR akciós | AI29: =Fúrók!$A29 -> kiadvány árai
A30: =Fúrók!$A30 -> SP jelöléssel ellátott termékekre | R30: =Fúrók!$A29 -> kiadvány árai | AI30: =Fúrók!$A30 -> SP jelöléssel ellátott termékekre
A31: =Fúrók!$A31 -> speciális viszonteladói árkézés | R31: =Fúrók!$A30 -> SP jelöléssel ellátott termékekre | AI31: =Fúrók!$A31 -> speciális viszonteladói árkézés
A32: =Fúrók!$A32 -> vonatkozik. Az Extra árak | R32: =Fúrók!$A31 -> speciális viszonteladói árkézés | AI32: =Fúrók!$A32 -> vonatkozik. Az Extra árak
A33: =Fúrók!$A33 -> a készlet erejéig, illetve | R33: =Fúrók!$A32 -> vonatkozik. Az Extra árak | AI33: =Fúrók!$A33 -> a készlet erejéig, illetve
A34: =Fúrók!$A34 -> visszavonásig érvényesek. | U34: Chicago Pneumatic | V34: CP6300 RSR | Z34: CP724H | AD34: CP7727 | AI34: =Fúrók!$A34 -> visszavonásig érvényesek.
A35: =Fúrók!$A35 -> Az árista a Techtomat Kft és | R35: =Fúrók!$A35 -> Az árista a Techtomat Kft és | V35: Kihajtási méret: 3/8" Ütőmű: Single dog clutch Nyomaték: 54- 203 Nm Max nyomaték: 243 Nm Üresjárati fordulatszám: 6 800 RPM Alu- és acél házas ipari kivitelű légkulcs. | Z35: Kihajtási méret: 3/8" Ütőmű: Pin clutch Nyomaték: 92-257 Nm Max nyomaték: 271 Nm Üresjárati fordulatszám: 9 600 RPM Rövid, jól kezelhető légkulcs karbantartásra és szerelésre. | AD35: Kihajtási méret: 3/8" Ütőmű: Jumbo hammer Nyomaték: 26-192 Nm Max nyomaték: 250 Nm Üresjárati fordulatszám: 8510 RPM Szuper ipari kivitelű sarok ütvecsavarozó. | AI35: =Fúrók!$A35 -> Az árista a Techtomat Kft és
A36: =Fúrók!$A36 -> Kapitár Kft közös gondozásában | R36: =Fúrók!$A36 -> Kapitár Kft közös gondozásában | AI36: =Fúrók!$A36 -> Kapitár Kft közös gondozásában
A37: =Fúrók!$A37 -> jelent meg. | R37: =Fúrók!$A37 -> jelent meg. | AI37: =Fúrók!$A37 -> jelent meg.
A38: =Fúrók!$A38 -> Minden jog fenntartva. | R38: =Fúrók!$A38 -> Minden jog fenntartva. | AI38: =Fúrók!$A38 -> Minden jog fenntartva.
U39: Cikkszám / Típus / (Listaár) Nettó ár | V39: T025285 | W39: CP6300 RSR | X39: =VLOOKUP(V39,Árlista!$B:$D,3,0) -> 148 400,-Ft | Z39: 8941007240 | AA39: CP724H | AD39: 8941077270 | AE39: CP7727 -3/8" | AF39: =VLOOKUP(AD39,Árlista!$B:$D,3,0) -> 123 700,-Ft
A40: =Fúrók!$A40 -> Bővebb információ: | R40: =Fúrók!$A40 -> Bővebb információ: | AI40: =Fúrók!$A40 -> Bővebb információ:
A41: =Fúrók!$A41 -> Szabó Attila | R41: =Fúrók!$A41 -> Szabó Attila | AI41: =Fúrók!$A41 -> Szabó Attila
A42: =Fúrók!$A42 -> 30/201-4931 vagy 30/626-8687 | R42: =Fúrók!$A42 -> 30/201-4931 vagy 30/626-8687 | AI42: =Fúrók!$A42 -> 30/201-4931 vagy 30/626-8687
A43: =Fúrók!$A43 -> e-mail | D43: Típus | E43: Rodcraft RC2177 | I43: Rodcraft RC2235 | M43: Rodcraft RC2101 | AI43: =Fúrók!$A43 -> e-mail
A44: =Fúrók!$A44 -> Tóth Tamás | D44: Kihajtási méret [inch] | E44: □ 3/8" | F44: Ergonomikus és jól kiegyensúlyozott szerszám, kimagasló erő és tömegaránnyal. Csak 1,25kg, ugyanakkor erős, alacsony levegőfogyasztás jellemzi. DUOPACT ütőműve hosszú életartamot garantál. Zsirzógomb gyors karbantartást, a TPR szigetelés jó tapadást és könnyű használatot biztosít. 3 pozíciós erő és irányválás szabályozás, 580 Nm max. nyomaték. Felszerelhető - DUS35 zajcsökkentő rendszerrel. | I44: □ 1/2" | J44: Max. nyomatéka 300 Nm Hossz 341mm . Ultra kompakt fej -csak 50 mm. Tartósság, ergonómikus markolat, könnyű nyomaték választás, egyszerű irányváltás. | M44: □ 3/8" | N44: Kicsi, marok készülék. Csak 140 mm hosszú. Mindenféle csavarozási munkára. Kellő erő a duplakalapácsos ütőműnek köszönhetően. | R44: =Fúrók!$A44 -> Tóth Tamás | AI44: =Fúrók!$A44 -> Tóth Tamás
A45: =Fúrók!$A45 -> 30/603-1596 | D45: Nyomaték [Nm] | E45: 420 | I45: 220 | R45: =Fúrók!$A45 -> 30/603-1596 | AI45: =Fúrók!$A45 -> 30/603-1596
D46: Max nyomaték. [Nm] | E46: 580 | I46: 300 | M46: 110
D47: Üresjárati fordulat [rpm] | E47: 8200 | I47: 7400 | M47: 15000
D48: Tömeg [kg] | E48: 1 | I48: 1,85 | M48: 0,53
D49: Javasolt tömlőméret ø [mm] | E49: 8 | I49: 6 | M49: 6
D50: Max. nyomás [bar] | E50: 6,3 | I50: 6,3 | M50: 6,3
D51: Átlagos levegőfogyasztás [l/min] | E51: 160 | I51: 140 | M51: 42 | U51: Chicago Pneumatic | V51: CP7722 | Z51: CP7721 | AD51: CP7731
D52: Folyamatos levegőfogyasztás [l/min] | E52: 470 | I52: 370 | M52: 174 | V52: Kihajtási méret: 3/8" Ütőmű: Rocking dog clutch Nyomaték: 7-88 Nm Max nyomaték: 122 Nm Üresjárati fordulatszám: 9 500 RPM Könnyű, rövid légkulcs. | Z52: Kihajtási méret: 3/8" Ütőmű: Rocking dog clutch Nyomaték: 9-80 Nm Max nyomaték: 110 Nm Üresjárati fordulatszám: 10 500 RPM Könnyű, rövid aluházas légkulcs. 15% kisebb mint a CP7722 | AD52: Kihajtási méret: 3/8" Ütőmű: Jumbo hammer Nyomaték: 96-328 Nm Max nyomaték: 415 Nm Üresjárati fordulatszám: 6 400 RPM Megbízható ultra rövid (112mm), de erős légkulcs.
D53: Ütőmű rendszer | E53: Duopact | I53: Jumbo | N53: Double rocking dog
D54: Használati besorolás | E54: 3 -igen magas színvonalú | I54: 3 -igen magas színvonalú | M54: 2 -megnövekedett igényekhez
D55: Cikkszám / Típus / (Listaár) Nettó ár | E55: 8951000043 | F55: RC2177 | G55: =VLOOKUP(E55,Árlista!$B:$D,3,0) -> TOPS* 68 100,-Ft | I55: 8951000286 | J55: RC2235 | K55: =VLOOKUP(I55,Árlista!$B:$D,3,0) -> TOPS* 80 600,-Ft | M55: 8951000196 | N55: RC2101 | O55: =VLOOKUP(M55,Árlista!$B:$D,3,0) -> 72 200,-Ft
U56: Cikkszám / Típus / (Listaár) Nettó ár | V56: 8941077220 | W56: CP7722 | X56: =VLOOKUP(V56,Árlista!$B:$D,3,0) -> 75 400,-Ft | Z56: 8941077210 | AA56: CP7721 | AB56: =VLOOKUP(Z56,Árlista!$B:$D,3,0) -> STARS* 59 100,-Ft | AD56: 8941077310 | AE56: CP7731 | AF56: =VLOOKUP(AD56,Árlista!$B:$D,3,0) -> 79 300,-Ft
U68: Chicago Pneumatic | V68: CP8222 | Z68: CP7729 | AD68: CP6031 HABAD
V69: Kihajtási méret: 3/8" Ütőmű: Rocking dog clutch Nyomaték: 80-400 Nm Max nyomaték: 450 Nm Üresjárati fordulatszám: 11 500 RPM Erőteljes, de alacsony zaj- és vibrációs szintű készülék. | Z69: Kihajtási méret: 3/8" Ütőmű: Twin hammer Nyomaték: 68-407 Nm Max nyomaték: 563 Nm Üresjárati fordulatszám: 9 400 RPM Extém könnyű, jól kiegyensúlyozott kompozitházas légkulcs. | AD69: Kihajtási méret: 3/8" 1/2" Ütőmű: 2-jaw clutch Nyomaték: 30-102 Nm Max nyomaték: 176 Nm Üresjárati fordulatszám: 10 000 RPM
D70: Típus | E70: Rodcraft RC2267 | I70: Rodcraft RC2268 | M70: Rodcraft RC2227
D71: Kihajtási méret [inch] | E71: □ 1/2" | F71: Kompozit házas szerszám kimagasló erő és tömegaránnyal. Csak 1,25kg. Erős, alacsony levegőfogyasztású, gyorsan szerelhető a duplakalapácsos DUOPACT ütőműve hosszú életartamot garantál. Zsirzógomb gyors karbantartást, a TPR szigetelés jó tapadást és könnyű használatot biztosít. 3 pozíciós erő és irányválás szabályozás, 660 Nm max. nyomaték. Felszerelhető - DUS35 zajcsillapító rendszerrel. | I71: □ 1/2" | J71: 900 Nm-es ütvecsavarozó univerzális használatra. Gyor és egydülállóan magas nyomaték a DUOPACT mechanizmus révén, amely hosszú életartamot garantál. Könnyű – csak 2,1 kg. 3 pozíciós erő és irányválás. Szabályozás a szerszám hátlapján. | M71: □ 1/2" | N71: Univerzális eszköz autószerelő műhelyek részére. Kialakítása gyor, egykezes használatot tesz lehetővé. Nyomaték és irányváltó gombja 3 fokozatú állítást tesz lehetővé minkét irányban. Robosztus fémháza alkalmas mindennapi ipari felhasználásra. Hatékony szerszám: a kimagasló erő és alacsony levegőfogyasztás. Gyors olajfürdős ütőműve nagy nyomatékot és alacsony vibrációt garantál. Opciósan DUS36 zajcsökkentő rendszer
D72: Nyomaték [Nm] | E72: 480 | I72: 750 | M72: 680
D73: Max nyomaték. [Nm] | E73: 660 | I73: 900 | M73: 950 | U73: Cikkszám / Típus / (Listaár) Nettó ár | V73: 6151590180 | W73: CP8222-P | X73: =VLOOKUP(V73,Árlista!$B:$D,3,0) -> 156 700,-Ft | Z73: 8941077290 | AA73: CP7729 | AB73: =VLOOKUP(Z73,Árlista!$B:$D,3,0) -> 122 700,-Ft | AD73: T021884 | AE73: CP6031
D74: Üresjárati fordulat [rpm] | E74: 10200 | I74: 10000 | M74: 8700
D75: Tömeg [kg] | E75: 1,25 | I75: 2,1 | M75: 2 | U75: Cikkszám / Típus / (Listaár) Nettó ár | V75: 6151590230 | W75: CP8222-R | X75: =VLOOKUP(V75,Árlista!$B:$D,3,0) -> 156 700,-Ft
D76: Javasolt tömlőméret ø [mm] | E76: 8 | I76: 8 | M76: 8
D77: Max. nyomás [bar] | E77: 6 | I77: 6,3 | M77: 6
D78: Átlagos levegőfogyasztás [l/min] | E78: 180 | I78: 245 | M78: 190 | AG78: CP749-2"
D79: Folyamatos levegőfogyasztás [l/min] | E79: 510 | I79: 600 | M79: 570
D80: Ütőmű rendszer | E80: Duopact | I80: Duopact | M80: Rod-A-Matic
D81: Használati besorolás | E81: 4 -a legmagasabb igényekhez | I81: 3 -igen magas színvonalú | M81: 3 -igen magas színvonalú
D82: Cikkszám / Típus / (Listaár) Nettó ár | E82: 8951000044 | F82: RC2267 | G82: =VLOOKUP(E82,Árlista!$B:$D,3,0) -> TOPS* 68 100,-Ft | I82: 8951000344 | J82: RC2268 | K82: =VLOOKUP(I82,Árlista!$B:$D,3,0) -> TOPS* 42 900,-Ft | M82: 8951000036 | N82: RC2227 | O82: =VLOOKUP(M82,Árlista!$B:$D,3,0) -> Kifutó, érdeklődj!
E83: 8955000015 | F83: DUS35 | G83: =VLOOKUP(E83,Árlista!$B:$D,3,0) ->  | I83: 8955000015 | J83: DUS35 | K83: =VLOOKUP(I83,Árlista!$B:$D,3,0) ->  | M83: 8955000027 | N83: DUS36
D84: Cikkszám / Típus / (Listaár) Nettó ár | M84: 8951000089 | N84: SZETT | O84: =VLOOKUP(M84,Árlista!$B:$D,3,0) -> ,-Ft
X86: 14, 16, 17, 19, 22mm
U87: Chicago Pneumatic | V87: CP734H | Z87: CP7620 | AD87: CP749
V88: Kihajtási méret: 1/2" Ütőmű: Pin clutch Nyomaték: 34-420 Nm Max nyomaték: 576 Nm Üresjárati fordulatszám: 8 400 RPM Classic légkulcs, amely évtizedek óta bizonyít! | Z88: Kihajtási méret: 1/2" Ütőmű: Pin clutch Nyomaték: 34-420 Nm Max nyomaték: 576 Nm Üresjárati fordulatszám: 8 400 RPM Classic légkulcs, amely évtizedek óta bizonyít! | AD88: Kihajtási méret: 1/2" Ütőmű: Double dog Nyomaték: 68-610 Nm Max nyomaték: 827 Nm Üresjárati fordulatszám: 6 400 RPM Erős, sokoldalú gép autó- és gumiszervizek számára
U92: Cikkszám / Típus / (Listaár) Nettó ár | V92: T024351 | W92: CP734H | X92: =VLOOKUP(V92,Árlista!$B:$D,3,0) -> STARS* 48 160,-Ft | Z92: 8941076200 | AA92: CP7620 | AB92: =VLOOKUP(Z92,Árlista!$B:$D,3,0) -> ,-Ft | AD92: T024587 | AE92: CP749 | AF92: =VLOOKUP(AD92,Árlista!$B:$D,3,0) -> STARS* 82 300,-Ft
U94: Cikkszám / Típus / (Listaár) Nettó ár | V94: T025164 | W94: CP734H KIT | X94: =VLOOKUP(V94,Árlista!$B:$D,3,0) -> 113 200,-Ft | AD94: T025194 | AE94: CP749 KIT
U96: Cikkszám / Típus / (Listaár) Nettó ár | AD96: T024673 | AE96: CP749-2 | AF96: =VLOOKUP(AD96,Árlista!$B:$D,3,0) -> 147 500,-Ft
D97: Típus | E97: Rodcraft RC2209 SZETT | I97: Rodcraft RC2277 D NEW -2018 | M97: Rodcraft RC2257 és RC2257 SZETT
D98: Kihajtási méret [inch] | E98: □ 1/2" | F98: 4 lépcsős nyomatékállítás a finommunkákhoz és teljes erő oldásnál. ROD-A-MATIC pin clutch ütőmű - növelt sebességet eredményez Egykezes irányváltás Jól kiegyensúlyozott és ergonómikus konstrukció Gumikupakkal védve a sérülésektől. A készlet tartalma 10 db dugókulcs + 1b hosszabító | I98: □ 1/2" | J98: 1300 Nm Bestiális erő 1/2" kompozit ütvecsavarozó univerzális használatra. Új könnyűfém motor, erősített kihajtás. Gyors és egydülállóan magas nyomaték a DUOPACT mechanizmus révén, amely hosszú életartamot garantál. Könnyű, egykezes használat. Bőröndben, 17/19/21 mm-es könnyűfém felnikhez való dugókucsokkal is. | M98: □ 1/2" | N98: Professzionáli szerszám gumis- és javító műhelyek részére. Gyors, egykezes használatot tesz lehetővé. Praktikus nyomaték és irányváltó gombja 3 fokozatú állítást tesz lehtővé minkét irányban. Robosztus fémháza alkalmas mindennapi ipari felhasználásra. Hatékony szerszám: a kimagasló erő és alacsony levegőfogyasztás. Szett tartalma: 14db dugókulcs (10-27mm), DUS36 zajcsökkentővel. | AA98: 108 mm
D99: Nyomaték [Nm] | E99: 406 | I99: 900 | M99: 680
D100: Max nyomaték. [Nm] | E100: 580 | I100: 1300 | M100: 950
D101: Üresjárati fordulat [rpm] | E101: 7800 | I101: 8200 | M101: 8950
D102: Tömeg [kg] | E102: 2 | I102: 2 | M102: 2
D103: Javasolt tömlőméret ø [mm] | E103: 8 | I103: 8 | M103: 8
D104: Max. nyomás [bar] | E104: 6 | I104: 6,3 | M104: 6
D105: Átlagos levegőfogyasztás [l/min] | E105: 130 | I105: 245 | M105: 200
D106: Folyamatos levegőfogyasztás [l/min] | E106: 350 | I106: 700 | M106: 610
D107: Ütőmű rendszer | E107: Rod-A-Matic | I107: Duopact | M107: Duopact
D108: Használati besorolás | E108: 2 -megnövekedett igényekhez | I108: 4 -a legmagasabb igényekhez | M108: 3 -igen magas színvonalú | U108: Chicago Pneumatic | V108: CP7732 | Z108: CP7732C | AD108: CP7736
D109: Cikkszám / Típus / (Listaár) Nettó ár | E109: 8951177000 | F109: RC2205 + RS413WP | I109: 8951000349 | J109: RC2277 New | K109: =VLOOKUP(I109,Árlista!$B:$D,3,0) -> TOPS* 57 500,-Ft | M109: 8951000037 | N109: RC2257 | O109: =VLOOKUP(M109,Árlista!$B:$D,3,0) -> ,-Ft | V109: Kihajtási méret: 1/2" Ütőmű: Pin clutch Nyomaték: 138-420 Nm Max nyomaték: 610 Nm Üresjárati fordulatszám: 9 000 RPM Szuper kompakt, 112 mm-es légkulcs | Z109: Kihajtási méret: 1/2" Ütőmű: Jumbo hammer Nyomaték: 138-420 Nm Max nyomaték: 625 Nm Üresjárati fordulatszám: 9 000 RPM Sikerült a CP7732 méretéből 20%-ot lefaragni! | AD109: Kihajtási méret: 1/2" Ütőmű: Pin clutch Nyomaték: 69-770 Nm Max nyomaték: 900 Nm Üresjárati fordulatszám: 10 020 RPM Alu ütőműházas légkucs 3 fokozatú behajtással.
I110: 8955000015 | J110: DUS35 | K110: =VLOOKUP(I110,Árlista!$B:$D,3,0) -> 
D111: Cikkszám / Típus / (Listaár) Nettó ár | E111: 8951000085 | F111: RC2205 | G111: =VLOOKUP(E111,Árlista!$B:$D,3,0) -> TOPS* 40 230,-Ft | I111: 8951000358 | J111: RC2277 New KIT | K111: =VLOOKUP(I111,Árlista!$B:$D,3,0) -> 93 800,-Ft | M111: 8951000089 | N111: SZETT | O111: =VLOOKUP(M111,Árlista!$B:$D,3,0) -> ,-Ft
E112: 8955000015 | F112: DUS35 | J112: DUS35
U113: Cikkszám / Típus / (Listaár) Nettó ár | V113: 8941077320 | W113: CP7732 | X113: =VLOOKUP(V113,Árlista!$B:$D,3,0) -> 79 300,-Ft | Z113: 8941077321 | AA113: CP7732C | AB113: =VLOOKUP(Z113,Árlista!$B:$D,3,0) -> STARS* 63 000,-Ft | AD113: 8941077360 | AE113: CP7736 | AF113: =VLOOKUP(AD113,Árlista!$B:$D,3,0) -> STARS* 59 700,-Ft
D125: Típus | E125: Rodcraft RC2315 | I125: Rodcraft RC2350/Rodcraft RC2355 | M125: Rodcraft RC2377/Rodcraft RC2387 | U125: Chicago Pneumatic | V125: CP7737 | Z125: CP7748 | AD125: CP7748 TL
D126: Kihajtási méret [inch] | E126: □ 3/4" | F126: Jól kiegyensúlyozott és praktikus szerszám. Duplakalapácsos DUOPACT ütőművel - a fokozott tartósságért. Rövid (242 mm), alacsony vibrációjú a gumírozott fogantyúnak köszönhetően. Automatikusan teljes nyomaték oldáskor (max. 1.500 Nm) és három fokozatban állítható nyomaték húzáskor (max. 1.100 Nm) Irányváltás a hátlapon lévő nyomógombbal, a működtető gombja pedig sebességszabályozást tesz lehetővé. | I126: □ 3/4" | J126: Duplakalapácsos DUOPACT ütőművel - a fokozott tartósságért. Alacsony levegőfogyasztás pl. a gyorsszervizek részére. Rövid, és hosszú kihajtással is rendelhető! Automatikusan teljes nyomaték oldáskor (max. 1.800 Nm) és hat fokozatban állítható nyomaték húzáskor (max. 1.400 Nm) Irányváltás az oldalt lévő nyomógombbal. | M126: □ 3/4" | N126: 3/4" kompozit ütve csavarozó univerzális használatra. Gyor és egyedülállóan magas nyomaték a DUOPACT mechanizmus révén, amely hosszú élettartamot garantál. Könnyű – csak 3,74 kg. Zsirzógomb gyors karbantartást, a TPR (thermo-plastic gumi) szigetelés jó tapadást és könnyű használatot biztosít. 3 pozíciós erő és irányválás szabályozás a szerszám hátlapján. Rövid és hosszú kihajtással is rendelhető. | V126: Kihajtási méret: 1/2" Ütőmű: Jumbo hammer Nyomaték: 34-224 Nm Max nyomaték: 300 Nm Üresjárati fordulatszám: 9030 RPM Szuper ipari kivitelű sarok ütvecsavarozó. | Z126: Kihajtási méret: 1/2" Ütőmű: Twin hammer Nyomaték: 102-786 Nm Max nyomaték: 1250 Nm Üresjárati fordulatszám: 8 200 RPM RC2277-ből megismert bestiális erő | AD126: Kihajtási méret: 1/2" Ütőmű: Twin hammer Nyomaték: 90-96 Nm Max nyomaték: 1250 Nm Üresjárati fordulatszám: 8 200 RPM Nyomatékhatárolt légkulcs gumisműhelyek részére. Elkerülhető a túlhúzás!
D127: Nyomaték [Nm] | E127: 1100 | I127: 1400 | M127: 1300
D128: Max nyomaték. [Nm] | E128: 1500 | I128: 1800 | M128: 1950
D129: Üresjárati fordulat [rpm] | E129: 5600 | I129: 5000 | M129: 6000
D130: Tömeg [kg] | E130: 4,7 | I130: 5,9 | M130: 3,38/3,74 | U130: Cikkszám / Típus / (Listaár) Nettó ár | V130: 8941077370 | W130: CP7737 -1/2" | X130: =VLOOKUP(V130,Árlista!$B:$D,3,0) -> STARS* 87 800,-Ft | Z130: 8941077480 | AA130: CP7748 | AB130: =VLOOKUP(Z130,Árlista!$B:$D,3,0) -> ,-Ft | AD130: 8941077484 | AE130: CP7748 TL | AF130: =VLOOKUP(AD130,Árlista!$B:$D,3,0) -> 106 900,-Ft
D131: Javasolt tömlőméret ø [mm] | E131: 8 | I131: 13 | M131: 13
D132: Max. nyomás [bar] | E132: 6,3 | I132: 6,3 | M132: 6,3 | U132: Cikkszám / Típus / (Listaár) Nettó ár | Z132: 8941077482 | AA132: CP7748-2 | AB132: =VLOOKUP(Z132,Árlista!$B:$D,3,0) -> ,-Ft | AD132: 8941077485 | AE132: CP7748-TL2 | AF132: =VLOOKUP(AD132,Árlista!$B:$D,3,0) -> 111 200,-Ft
D133: Átlagos levegőfogyasztás [l/min] | E133: 340 | I133: 280 | M133: 225
D134: Folyamatos levegőfogyasztás [l/min] | E134: 990 | I134: 780 | M134: 972
D135: Ütőmű rendszer | E135: Duopact | I135: Duopact | M135: Duopact
D136: Használati besorolás | E136: 2 -megnövekedett igényekhez | I136: 3 -igen magas színvonalú | M136: 4 -a legmagasabb igényekhez
D137: Cikkszám / Típus / (Listaár) Nettó ár | E137: 8951077130 | F137: RC2315 | G137: =VLOOKUP(E137,Árlista!$B:$D,3,0) -> TOPS* 83 200,-Ft | I137: 8951077160 | J137: RC2350 | K137: =VLOOKUP(I137,Árlista!$B:$D,3,0) ->  | M137: 8951000045 | N137: RC2377 | O137: =VLOOKUP(M137,Árlista!$B:$D,3,0) -> TOPS* 149 300,-Ft
D139: Cikkszám / Típus / (Listaár) Nettó ár | M139: 8951000074 | N139: Hosszú | O139: =VLOOKUP(M139,Árlista!$B:$D,3,0) -> 
U144: Chicago Pneumatic | V144: CP7739 | Z144: CP7749 | AD144: CP6738-P05R
V145: Kihajtási méret: 1/2" Ütőmű: Twin hammer Nyomaték: 68-414 Nm Max nyomaték: 610 Nm Üresjárati fordulatszám: 9 900 RPM Extém könnyű, jól kiegyensúlyozott kompozitházas légkulcs. | Z145: Kihajtási méret: 1/2" Ütőmű: Twin hammer Nyomaték: 135-704 Nm Max nyomaték: 1300 Nm Üresjárati fordulatszám: 7 000 RPM Extrém nyomaték, kompakt, gyors, egykezes használat. | AD145: Kihajtási méret: 1/2" Ütőmű: Twin hammer Nyomaték: 110-350 Nm Max nyomaték: 475 Nm Üresjárati fordulatszám: 11 500 RPM Könnyű, rövid ipari légkulcs 175 mm/1,7kg.
U149: Cikkszám / Típus / (Listaár) Nettó ár | V149: 8941077390 | W149: CP7739 | X149: =VLOOKUP(V149,Árlista!$B:$D,3,0) -> 130 300,-Ft | Z149: 8941077491 | AA149: CP7749 | AB149: =VLOOKUP(Z149,Árlista!$B:$D,3,0) -> STARS* 78 200,-Ft | AD149: 6151590560 | AE149: CP6738-P05R | AF149: =VLOOKUP(AD149,Árlista!$B:$D,3,0) -> 181 400,-Ft
U151: Cikkszám / Típus / (Listaár) Nettó ár | Z151: 8941077493 | AA151: CP7749-2 | AB151: =VLOOKUP(Z151,Árlista!$B:$D,3,0) -> 132 600,-Ft
D154: Típus | E154: Rodcraft RC2345 | I154: Rodcraft RC2425/Rodcraft RC2426 | M154: Rodcraft RC2466/Rodcraft RC2476
D155: Kihajtási méret [inch] | E155: □ 3/4" | F155: 3/4" jól kiegyensúlyozott légkulcs. Prémium modell, extra rövid első kialakítással a szűk helyen történő munkavégzéshez. 2 fokozatú teljesítményállítás, gyors irányváltás. | I155: □ 1" | J155: Jól kiegyensúlyozott szerszám tehergépkocsi szervizek részére. Megbízható, egykalapácsos ütőművel. A ház elején gumi védőburkolattal valamint vibrációcsökkentő gumibetétes oldalfogantyúval ellátva. Rövid és hosszú kihajtással is rendelhető. Max nyomatéka 2.450 Nm. Hátlapon lévő 3 fokozatú nyomatékváltási mód mindkét irányban rendelkezésre áll. | M155: □ 1" | N155: Erős, teljes egészében fémből készült szerszám, teherautókhoz és buszokhoz. ”Zárt ütőrendszerű“ tehát szinte teljesen karbantartásmentes készülék. A rendkívül magas nyomaték alkalmas nagyméretű anyák és csavarok meglazítására is. A stabil oldalsófogantyúnak köszönhetően alkalmas a kétkezes használatra. A 3 fokozatú nyomatékváltási mód mindkét irányban rendelkezésre áll. Rövid és hosszú kihajtással is rendelhető.
D156: Nyomaték [Nm] | E156: 1300 | I156: 1757 | M156: 2000
D157: Max nyomaték. [Nm] | E157: 1700 | I157: 2450 | M157: 2900
D158: Üresjárati fordulat [rpm] | E158: 6050 | I158: 3200 | M158: 5150
D159: Tömeg [kg] | E159: 4,8 | I159: 9,2 | M159: 11
D160: Javasolt tömlőméret ø [mm] | E160: 13 | I160: 13 | M160: 13
D161: Max. nyomás [bar] | E161: 6,3 | I161: 6,3 | M161: 6,3
D162: Átlagos levegőfogyasztás [l/min] | E162: 210 | I162: 370 | M162: 370
D163: Folyamatos levegőfogyasztás [l/min] | E163: 1000 | I163: 1020 | M163: 1130
D164: Ütőmű rendszer | E164: Pin clutch - Oil bath | I164: Ein-Hammer | M164: Closed Hammer
D165: Használati besorolás | E165: 2 -megnövekedett igényekhez | I165: 2 -megnövekedett igényekhez | M165: 3 -igen magas színvonalú | U165: Chicago Pneumatic | V165: CP8242-P | Z165: CP8252-P | AD165: CP6500-RS
D166: Cikkszám / Típus / (Listaár) Nettó ár | E166: 8951077150 | F166: RC2345 | G166: =VLOOKUP(E166,Árlista!$B:$D,3,0) ->  | I166: 8951077190 | J166: RC2425 | K166: =VLOOKUP(I166,Árlista!$B:$D,3,0) -> TOPS* 190 700,-Ft | M166: 8951000047 | N166: RC2466 | O166: =VLOOKUP(M166,Árlista!$B:$D,3,0) -> TOPS* 193 800,-Ft | V166: Kihajtási méret: 1/2" Ütőmű: Twin hammer Nyomaték: 80-400 Nm Max nyomaték: 550 Nm Üresjárati fordulatszám: 11 500 RPM Alacsony zaj- és vibrációs szintű ipari készülék. | Z166: Kihajtási méret: 1/2" Ütőmű: Twin hammer Nyomaték: 150-750 Nm Max nyomaték: 950 Nm Üresjárati fordulatszám: 9 000 RPM Erőteljes, de alacsony zaj- és vibrációs szintű ipari készülék. | AD166: Kihajtási méret: 1/2" Ütőmű: Double dog Nyomaték: 170-680 Nm Max nyomaték: 850 Nm Üresjárati fordulatszám: 6 400 RPM Ipari légkulcs, maximális komfort nagy nyomaték.
D168: Cikkszám / Típus / (Listaár) Nettó ár | I168: 8951077032 | J168: RC2426 | K168: =VLOOKUP(I168,Árlista!$B:$D,3,0) -> 336 000,-Ft | M168: 8951000048 | N168: RC2476 | O168: =VLOOKUP(M168,Árlista!$B:$D,3,0) -> TOPS* 185 500,-Ft
U170: Cikkszám / Típus / (Listaár) Nettó ár | V170: 6151590200 | W170: CP8242-P | X170: =VLOOKUP(V170,Árlista!$B:$D,3,0) -> 158 800,-Ft | Z170: 6151590210 | AA170: CP8252-P | AB170: =VLOOKUP(Z170,Árlista!$B:$D,3,0) -> 169 100,-Ft | AD170: T025214 | AE170: CP6500-RS | AF170: =VLOOKUP(AD170,Árlista!$B:$D,3,0) -> 189 700,-Ft
U172: Cikkszám / Típus / (Listaár) Nettó ár | V172: 6151590240 | W172: CP8242-R | X172: =VLOOKUP(V172,Árlista!$B:$D,3,0) -> 158 800,-Ft | Z172: 6151590250 | AA172: CP8252-R | AB172: =VLOOKUP(Z172,Árlista!$B:$D,3,0) -> 169 100,-Ft | AD172: T025216 | AE172: CP6500-RSR | AF172: =VLOOKUP(AD172,Árlista!$B:$D,3,0) -> 189 700,-Ft
D183: Típus | E183: Rodcraft RC2437Xi | I183: Rodcraft RC2447Xi | M183: Rodcraft RC2405
D184: Kihajtási méret [inch] | E184: □ 1" | F184: Kiemelkedően könnyű súlyú prémium készülék 7,2 kg. ERŐTELJES - 2700 Nm. A kovácsolt DUO PACT mechanizmusnak köszönhetően rendkívül erős és különösen tartós. Kis elülső méretének köszönhetően olyan csavarokhoz is hozzáférhetünk, amihez egy hagyományos kulcs nem ér be. Pisztoly kialakítású, extra oldalsó fogantyúja 360 fokban elforgatható, . | I184: □ 1" | J184: Kiemelkedően könnyű súlyú prémium készülék 8,1 kg. ERŐTELJES - 2700 Nm. A kovácsolt DUO PACT mechanizmusnak köszönhetően rendkívül erős és különösen tartós. Kis elülső méretének köszönhetően olyan csavarokhoz is hozzáférhetünk, amihez egy hagyományos kulcs nem ér be. Kihajtási hossz 180 mm. Pisztoly kialakítású, extra oldalsó fogantyúja 360 fokban elforgatható. | M184: □ 1" | N184: 1" kompozit ütve csavarozó univerzális használatra. Gyors és egyedülállóan magas nyomaték a DUOPACT mechanizmus révén, amely hosszú élettartamot garantál. Könnyű – csak 3,74 kg. Zsirzógomb gyors karbantartást, a TPR (thermo-plastic gumi) szigetelés jó tapadást és könnyű használatot biztosít. 3 pozíciós erő és irányválás szabályozás a szerszám hátlapján.
D185: Nyomaték [Nm] | E185: 1900 | I185: 1900 | M185: 1300
D186: Max nyomaték. [Nm] | E186: 2700 | I186: 2700 | M186: 1950 | U186: Chicago Pneumatic | V186: CP9541 | Z186: CP6748EX-P11R ATEX | AD186: CP9561
D187: Üresjárati fordulat [rpm] | E187: 5900 | I187: 5900 | M187: 6000 | V187: Kihajtási méret: 1/2" Ütőmű: Pin clutch Nyomaték: 34-434 Nm Max nyomaték: 610 Nm Üresjárati fordulatszám: 8 900 RPM Alacsony vibrációjú ipari légkulcs gyártáshoz, összereléshez. | Z187: Kihajtási méret: 1/2" Ütőmű: Twin hammer Nyomaték: 180-760 Nm Max nyomaték: 1085 Nm Üresjárati fordulatszám: 8 400 RPM Kimagasló minőség és erő robbanásveszélyes környezetbe | AD187: Kihajtási méret: 3/4" Ütőmű: Pin clutch Nyomaték: 200-950 Nm Max nyomaték: 1250 Nm Üresjárati fordulatszám: 5 500 RPM Alacsony vibrációjú ipari légkulcs gyártáshoz, összereléshez.
D188: Tömeg [kg] | E188: 8 | I188: 8 | M188: 3,6
D189: Javasolt tömlőméret ø [mm] | E189: 13 | I189: 13 | M189: 13
D190: Max. nyomás [bar] | E190: 6,3 | I190: 6,3 | M190: 6,3
D191: Átlagos levegőfogyasztás [l/min] | E191: 300 | I191: 300 | M191: 225 | U191: Cikkszám / Típus / (Listaár) Nettó ár | V191: 6151909541 | W191: CP9541 | X191: =VLOOKUP(V191,Árlista!$B:$D,3,0) -> 132 000,-Ft | Z191: 6151590570 | AA191: CP6748EX | AB191: =VLOOKUP(Z191,Árlista!$B:$D,3,0) -> 193 800,-Ft | AD191: 6151909561 | AE191: CP9561 | AF191: =VLOOKUP(AD191,Árlista!$B:$D,3,0) -> 303 200,-Ft
D192: Folyamatos levegőfogyasztás [l/min] | E192: 920 | I192: 920 | M192: 972
D193: Ütőmű rendszer | E193: DUO PACT | I193: DUO PACT | M193: Duopact | U193: Cikkszám / Típus / (Listaár) Nettó ár | V193: 6151909542 | W193: CP9542 | X193: =VLOOKUP(V193,Árlista!$B:$D,3,0) -> 132 000,-Ft
D194: Használati besorolás | E194: 3 -igen magas színvonalú | I194: 3 -igen magas színvonalú | M194: 4 -a legmagasabb igényekhez
D195: Cikkszám / Típus / (Listaár) Nettó ár | E195: 8951000068 | F195: RC2437 | G195: =VLOOKUP(E195,Árlista!$B:$D,3,0) -> TOPS* 252 800,-Ft | I195: 8951000069 | J195: RC2447 | K195: =VLOOKUP(I195,Árlista!$B:$D,3,0) -> TOPS* 271 700,-Ft | M195: 8951000075 | N195: RC2405 | O195: =VLOOKUP(M195,Árlista!$B:$D,3,0) -> TOPS* 149 300,-Ft
U199: CP772H-6"
U206: Chicago Pneumatic | V206: CP772H | Z206: CP7763 | AD206: CP8272-D
V207: Kihajtási méret: 3/4" Ütőmű: Pin clutch Nyomaték: 203-949 Nm Max nyomaték: 1356 Nm Üresjárati fordulatszám: 4 200 RPM Classic légkulcs, amely évtizedek óta bizonyít! | Z207: Kihajtási méret: 3/4" / 1" Ütőmű: Twin hammer Nyomaték: 136-1288 Nm Max nyomaték: 1630 Nm Üresjárati fordulatszám: 6 300 RPM Erőteljes, megbízható motor és ütőmű karbantartáshoz. | AD207: Kihajtási méret: 3/4" Ütőmű: Twin hammer Nyomaték: 250-1250 Nm Max nyomaték: 1650 Nm Üresjárati fordulatszám: 6 500 RPM Erőteljes, de alacsony zaj- és vibrációs szintű ipari készülék.
U211: Cikkszám / Típus / (Listaár) Nettó ár | V211: T024598 | W211: CP772H | X211: =VLOOKUP(V211,Árlista!$B:$D,3,0) -> STARS* 144 800,-Ft | Z211: 8941077630 | AA211: CP7763 3/4" | AB211: =VLOOKUP(Z211,Árlista!$B:$D,3,0) -> STARS* 152 100,-Ft | AD211: 6151590260 | AE211: CP8272-D | AF211: =VLOOKUP(AD211,Árlista!$B:$D,3,0) -> 311 400,-Ft
D213: Típus | E213: Rodcraft RC2477Xi | I213: Rodcraft RC2444 | M213: Rodcraft RC2490/Rodcraft RC2491 | U213: Cikkszám / Típus / (Listaár) Nettó ár | V213: T024757 | W213: CP772H-6 | X213: =VLOOKUP(V213,Árlista!$B:$D,3,0) -> 269 400,-Ft | Z213: 8941077636 | AA213: CP7763-6 | AB213: =VLOOKUP(Z213,Árlista!$B:$D,3,0) -> 258 300,-Ft | AD213: 6151590220 | AE213: CP8272-P | AF213: =VLOOKUP(AD213,Árlista!$B:$D,3,0) -> 311 400,-Ft
D214: Kihajtási méret [inch] | E214: □ 1" | F214: Kiemelkedően könnyű súlyú prémium készülék 8,1 kg. ERŐTELJES - 2900 Nm. magasabb az összes ebbe a kategóriába eső készüléknél. A kovácsolt DUO PACT mechanizmusnak köszönhetően rendkívül erős és különösen tartós. Kis elülső méretének köszönhetően (89 mm) olyan csavarokhoz is hozzáférhetünk, amihez egy hagyományos kulcs nem ér be. Kihajtási hossz 180 mm. Az extra oldalsó fogantyú 360 fokban elforgatható. | I214: □ 1" | J214: Nagyon erős és robosztus szerszám, alacsony karbantartási igényű ”zárt ütőmű” -vel. Levegőelvezetés a fogantyún keresztül. Max. nyomatéka 3.500 Nm. Erőszabályozása 4 fokozatú, amely mindkét irányban rendelkezésre áll. | M214: □ 1" | N214: Nagy, nehéz légkulcs a legnehezebb ipari felhasználásra is. Duplakalapácsos ütőművel. Max. nyomatéka 3.500 Nm Rövid és hosszú kihajtással (200mm) is rendelhető. Erőszabályozása 4 fokozatú, amely mindkét irányban rendelkezésre áll.
D215: Nyomaték [Nm] | E215: 2100 | I215: 2450 | M215: 2450 | U215: Cikkszám / Típus / (Listaár) Nettó ár | V215: T025162 | W215: CP772H KIT | X215: =VLOOKUP(V215,Árlista!$B:$D,3,0) -> 298 600,-Ft | Z215: 8941077730 | AA215: CP7773 1" | AB215: =VLOOKUP(Z215,Árlista!$B:$D,3,0) -> 250 100,-Ft
D216: Max nyomaték. [Nm] | E216: 2900 | I216: 3500 | M216: 3500
D217: Üresjárati fordulat [rpm] | E217: 5900 | I217: 2700 | M217: 3400
D218: Tömeg [kg] | E218: 8 | I218: 14,6 | M218: 17,9
D219: Javasolt tömlőméret ø [mm] | E219: 13 | I219: 13 | M219: 19
D220: Max. nyomás [bar] | E220: 6,3 | I220: 6,3 | M220: 6,3
D221: Átlagos levegőfogyasztás [l/min] | E221: 300 | I221: 400 | M221: 330
D222: Folyamatos levegőfogyasztás [l/min] | E222: 920 | I222: 1120 | M222: 930
D223: Ütőmű rendszer | E223: Duopact | I223: Closed Hammer | M223: Duopact
D224: Használati besorolás | E224: 4 -a legmagasabb igényekhez | I224: 4 -a legmagasabb igényekhez | M224: 3 -igen magas színvonalú
D225: Cikkszám / Típus / (Listaár) Nettó ár | E225: 8951000046 | F225: RC2477Xi | G225: =VLOOKUP(E225,Árlista!$B:$D,3,0) -> TOPS* 221 700,-Ft | I225: 8951077210 | J225: RC2444 | K225: =VLOOKUP(I225,Árlista!$B:$D,3,0) -> C #: 481 000,-Ft | M225: 8951077250 | N225: Rövid | O225: =VLOOKUP(M225,Árlista!$B:$D,3,0) -> 
D227: Cikkszám / Típus / (Listaár) Nettó ár | E227: 8951000135 | F227: RC2457Xi | G227: =VLOOKUP(E227,Árlista!$B:$D,3,0) -> TOPS* 205 200,-Ft
U228: Chicago Pneumatic | V228: CP7769/CP7779 | Z228: CP6763 & CP6773 | AD228: CP6060 SASAB
V229: Kihajtási méret: 3/4" Ütőmű: Twin hammer Nyomaték: 407-1,464 Nm Max nyomaték: 1950 Nm Üresjárati fordulatszám: 7 000 RPM Erős, könnyű, kiegyensúlyozott légkulcs, alacsony levegőigénnyel. | Z229: Kihajtási méret: 3/4" / 1" Ütőmű: Twin hammer Nyomaték: 350-1290 Nm Max: 1630-1760 Nm Üresjárati fordulatszám: 6 300 RPM Erőteljes, megbízható motor és ütőmű karbantartáshoz. | AD229: Kihajtási méret: 1/2" Ütőmű: 2-Jaw Nyomaték: 265-880 Nm Max nyomaték: 1350 Nm Üresjárati fordulatszám: 3 500 RPM Super industrial légkulcs, maximális komfort, kellő nyomaték.
U233: Cikkszám / Típus / (Listaár) Nettó ár | V233: 8941077690 | W233: CP7769 3/4" | X233: =VLOOKUP(V233,Árlista!$B:$D,3,0) -> ,-Ft | Z233: 6151590400 | AA233: CP6763 3/4" | AB233: =VLOOKUP(Z233,Árlista!$B:$D,3,0) -> 249 900,-Ft | AD233: T024059 | AE233: SASAB 3/4"
U235: Cikkszám / Típus / (Listaár) Nettó ár | V235: 8941077696 | W235: CP7769-6 | X235: 172 000 Ft | Z235: 6151590410 | AA235: CP6773 1" | AB235: 172 000 Ft | AD235: T024058 | AE235: SASAR 3/4" | AF235: 686 100 Ft
U237: Cikkszám / Típus / (Listaár) Nettó ár | V237: 8941077790 | W237: CP7779 1" | X237: =VLOOKUP(V237,Árlista!$B:$D,3,0) -> ,-Ft | AD237: T024060 | AE237: SASAK 1"
U239: Cikkszám / Típus / (Listaár) Nettó ár | AD239: T024063 | AE239: ZASAK 1" | AF239: 686 100 Ft
D241: Típus | E241: Rodcraft RC2585 | I241: Rodcraft RC2530 | M241: Chicago Pneumatic CP6240-T120
D242: Kihajtási méret [inch] | E242: □ 1 1/2" | F242: Gigantikus erejű (3 500 Nm) 1 1/2" légkulcs. Erőszabályozása 4 fokozatú, amely mindkét irányban rendelkezésre áll. A szimmetrikus ütőművének köszönhetően alacsony vibrációjú és levegőfogyasztású készülék. | I242: □ 1 1/2" | J242: Gigantikus erejű (5 500 Nm) 1 1/2" légkulcs. Erőszabályozása 4 fokozatú, amely mindkét irányban rendelkezésre áll. A szimmetrikus ütőművének köszönhetően alacsony vibrációjú és levegőfogyasztású készülék. | M242: □ 2 1/2" | N242: Nagy, nehéz légkulcs a legnehezebb ipari felhasználásra is. Duplakalapácsos ütőművel. Max. nyomatéka 3.500 Nm Rövid és hosszú kihajtással (200mm) is rendelhető. Erőszabályozása 4 fokozatú, amely mindkét irányban rendelkezésre áll.
D243: Nyomaték [Nm] | E243: 2450 | I243: 4200 | M243: 12400
D244: Max nyomaték. [Nm] | E244: 3500 | I244: 5500 | M244: 25000
D245: Üresjárati fordulat [rpm] | E245: 3400 | I245: 3600 | M245: 4000
D246: Tömeg [kg] | E246: 16,6 | I246: 17,7 | M246: 17,7
D247: Javasolt tömlőméret ø [mm] | E247: 19 | I247: 19 | M247: 60
D248: Max. nyomás [bar] | E248: 6,3 | I248: 6,3 | M248: 6,3
D249: Átlagos levegőfogyasztás [l/min] | E249: 330 | I249: 600 | M249: 2100
D250: Folyamatos levegőfogyasztás [l/min] | E250: 930 | I250: 1800
D251: Ütőmű rendszer | E251: Rod-A-Matic | I251: Rod-A-Matic | M251: Double Rocking Dog
D252: Használati besorolás | E252: 3 -igen magas színvonalú | I252: 3 -igen magas színvonalú | M252: 4 -a legmagasabb igényekhez | U252: Chicago Pneumatic | V252: CP6060-P15H | Z252: CP7630 | AD252: CP7762
D253: Cikkszám / Típus / (Listaár) Nettó ár | E253: 8951077270 | F253: RC2585 | G253: =VLOOKUP(E253,Árlista!$B:$D,3,0) ->  | I253: 8951077260 | J253: RC2530 | K253: =VLOOKUP(I253,Árlista!$B:$D,3,0) -> C #: 986 000,-Ft | O253: Kérje ajánlatunkat! | V253: Kihajtási méret: 3/4" / 1" Ütőmű: 2-Jaw Nyomaték: 270-1220 Nm Max nyomaték: 1490 Nm Üresjárati fordulatszám: 4 000 RPM Super industrial légkulcs, maximális komfort, könnyű, nagy nyomaték. | Z253: Kihajtási méret: 3/4" Ütőmű: Twin hamme Nyomaték: 200-1300 Nm Max nyomaték: 1500 Nm Üresjárati fordulatszám: 5 000 RPM | AD253: Kihajtási méret: 3/4" Ütőmű: Twin hammer Nyomaték: 200-900 Nm Max nyomaték: 1420Nm Üresjárati fordulatszám: 4850 RPM Az első törpelégkulcs a nagyok között. 158 mm hosszú, 2,9 kg
U257: Cikkszám / Típus / (Listaár) Nettó ár | V257: 6151590090 | W257: 6060-P15H | X257: =VLOOKUP(V257,Árlista!$B:$D,3,0) -> C #: 762 000,-Ft | Z257: 8941076300 | AA257: CP7630 | AB257: =VLOOKUP(Z257,Árlista!$B:$D,3,0) -> STARS* 124 200,-Ft | AD257: 8941077620 | AE257: CP7762 | AF257: =VLOOKUP(AD257,Árlista!$B:$D,3,0) -> STARS* 128 100,-Ft
U259: Cikkszám / Típus / (Listaár) Nettó ár | V259: 6151590100 | W259: 6060-P15R | X259: =VLOOKUP(V259,Árlista!$B:$D,3,0) -> C #: 762 000,-Ft | Z259: 8941076306 | AA259: CP7630-6 hosszú | AB259: =VLOOKUP(Z259,Árlista!$B:$D,3,0) -> 176 200,-Ft
U261: Cikkszám / Típus / (Listaár) Nettó ár | V261: 6151590110 | W261: 6070-P15H | X261: =VLOOKUP(V261,Árlista!$B:$D,3,0) -> C #: 770 000,-Ft
D268: Rodcraft | E268: Kecskebőr-Neoprene® kesztyű. Ütéselnyelő zselés töltettel. AVHCT | I268: Tartós Spandex ® ujjakon és a tenyéren párnázva. MHS | M268: Free Flex ® Airprene védelemmel ellátott tartós Spandex ® anyagból. Ütéselnyelő zselés töltettel. SFA
Y269: CP6763
D270: Cikkszám / Típus / (Listaár) Nettó ár | E270: 8951011014 | F270: SM 8 | G270: =VLOOKUP(E270,Árlista!$B:$D,3,0) ->  | I270: 8951011005 | J270: SM 8 | K270: =VLOOKUP(I270,Árlista!$B:$D,3,0) ->  | M270: 8951011004 | N270: SM 8 | O270: =VLOOKUP(M270,Árlista!$B:$D,3,0) -> Kifutó, érdeklődj!
D271: Cikkszám / Típus / (Listaár) Nettó ár | E271: 8951011013 | F271: MD 8,5 | G271: =VLOOKUP(E271,Árlista!$B:$D,3,0) ->  | I271: 8951011009 | J271: MD 8,5 | K271: =VLOOKUP(I271,Árlista!$B:$D,3,0) ->  | M271: 8951011003 | N271: MD 8,5 | O271: =VLOOKUP(M271,Árlista!$B:$D,3,0) -> Kifutó, érdeklődj!
D272: Cikkszám / Típus / (Listaár) Nettó ár | E272: 8951011012 | F272: LG 9 | G272: =VLOOKUP(E272,Árlista!$B:$D,3,0) -> Kifutó, érdeklődj! | I272: 8951011008 | J272: LG 9 | K272: =VLOOKUP(I272,Árlista!$B:$D,3,0) ->  | M272: 8951011002 | N272: LG 9 | O272: =VLOOKUP(M272,Árlista!$B:$D,3,0) -> Kifutó, érdeklődj!
D273: Cikkszám / Típus / (Listaár) Nettó ár | E273: 8951011011 | F273: XL 9,5 | G273: =VLOOKUP(E273,Árlista!$B:$D,3,0) -> Kifutó, érdeklődj! | I273: 8951011007 | J273: XL 9,5 | K273: =VLOOKUP(I273,Árlista!$B:$D,3,0) ->  | M273: 8951011001 | N273: XL 9,5 | O273: =VLOOKUP(M273,Árlista!$B:$D,3,0) -> Kifutó, érdeklődj!
D274: Cikkszám / Típus / (Listaár) Nettó ár | E274: 8951011010 | F274: XXL 10 | G274: =VLOOKUP(E274,Árlista!$B:$D,3,0) ->  | I274: 8951011006 | J274: XXL 10 | K274: =VLOOKUP(I274,Árlista!$B:$D,3,0) ->  | M274: 8951011000 | N274: XXL 10 | O274: =VLOOKUP(M274,Árlista!$B:$D,3,0) -> Kifutó, érdeklődj! | U274: Chicago Pneumatic | V274: CP6763 és CP6773 | Z274: CP7776 | AD274: CP6920-D24
V275: Kihajtási méret: 3/4" / 1" Ütőmű: Twin hammer Nyomaték: 340-1450 Nm Max nyomaték: 1760 Nm Üresjárati fordulatszám: 6 300 RPM Erőteljes, megbízható motor és ütőmű ipari felhasználásra. | Z275: Kihajtási méret: 1" Ütőmű: Pinless close rocking dog Nyomaték: 955 -2073 Nm Max nyomaték: 2400 Nm Üresjárati fordulatszám: 5 000 RPM Erőteljes, nagy nyomatékú megbízható biztonságos gép. | AD275: Kihajtási méret: 1" Ütőmű: Pinless Rocking Dog Nyomaték: 500-2100 Nm Max nyomaték: 2600 Nm Üresjárati fordulatszám: 5 000 RPM Ergonómikus ipari légkulcs gyártáshoz, összereléshez.
U279: Cikkszám / Típus / (Listaár) Nettó ár | V279: 6151590640 | W279: CP6763-D18D | X279: =VLOOKUP(V279,Árlista!$B:$D,3,0) -> 387 000,-Ft | Z279: 8941077760 | AA279: CP7776 | AB279: =VLOOKUP(Z279,Árlista!$B:$D,3,0) -> 372 000,-Ft | AD279: 6151590070 | AE279: CP6920-P24 | AF279: =VLOOKUP(AD279,Árlista!$B:$D,3,0) -> 493 000,-Ft
U281: Cikkszám / Típus / (Listaár) Nettó ár | V281: 6151590650 | W281: CP6773-D18D | X281: =VLOOKUP(V281,Árlista!$B:$D,3,0) -> 391 000,-Ft | Z281: 8941077766 | AA281: CP7776-6 | AB281: =VLOOKUP(Z281,Árlista!$B:$D,3,0) -> 381 000,-Ft | AD281: 6151590080 | AE281: CP6920-D24 | AF281: =VLOOKUP(AD281,Árlista!$B:$D,3,0) -> C #: 509 000,-Ft
U294: Chicago Pneumatic | V294: CP0611 | Z294: CP7778 | AD294: CP7763D CP7763D-6 és CP7773D CP7773D-6
V295: Kihajtási méret: 1" Ütőmű: 2-Jaw Nyomaték: 1220-2440 Nm Max nyomaték: 3790 Nm Üresjárati fordulatszám: 4 000 RPM Super industrial légkulcs, maximális komfort, könnyű, nagy nyomaték. | Z295: Kihajtási méret: 1" Ütőmű: Pinless rocking dog Nyomaték: 400 - 1800 Nm Max nyomaték: 2200 Nm Üresjárati fordulatszám: 5 000 RPM Erőteljes, nagy nyomatékú megbízható biztonságos gép. | AD295: Kihajtási méret: 3/4" / 1" Ütőmű: Twin hammer Nyomaték: 340-1450 Nm Max nyomaték: 1760 Nm Üresjárati fordulatszám: 6 300 RPM Erőteljes, megbízható motor és ütőmű karbantartáshoz.
U299: Cikkszám / Típus / (Listaár) Nettó ár | V299: 6151590050 | W299: CP0611P RS | X299: =VLOOKUP(V299,Árlista!$B:$D,3,0) -> C #: 1 516 000,-Ft | Z299: 8941077780 | AA299: CP7778 | AB299: =VLOOKUP(Z299,Árlista!$B:$D,3,0) -> C #: 505 000,-Ft | AD299: 8941077731 | AE299: CP7763D/CP7773D | AF299: =VLOOKUP(AD299,Árlista!$B:$D,3,0) -> 252 700,-Ft
U301: Cikkszám / Típus / (Listaár) Nettó ár | V301: T022580 | W301: GASED | Z301: 8941077786 | AA301: CP7778-6 | AB301: =VLOOKUP(Z301,Árlista!$B:$D,3,0) -> C #: 341 000,-Ft | AD301: 8941077737 | AE301: ...63D-6/...73D-6 | AF301: =VLOOKUP(AD301,Árlista!$B:$D,3,0) -> 270 400,-Ft
U314: Chicago Pneumatic | V314: CP7782 | Z314: CP797 | AD314: Ütőmű nélküli légkulcsok
V315: Kihajtási méret: 1" Ütőmű: Pin less closed rocking dog Nyomaték: 500 - 2000 Nm Max nyomaték: 2600 Nm Üresjárati fordulatszám: 5 200 RPM Könnyű erősebb légkulcs, alacsony vibrációval karbantartáshoz. | Z315: Kihajtási méret: 1" Ütőmű: Double rocking dog Nyomaték: 203-1220 Nm Max nyomaték: 1898 Nm Üresjárati fordulatszám: 4 200 RPM Piacvezető megbízható, strapabíró légkulcs. | AD315: Blue Tork termékek 550-900 Nm közötti pontos meghúzás Stall Torque termékek 3/4" 320-1300 Nm 1" 700-2600 Nm és 1000-4100 Nm meghúzáshoz
U319: Cikkszám / Típus / (Listaár) Nettó ár | V319: 8941077820 | W319: CP7782 | X319: =VLOOKUP(V319,Árlista!$B:$D,3,0) -> STARS* 211 000,-Ft | Z319: T019139 | AA319: CP797 | AB319: =VLOOKUP(Z319,Árlista!$B:$D,3,0) -> C #: 578 000,-Ft | AE319: Árajánlat alapján
... 8 more rows

Sheet Dugókulcsok
A1: RODCRAFT | E1: Általános karbantartáshoz | K1: Ipari karbantartáshoz és gyártáshoz
A2: Árlista
A3: Megrendelő
A4: Fúrók
A5: Racsnis kulcsok
A6: Csavarbehajtók
A7: Sarokcsiszolók
A8: Légkulcsok
A9: Egyenes csiszolók
A10: Szalag és excenter csiszolók
A11: Polír- és fiber csiszolók
A12: Vésők, leverők …
A13: Szóró- és lefúvató pisztolyok
A14: Vágók, fűrészek, szegecshúzók
A15: Dugókulcsok | D15: Rodcraft | E15: Dugókulcs szett ütvecsavarozóhoz 1/4" | I15: Dugókulcs szett ütvecsavarozóhoz 3/8"-HEX | M15: Dugókulcs szett ütvecsavarozóhoz 3/8"-HEX
A16: Csatlakozók | D16: Típus | E16: RS2116 | F16: 7 / 8 / 9 / 10 / 11 / 12 mm Dugók, T15-T20-T25-T30-T40 Torx, 5 / 6 / 8 /10 HEX Bit, Bit tartó | I16: RS3113 | J16: Méretek: 7 / 8 / 9 / 10 / 11 / 12 / 13 / 14 / 15 / 16 / 17 / 18 / 19 mm. | M16: RS3113D | N16: Méretek: 7 / 8 / 9 / 10 / 11 / 12 / 13 / 14 / 15 / 16 / 17 / 18 / 19 mm.
A17: Abroncstöltők | D17: Méret | E17: □ 1/4" | I17: □ 3/8" | M17: □ 3/8"
A18: ABAC Levegős szerszámok | D18: Cikkszám / Típus / (Listaár) Nettó ár | E18: 8951000146 | F18: Rövid | G18: =VLOOKUP(E18,Árlista!$B:$D,3,0) -> 9 250,-Ft | I18: 8951012354 | J18: Rövid | K18: =VLOOKUP(I18,Árlista!$B:$D,3,0) -> TOPS* 9 120,-Ft | M18: 8951012355 | N18: Hosszú | O18: =VLOOKUP(M18,Árlista!$B:$D,3,0) -> Kifutó, érdeklődj!
A19: Garázsipari eszközök
A20: AKKUMULÁTOROS GÉPEK
A21: Tömlők, tömlődobok
A22: Szűrők, szabályozók
A23: Balancerek
A25: =Fúrók!$A25 -> A feltüntett árak a 2020.02.01.-től
A26: =Fúrók!$A26 -> érvényes listaárak.
A27: =Fúrók!$A27 -> * jelöléssel ellátott termékek a
A28: =Fúrók!$A28 -> RC TOPS és CP STAR akciós
A29: =Fúrók!$A29 -> kiadvány árai
A30: =Fúrók!$A30 -> SP jelöléssel ellátott termékekre
A31: =Fúrók!$A31 -> speciális viszonteladói árkézés | D31: Rodcraft | E31: Dugókulcs szett ütvecsavarozóhoz 1/2"-HEX
A32: =Fúrók!$A32 -> vonatkozik. Az Extra árak | D32: Típus | E32: RS4114 | F32: Méretek: 10 / 11 / 12 / 13 / 14 / 15 / 16 / 17 / 18 / 19 / 21 / 22 / 26 / 27mm
A33: =Fúrók!$A33 -> a készlet erejéig, illetve | D33: Méret | E33: □ 1/2"
A34: =Fúrók!$A34 -> visszavonásig érvényesek. | D34: Cikkszám / Típus / (Listaár) Nettó ár | E34: 8951012356 | F34: Rövid | G34: =VLOOKUP(E34,Árlista!$B:$D,3,0) -> TOPS* ,-Ft
A35: =Fúrók!$A35 -> Az árista a Techtomat Kft és
A36: =Fúrók!$A36 -> Kapitár Kft közös gondozásában
A37: =Fúrók!$A37 -> jelent meg.
A38: =Fúrók!$A38 -> Minden jog fenntartva.
A40: =Fúrók!$A40 -> Bővebb információ:
A41: =Fúrók!$A41 -> Szabó Attila
A42: =Fúrók!$A42 -> 30/201-4931 vagy 30/626-8687
A43: =Fúrók!$A43 -> e-mail
A44: =Fúrók!$A44 -> Tóth Tamás
A45: =Fúrók!$A45 -> 30/603-1596
D46: Rodcraft | E46: Dugókulcs szett ütvecsavarozóhoz 1/2"-HEX | I46: Dugókulcs szett ütvecsavarozóhoz 1/2"-HEX | M46: Dugókulcs szett ütvecsavarozóhoz 1/2"-HEX
D47: Típus | E47: RS4114D | F47: Méretek: 10 / 11 / 12 / 13 / 14 / 15 / 16 / 17 / 18 / 19 / 21 / 22 / 26 / 27mm | I47: RS4114TWD | J47: Méretek: 17 / 19 / 21mm szett, illetve 17, 19, 21 Darabonként is rendelhető! | M47: RS413WP | N47: Méretek: 17 / 19 / 21mm illetve RS414WP 17 / 19 / 21 / 22mm
D48: Méret | E48: □ 1/2" | I48: □ 1/2" | M48: □ 1/2"
D49: Cikkszám / Típus / (Listaár) Nettó ár | E49: 8951012357 | F49: Hosszú | G49: =VLOOKUP(E49,Árlista!$B:$D,3,0) -> TOPS* 25 090,-Ft | I49: 8951012353 | J49: Hosszú | K49: =VLOOKUP(I49,Árlista!$B:$D,3,0) -> 17 090,-Ft | M49: 8951012362 | N49: RS413WP | O49: =VLOOKUP(M49,Árlista!$B:$D,3,0) -> TOPS* 8 550,-Ft
D50: Cikkszám / Típus / (Listaár) Nettó ár | I50: 8951012364 | J50: R417MD | K50: =VLOOKUP(I50,Árlista!$B:$D,3,0) -> 2 520,-Ft | M50: 8951012363 | N50: RS414WP | O50: =VLOOKUP(M50,Árlista!$B:$D,3,0) -> TOPS* 12 550,-Ft
D51: Cikkszám / Típus / (Listaár) Nettó ár | I51: 8951012365 | J51: R419MD | K51: =VLOOKUP(I51,Árlista!$B:$D,3,0) -> 1 960,-Ft | M51: 8951012372 | N51: RS417MWP | O51: =VLOOKUP(M51,Árlista!$B:$D,3,0) -> 4 200,-Ft
D52: Cikkszám / Típus / (Listaár) Nettó ár | I52: 8951012366 | J52: R421MD | K52: =VLOOKUP(I52,Árlista!$B:$D,3,0) -> 2 520,-Ft | M52: 8951012373 | N52: RS419MWP | O52: =VLOOKUP(M52,Árlista!$B:$D,3,0) -> 4 480,-Ft
D53: Cikkszám / Típus / (Listaár) Nettó ár | M53: 8951012374 | N53: RS421MWP | O53: =VLOOKUP(M53,Árlista!$B:$D,3,0) -> 4 760,-Ft
D54: Cikkszám / Típus / (Listaár) Nettó ár | M54: 8951012375 | N54: RS422MWP | O54: =VLOOKUP(M54,Árlista!$B:$D,3,0) -> 
D65: Rodcraft | E65: Dugókulcs inbus szett 1/2"-TORX | I65: Dugókulcs inbus szett 1/2"-HEX | M65: Torziós szár szett 1/2"
D66: Típus | E66: RS438T | F66: Méretek: T25 / T27 / T30 / T40 / T45 / T50 / T55 / T60 | I66: RS438A | J66: Méretek: H6 / H7 / H8 / H10 / H12 / H14 / H17 / H19 mm. | M66: RS435B | N66: Hossz: 1940mm Nyomaték: 100 / 110 / 120 / 135 / 150Nm
D67: Méret | E67: □ 1/2" | I67: □ 1/2" | M67: □ 1/2"
D68: Cikkszám / Típus / (Listaár) Nettó ár | E68: 8951012377 | G68: =VLOOKUP(E68,Árlista!$B:$D,3,0) -> TOPS* 16 540,-Ft | I68: 8951012376 | K68: =VLOOKUP(I68,Árlista!$B:$D,3,0) -> TOPS* 17 110,-Ft | M68: 8951012378 | N68: Rövid | O68: =VLOOKUP(M68,Árlista!$B:$D,3,0) -> 38 140,-Ft
D82: Rodcraft | E82: Dugókulcs szett ütvecsavarozóhoz 3/4"-HEX | I82: Dugókulcs szett ütvecsavarozóhoz 3/4"-HEX | M82: Dugókulcs szett ütvecsavarozóhoz 1"-HEX
D83: Típus | E83: RS618 | F83: Méretek: 26 / 27 / 29 / 30 / 32 / 35 / 36 / 38mm | I83: RS618D | J83: Méretek: 26 / 27 / 29 / 30 / 32 / 35 / 36 / 38mm | M83: RS818 | N83: Méretek: 27 / 30 / 32 / 33 / 35 / 36 / 38 / 41 mm
D84: Méret | E84: □ 3/4" | I84: □ 3/4" | M84: □ 1"
D85: Cikkszám / Típus / (Listaár) Nettó ár | E85: 8951012358 | F85: Rövid | G85: =VLOOKUP(E85,Árlista!$B:$D,3,0) -> TOPS* 27 760,-Ft | I85: 8951012359 | J85: Hosszú | K85: =VLOOKUP(I85,Árlista!$B:$D,3,0) -> TOPS* 37 960,-Ft | M85: 8951012360 | N85: Rövid | O85: =VLOOKUP(M85,Árlista!$B:$D,3,0) -> TOPS* 49 290,-Ft
D94: Rodcraft | E94: Dugókulcs szett ütvecsavarozóhoz 1"-HEX
D95: Típus | E95: RS814D | F95: Méretek: 27 /32 / 33 / 36mm illetve 27, 30, 32, 33, 36mm dugókulcsok
D96: Méret | E96: □ 1"
D97: Cikkszám / Típus / (Listaár) Nettó ár | E97: 8951012361 | F97: RS814D | G97: =VLOOKUP(E97,Árlista!$B:$D,3,0) -> TOPS* 37 960,-Ft
D98: Cikkszám / Típus / (Listaár) Nettó ár | E98: 8951012367 | F98: RS827MD
D99: Cikkszám / Típus / (Listaár) Nettó ár | E99: 8951012368 | F99: RS830MD
D100: Cikkszám / Típus / (Listaár) Nettó ár | E100: 8951012369 | F100: RS832MD
D101: Cikkszám / Típus / (Listaár) Nettó ár | E101: 8951012370 | F101: RS833MD | G101: =VLOOKUP(E101,Árlista!$B:$D,3,0) -> 12 610,-Ft
D102: Cikkszám / Típus / (Listaár) Nettó ár | E102: 8951012371 | F102: RS836MD
D109: Chicago Pneumatic | E109: CP Átalakító
D110: Típus | F110: Átalakítók ütvecsavarozók kihajtásához, O gyűrűs rögzítéssel.
D111: Méret
D112: Cikkszám / Típus / Nettó ár A308 | E112: 8940165984 | F112: 3/8-1/2 | G112: =VLOOKUP(E112,Árlista!$B:$D,3,0) -> 2 760,-Ft
D113: Cikkszám / Típus / Nettó ár A406 | E113: 8940165992 | F113: 1/2-3/8 | G113: =VLOOKUP(E113,Árlista!$B:$D,3,0) -> 2 760,-Ft
D114: Cikkszám / Típus / Nettó ár A4012 | E114: 8940165993 | F114: 1/2-3/4 | G114: =VLOOKUP(E114,Árlista!$B:$D,3,0) -> 3 450,-Ft
D115: Cikkszám / Típus / Nettó ár A608 | E115: 8940166001 | F115: 3/4-1/2 | G115: =VLOOKUP(E115,Árlista!$B:$D,3,0) -> 6 510,-Ft
D116: Cikkszám / Típus / Nettó ár A616 | E116: 8940166002 | F116: 3/4-1,0 | G116: =VLOOKUP(E116,Árlista!$B:$D,3,0) -> 7 560,-Ft
D117: Cikkszám / Típus / Nettó ár A812 | E117: 8940166009 | F117: 1,0-3/4 | G117: =VLOOKUP(E117,Árlista!$B:$D,3,0) -> 13 060,-Ft

Sheet Vésők, leverők ...
A1: RODCRAFT | E1: Általános karbantartáshoz | K1: Ipari karbantartáshoz és gyártáshoz | R1: CHICAGO PNEUMATIC | U1: Általános karbantartáshoz | X1: Ipari karbantartáshoz és gyártáshoz | AC1: Ipari körülményekhez -sorozatgyártás | AI1: RODCRAFT
A2: Árlista | R2: Árlista | AI2: Árlista
A3: Megrendelő | R3: Megrendelő | AI3: Megrendelő
A4: Fúrók | R4: Fúrók | AI4: Fúrók
A5: Racsnis kulcsok | R5: Racsnis kulcsok | AI5: Racsnis kulcsok
A6: Csavarbehajtók | R6: Csavarbehajtók | AI6: Csavarbehajtók
A7: Sarokcsiszolók | R7: Sarokcsiszolók | AI7: Sarokcsiszolók
A8: Légkulcsok | R8: Légkulcsok | AI8: Légkulcsok
A9: Egyenes csiszolók | R9: Egyenes csiszolók | AI9: Egyenes csiszolók
A10: Szalag és excenter csiszolók | R10: Szalag és excenter csiszolók | AI10: Szalag és excenter csiszolók
A11: Polír- és fiber csiszolók | R11: Polír- és fiber csiszolók | AI11: Polír- és fiber csiszolók
A12: Vésők, leverők … | R12: Vésők, leverők … | AI12: Vésők, leverők …
A13: Szóró- és lefúvató pisztolyok | R13: Vágók, fűrészek, szegecshúzók | AI13: Szóró- és lefúvató pisztolyok
A14: Vágók, fűrészek, szegecshúzók | R14: Szóró- és lefúvató pisztolyok | AI14: Vágók, fűrészek, szegecshúzók
A15: Dugókulcsok | R15: Dugókulcsok | AI15: Dugókulcsok
A16: Csatlakozók | D16: Típus | E16: Rodcraft RC5615 | I16: RC5610 / CP7120 | M16: Rodcraft RC5625 | R16: Csatlakozók | AI16: Csatlakozók
A17: Abroncstöltők | D17: Tűméret [mm] x Mennyiség [db] | E17: 12 x 3 | F17: Felnik, és egyéb kis felületek tisztítására, tűkészlettel: 12 x 3 mm (5615ST ) (tűhossz 120 mm) | I17: 19 x 3 | J17: Kombinált szerszám. 19x3 mm-es tűs leverővel és 30 mm-es lapos vésőszárral. Ideális vastagabb rozsda és festékrétegek eltávolítására, majd azt követően, tűs leverőként annak utómunkálására. | M17: 29x2; 19x3 | N17: Univerzális eszköz nagyobb felületek tisztítására, 2 különböző tűkészlettel: 29 x 2 mm (5625ST2) és 19 x 3 mm (5625ST3) | R17: Abroncstöltők | AI17: Abroncstöltők
A18: ABAC Levegős szerszámok | D18: Ütésszám [1 / min] | E18: 4000 | I18: 4000 | M18: 3000 | R18: ABAC Levegős szerszámok | AI18: ABAC Levegős szerszámok
A19: Garázsipari eszközök | D19: Tömeg [kg] | E19: 1,3 | I19: 2,55 | M19: 2,7 | R19: Garázsipari eszközök | U19: Chicago Pneumatic | V19: CP B15B | Z19: CP B18B | AD19: B19B | AI19: Garázsipari eszközök
A20: AKKUMULÁTOROS GÉPEK | D20: Javasolt tömlőméret ø [mm] | E20: 8 | I20: 8 | M20: 8 | R20: AKKUMULÁTOROS GÉPEK | V20: Ütési energia: 2,9 Joule Ütésszám: 2 900 Befogás: HL 12,7 mm Nettó tömeg: 1,6 kg Könnyű, egykezes, egyenes vágó. | Z20: Ütési energia: 5,8 Joule Ütésszám: 3 000 Befogás: HL 12,7 mm Nettó tömeg: 2 kg Könnyű pisztoly kialakítású vágó. | AD20: Ütési energia: 9,5 Joule Ütésszám: 2 200 Befogás: HL 12,7 mm Nettó tömeg: 3 kg Robosztus felépítésű és erejű vágó. | AI20: AKKUMULÁTOROS GÉPEK
A21: Tömlők, tömlődobok | D21: Max. nyomás [bar] | E21: 6,3 | I21: 6,3 | M21: 6,3 | R21: Tömlők, tömlődobok | AI21: Tömlők, tömlődobok | AL21: Cikkszám / Típus / (Listaár) Nettó ár | AM21: 8940159860 | AN21: 19x3x180 tű | AO21: =VLOOKUP(AM21,Árlista!$B:$D,3,0) -> STARS* 3 200,-Ft | AQ21: 8951011498 | AR21: 12x3x120 tű | AU21: 8951011501 | AV21: 14x4x180 | AW21: =VLOOKUP(AU21,Árlista!$B:$D,3,0) -> 6 440,-Ft
A22: Szűrők, szabályozók | D22: Átlagos levegőfogyasztás [l/min] | E22: 120 | I22: 190 | M22: 120 | R22: Szűrők, szabályozók | AI22: Szűrők, szabályozók | AL22: Cikkszám / Típus / (Listaár) Nettó ár | AM22: 8951011510 | AN22: Befogó 19x3 | AO22: =VLOOKUP(AM22,Árlista!$B:$D,3,0) -> 8 400,-Ft | AQ22: 8951011511 | AR22: Befogó 12/3 | AU22: 8951011500 | AV22: 28x3x180 | AW22: =VLOOKUP(AU22,Árlista!$B:$D,3,0) -> 9 530,-Ft
A23: Balancerek | D23: Folyamatos levegőfogyasztás [l/min] | E23: 180 | I23: 280 | M23: 170 | R23: Balancerek | U23: Cikkszám / Típus / (Listaár) Nettó ár | V23: 6151740230 | W23: B15B | X23: =VLOOKUP(V23,Árlista!$B:$D,3,0) -> 167 000,-Ft | Z23: 6151740270 | AA23: B18B | AB23: =VLOOKUP(Z23,Árlista!$B:$D,3,0) -> 174 400,-Ft | AD23: 6151740300 | AE23: B19B | AF23: =VLOOKUP(AD23,Árlista!$B:$D,3,0) -> 187 200,-Ft | AI23: Balancerek | AL23: Cikkszám / Típus / (Listaár) Nettó ár | AM23: 8951011497 | AN23: Véső | AO23: =VLOOKUP(AM23,Árlista!$B:$D,3,0) -> 8 400,-Ft | AQ23: 8940159860 | AR23: 19x3x180 tű | AS23: =VLOOKUP(AQ23,Árlista!$B:$D,3,0) -> STARS* 3 200,-Ft | AU23: 8951011503 | AV23: Befogó 14x4 | AW23: =VLOOKUP(AU23,Árlista!$B:$D,3,0) -> 15 410,-Ft
D24: Használati besorolás | E24: 2 -megnövekedett igényekhez | I24: 2 -megnövekedett igényekhez | M24: 2 -megnövekedett igényekhez | U24: Chicago Pneumatic | V24: CP B16B | Z24: CP B18BV | AD24: B19B1 | AL24: Cikkszám / Típus / (Listaár) Nettó ár | AQ24: 8951011504 | AR24: 29x2x180 tű | AS24: =VLOOKUP(AQ24,Árlista!$B:$D,3,0) -> 20 450,-Ft | AU24: 8951011502 | AV24: Befogó 28x3 | AW24: =VLOOKUP(AU24,Árlista!$B:$D,3,0) -> 17 650,-Ft
A25: =Fúrók!$A25 -> A feltüntett árak a 2020.02.01.-től | D25: Cikkszám / Típus / (Listaár) Nettó ár | E25: 8951076002 | F25: RC5615 | G25: =VLOOKUP(E25,Árlista!$B:$D,3,0) -> TOPS* 37 960,-Ft | I25: 8951076001 | J25: RC5610 | K25: =VLOOKUP(I25,Árlista!$B:$D,3,0) -> TOPS* 103 600,-Ft | M25: 8951076004 | N25: RC5625 | O25: =VLOOKUP(M25,Árlista!$B:$D,3,0) -> TOPS* 65 900,-Ft | R25: =Fúrók!$A25 -> A feltüntett árak a 2020.02.01.-től | V25: Ütési energia: 5,8 Joule Ütésszám: 3 000 Befogás: HL 12,7 mm Nettó tömeg: 2 kg Könnyű, egykezes, egyenes vágó. | Z25: Ütési energia: 1,8 Joule Ütésszám: 2 400 Befogás: HL 12,7 mm Nettó tömeg: 3,1 kg Könnyű, egykezes, egyenes vágó. | AD25: Ütési energia: 9,5 Joule Ütésszám: 2 200 Befogás: HL 15,9 mm Nettó tömeg: 3 kg Robosztus felépítésű és erejű vágó. | AI25: =Fúrók!$A25 -> A feltüntett árak a 2020.02.01.-től | AL25: Cikkszám / Típus / (Listaár) Nettó ár | AQ25: 8951011513 | AR25: Befogó 19x3
A26: =Fúrók!$A26 -> érvényes listaárak. | R26: =Fúrók!$A26 -> érvényes listaárak. | AI26: =Fúrók!$A26 -> érvényes listaárak. | AL26: Cikkszám / Típus / (Listaár) Nettó ár | AQ26: 8951011512 | AR26: Befogó 29x2
A27: =Fúrók!$A27 -> * jelöléssel ellátott termékek a | R27: =Fúrók!#REF! ->  | AI27: =Fúrók!$A27 -> * jelöléssel ellátott termékek a
A28: =Fúrók!$A28 -> RC TOPS és CP STAR akciós | R28: =Fúrók!$A27 -> * jelöléssel ellátott termékek a | U28: Cikkszám / Típus / (Listaár) Nettó ár | V28: 6151740250 | W28: B16B | X28: =VLOOKUP(V28,Árlista!$B:$D,3,0) -> 187 200,-Ft | Z28: 6151740530 | AA28: B18BV | AB28: =VLOOKUP(Z28,Árlista!$B:$D,3,0) -> 251 200,-Ft | AD28: 6151740310 | AE28: B19B1 | AF28: =VLOOKUP(AD28,Árlista!$B:$D,3,0) -> 187 200,-Ft | AI28: =Fúrók!$A28 -> RC TOPS és CP STAR akciós
A29: =Fúrók!$A29 -> kiadvány árai | R29: =Fúrók!$A28 -> RC TOPS és CP STAR akciós | AI29: =Fúrók!$A29 -> kiadvány árai
A30: =Fúrók!$A30 -> SP jelöléssel ellátott termékekre | R30: =Fúrók!$A29 -> kiadvány árai | AI30: =Fúrók!$A30 -> SP jelöléssel ellátott termékekre
A31: =Fúrók!$A31 -> speciális viszonteladói árkézés | R31: =Fúrók!$A30 -> SP jelöléssel ellátott termékekre | AI31: =Fúrók!$A31 -> speciális viszonteladói árkézés
A32: =Fúrók!$A32 -> vonatkozik. Az Extra árak | R32: =Fúrók!$A31 -> speciális viszonteladói árkézés | AI32: =Fúrók!$A32 -> vonatkozik. Az Extra árak
A33: =Fúrók!$A33 -> a készlet erejéig, illetve | R33: =Fúrók!$A32 -> vonatkozik. Az Extra árak | AI33: =Fúrók!$A33 -> a készlet erejéig, illetve
A34: =Fúrók!$A34 -> visszavonásig érvényesek. | AI34: =Fúrók!$A34 -> visszavonásig érvényesek.
A35: =Fúrók!$A35 -> Az árista a Techtomat Kft és | R35: =Fúrók!$A35 -> Az árista a Techtomat Kft és | AI35: =Fúrók!$A35 -> Az árista a Techtomat Kft és
A36: =Fúrók!$A36 -> Kapitár Kft közös gondozásában | R36: =Fúrók!$A36 -> Kapitár Kft közös gondozásában | AI36: =Fúrók!$A36 -> Kapitár Kft közös gondozásában | AL36: Fémmegmunkáló szerszámok
A37: =Fúrók!$A37 -> jelent meg. | R37: =Fúrók!$A37 -> jelent meg. | U37: Chicago Pneumatic | V37: B19BV | Z37: B21B | AD37: CP714 | AI37: =Fúrók!$A37 -> jelent meg.
A38: =Fúrók!$A38 -> Minden jog fenntartva. | R38: =Fúrók!$A38 -> Minden jog fenntartva. | V38: Ütési energia: 7 Joule Ütésszám: 3 000 Befogás: HL 12,7 mm Nettó tömeg: 4,1 kg Alacsony vibrációjú vágó, hosszú használathoz. | Z38: Ütési energia: 15,9 Joule Ütésszám: 2 200 Befogás: HL 12,7 mm Nettó tömeg: 4 kg Szükséges erő a legkeményebb alkalmazásokhoz. | AD38: Ütési energia: 4,7 Joule Ütésszám: 2 000 Befogás: D 10,2 mm Nettó tömeg: 1,51 kg Megbizható, sokoldalú véső. | AI38: =Fúrók!$A38 -> Minden jog fenntartva.
AL39: Cikkszám / Típus / (Listaár) Nettó ár | AM39: 8951011928 | AN39: RC22S | AO39: =VLOOKUP(AM39,Árlista!$B:$D,3,0) -> 6 440,-Ft | AQ39: 8951011930 | AR39: RC60S | AS39: =VLOOKUP(AQ39,Árlista!$B:$D,3,0) -> 11 490,-Ft | AU39: 8951011923 | AV39: RC14S | AW39: =VLOOKUP(AU39,Árlista!$B:$D,3,0) -> 6 440,-Ft
A40: =Fúrók!$A40 -> Bővebb információ: | D40: Típus | E40: Rodcraft RC5620 | I40: Rodcraft RC5630 | M40: Rodcraft RC5175 / Rodcraft RC5605 | R40: =Fúrók!$A40 -> Bővebb információ: | AI40: =Fúrók!$A40 -> Bővebb információ: | AL40: Cikkszám / Típus / (Listaár) Nettó ár | AM40: 8951011926 | AN40: RC19S | AO40: =VLOOKUP(AM40,Árlista!$B:$D,3,0) -> 6 440,-Ft | AQ40: 8951011927 | AR40: RC20S | AS40: =VLOOKUP(AQ40,Árlista!$B:$D,3,0) -> 6 440,-Ft | AU40: 8951011924 | AV40: RC16S | AW40: =VLOOKUP(AU40,Árlista!$B:$D,3,0) -> 15 690,-Ft
A41: =Fúrók!$A41 -> Szabó Attila | D41: Tűméret [mm] x Mennyiség [db] | E41: 28 x 3; 14 x 4 | F41: Gyors és hatékony eszköz 2 teljes készlet tűvel, a durva munkálatokhoz is. A két tűkészlet: 28 x 3 mm (5620ST3) és 14 x 4 mm (5620ST4) | I41: 49 x 3; 35 x 4 | J41: Hatékony eszköz vastag rozsdarétegre és nagyobb felületekre. A készlet 35 x 4 tűvel szerelve. Rendelhető: 49 x 3 mm (5630ST3) és | M41: 3 x 19 | N41: Extrahosszú löketű kalapács. 11 mm-es hatszögbefogással, 9J ütőenergiával. Csatlakoztathatók hozzá az RC5120, RC5160, RC5150 szerszámai, valamint az RC5605 tűs leverő adapter. | R41: =Fúrók!$A41 -> Szabó Attila | U41: Cikkszám / Típus / (Listaár) Nettó ár | V41: 6151740550 | W41: B19BV | X41: =VLOOKUP(V41,Árlista!$B:$D,3,0) -> 265 900,-Ft | Z41: 6151740400 | AA41: B21B | AB41: =VLOOKUP(Z41,Árlista!$B:$D,3,0) -> 252 000,-Ft | AD41: T012735 | AE41: CP714 | AF41: =VLOOKUP(AD41,Árlista!$B:$D,3,0) -> 221 900,-Ft | AI41: =Fúrók!$A41 -> Szabó Attila | AL41: Cikkszám / Típus / (Listaár) Nettó ár | AM41: 8951011925 | AN41: RC18S | AO41: =VLOOKUP(AM41,Árlista!$B:$D,3,0) -> 6 440,-Ft
A42: =Fúrók!$A42 -> 30/201-4931 vagy 30/626-8687 | D42: Ütésszám [1 / min] | E42: 4500 | I42: 2300 | M42: 2100 | R42: =Fúrók!$A42 -> 30/201-4931 vagy 30/626-8687 | U42: Cikkszám / Típus / (Listaár) Nettó ár | AD42: T025364 | AE42: CP714 KIT | AF42: =VLOOKUP(AD42,Árlista!$B:$D,3,0) -> 255 000,-Ft | AI42: =Fúrók!$A42 -> 30/201-4931 vagy 30/626-8687
A43: =Fúrók!$A43 -> e-mail | D43: Tömeg [kg] | E43: 3,6 | I43: 6 | M43: 2,05 | AI43: =Fúrók!$A43 -> e-mail
A44: =Fúrók!$A44 -> Tóth Tamás | D44: Javasolt tömlőméret ø [mm] | E44: 10 | I44: 8 | M44: 8 | R44: =Fúrók!$A44 -> Tóth Tamás | AI44: =Fúrók!$A44 -> Tóth Tamás
A45: =Fúrók!$A45 -> 30/603-1596 | D45: Max. nyomás [bar] | E45: 6,3 | I45: 6,3 | M45: 6,3 | R45: =Fúrók!$A45 -> 30/603-1596 | AI45: =Fúrók!$A45 -> 30/603-1596
D46: Átlagos levegőfogyasztás [l/min] | E46: 200 | I46: 200 | M46: 260
D47: Folyamatos levegőfogyasztás [l/min] | E47: 300 | I47: 300 | M47: 380
D48: Használati besorolás | E48: 3 -igen magas színvonalú | I48: 3 -igen magas színvonalú | M48: 3 -igen magas színvonalú
D49: Cikkszám / Típus / (Listaár) Nettó ár | E49: 8951076003 | F49: RC5620 | G49: =VLOOKUP(E49,Árlista!$B:$D,3,0) -> TOPS* 116 300,-Ft | I49: 8951076005 | J49: RC5630 | M49: 8951071042 | N49: RC5175 | O49: =VLOOKUP(M49,Árlista!$B:$D,3,0) -> 48 160,-Ft
AL50: Szerszámok betonhoz
U51: Chicago Pneumatic | V51: CP716 | Z51: CP7111 | AD51: CP717
V52: Ütési energia: 6,2 Joule Ütésszám: 3 500 Befogás: D 10,2 mm Nettó tömeg: 1,59 kg Jól kontrolálható, megbízható véső. | Z52: Ütési energia: 7,2 Joule Ütésszám: 3 000 Befogás: D 10,2 mm Nettó tömeg: 1,6 kg Általános vágási és vésési feladatokhoz. | AD52: Ütési energia: 4,7 Joule Ütésszám: 1 800 Befogás: D 12,7 mm Nettó tömeg: 2,15 kg Erő és precízió. Ideális vágáshoz, szegecsléshez..
AL53: Cikkszám / Típus / (Listaár) Nettó ár | AM53: 8951011932 | AN53: SS10 | AO53: =VLOOKUP(AM53,Árlista!$B:$D,3,0) -> TOPS* 5 700,-Ft | AQ53: 8951011934 | AR53: SS20 | AS53: =VLOOKUP(AQ53,Árlista!$B:$D,3,0) -> TOPS* 2 850,-Ft | AU53: 8951011937 | AV53: SS30K | AW53: =VLOOKUP(AU53,Árlista!$B:$D,3,0) -> 8 400,-Ft
AL54: Cikkszám / Típus / (Listaár) Nettó ár | AM54: 8951011933 | AN54: SS10K | AO54: =VLOOKUP(AM54,Árlista!$B:$D,3,0) -> 8 400,-Ft | AQ54: 8951011935 | AR54: SS20K | AS54: =VLOOKUP(AQ54,Árlista!$B:$D,3,0) -> 8 400,-Ft | AU54: 8951011938 | AV54: SS40 | AW54: =VLOOKUP(AU54,Árlista!$B:$D,3,0) -> TOPS* 6 270,-Ft
U55: Cikkszám / Típus / (Listaár) Nettó ár | V55: T025348 | W55: CP716 | X55: =VLOOKUP(V55,Árlista!$B:$D,3,0) -> 72 200,-Ft | Z55: 8941171110 | AA55: CP7111K | AB55: =VLOOKUP(Z55,Árlista!$B:$D,3,0) -> STARS* 30 600,-Ft | AD55: T020120 | AE55: CP717 | AF55: =VLOOKUP(AD55,Árlista!$B:$D,3,0) -> 349 000,-Ft | AL55: Cikkszám / Típus / (Listaár) Nettó ár | AM55: 8951011929 | AN55: RC30S | AO55: =VLOOKUP(AM55,Árlista!$B:$D,3,0) -> 14 290,-Ft | AQ55: 8951011936 | AR55: SS30 | AS55: =VLOOKUP(AQ55,Árlista!$B:$D,3,0) -> 7 840,-Ft | AU55: 8951011939 | AV55: SS40K | AW55: =VLOOKUP(AU55,Árlista!$B:$D,3,0) -> 8 400,-Ft
U56: Cikkszám / Típus / (Listaár) Nettó ár | Z56: 8941171101 | AA56: CP7110 K | AB56: =VLOOKUP(Z56,Árlista!$B:$D,3,0) -> 56 100,-Ft | AD56: T025365 | AE56: CP717 KIT | AF56: =VLOOKUP(AD56,Árlista!$B:$D,3,0) -> 382 000,-Ft | AL56: Cikkszám / Típus / (Listaár) Nettó ár
D58: =AW105 -> 14 850,-Ft
AL61: Szerszámok szegecseléshez
D63: Típus | E63: Rodcraft RC5120 | I63: Rodcraft RC5160 | M63: Rodcraft RC5150
D64: Ütési energia [J] | E64: 6 | F64: VÉSŐKALAPÁCS KÉSZLET FÉMHEZ Komplett készlet kofferben mely tartalmazza: RC 5100 típusú levegős vésőkalapácsot 11 mm-es hatszögbefogással, 5 véső fémek vágáshoz, biztonsági rugós rögzítéssel RC70 ÉRDEMES RC5120 KÉSZLET MELLÉ MEGVÁSROLNI AZ RC 5160/RC5150 SZERSZÁMAIT VAGY AZ RC5605 TŰS ADAPTERT! | I64: 6 | J64: KALAPÁCS KÉSZLET SZEGECSEKHEZ Kamionok fékbetétjeinek szegecseléshez, illetve azok eltávolításához. Komplett készlet kofferben mely tartalmazza: RC 5100 típusú levegős vésőkalapácsot 11 mm-es hatszögbefogással, 3 db-os 8 mm-es szegecselő készlettel (Rendelhető 6 /10 mm-es készlet is!) 1 biztonsági acél tartó RC76-1 | M64: 6 | N64: VÉSŐKALAPÁCS KÉSZLET KŐHÖZ ÉS BETONHOZ Komplett készlet kofferben mely tartalmazza: RC 5100 típusú levegős vésőkalapácsot 11 mm-es hatszögbefogással, 5 véső kőhöz és betonhoz, 1 biztonsági acél tartó RC76-1 Szerszámhossz: 210 mm (rendelhető 140 mm-es szerszámhosszban is) | AL64: Cikkszám / Típus / (Listaár) Nettó ár | AM64: 8951011942 | AN64: RC40-S6 | AO64: =VLOOKUP(AM64,Árlista!$B:$D,3,0) -> 7 840,-Ft | AQ64: 8951011945 | AR64: RC41-S8 | AS64: =VLOOKUP(AQ64,Árlista!$B:$D,3,0) -> 6 440,-Ft | AU64: 8951011947 | AV64: RC42-S6 | AW64: =VLOOKUP(AU64,Árlista!$B:$D,3,0) -> 6 720,-Ft
D65: Ütésszám [1 / min] | E65: 3000 | I65: 3000 | M65: 3000 | U65: Chicago Pneumatic | V65: GV5 | Z65: RA1 | AD65: RA2C | AL65: Cikkszám / Típus / (Listaár) Nettó ár | AM65: 8951011943 | AN65: RC40-S8 | AO65: =VLOOKUP(AM65,Árlista!$B:$D,3,0) -> 7 840,-Ft | AQ65: 8951011944 | AR65: RC41-S10 | AS65: =VLOOKUP(AQ65,Árlista!$B:$D,3,0) -> 16 250,-Ft | AU65: 8951011948 | AV65: RC42S-8 | AW65: =VLOOKUP(AU65,Árlista!$B:$D,3,0) -> 5 880,-Ft
D66: Dugattyú löket / átmérő [mm] | E66: 60/19 | I66: 60/19 | M66: 60/19 | V66: Ütési energia: 12,2 Joule Ütésszám: 2 400 Befogás: HL 19 mm Nettó tömeg: 5,1 kg Egyszerű felépítésű, ipari véső. | Z66: Ütési energia: 2,3 Joule Ütésszám: 4 000 Befogás: D 9,5 mm Nettó tömeg: 1,1kg Kicsi, könnyű, ugyanakkor masszív véső. | AD66: Ütési energia: 5,6 Joule Ütésszám: 3 500 Befogás: D 15 mm Nettó tömeg: 2 kg Erő és precízió. Ideális vágászoz, szegecsléshez.. | AL66: Cikkszám / Típus / (Listaár) Nettó ár | AM66: 8951011941 | AN66: RC40-S10 | AO66: =VLOOKUP(AM66,Árlista!$B:$D,3,0) -> 16 250,-Ft | AU66: 8951011946 | AV66: RC42-S810 | AW66: =VLOOKUP(AU66,Árlista!$B:$D,3,0) -> Kifutó, érdeklődj!
D67: Szerszám befogás [mm] | E67: HEX 11,01 | I67: HEX 11,01 | M67: HEX 11,01
D68: Tömeg [kg] | E68: 1,5 | I68: 1,5 | M68: 1,5
D69: Javasolt tömlőméret ø [mm] | E69: 8 | I69: 8 | M69: 8 | U69: Cikkszám / Típus / (Listaár) Nettó ár | V69: 6151740170 | W69: GV5 | X69: =VLOOKUP(V69,Árlista!$B:$D,3,0) -> C #: 547 000,-Ft | Z69: 6151740180 | AA69: RA1 | AB69: =VLOOKUP(Z69,Árlista!$B:$D,3,0) -> 380 000,-Ft | AD69: 6151740200 | AE69: RA2C | AF69: =VLOOKUP(AD69,Árlista!$B:$D,3,0) -> 388 000,-Ft
D70: Max. nyomás [bar] | E70: 6,3 | I70: 6,3 | M70: 6,3 | U70: Cikkszám / Típus / (Listaár) Nettó ár | Z70: 6151740190 | AA70: RA1BL | AB70: =VLOOKUP(Z70,Árlista!$B:$D,3,0) -> 380 000,-Ft | AD70: 6151740210 | AE70: RA2H | AF70: =VLOOKUP(AD70,Árlista!$B:$D,3,0) -> 388 000,-Ft
D71: Átlagos levegőfogyasztás [l/min] | E71: 270 | I71: 270 | M71: 270
D72: Folyamatos levegőfogyasztás [l/min] | E72: 400 | I72: 400 | M72: 400
D73: Levegőcsatlakozás [inch] | E73: 1/4 Zoll IG | I73: 1/4 Zoll IG | M73: 1/4 Zoll IG
D74: Hangnyomásszint LpA | E74: 94,8 | I74: 94,8 | M74: 94,8
D75: Hangenergiaszint, LwA [dB(A)]
D76: Vibráció [m/s2] | E76: 13,2 | I76: 13,2 | M76: 13,2 | AL76: Cikkszám / Típus / (Listaár) Nettó ár | AM76: 8951011949 | AN76: RC51S | AO76: =VLOOKUP(AM76,Árlista!$B:$D,3,0) -> TOPS* 5 700,-Ft | AQ76: 8951011951 | AR76: RC53S | AS76: =VLOOKUP(AQ76,Árlista!$B:$D,3,0) -> 7 840,-Ft
D77: Használati besorolás | E77: 2 -megnövekedett igényekhez | I77: 2 -megnövekedett igényekhez | M77: 2 -megnövekedett igényekhez | AL77: Cikkszám / Típus / (Listaár) Nettó ár | AM77: 8951011950 | AN77: RC52S | AO77: =VLOOKUP(AM77,Árlista!$B:$D,3,0) -> TOPS* 6 990,-Ft | AQ77: 8951011952 | AR77: RC54S | AS77: =VLOOKUP(AQ77,Árlista!$B:$D,3,0) -> 7 840,-Ft
D78: Cikkszám / Típus / (Listaár) Nettó ár | E78: 8951171013 | F78: RC5120 | G78: =VLOOKUP(E78,Árlista!$B:$D,3,0) -> TOPS* 28 330,-Ft | I78: 8951171033 | J78: RC5160 | K78: =VLOOKUP(I78,Árlista!$B:$D,3,0) -> 52 060,-Ft | M78: 8951171023 | N78: RC5150 | O78: =VLOOKUP(M78,Árlista!$B:$D,3,0) -> TOPS* 54 600,-Ft
U81: Chicago Pneumatic | V81: CP B16M | Z81: CP B18M | AD81: B19M
V82: Ütési energia: 5,8 Joule Ütésszám: 3 000 Tű méret: 19 x 3 mm Nettó tömeg: 2,6 kg Könnyű, egykezes, egyenes leverő. | Z82: Ütési energia: 5,8 Joule Ütésszám: 3 000 Tű méret: 19 x 3 mm (Opc: 51 x 2) Nettó tömeg: 2,6 kg Könnyű pisztoly kialakítású leverő. | AD82: Ütési energia: 9,5 Joule Ütésszám: 2 200 Tű méret: 28 x 3 mm (Opc: 19x4; 65x2) Nettó tömeg: 3,7 kg Robosztus felépítésű és erejű leverő.
U85: Cikkszám / Típus / (Listaár) Nettó ár | V85: 6151740260 | W85: B16M | X85: =VLOOKUP(V85,Árlista!$B:$D,3,0) -> 174 400,-Ft | Z85: 6151740280 | AA85: B18M | AB85: =VLOOKUP(Z85,Árlista!$B:$D,3,0) -> 171 500,-Ft | AD85: 6151740320 | AE85: B19M | AF85: =VLOOKUP(AD85,Árlista!$B:$D,3,0) -> 187 200,-Ft
U86: Chicago Pneumatic | V86: CP B16MV | Z86: CP B18MV | AD86: B19MV
V87: Ütési energia: 1,8 Joule Ütésszám: 2 400 Tű méret: 19 x 3 mm Nettó tömeg: 2,4 kg Vibrációcsökkentett egykezes leverő. | Z87: Ütési energia: 1,8 Joule Ütésszám: 2 400 Tű méret: 19 x 3 mm Nettó tömeg: 2,7 kg Vibrációcsökkentett pisztoly leverő. | AD87: Ütési energia: 7 Joule Ütésszám: 3 000 Tű méret: 28 x 3 mm (Opc: 19x4; 65x2) Vibrációcsökkentett, robosztus leverő. | AL87: Cikkszám / Típus / (Listaár) Nettó ár | AM87: 8951011953 | AN87: RC92 | AO87: =VLOOKUP(AM87,Árlista!$B:$D,3,0) -> TOPS* 6 840,-Ft | AQ87: 8951011957 | AS87: =VLOOKUP(AQ87,Árlista!$B:$D,3,0) -> TOPS* 28 330,-Ft
AL88: Cikkszám / Típus / (Listaár) Nettó ár | AM88: 8951011954 | AN88: RC93 | AO88: =VLOOKUP(AM88,Árlista!$B:$D,3,0) -> TOPS* 6 840,-Ft
U90: Cikkszám / Típus / (Listaár) Nettó ár | V90: 6151740500 | W90: B16MV | X90: =VLOOKUP(V90,Árlista!$B:$D,3,0) -> 244 200,-Ft | Z90: 6151740520 | AA90: B18MV | AB90: =VLOOKUP(Z90,Árlista!$B:$D,3,0) -> 251 200,-Ft | AD90: 6151740540 | AE90: B19MV | AF90: =VLOOKUP(AD90,Árlista!$B:$D,3,0) -> 265 900,-Ft
D91: Típus | E91: Rodcraft RC5176 | I91: Rodcraft RC5180 | M91: Rodcraft RC5305 / Rodcraft RC5310
D92: Ütési energia [J] | E92: 9 | F92: Extrahosszú löketű kalapács. 11 mm-es hatszögbefogással, 9J ütőenergiával. Csatlakoztathatók hozzá az RC5120, RC5160, RC5150 szerszámai, valamint az RC5605 tűs leverő adapter. Az RC5176 SET tartalmaz egy lapos és egy hegyes vésőt kőhöz és betonhoz. | I92: 8 | J92: Csökkentett vibrációjú, ergonomikus kialakítású kalapács. 11 mm-es hatszögbefogással, 8J ütőenergiával. A készülék egyaránt használható kőhöz és fémhez. Csatlakoztathatók hozzá az RC5120, RC5160, RC5150 szerszámai, valamint az RC5605 tűs leverő adapter. | M92: 6 | N92: EGYENES VÉSŐKALAPÁCS KÉSZLET KŐHÖZ ÉS BETONHOZ Komplett készlet kofferben mely tartalmazza: RC 5305 típusú levegős vésőkalapácsot 12 mm-es hatszögbefogással, 4 véső kőhöz és betonhoz, 1 biztonsági acél tartó RC76-3
D93: Ütésszám [1 / min] | E93: 2100 | I93: 2000 | M93: 3000
D94: Dugattyú löket / átmérő [mm] | E94: 94/19 | I94: 81/19 | M94: 50/20
D95: Szerszám befogás [mm] | E95: HEX 11,01 | I95: HEX 11,01 | M95: HEX 12,01
D96: Tömeg [kg] | E96: 2,05 | I96: 2,4 | M96: 2,55
D97: Javasolt tömlőméret ø [mm] | E97: 8 | I97: 8 | M97: 8
D98: Max. nyomás [bar] | E98: 6,3 | I98: 6,3 | M98: 6,3 | U98: Chicago Pneumatic | V98: B15M | Z98: CP0456-LASAN | AD98: B21M
D99: Átlagos levegőfogyasztás [l/min] | E99: 270 | I99: 250 | M99: 260 | V99: Ütési energia: 5,8 Joule Ütésszám: 3 800 Tű méret: 12 x 3 mm Nettó tömeg: 1,6 kg Könnyű, egykezes, egyenes leverő. | Z99: Ütési energia: 4,3 Joule Ütésszám: 4 300 Tű méret: 19 x 3 mm Nettó tömeg: 2,7kg Ipari, masszív felépítésű véső. | AD99: Ütési energia: 15,9 Joule Ütésszám: 2 200 Tű méret: 35 x 5 mm (Opc: 49x3) Nettó tömeg: 5,6 kg Robosztus felépítésű és erejű leverő.
D100: Folyamatos levegőfogyasztás [l/min] | E100: 400 | I100: 362 | M100: 380
D101: Használati besorolás | E101: 3 -igen magas színvonalú | I101: 3 -igen magas színvonalú | M101: 3 -igen magas színvonalú
D102: Cikkszám / Típus / (Listaár) Nettó ár | E102: 8951171043 | F102: RC5176 SET | G102: =VLOOKUP(E102,Árlista!$B:$D,3,0) -> TOPS* 60 200,-Ft | I102: 8951071052 | J102: RC5180 | K102: =VLOOKUP(I102,Árlista!$B:$D,3,0) -> 71 900,-Ft | M102: 8951071065 | N102: RC5305 | O102: =VLOOKUP(M102,Árlista!$B:$D,3,0) -> 132 200,-Ft | U102: Cikkszám / Típus / (Listaár) Nettó ár | V102: 6151740240 | W102: B15M | X102: =VLOOKUP(V102,Árlista!$B:$D,3,0) -> 151 700,-Ft | Z102: T013049 | AA102: CP0456 | AB102: =VLOOKUP(Z102,Árlista!$B:$D,3,0) -> 474 000,-Ft | AD102: 6151740410 | AE102: B21M | AF102: =VLOOKUP(AD102,Árlista!$B:$D,3,0) -> 252 000,-Ft
AL103: Cikkszám / Típus / (Listaár) Nettó ár | AM103: 8951011958 | AN103: RC70 | AO103: =VLOOKUP(AM103,Árlista!$B:$D,3,0) -> 560,-Ft | AQ103: 8951011962 | AR103: RC76-1 | AS103: =VLOOKUP(AQ103,Árlista!$B:$D,3,0) -> 11 490,-Ft | AU103: 8951011963 | AV103: RC79 | AW103: =VLOOKUP(AU103,Árlista!$B:$D,3,0) -> 2 520,-Ft
D104: Cikkszám / Típus / (Listaár) Nettó ár | E104: 8951071042 | F104: RC5175 | G104: =VLOOKUP(E104,Árlista!$B:$D,3,0) -> 48 160,-Ft | M104: 8951171053 | N104: RC5310 SET | O104: =VLOOKUP(M104,Árlista!$B:$D,3,0) -> TOPS* 131 600,-Ft | AL104: Cikkszám / Típus / (Listaár) Nettó ár | AM104: 8951011961 | AN104: RC76 | AO104: =VLOOKUP(AM104,Árlista!$B:$D,3,0) -> 5 040,-Ft | AQ104: 8951011964 | AR104: RC76-3 | AS104: =VLOOKUP(AQ104,Árlista!$B:$D,3,0) -> 17 650,-Ft | AU104: 8951011956 | AV104: RC95 | AW104: =VLOOKUP(AU104,Árlista!$B:$D,3,0) -> 1 960,-Ft
AL105: Cikkszám / Típus / (Listaár) Nettó ár | AQ105: 8951011955 | AR105: RC94 | AS105: =VLOOKUP(AQ105,Árlista!$B:$D,3,0) -> 58 900,-Ft | AU105: 8951076000 | AV105: RC5605 | AW105: =VLOOKUP(AU105,Árlista!$B:$D,3,0) -> 14 850,-Ft
AQ106: 8951011960 | AR106: RC73 | AS106: =VLOOKUP(AQ106,Árlista!$B:$D,3,0) -> 6 160,-Ft
U110: Chicago Pneumatic | V110: CP7125 | Z110: CP7115 | AD110: CP7120
V111: Ütési energia: 5 Joule Ütésszám: 4 000 Tű méret: 19x3 és 29x2 mm Nettó tömeg: 2,8 kg Leverő általános karbantartási munkákra. | Z111: Ütési energia: 2,2 Joule Ütésszám: 4 000 Tű méret: 12 x 3 mm Nettó tömeg: 1,3kg Könnyű, egykezes, egyenes leverő karbantartáshoz. | AD111: Ütési energia: 5,3 Joule Ütésszám: 4 800 Tű méret: 19 x 3 mm Befogás o 12,7 mm Nettó tömeg: 2,8 kg 2 in 1 véső és leverő.
U114: Cikkszám / Típus / (Listaár) Nettó ár | V114: 8941071250 | W114: CP7125 | X114: =VLOOKUP(V114,Árlista!$B:$D,3,0) -> STARS* 74 300,-Ft | Z114: T013049 | AA114: CP7115 | AB114: =VLOOKUP(Z114,Árlista!$B:$D,3,0) -> 474 000,-Ft | AD114: 8941071200 | AE114: CP7120 | AF114: =VLOOKUP(AD114,Árlista!$B:$D,3,0) -> STARS* 59 700,-Ft
D115: Típus | E115: Rodcraft RC5400 | I115: Rodcraft RC5185 | M115: Rodcraft RC5195
D116: Ütési energia [J] | E116: 22 | F116: NAGY EGYENES VÉSŐKALAPÁCS Egyaránt használható kőhöz, betonhoz, fémhez, falak bontásához. 14,7 mm-es hatszögbefogással. Elérhető a következő szerszámokkal: RC92 lapos 30x190 mm RC93 hegyes 185 mm | I116: 9 | J116: Csillapított rezgésű kalapács rendkívül ergonomikus kialakítással és nagy ütőerővel. Gyorstokmánnyal felszerelve. Ívelt gumibetétes fogantyú a szoros fogás érdekében. | M116: 12 | N116: Csillapított rezgésű kalapács rendkívül ergonomikus kialakítással és nagy ütőerővel. Gyorstokmánnyal felszerelve. Ívelt gumibetétes fogantyú a szoros fogás érdekében.
D117: Ütésszám [1 / min] | E117: 1700 | I117: 3000 | M117: 2200
D118: Dugattyú löket / átmérő [mm] | E118: 76/29 | I118: 70/19 | M118: 95/19
D119: Szerszám befogás [mm] | E119: HEX 14,71 | I119: HEX 11 | M119: HEX 11
D120: Tömeg [kg] | E120: 7,5 | I120: 1,7 | M120: 2,0
D121: Javasolt tömlőméret ø [mm] | E121: 10 | I121: 8 | M121: 8
D122: Max. nyomás [bar] | E122: 6,3 | I122: 6,3 | M122: 6,3
D123: Átlagos levegőfogyasztás [l/min] | E123: 480 | I123: 250 | M123: 250
D124: Folyamatos levegőfogyasztás [l/min] | E124: 720 | I124: 372 | M124: 372 | U124: Chicago Pneumatic | V124: CP0951 | Z124: CP0952 | AD124: CP9160
D125: Levegőcsatlakozás [inch] | E125: 3/8 Zoll IG | I125: 1/4 Zoll IG | M125: 1/4 Zoll IG | V125: Ütési energia: 4,8 Joule Ütésszám: 4 000 Tű méret: 12x3 mm Nettó tömeg: 2,7 kg Egykezes leverő ipari felhasználásra. | Z125: Ütési energia: 4,8 Joule Ütésszám: 4 000 Tű méret: 23x3 mm Nettó tömeg: 2,4 kg Pisztoly leverő ipari felhasználásra. | AD125: Ütési energia: -- Joule Ütésszám: 32 400 Tű méret: ---- Befogás: ---- mm Nettó tömeg: 0,12 kg Véső-gravírozó.
D126: Hangnyomásszint LpA | E126: 99 | I126: 87,5 | M126: 87,5
D127: Hangenergiaszint, LwA [dB(A)]
D128: Vibráció [m/s2] | E128: 13,8 | I128: 15,9 | M128: 15,9 | U128: Cikkszám / Típus / (Listaár) Nettó ár | V128: T022306 | W128: CP0951 | X128: =VLOOKUP(V128,Árlista!$B:$D,3,0) -> 276 200,-Ft | Z128: T019191 | AA128: CP0952 | AB128: =VLOOKUP(Z128,Árlista!$B:$D,3,0) -> 366 000,-Ft | AD128: 6151979160 | AE128: CP9160 | AF128: =VLOOKUP(AD128,Árlista!$B:$D,3,0) -> STARS* 39 270,-Ft
D129: Használati besorolás | E129: 3 -igen magas színvonalú | I129: 2 -megnövekedett igényekhez | M129: 2 -megnövekedett igényekhez
D130: Cikkszám / Típus / (Listaár) Nettó ár | E130: 8951071076 | F130: RC5400 | G130: =VLOOKUP(E130,Árlista!$B:$D,3,0) -> TOPS* 151 000,-Ft | I130: 8951000152 | J130: RC5185 | K130: =VLOOKUP(I130,Árlista!$B:$D,3,0) -> TOPS* 59 100,-Ft | M130: 8951000154 | N130: RC5195 | O130: =VLOOKUP(M130,Árlista!$B:$D,3,0) -> TOPS* 59 100,-Ft
D132: Cikkszám / Típus / (Listaár) Nettó ár | E132: 8951011953 | F132: RC92 | G132: =VLOOKUP(E132,Árlista!$B:$D,3,0) -> TOPS* 6 840,-Ft | I132: 8951000153 | J132: RC5185FÉM | K132: =VLOOKUP(I132,Árlista!$B:$D,3,0) -> TOPS* 81 800,-Ft | M132: 8951000155 | N132: RC5195FÉM | O132: =VLOOKUP(M132,Árlista!$B:$D,3,0) -> TOPS* 81 800,-Ft
D134: Cikkszám / Típus / (Listaár) Nettó ár | E134: 8951011954 | F134: RC93 | G134: =VLOOKUP(E134,Árlista!$B:$D,3,0) -> TOPS* 6 840,-Ft | I134: 8951000208 | J134: RC5185BET | K134: =VLOOKUP(I134,Árlista!$B:$D,3,0) -> TOPS* 81 800,-Ft | M134: 8951000209 | N134: RC5195BET | O134: =VLOOKUP(M134,Árlista!$B:$D,3,0) -> TOPS* 81 800,-Ft
U140: Chicago Pneumatic | V140: B14A | Z140: B20 | AD140: B20-1
V141: Ütési energia: 5,7 Joule Ütésszám: 2,800 Nettó tömeg: 2,5 kg Pneumatikus kalapács ipari felhasználásra. | Z141: Ütési energia: 9,5 Joule Ütésszám: 2,800 Befogás: HL 15,9 Nettó tömeg: 5,5 kg Hossz: 1400, 1100, 710 Pneumatikus szersz: vágás, vésés, döngölés. | AD141: Ütési energia: 6,5 Joule Ütésszám: 2,800 Befogás: HL 15,9 Nettó tömeg: 6,1 kg Hossz: 1700, 1410, 1710 Pneumatikus szersz: vágás, vésés, döngölés.
U144: Cikkszám / Típus / (Listaár) Nettó ár | V144: 6151740220 | W144: B14A | X144: =VLOOKUP(V144,Árlista!$B:$D,3,0) -> 129 100,-Ft | Z144: 6151740340 | AA144: B20 | AB144: =VLOOKUP(Z144,Árlista!$B:$D,3,0) -> 241 700,-Ft | AD144: 6151740370 | AE144: B20-1 | AF144: =VLOOKUP(AD144,Árlista!$B:$D,3,0) -> 229 500,-Ft
D145: Típus | E145: Rodcraft RC5030 | I145: Chicago Pneumatic CP9361 | M145: Rodcraft RC5550 / Rodcraft RC5551 | U145: Cikkszám / Típus / (Listaár) Nettó ár | V145: 6151740420 | W145: B23 | X145: =VLOOKUP(V145,Árlista!$B:$D,3,0) -> 254 400,-Ft | Z145: 6151740350 | AA145: B20-0 | AB145: =VLOOKUP(Z145,Árlista!$B:$D,3,0) -> 241 700,-Ft | AD145: 6151740380 | AE145: B20L | AF145: =VLOOKUP(AD145,Árlista!$B:$D,3,0) -> 276 600,-Ft
D146: Ütési energia [J] | F146: VÉSŐ-GRAVÍROZÓ keményfém heggyel. Gravírozás mindenféle anyagra, acélra is! Csúszásgátló felülettel a kényelmes fogás érdekében. Tartalék keményfém tű rendelhető hozzá. | J146: VÉSŐ-GRAVÍROZÓ keményfém heggyel. Ipari kivitel, prémium minőségi anyagok felhasználásával. Gravírozás mindenféle anyagra, acélra is! Csúszásgátló felülettel a kényelmes fogás érdekében. Csatlakozó tömlővel (2,4 m) szerelve. | N146: Egyenes vésőkalapács különböző felületek és rétegek, mint a csempe és a bitumen eltávolítása tartályok, padlók és falak felületéről. Véső betétek állnak rendelkezésre: a hegyes véső valamint 100 mm-es lapos véső RC510 Az eszköz két változatban kapható, hosszú típusú padlóhoz RC5550 és kétrészes rövid RC5551 változat. | U146: Cikkszám / Típus / (Listaár) Nettó ár | Z146: 6151740360 | AA146: B20-00 | AB146: =VLOOKUP(Z146,Árlista!$B:$D,3,0) -> 206 200,-Ft | AD146: 6151740390 | AE146: B20L-1 | AF146: =VLOOKUP(AD146,Árlista!$B:$D,3,0) -> 276 600,-Ft
D147: Ütésszám [1 / min] | E147: 10000 | I147: 13500 | M147: 2200
D148: Dugattyú löket / átmérő [mm] | E148: 0,05 | M148: 40/19
D149: Szerszám befogás [mm] | E149: HEX 3,2 | I149: HEX 3 | M149: HEX 14,71
D150: Tömeg [kg] | E150: 0,2 | I150: 0,1 | M150: 5,75
D151: Javasolt tömlőméret ø [mm] | E151: 8 | I151: 8 | M151: 8
D152: Max. nyomás [bar] | E152: 6,3 | I152: 6,3 | M152: 6,3
D153: Átlagos levegőfogyasztás [l/min] | E153: 4 | M153: 100
D154: Folyamatos levegőfogyasztás [l/min] | E154: 5 | I154: 6 | M154: 160
D155: Levegőcsatlakozás [inch] | E155: 1/4 Zoll AG | I155: 1/4 Zoll IG | M155: 1/4 Zoll IG
D156: Hangnyomásszint LpA | E156: 70,7 | I156: 79 | M156: 87,5
D157: Hangenergiaszint, LwA [dB(A)]
D158: Vibráció [m/s2] | E158: 3,8 | I158: 2,4 | M158: 15,9 | U158: Chicago Pneumatic | V158: CP0200B18 | Z158: CP0200B22 | AD158: CP0200B25
D159: Használati besorolás | E159: 2 -megnövekedett igényekhez | I159: 4 -a legmagasabb igényekhez | M159: 2 -megnövekedett igényekhez | V159: Lökethossz: 50 mm Ütésszám: 1,800 Nettó tömeg: 1,5 kg Hossz: 280, 558, Pneumatikus döngölő öntödei felhasználásra. | Z159: Lökethossz: 64 mm Ütésszám: 1 020 Nettó tömeg: 3 kg Hossz: 350, 633, Pneumatikus döngölő öntödei felhasználásra. | AD159: Lökethossz: 83 mm Ütésszám: 780 Nettó tömeg: 5,5 kg Hossz: 506, 1044, Pneumatikus döngölő öntödei felhasználásra.
D160: Cikkszám / Típus / (Listaár) Nettó ár | E160: 8951071010 | F160: RC5030 | G160: =VLOOKUP(E160,Árlista!$B:$D,3,0) -> TOPS* 52 400,-Ft | I160: T012644 | J160: CP9161 | K160: =VLOOKUP(I160,Árlista!$B:$D,3,0) -> 156 300,-Ft | M160: 8951076018 | N160: RC5550
U162: Cikkszám / Típus / (Listaár) Nettó ár | V162: 6151618010 | W162: B18 | X162: =VLOOKUP(V162,Árlista!$B:$D,3,0) -> 220 800,-Ft | Z162: 6151618030 | AA162: B22 | AB162: =VLOOKUP(Z162,Árlista!$B:$D,3,0) -> 262 200,-Ft | AD162: 6151618050 | AE162: B25 | AF162: =VLOOKUP(AD162,Árlista!$B:$D,3,0) -> 474 000,-Ft
U163: Cikkszám / Típus / (Listaár) Nettó ár | V163: 6151618020 | W163: B18-2F | X163: =VLOOKUP(V163,Árlista!$B:$D,3,0) -> 231 500,-Ft | Z163: 6151618040 | AA163: B22-2F | AB163: =VLOOKUP(Z163,Árlista!$B:$D,3,0) -> 281 900,-Ft | AD163: 6151618060 | AE163: B25-2F | AF163: =VLOOKUP(AD163,Árlista!$B:$D,3,0) -> 474 000,-Ft
U164: Cikkszám / Típus / (Listaár) Nettó ár | V164: 6151618080 | W164: B18L | X164: =VLOOKUP(V164,Árlista!$B:$D,3,0) -> 231 500,-Ft | Z164: 6151618100 | AA164: B22L | AB164: =VLOOKUP(Z164,Árlista!$B:$D,3,0) -> 281 900,-Ft | AD164: 6151618120 | AE164: B25L | AF164: =VLOOKUP(AD164,Árlista!$B:$D,3,0) -> 474 000,-Ft
U165: Cikkszám / Típus / (Listaár) Nettó ár | V165: 6151618090 | W165: B18-2F | X165: =VLOOKUP(V165,Árlista!$B:$D,3,0) -> 231 500,-Ft | Z165: 6151618110 | AA165: B22-2F | AB165: =VLOOKUP(Z165,Árlista!$B:$D,3,0) -> 288 900,-Ft | AD165: 6151618130 | AE165: B25-2F | AF165: =VLOOKUP(AD165,Árlista!$B:$D,3,0) -> 474 000,-Ft
U176: Chicago Pneumatic | V176: CP9705 | Z176: CP9710
V177: Löketszám: 12 000 SPM Löket: 5 mm Nettó tömeg: 0,56 kg reszelő. Ideális eszköz sorjázáshoz, egyengetéshez. Lapos, félkör- és háromszög valamint kerek reszelővel. | Z177: Löketszám: 8 000 SPM Löket: 10 mm Nettó tömeg: 0,59 kg reszelő. Ideális eszköz sorjázáshoz, egyengetéshez. Lapos, félkör- és háromszög valamint kerek reszelővel.
U180: Cikkszám / Típus / (Listaár) Nettó ár | V180: 6151939705 | W180: CP9705 | X180: =VLOOKUP(V180,Árlista!$B:$D,3,0) -> 98 300,-Ft | Z180: 6151939710 | AA180: CP9710 | AB180: =VLOOKUP(Z180,Árlista!$B:$D,3,0) -> 101 900,-Ft

Sheet Vágók, fűrészek, szegecshúzók
A1: RODCRAFT | E1: Általános karbantartáshoz | K1: Ipari karbantartáshoz és gyártáshoz | R1: CHICAGO PNEUMATIC | U1: Általános karbantartáshoz | X1: Ipari karbantartáshoz és gyártáshoz | AC1: Ipari körülményekhez -sorozatgyártás | AI1: RODCRAFT
A2: Árlista | R2: Árlista | AI2: Árlista
A3: Megrendelő | R3: Megrendelő | AI3: Megrendelő
A4: Fúrók | R4: Fúrók | AI4: Fúrók
A5: Racsnis kulcsok | R5: Racsnis kulcsok | AI5: Racsnis kulcsok
A6: Csavarbehajtók | R6: Csavarbehajtók | AI6: Csavarbehajtók
A7: Sarokcsiszolók | R7: Sarokcsiszolók | AI7: Sarokcsiszolók
A8: Légkulcsok | R8: Légkulcsok | AI8: Légkulcsok
A9: Egyenes csiszolók | R9: Egyenes csiszolók | AI9: Egyenes csiszolók
A10: Szalag és excenter csiszolók | R10: Szalag és excenter csiszolók | AI10: Szalag és excenter csiszolók
A11: Polír- és fiber csiszolók | R11: Polír- és fiber csiszolók | AI11: Polír- és fiber csiszolók
A12: Vésők, leverők … | R12: Vésők, leverők … | AI12: Vésők, leverők … | AQ12: v
A13: Szóró- és lefúvató pisztolyok | R13: Vágók, fűrészek, szegecshúzók | AI13: Szóró- és lefúvató pisztolyok
A14: Vágók, fűrészek, szegecshúzók | R14: Szóró- és lefúvató pisztolyok | AI14: Vágók, fűrészek, szegecshúzók
A15: Dugókulcsok | R15: Dugókulcsok | AI15: Dugókulcsok
A16: Csatlakozók | R16: Csatlakozók | AI16: Csatlakozók
A17: Abroncstöltők | R17: Abroncstöltők | AI17: Abroncstöltők
A18: ABAC Levegős szerszámok | R18: ABAC Levegős szerszámok | AI18: ABAC Levegős szerszámok
A19: Garázsipari eszközök | D19: Típus | E19: Rodcraft RC6700 | I19: Rodcraft RC6710 | M19: Rodcraft RC6715 | R19: Garázsipari eszközök | U19: Chicago Pneumatic | V19: CP9882 | Z19: CP9883 | AD19: CP9884 | AI19: Garázsipari eszközök
A20: AKKUMULÁTOROS GÉPEK | D20: Szegecsméret [mm] | E20: 2,4-5,4 | F20: Réz-, alumínium-, standard popszegecsekhez. Csekély levegőigényének köszönhetően kis kompresszorral is használható. A készülék mellé jár 2,0 / 2,4 / 3,0 / 3,4 befogó | I20: 2,4-6,4 | J20: Méretében és kialakításában az RC6700-ra hasonlít, de erősített befogással. Elsődlegesen réz-, alumínium-, standard popszegecsekhez. A készülék mellé jár 2,0 / 2,4 / 3,0 / 4,0 / 4,4 befogó. | M20: 3,2-6,4 | N20: Robosztus popszegecs húzó, gumírozott fogantyúval, univerzális használatra. Lágy anyagok mellett acél szegecsekhez is. Csekély levegőigényének köszönhetően kis kompresszorral is használható. A készülék mellé jár 2,0 / 2,8 / 3,2 / 4,5 befogó | R20: AKKUMULÁTOROS GÉPEK | V20: Huzóerő: 10 000 N Nettó tömeg: 1,5 kg Popszegecs húzó lágy anyagok szegecseléséhez. A készülék mellé jár 2,4 / 3,2 / 4,0 / 4,8 befogó | Z20: Huzóerő: 8 650 N Nettó tömeg: 1,46 kg Popszegecs húzó lágy anyagok szegecseléséhez. A készülék mellé jár 2,4 / 3,2 / 4,0 / 4,8 befogó | AD20: Huzóerő: 16 000 N Nettó tömeg: 1,9 kg Erős popszegecs húzó. A készülék mellé jár 4,8 / 6,4 befogó. | AI20: AKKUMULÁTOROS GÉPEK
A21: Tömlők, tömlődobok | D21: Húzóerő [N] | E21: 12000 | I21: 19000 | M21: 15000 | R21: Tömlők, tömlődobok | AI21: Tömlők, tömlődobok
A22: Szűrők, szabályozók | D22: Tömeg [kg] | E22: 1,6 | I22: 1,8 | M22: 1,8 | R22: Szűrők, szabályozók | AI22: Szűrők, szabályozók
A23: Balancerek | D23: Javasolt tömlőméret ø [mm] | E23: 8 | I23: 8 | M23: 8 | R23: Balancerek | U23: Cikkszám / Típus / (Listaár) Nettó ár | V23: 8941098820 | W23: CP9882 | X23: =VLOOKUP(V23,Árlista!$B:$D,3,0) -> STARS* 39 100,-Ft | Z23: 8941098830 | AA23: CP9883 | AB23: =VLOOKUP(Z23,Árlista!$B:$D,3,0) -> STARS* 130 000,-Ft | AD23: 8941098840 | AE23: CP9884 | AF23: =VLOOKUP(AD23,Árlista!$B:$D,3,0) -> 286 200,-Ft | AI23: Balancerek
D24: Levegőfogyasztás [l/ütem] | E24: 1,2 | I24: 1,8 | M24: 1,1
A25: =Fúrók!$A25 -> A feltüntett árak a 2020.02.01.-től | D25: Levegőcsatlakozás [inch] | E25: 1/4 Zoll IG | I25: 1/4 Zoll IG | M25: 1/4 Zoll IG | R25: =Fúrók!$A25 -> A feltüntett árak a 2020.02.01.-től | AI25: =Fúrók!$A25 -> A feltüntett árak a 2020.02.01.-től
A26: =Fúrók!$A26 -> érvényes listaárak. | D26: Hangnyomásszint LpA | E26: 86,5 | I26: 64,1 | M26: 77,3 | R26: =Fúrók!$A26 -> érvényes listaárak. | AI26: =Fúrók!$A26 -> érvényes listaárak.
A27: =Fúrók!$A27 -> * jelöléssel ellátott termékek a | D27: Használati besorolás | E27: 2 -megnövekedett igényekhez | I27: 2 -megnövekedett igényekhez | M27: 3 -igen magas színvonalú | R27: =Fúrók!#REF! ->  | AI27: =Fúrók!$A27 -> * jelöléssel ellátott termékek a
A28: =Fúrók!$A28 -> RC TOPS és CP STAR akciós | D28: Cikkszám / Típus / (Listaár) Nettó ár | E28: 8951074001 | F28: RC6700 | G28: =VLOOKUP(E28,Árlista!$B:$D,3,0) -> TOPS* 36 260,-Ft | I28: 8951074002 | J28: RC6710 | K28: =VLOOKUP(I28,Árlista!$B:$D,3,0) -> TOPS* 154 700,-Ft | M28: 8951074003 | N28: RC6715 | O28: =VLOOKUP(M28,Árlista!$B:$D,3,0) -> TOPS* 107 900,-Ft | R28: =Fúrók!$A27 -> * jelöléssel ellátott termékek a | AI28: =Fúrók!$A28 -> RC TOPS és CP STAR akciós | AM28: Fűrészlapok NORMÁL (5db) 93/68 mm | AQ28: Fűrészlapok SIG típus (5db) 96/77 mm | AU28: Fűrészlapok HOSSZÚ (5db) 160/135 mm
A29: =Fúrók!$A29 -> kiadvány árai | R29: =Fúrók!$A28 -> RC TOPS és CP STAR akciós | AI29: =Fúrók!$A29 -> kiadvány árai | AL29: Cikkszám / Típus / (Listaár) Nettó ár | AM29: 8951011514 | AN29: 6051 32 | AO29: =VLOOKUP(AM29,Árlista!$B:$D,3,0) -> TOPS* 3 990,-Ft | AQ29: 8951011523 | AR29: H18 | AS29: =VLOOKUP(AQ29,Árlista!$B:$D,3,0) -> TOPS* 7 410,-Ft | AU29: 8951011521 | AV29: H32 | AW29: =VLOOKUP(AU29,Árlista!$B:$D,3,0) -> TOPS* 7 410,-Ft
A30: =Fúrók!$A30 -> SP jelöléssel ellátott termékekre | R30: =Fúrók!$A29 -> kiadvány árai | AI30: =Fúrók!$A30 -> SP jelöléssel ellátott termékekre | AL30: Cikkszám / Típus / (Listaár) Nettó ár | AM30: 8951011515 | AN30: 6052 24 | AO30: =VLOOKUP(AM30,Árlista!$B:$D,3,0) -> TOPS* 3 990,-Ft | AQ30: 8951011517 | AR30: H32 | AS30: =VLOOKUP(AQ30,Árlista!$B:$D,3,0) -> 6 440,-Ft | AU30: 8951011522 | AV30: H24 | AW30: =VLOOKUP(AU30,Árlista!$B:$D,3,0) -> TOPS* 7 410,-Ft
A31: =Fúrók!$A31 -> speciális viszonteladói árkézés | R31: =Fúrók!$A30 -> SP jelöléssel ellátott termékekre | AI31: =Fúrók!$A31 -> speciális viszonteladói árkézés | AL31: Cikkszám / Típus / (Listaár) Nettó ár | AM31: 8951011520 | AN31: 6058 18 | AO31: =VLOOKUP(AM31,Árlista!$B:$D,3,0) -> TOPS* 3 990,-Ft | AQ31: 8951011516 | AR31: H24 | AS31: =VLOOKUP(AQ31,Árlista!$B:$D,3,0) -> 6 440,-Ft
